Workbook

Sheet Contents
C3: Contents | F3: Colour Codes | K3: File Name: | M3: =IFERROR(File_name(),"") -> https://d.docs.live.net/f82d64a42721f930/Courses New/Chapter 1. Models and Analysis/B. Project Finance Models and Exercises/A. Featured Project Finance Models/A. Solar Models/India Solar Model.xlsm
G4: Colour of Input Cells | I4: 1234567890
C5: Summary | K5: Last Save Date | M5: =IFERROR(lastsaved(),"") -> 8/22/2025 12:44:23 PM
G6: Section Titles | I6: TITLE ROW
C7: Input C | G7: Column Letter of Title | I7: B | K7: Last Save By | M7: =IFERROR(last_save_by(),"") -> Edward Bodmer
D8: Timeline
D9: Operations | G9: Colour for Sum Column | I9: 1000000000
D10: Cost & Revenue | G10: Column Letter for Sum | I10: A
D11: Tax and Depreciation
D12: Financing | G12: True or 1 Colour | I12: TRUE
D13: Constants | G13: False or 0 Colour | I13: FALSE
C15: Input S | G15: Links from Other Sheets | I15: 999999999
D16: S-Curve | G16: Start Column for Link Colour | I16: E
D17: Inflation
D18: Seasonal Variation from Technical Analysis
C20: Financial Model
D21: Timeline
D22: Electricity Generation
D23: Operating Cashflow
D24: Depreciation and Operating Taxes
D25: Debt Sizing
D26: Financing
D27: Solver
D28: Valuation and Project sale
D29: Cash Flow Statements
D30: Financial Statements
D31: Graphs
C33: Sensitivity Analysis
C35: Value Chart
C37: Audit
C39: BESS-Augm
D40: Inputs
D41: Model
C43: LCOE
D44: Size of Project
D45: Returns and Adustment
D46: Adjustments
D47: Real LCOE
D48: Nominal LCOE
C50: UDF Example
C52: UDF Implement
D53: UDF Inputs
C55: UDF Output
D56: =UDF_1('UDF Implement'!A6:PO17)
C58: UDF 2 Output
D59: =UDF_2('UDF Implement'!A6:PO17)

Sheet Summary
C3: Capacity | D3: MW | E3: ='Financial Model'!F14 -> 130 | H3: Pre-tax Project IRR | I3: % | J3: ='Financial Model'!F54 -> 0.1099999964 | N3: Uses of Funds
C4: Capacity Factor | D4: % | E4: =E5/8760 -> 0.2670091324 | H4: Target Project IRR | I4: % | J4: ='Financial Model'!F55 -> 0.11 | O4: Capital Expenditures | P4: ='Financial Model'!H32 -> 52000
C5: Annual Yield | D5: MWH/MWp | E5: ='Input C'!F18 -> 2339 | H5: Income Tax Rate | I5: % | J5: ='Input C'!F53 -> 0.25 | O5: IDC | P5: ='Financial Model'!H213 -> 3656.536667
H6: After-tax Project IRR | I6: % | J6: ='Financial Model'!F87 -> 0.09105887115 | O6: Fees | P6: ='Financial Model'!H214+'Financial Model'!H215 -> 282.4220655
C7: Capex / KW | D7: Rs. In Lakhs/MW | E7: ='Financial Model'!F27 -> 400 | H7: Debt IRR | I7: % | J7: ='Financial Model'!F205 -> 0.082551983 | O7: Total | P7: =SUM(P4:P6) -> 55938.95873
C8: O&M / kW | D8: Rs. in Lakhs/Mwy | E8: ='Input C'!F32 -> 4 | H8: Equity IRR | I8: % | J8: ='Financial Model'!F253 -> 0.1364266336
N9: Sources of Funds
C10: PPA Price | D10: Rs. In Lakhs/MWh | E10: ='Input C'!F43 -> 0.02187119234 | H10: Minimum DSCR | I10: x | J10: ='Financial Model'!F209 -> 1.295087773 | O10: Debt | P10: ='Financial Model'!H182 -> 41954.21905 | Q10: =P10/$P$7 -> 0.75
C11: Inflate PPA Price | D11: Flag | E11: ='Input C'!F46 -> TRUE | H11: Maximum Debt to Capital | I11: % | J11: ='Financial Model'!F111 -> 0.75 | O11: Equity | P11: ='Financial Model'!H183 -> 13984.73968 | Q11: =P11/$P$7 -> 0.25
O12: Total | P12: =SUM(P10:P11) -> 55938.95873 | Q12: =SUM(Q10:Q11) -> 1
C13: Capex / KW | D13: USD/kW | E13: ='Input C'!F30 -> 465.1162791
C14: O&M / kWy | D14: USD/kWy | E14: ='Input C'!F34 -> 4.651162791 | O14: ='Financial Model'!F130 -> Debt to Capital Constraint
C16: Inflation Rate | D16: % p.a. | E16: ='Input S'!E28 -> 0.05 | O16: =Audit!J12 -> Model Ok
C17: Degradation | D17: % p.a. | E17: ='Input C'!F24 -> 0.005
C18: Availability | D18: % | E18: ='Input C'!F23 -> 0.97
C20: LCOE - Nominal | D20: Rs. In Lakhs/MWh | E20: =LCOE!E4 -> 0.03081844693
C21: LCOE - Real | D21: Rs. In Lakhs/MWh | E21: =LCOE!E47 -> 0.01996166507
C23: PPA Inflate | D23: Flag

Sheet Input C
D1: Scenerio Number | E1: 4 | H1: 1 | I1: 2 | J1: 3 | K1: 4 | L1: 5 | M1: 6 | N1: 7 | O1: 8 | P1: 9
F2: =INDEX(H2:AO2,E1) -> Flexible Timing | H2: Base Case Annual | I2: Higher Cost | J2: Higher O&M | K2: Flexible Timing | L2: Shorter Life | M2: P90 | N2: P99 | O2: Monthly
B3: Timeline
C5: Project Start | E5: Date | F5: =INDEX(H5:BU5,$E$1) -> 2026-01-01 | H5: 2026-01-01 | I5: 2026-01-01 | J5: 2026-01-01 | K5: 2026-01-01 | L5: 2026-01-01 | M5: 2026-01-01 | N5: 2026-01-01 | O5: 2026-01-01
C6: Construction Period | E6: Months | F6: =INDEX(H6:BU6,$E$1) -> 20 | H6: 12 | I6: 12 | J6: 12 | K6: 20 | L6: 12 | M6: 12 | N6: 12 | O6: 27
C7: Commercial Operation Date | E7: Date | F7: =INDEX(H7:BU7,$E$1) -> 2027-09-01 | H7: =EDATE(H5,H6) -> 2027-01-01 | I7: =EDATE(I5,I6) -> 2027-01-01 | J7: =EDATE(J5,J6) -> 2027-01-01 | K7: =EDATE(K5,K6) -> 2027-09-01 | L7: =EDATE(L5,L6) -> 2027-01-01 | M7: 2027-01-01 | N7: 2027-01-01 | O7: =EDATE(O5,O6) -> 2028-04-01
C8: Operating Period | E8: Years | F8: =INDEX(H8:BU8,$E$1) -> 25 | H8: 35 | I8: 35 | J8: 35 | K8: 25 | L8: 25 | M8: 25 | N8: 25 | O8: 35
C9: End of the Life | E9: Date | F9: =INDEX(H9:BU9,$E$1) -> 2052-09-01 | H9: =EDATE(H7,H8*12) -> 2062-01-01 | I9: =EDATE(I7,I8*12) -> 2062-01-01 | J9: =EDATE(J7,J8*12) -> 2062-01-01 | K9: =EDATE(K7,K8*12) -> 2052-09-01 | L9: =EDATE(L7,L8*12) -> 2052-01-01 | M9: 2052-01-01 | N9: 2052-01-01 | O9: =EDATE(O7,O8*12) -> 2063-04-01
C10: Months in Column - Pre COD | E10: Months | F10: =INDEX(H10:BU10,$E$1) -> 1 | H10: 12 | I10: 12 | J10: 12 | K10: 1 | L10: 12 | M10: 12 | N10: 12 | O10: 1
C11: Months in Column - Post COD | E11: Months | F11: =INDEX(H11:BU11,$E$1) -> 6 | H11: 12 | I11: 12 | J11: 12 | K11: 6 | L11: 12 | M11: 12 | N11: 12 | O11: 1
B13: Operations
C15: Capacity | E15: MWp | F15: =INDEX(H15:BU15,$E$1) -> 130 | H15: =H17*H16 -> 130 | I15: 130 | J15: 130 | K15: 130 | L15: =L17*L16 -> 130 | M15: =M17*M16 -> 130 | N15: =N17*N16 -> 130 | O15: 130
C16: AC:DC Ratio | E16: Factor | F16: =INDEX(H16:BU16,$E$1) -> 1.3 | H16: 1.3 | I16: 1.3 | J16: 1.3 | K16: 1.3 | L16: 1.3 | M16: 1.3 | N16: 1.3 | O16: 1.3
C17: Capacity | E17: Mwac | F17: =INDEX(H17:BU17,$E$1) -> 100 | H17: 100 | I17: 100 | J17: 100 | K17: 100 | L17: 100 | M17: 100 | N17: 100 | O17: 100
C18: In Plain Radiation Annual | E18: MWh/MWp | F18: =INDEX(H18:BU18,$E$1) -> 2339 | H18: 2339 | I18: 2339 | J18: 2339 | K18: 2339 | L18: 2339 | M18: 2100 | N18: 2000 | O18: 2000
C19: Performance Ratio | E19: % | F19: =INDEX(H19:BU19,$E$1) -> 0.8 | H19: 0.8 | I19: 0.8 | J19: 0.8 | K19: 0.8 | L19: 0.8 | M19: 0.76 | N19: 0.7 | O19: 0.7
C20: Actutal Radiation | E20: MWh/MWp | F20: =INDEX(H20:BU20,$E$1) -> 1871.2 | H20: =H18*H19 -> 1871.2 | I20: 1871.2 | J20: 1871.2 | K20: 1871.2 | L20: =L18*L19 -> 1871.2 | M20: =M18*M19 -> 1596 | N20: =N18*N19 -> 1400 | O20: 1400
C21: Capacity Factor DC | E21: % | F21: =INDEX(H21:BU21,$E$1) -> 0.2136073059 | H21: =H20/8760 -> 0.2136073059 | I21: 0.2136073059 | J21: 0.2136073059 | K21: 0.2136073059 | L21: =L20/8760 -> 0.2136073059 | M21: =M20/8760 -> 0.1821917808 | N21: =N20/8760 -> 0.1598173516 | O21: 0.1598173516
C22: Capacity Factor AC | E22: % | F22: =INDEX(H22:BU22,$E$1) -> 0.2776894977 | H22: =H21*H16 -> 0.2776894977 | I22: 0.2776894977 | J22: 0.2776894977 | K22: 0.2776894977 | L22: =L21*L16 -> 0.2776894977 | M22: =M21*M16 -> 0.2368493151 | N22: =N21*N16 -> 0.2077625571 | O22: 0.2077625571
C23: Availability | E23: % | F23: =INDEX(H23:BU23,$E$1) -> 0.97 | H23: 0.97 | I23: 0.97 | J23: 0.97 | K23: 0.97 | L23: 0.97 | M23: 0.97 | N23: 0.97 | O23: 0.97
C24: Degradation | E24: % | F24: =INDEX(H24:BU24,$E$1) -> 0.005 | H24: 0.005 | I24: 0.005 | J24: 0.005 | K24: 0.005 | L24: 0.005 | M24: 0.005 | N24: 0.005 | O24: 0.005
B26: Cost & Revenue
C28: Capex per MW | E28: Rs. In Lakhs/MW | F28: =INDEX(H28:BU28,$E$1) -> 400 | H28: 300 | I28: 400 | J28: 400 | K28: 400 | L28: 400 | M28: 400 | N28: 400 | O28: 400
C29: Exchange rate | E29: USD/INR | F29: =INDEX(H29:BU29,$E$1) -> 86 | H29: 86 | I29: 86 | J29: 86 | K29: 86 | L29: 86 | M29: 86 | N29: 86 | O29: 86
C30: Capex per MW | E30: USD/KW | F30: =INDEX(H30:BU30,$E$1) -> 465.1162791 | H30: =H28/H29/10*1000 -> 348.8372093 | I30: =I28/I29/10*1000 -> 465.1162791 | J30: 465.1162791 | K30: 465.1162791 | L30: 465.1162791 | M30: 465.1162791 | N30: 465.1162791 | O30: 465.1162791
C32: Annual O&M | E32: Rs. in Lakhs/Mwy | F32: =INDEX(H32:BU32,$E$1) -> 4 | H32: 3 | I32: 3 | J32: 4 | K32: 4 | L32: 4 | M32: 4 | N32: 4 | O32: 3
C33: Exchange Rate | E33: USD/INR | F33: =INDEX(H33:BU33,$E$1) -> 86 | H33: =H29 -> 86 | I33: =I29 -> 86 | J33: 86 | K33: 86 | L33: 86 | M33: 86 | N33: 86 | O33: 86
C34: O&M | E34: USD/KW | F34: =INDEX(H34:BU34,$E$1) -> 4.651162791 | H34: =H32/H33/10*1000 -> 3.488372093 | I34: =I32/I33/10*1000 -> 3.488372093 | J34: 4.651162791 | K34: 4.651162791 | L34: 4.651162791 | M34: 4.651162791 | N34: 4.651162791 | O34: 3.488372093
C36: S-Curve Code | E36: Code | F36: =INDEX(H36:BU36,$E$1) -> 1 | H36: 4 | I36: 4 | J36: 4 | K36: 1 | L36: 4 | M36: 4 | N36: 4 | O36: 2
C37: S-Curve Description | E37: Description | F37: =INDEX(H37:BU37,$E$1) -> Flat case | H37: =INDEX('Input S'!$C$7:$C$10,'Input C'!H36) -> Annual | I37: =INDEX('Input S'!$C$7:$C$10,'Input C'!I36) -> Annual | J37: =INDEX('Input S'!$C$7:$C$10,'Input C'!J36) -> Annual | K37: =INDEX('Input S'!$C$7:$C$10,'Input C'!K36) -> Flat case | L37: =INDEX('Input S'!$C$7:$C$10,'Input C'!L36) -> Annual | M37: =INDEX('Input S'!$C$7:$C$10,'Input C'!M36) -> Annual | N37: =INDEX('Input S'!$C$7:$C$10,'Input C'!N36) -> Annual | O37: =INDEX('Input S'!$C$7:$C$10,'Input C'!O36) -> Beginning
C39: Inflation Rate Code | E39: Code | F39: =INDEX(H39:BU39,$E$1) -> 3 | H39: 3 | I39: 3 | J39: 3 | K39: 3 | L39: 3 | M39: 3 | N39: 3 | O39: 3
C40: Inflation Rate Description | E40: Description | F40: =INDEX(H40:BU40,$E$1) -> Flat Inflation | H40: =INDEX('Input S'!$C$20:$C$23,'Input C'!H39) -> Flat Inflation | I40: =INDEX('Input S'!$C$20:$C$23,'Input C'!I39) -> Flat Inflation | J40: =INDEX('Input S'!$C$20:$C$23,'Input C'!J39) -> Flat Inflation | K40: =INDEX('Input S'!$C$20:$C$23,'Input C'!K39) -> Flat Inflation | L40: =INDEX('Input S'!$C$20:$C$23,'Input C'!L39) -> Flat Inflation | M40: =INDEX('Input S'!$C$20:$C$23,'Input C'!M39) -> Flat Inflation | N40: =INDEX('Input S'!$C$20:$C$23,'Input C'!N39) -> Flat Inflation | O40: =INDEX('Input S'!$C$20:$C$23,'Input C'!O39) -> Flat Inflation
C42: Base PPA Price | E42: Rs. In Lakhs/MWh
C43: PPA Price | E43: Rs. In Lakhs/MWh | F43: =INDEX(H43:BU43,$E$1) -> 0.02187119234 | H43: 0.01348951633 | I43: 0.01739960317 | J43: 0.01798602178 | K43: 0.02187119234 | L43: 0.01996166507 | M43: 0.0234036765 | N43: 0.0266801912 | O43: 0.02718509429
C44: Exchange Rate | E44: USD/INR | F44: =INDEX(H44:BU44,$E$1) -> 86 | H44: =H33 -> 86 | I44: =I33 -> 86 | J44: 86 | K44: 86 | L44: 86 | M44: 86 | N44: 86 | O44: 86
C45: PPA Price | E45: USD/MWH | F45: =INDEX(H45:BU45,$E$1) -> 25.431619 | H45: =H43*1000000/H44/10 -> 15.68548411 | I45: =I43*1000000/I44/10 -> 20.2320967 | J45: 20.91397881 | K45: 25.431619 | L45: 23.21123846 | M45: 27.21357732 | N45: 31.02347814 | O45: 31.61057476
C46: Inflate PPA | E46: Flag | F46: =INDEX(H46:BU46,$E$1) -> TRUE | H46: TRUE | I46: =H46 -> TRUE | J46: =I46 -> TRUE | K46: TRUE | L46: TRUE | M46: TRUE | N46: TRUE | O46: TRUE
C47: Target Pre-tax IRR for PPA | F47: =INDEX(H47:XFD47,E1) -> 0.11 | H47: 0.11 | I47: 0.11 | J47: 0.11 | K47: 0.11 | L47: 0.11 | M47: 0.11 | N47: 0.11 | O47: 0.11
B49: Tax and Depreciation
C51: Tax Life for Depreciation | E51: Years | F51: =INDEX(H51:BU51,$E$1) -> 25 | H51: 25 | I51: 25 | J51: 25 | K51: 25 | L51: 25 | M51: 25 | N51: 25 | O51: 25
C53: Income Tax Rate | E53: % | F53: =INDEX(H53:BU53,$E$1) -> 0.25 | H53: 0.25 | I53: 0.25 | J53: 0.25 | K53: 0.25 | L53: 0.25 | M53: 0.25 | N53: 0.25 | O53: 0.25
C54: Maximum Carry Forward Year | E54: Years | F54: =INDEX(H54:BU54,$E$1) -> 8 | H54: 8 | I54: 8 | J54: 8 | K54: 8 | L54: 8 | M54: 8 | N54: 8 | O54: 8
C56: Holding period | E56: Years | F56: =INDEX(H56:BU56,$E$1) -> 2 | H56: 2 | I56: 2 | J56: 2 | K56: 2 | L56: 2 | M56: 2 | N56: 2 | O56: 2
C57: Buyer's target IRR | E57: % | F57: =INDEX(H57:BU57,$E$1) -> 0.09 | H57: 0.105 | I57: 0.09 | J57: 0.09 | K57: 0.09 | L57: 0.09 | M57: 0.09 | N57: 0.09 | O57: 0.09
B59: Financing
C61: Maximum Debt to Capital | E61: % | F61: =INDEX(H61:BU61,$E$1) -> 0.75 | H61: 0.75 | I61: 0.75 | J61: 0.75 | K61: 0.75 | L61: 0.75 | M61: 0.75 | N61: 0.75 | O61: 0.75
C62: Minimum DSCR | E62: x | F62: =INDEX(H62:BU62,$E$1) -> 1.2 | H62: 1.2 | I62: 1.2 | J62: 1.2 | K62: 1.2 | L62: 1.2 | M62: 1.2 | N62: 1.2 | O62: 1.2
C63: P90 Standard Deviation | E63: % of P50 | F63: =INDEX(H63:BU63,$E$1) -> 0.08 | H63: 0.08 | I63: 0.08 | J63: 0.08 | K63: 0.08 | L63: 0.08 | M63: 0.08 | N63: 0.08 | O63: 0.08
C64: P90 Factor | E64: % | F64: =INDEX(H64:BU64,$E$1) -> 0.1 | H64: 0.1 | I64: 0.1 | J64: 0.1 | K64: 0.1 | L64: 0.1 | M64: 0.1 | N64: 0.1 | O64: 0.1
C66: Debt Tenure | E66: Years | F66: =INDEX(H66:BU66,$E$1) -> 20 | H66: 20 | I66: 20 | J66: 20 | K66: 20 | L66: 20 | M66: 20 | N66: 20 | O66: 20
C68: Interest Rate | E68: % p.a. | F68: =INDEX(H68:BU68,$E$1) -> 0.08 | H68: =H69+H70 -> 0.08 | I68: =I69+I70 -> 0.08 | J68: 0.08 | K68: 0.08 | L68: 0.08 | M68: 0.08 | N68: 0.08 | O68: 0.08
C69: REPO Interest | E69: % p.a. | F69: =INDEX(H69:BU69,$E$1) -> 0.055 | H69: 0.055 | I69: 0.055 | J69: 0.055 | K69: 0.055 | L69: 0.055 | M69: 0.055 | N69: 0.055 | O69: 0.055
C70: Margin | E70: % p.a. | F70: =INDEX(H70:BU70,$E$1) -> 0.025 | H70: 0.025 | I70: 0.025 | J70: 0.025 | K70: 0.025 | L70: 0.025 | M70: 0.025 | N70: 0.025 | O70: 0.025
C72: Pro-Forma Funding | E72: Flag | F72: =INDEX(H72:BU72,$E$1) -> TRUE | H72: TRUE | I72: TRUE | J72: TRUE | K72: TRUE | L72: TRUE | M72: TRUE | N72: TRUE | O72: TRUE
C73: Equity Up-Front | E73: Flag | F73: =INDEX(H73:BU73,$E$1) -> FALSE | H73: =NOT(H72) -> FALSE | I73: =NOT(I72) -> FALSE | J73: FALSE | K73: FALSE | L73: FALSE | M73: FALSE | N73: FALSE | O73: FALSE
C75: Up-front Fee | E75: % | F75: =INDEX(H75:BU75,$E$1) -> 0.005 | H75: 0.005 | I75: 0.005 | J75: 0.005 | K75: 0.005 | L75: 0.005 | M75: 0.005 | N75: 0.005 | O75: 0.005
C76: Commitment Fee | E76: % p.a. | F76: =INDEX(H76:BU76,$E$1) -> 0.003 | H76: 0.003 | I76: 0.003 | J76: 0.003 | K76: 0.003 | L76: 0.003 | M76: 0.003 | N76: 0.003 | O76: 0.003
B78: Constants
C79: Months in a Year | F79: 12 | G79: Months
C80: Hours in a Day | F80: 24 | G80: Hours
C81: one | F81: 1 | G81: one
G124: =TRANSPOSE(H2:O2) -> Base Case Annual
G125: Higher Cost
G126: Higher O&M
G127: Flexible Timing
G128: Shorter Life
G129: P90
G130: P99
G131: Monthly

Sheet Input S
B2: S-Curve
C3: Code Number | E3: ='Input C'!F36 -> 1
C5: Month | F5: 1 | G5: 2 | H5: 3 | I5: 4 | J5: 5 | K5: 6 | L5: 7 | M5: 8 | N5: 9 | O5: 10 | P5: 11 | Q5: 12 | R5: 13 | S5: 14 | T5: 15 | U5: 16 | V5: 17 | W5: 18 | X5: 19 | Y5: 20
C7: Flat case | F7: =1/12 -> 0.08333333333 | G7: =1/12 -> 0.08333333333 | H7: 0.08333333333 | I7: 0.08333333333 | J7: 0.08333333333 | K7: 0.08333333333 | L7: 0.08333333333 | M7: 0.08333333333 | N7: 0.08333333333 | O7: 0.08333333333 | P7: 0.08333333333 | Q7: 0.08333333333
C8: Beginning | F8: 0.3 | G8: 0.2 | H8: 0.1 | I8: 0.05 | J8: 0.05 | K8: 0.15 | Q8: 0.15
C9: Ending | F9: 0.3 | L9: 0.2 | Q9: 0.5
C10: Annual | F10: 1
C12: =INDEX(C7:C10,$E$3) -> Flat case | F12: =INDEX(F7:F10,$E$3) -> 0.08333333333 | G12: =INDEX(G7:G10,$E$3) -> 0.08333333333 | H12: =INDEX(H7:H10,$E$3) -> 0.08333333333 | I12: =INDEX(I7:I10,$E$3) -> 0.08333333333 | J12: =INDEX(J7:J10,$E$3) -> 0.08333333333 | K12: =INDEX(K7:K10,$E$3) -> 0.08333333333 | L12: =INDEX(L7:L10,$E$3) -> 0.08333333333 | M12: =INDEX(M7:M10,$E$3) -> 0.08333333333 | N12: =INDEX(N7:N10,$E$3) -> 0.08333333333 | O12: =INDEX(O7:O10,$E$3) -> 0.08333333333 | P12: =INDEX(P7:P10,$E$3) -> 0.08333333333 | Q12: =INDEX(Q7:Q10,$E$3) -> 0.08333333333
B15: Inflation
C16: Code Number | E16: ='Input C'!H39 -> 3
C18: Year | F18: 2025 | G18: 2026 | H18: 2027 | I18: 2028 | J18: 2029 | K18: 2030 | L18: 2031 | M18: 2032 | N18: 2033 | O18: 2034 | P18: 2035
C20: Base Case | F20: 0.05 | G20: 0.045 | H20: 0.04 | I20: 0.04 | J20: 0.04 | K20: 0.04 | L20: 0.04 | M20: 0.04 | N20: 0.04 | O20: 0.04 | P20: 0.04
C21: High Inflation | F21: 0.05 | G21: 0.055 | H21: 0.06 | I21: 0.06 | J21: 0.06 | K21: 0.06 | L21: 0.06 | M21: 0.06 | N21: 0.06 | O21: 0.06 | P21: 0.06
C22: Flat Inflation | F22: 0.05 | G22: 0.05 | H22: 0.05 | I22: 0.05 | J22: 0.05 | K22: 0.05 | L22: 0.05 | M22: 0.05 | N22: 0.05 | O22: 0.05 | P22: 0.05
C23: Zero Inflation | F23: 0 | G23: 0 | H23: 0 | I23: 0 | J23: 0 | K23: 0 | L23: 0 | M23: 0 | N23: 0 | O23: 0 | P23: 0
C25: =INDEX(C20:C24,$E$16) -> Flat Inflation | F25: =INDEX(F20:F24,$E$16) -> 0.05 | G25: =INDEX(G20:G24,$E$16) -> 0.05 | H25: =INDEX(H20:H24,$E$16) -> 0.05 | I25: =INDEX(I20:I24,$E$16) -> 0.05 | J25: =INDEX(J20:J24,$E$16) -> 0.05 | K25: =INDEX(K20:K24,$E$16) -> 0.05 | L25: =INDEX(L20:L24,$E$16) -> 0.05 | M25: =INDEX(M20:M24,$E$16) -> 0.05 | N25: =INDEX(N20:N24,$E$16) -> 0.05 | O25: =INDEX(O20:O24,$E$16) -> 0.05 | P25: =INDEX(P20:P24,$E$16) -> 0.05
C27: Inflation Index | E27: 1 | F27: =E27*(1+F25) -> 1.05 | G27: =F27*(1+G25) -> 1.1025 | H27: 1.157625 | I27: 1.21550625 | J27: 1.276281563 | K27: 1.340095641 | L27: 1.407100423 | M27: 1.477455444 | N27: 1.551328216 | O27: 1.628894627 | P27: 1.710339358
C28: Annual Growth | E28: =(P27/E27)^(1/11)-1 -> 0.05
B30: Seasonal Variation from Technical Analysis
J32: ='Financial Model'!K4 -> 1 | K32: 2 | L32: 3 | M32: 4 | N32: 5 | O32: 6 | P32: 7 | Q32: 8 | R32: 9 | S32: 10 | T32: 11 | U32: 12 | V32: 13 | W32: 14 | X32: 15 | Y32: 16 | Z32: 17 | AA32: 18 | AB32: 19 | AC32: 20 | AD32: 21 | AE32: 22 | AF32: 23 | AG32: 24 | AH32: 25 | AI32: 26 | AJ32: 27 | AK32: 28 | AL32: 29 | AM32: 30 | AN32: 31 | AO32: 32 | AP32: 33 | AQ32: 34 | AR32: 35 | AS32: 36 | AT32: 37 | AU32: 38 | AV32: 39 | AW32: 40 | AX32: 41 | AY32: 42 | AZ32: 43 | BA32: 44 | BB32: 45 | BC32: 46 | BD32: 47 | BE32: 48 | BF32: 49 | BG32: 50 | BH32: 51 | BI32: 52 | BJ32: 53 | BK32: 54 | BL32: 55 | BM32: 56 | BN32: 57 | BO32: 58 | BP32: 59 | BQ32: 60 | BR32: 61 | BS32: 62 | BT32: 63 | BU32: 64 | BV32: 65 | BW32: 66 | BX32: 67 | BY32: 68 | BZ32: 69 | CA32: 70 | CB32: 71 | CC32: 72 | CD32: 73 | CE32: 74 | CF32: 75 | CG32: 76 | CH32: 77 | CI32: 78 | CJ32: 79 | CK32: 80 | CL32: 81 | CM32: 82 | CN32: 83 | CO32: 84 | CP32: 85 | CQ32: 86 | CR32: 87 | CS32: 88 | CT32: 89 | CU32: 90 | CV32: 91 | CW32: 92 | CX32: 93 | CY32: 94 | CZ32: 95 | DA32: 96 | DB32: 97 | DC32: 98 | DD32: 99 | DE32: 100 | DF32: 101 | DG32: 102 | DH32: 103 | DI32: 104 | DJ32: 105 | DK32: 106 | DL32: 107 | DM32: 108 | DN32: 109 | DO32: 110 | DP32: 111 | DQ32: 112 | DR32: 113 | DS32: 114 | DT32: 115 | DU32: 116 | DV32: 117 | DW32: 118 | DX32: 119 | DY32: 120 | DZ32: 121 | EA32: 122 | EB32: 123 | EC32: 124 | ED32: 125 | EE32: 126 | EF32: 127 | EG32: 128 | EH32: 129 | EI32: 130 | EJ32: 131 | EK32: 132 | EL32: 133 | EM32: 134 | EN32: 135 | EO32: 136 | EP32: 137 | EQ32: 138 | ER32: 139 | ES32: 140 | ET32: 141 | EU32: 142 | EV32: 143 | EW32: 144 | EX32: 145 | EY32: 146 | EZ32: 147 | FA32: 148 | FB32: 149 | FC32: 150 | FD32: 151 | FE32: 152 | FF32: 153 | FG32: 154 | FH32: 155 | FI32: 156 | FJ32: 157 | FK32: 158 | FL32: 159 | FM32: 160 | FN32: 161 | FO32: 162 | FP32: 163 | FQ32: 164 | FR32: 165 | FS32: 166 | FT32: 167 | FU32: 168 | FV32: 169 | FW32: 170 | FX32: 171 | FY32: 172 | FZ32: 173 | GA32: 174 | GB32: 175 | GC32: 176 | GD32: 177 | GE32: 178 | GF32: 179 | GG32: 180 | GH32: 181 | GI32: 182 | GJ32: 183 | GK32: 184 | GL32: 185 | GM32: 186 | GN32: 187 | GO32: 188 | GP32: 189 | GQ32: 190 | GR32: 191 | GS32: 192 | GT32: 193 | GU32: 194 | GV32: 195 | GW32: 196 | GX32: 197 | GY32: 198 | GZ32: 199 | HA32: 200 | HB32: 201 | HC32: 202 | HD32: 203 | HE32: 204 | HF32: 205 | HG32: 206 | HH32: 207 | HI32: 208 | HJ32: 209 | HK32: 210 | HL32: 211 | HM32: 212 | HN32: 213 | HO32: 214 | HP32: 215 | HQ32: 216 | HR32: 217 | HS32: 218 | HT32: 219 | HU32: 220 | HV32: 221 | HW32: 222 | HX32: 223 | HY32: 224 | HZ32: 225 | IA32: 226 | IB32: 227 | IC32: 228 | ID32: 229 | IE32: 230 | IF32: 231 | IG32: 232 | IH32: 233 | II32: 234 | IJ32: 235 | IK32: 236 | IL32: 237 | IM32: 238 | IN32: 239 | IO32: 240 | IP32: 241 | IQ32: 242 | IR32: 243 | IS32: 244 | IT32: 245 | IU32: 246 | IV32: 247 | IW32: 248 | IX32: 249 | IY32: 250 | IZ32: 251 | JA32: 252 | JB32: 253 | JC32: 254 | JD32: 255 | JE32: 256 | JF32: 257 | JG32: 258 | JH32: 259 | JI32: 260 | JJ32: 261 | JK32: 262 | JL32: 263 | JM32: 264 | JN32: 265 | JO32: 266 | JP32: 267 | JQ32: 268 | JR32: 269 | JS32: 270 | JT32: 271 | JU32: 272 | JV32: 273 | JW32: 274 | JX32: 275 | JY32: 276 | JZ32: 277 | KA32: 278 | KB32: 279 | KC32: 280 | KD32: 281 | KE32: 282 | KF32: 283 | KG32: 284 | KH32: 285 | KI32: 286 | KJ32: 287 | KK32: 288 | KL32: 289 | KM32: 290 | KN32: 291 | KO32: 292 | KP32: 293 | KQ32: 294 | KR32: 295 | KS32: 296 | KT32: 297 | KU32: 298 | KV32: 299 | KW32: 300 | KX32: 301 | KY32: 302 | KZ32: 303 | LA32: 304 | LB32: 305 | LC32: 306 | LD32: 307 | LE32: 308 | LF32: 309 | LG32: 310 | LH32: 311 | LI32: 312 | LJ32: 313 | LK32: 314 | LL32: 315 | LM32: 316 | LN32: 317 | LO32: 318 | LP32: 319 | LQ32: 320 | LR32: 321 | LS32: 322 | LT32: 323 | LU32: 324 | LV32: 325 | LW32: 326 | LX32: 327 | LY32: 328 | LZ32: 329 | MA32: 330 | MB32: 331 | MC32: 332 | MD32: 333 | ME32: 334 | MF32: 335 | MG32: 336 | MH32: 337 | MI32: 338 | MJ32: 339 | MK32: 340 | ML32: 341 | MM32: 342 | MN32: 343 | MO32: 344 | MP32: 345 | MQ32: 346 | MR32: 347 | MS32: 348 | MT32: 349 | MU32: 350 | MV32: 351 | MW32: 352 | MX32: 353 | MY32: 354 | MZ32: 355 | NA32: 356 | NB32: 357 | NC32: 358 | ND32: 359 | NE32: 360 | NF32: 361 | NG32: 362 | NH32: 363 | NI32: 364 | NJ32: 365 | NK32: 366 | NL32: 367 | NM32: 368 | NN32: 369 | NO32: 370 | NP32: 371 | NQ32: 372 | NR32: 373 | NS32: 374 | NT32: 375 | NU32: 376 | NV32: 377 | NW32: 378 | NX32: 379 | NY32: 380 | NZ32: 381 | OA32: 382 | OB32: 383 | OC32: 384 | OD32: 385 | OE32: 386 | OF32: 387 | OG32: 388 | OH32: 389 | OI32: 390 | OJ32: 391 | OK32: 392 | OL32: 393 | OM32: 394 | ON32: 395 | OO32: 396 | OP32: 397 | OQ32: 398 | OR32: 399 | OS32: 400 | OT32: 401 | OU32: 402 | OV32: 403 | OW32: 404 | OX32: 405 | OY32: 406 | OZ32: 407 | PA32: 408 | PB32: 409 | PC32: 410 | PD32: 411 | PE32: 412 | PF32: 413 | PG32: 414 | PH32: 415 | PI32: 416 | PJ32: 417 | PK32: 418 | PL32: 419 | PM32: 420 | PN32: 421 | PO32: 422 | PP32: 423 | PQ32: 423 | PR32: 423 | PS32: 423 | PT32: 423 | PU32: 423 | PV32: 423 | PW32: 423 | PX32: 423 | PY32: 423 | PZ32: 423 | QA32: 423 | QB32: 423 | QC32: 423 | QD32: 423 | QE32: 423 | QF32: 423 | QG32: 423 | QH32: 423 | QI32: 423 | QJ32: 423 | QK32: 423 | QL32: 423 | QM32: 423 | QN32: 423 | QO32: 423 | QP32: 423 | QQ32: 423 | QR32: 423 | QS32: 423 | QT32: 423 | QU32: 423 | QV32: 423 | QW32: 423 | QX32: 423 | QY32: 423 | QZ32: 423 | RA32: 423 | RB32: 423 | RC32: 423 | RD32: 423 | RE32: 423 | RF32: 423 | RG32: 423 | RH32: 423 | RI32: 423 | RJ32: 423 | RK32: 423 | RL32: 423 | RM32: 423 | RN32: 423 | RO32: 423 | RP32: 423 | RQ32: 423 | RR32: 423 | RS32: 423 | RT32: 423 | RU32: 423 | RV32: 423 | RW32: 423 | RX32: 423 | RY32: 423 | RZ32: 423 | SA32: 423 | SB32: 423 | SC32: 423 | SD32: 423 | SE32: 423 | SF32: 423 | SG32: 423 | SH32: 423 | SI32: 423 | SJ32: 423 | SK32: 423 | SL32: 423 | SM32: 423 | SN32: 423 | SO32: 423 | SP32: 423 | SQ32: 423 | SR32: 423 | SS32: 423 | ST32: 423 | SU32: 423 | SV32: 423 | SW32: 423 | SX32: 423 | SY32: 423 | SZ32: 423 | TA32: 423 | TB32: 423 | TC32: 423 | TD32: 423 | TE32: 423 | TF32: 423 | TG32: 423 | TH32: 423 | TI32: 423 | TJ32: 423 | TK32: 423 | TL32: 423 | TM32: 423 | TN32: 423 | TO32: 423 | TP32: 423 | TQ32: 423 | TR32: 423 | TS32: 423 | TT32: 423 | TU32: 423 | TV32: 423 | TW32: 423 | TX32: 423 | TY32: 423
J33: ='Financial Model'!K8 -> 2026-01-01 | K33: ='Financial Model'!L8 -> 2026-02-01 | L33: ='Financial Model'!M8 -> 2026-03-01 | M33: ='Financial Model'!N8 -> 2026-04-01 | N33: ='Financial Model'!O8 -> 2026-05-01 | O33: ='Financial Model'!P8 -> 2026-06-01 | P33: ='Financial Model'!Q8 -> 2026-07-01 | Q33: ='Financial Model'!R8 -> 2026-08-01 | R33: ='Financial Model'!S8 -> 2026-09-01 | S33: ='Financial Model'!T8 -> 2026-10-01 | T33: ='Financial Model'!U8 -> 2026-11-01 | U33: ='Financial Model'!V8 -> 2026-12-01 | V33: ='Financial Model'!W8 -> 2027-01-01 | W33: ='Financial Model'!X8 -> 2027-02-01 | X33: ='Financial Model'!Y8 -> 2027-03-01 | Y33: ='Financial Model'!Z8 -> 2027-04-01 | Z33: ='Financial Model'!AA8 -> 2027-05-01 | AA33: ='Financial Model'!AB8 -> 2027-06-01 | AB33: ='Financial Model'!AC8 -> 2027-07-01 | AC33: ='Financial Model'!AD8 -> 2027-08-01 | AD33: ='Financial Model'!AE8 -> 2027-09-01 | AE33: ='Financial Model'!AF8 -> 2028-03-01 | AF33: ='Financial Model'!AG8 -> 2028-09-01 | AG33: ='Financial Model'!AH8 -> 2029-03-01 | AH33: ='Financial Model'!AI8 -> 2029-09-01 | AI33: ='Financial Model'!AJ8 -> 2030-03-01 | AJ33: ='Financial Model'!AK8 -> 2030-09-01 | AK33: ='Financial Model'!AL8 -> 2031-03-01 | AL33: ='Financial Model'!AM8 -> 2031-09-01 | AM33: ='Financial Model'!AN8 -> 2032-03-01 | AN33: ='Financial Model'!AO8 -> 2032-09-01 | AO33: ='Financial Model'!AP8 -> 2033-03-01 | AP33: ='Financial Model'!AQ8 -> 2033-09-01 | AQ33: ='Financial Model'!AR8 -> 2034-03-01 | AR33: ='Financial Model'!AS8 -> 2034-09-01 | AS33: ='Financial Model'!AT8 -> 2035-03-01 | AT33: ='Financial Model'!AU8 -> 2035-09-01 | AU33: ='Financial Model'!AV8 -> 2036-03-01 | AV33: ='Financial Model'!AW8 -> 2036-09-01 | AW33: ='Financial Model'!AX8 -> 2037-03-01 | AX33: ='Financial Model'!AY8 -> 2037-09-01 | AY33: ='Financial Model'!AZ8 -> 2038-03-01 | AZ33: ='Financial Model'!BA8 -> 2038-09-01 | BA33: ='Financial Model'!BB8 -> 2039-03-01 | BB33: ='Financial Model'!BC8 -> 2039-09-01 | BC33: ='Financial Model'!BD8 -> 2040-03-01 | BD33: ='Financial Model'!BE8 -> 2040-09-01 | BE33: ='Financial Model'!BF8 -> 2041-03-01 | BF33: ='Financial Model'!BG8 -> 2041-09-01 | BG33: ='Financial Model'!BH8 -> 2042-03-01 | BH33: ='Financial Model'!BI8 -> 2042-09-01 | BI33: ='Financial Model'!BJ8 -> 2043-03-01 | BJ33: ='Financial Model'!BK8 -> 2043-09-01 | BK33: ='Financial Model'!BL8 -> 2044-03-01 | BL33: ='Financial Model'!BM8 -> 2044-09-01 | BM33: ='Financial Model'!BN8 -> 2045-03-01 | BN33: ='Financial Model'!BO8 -> 2045-09-01 | BO33: ='Financial Model'!BP8 -> 2046-03-01 | BP33: ='Financial Model'!BQ8 -> 2046-09-01 | BQ33: ='Financial Model'!BR8 -> 2047-03-01 | BR33: ='Financial Model'!BS8 -> 2047-09-01 | BS33: ='Financial Model'!BT8 -> 2048-03-01 | BT33: ='Financial Model'!BU8 -> 2048-09-01 | BU33: ='Financial Model'!BV8 -> 2049-03-01 | BV33: ='Financial Model'!BW8 -> 2049-09-01 | BW33: ='Financial Model'!BX8 -> 2050-03-01 | BX33: ='Financial Model'!BY8 -> 2050-09-01 | BY33: ='Financial Model'!BZ8 -> 2051-03-01 | BZ33: ='Financial Model'!CA8 -> 2051-09-01 | CA33: ='Financial Model'!CB8 -> 2052-03-01 | CB33: ='Financial Model'!CC8 -> 2052-09-01 | CC33: ='Financial Model'!CD8 -> 2053-03-01 | CD33: ='Financial Model'!CE8 -> 2053-09-01 | CE33: ='Financial Model'!CF8 -> 2054-03-01 | CF33: ='Financial Model'!CG8 -> 2054-09-01 | CG33: ='Financial Model'!CH8 -> 2055-03-01 | CH33: ='Financial Model'!CI8 -> 2055-09-01 | CI33: ='Financial Model'!CJ8 -> 2056-03-01 | CJ33: ='Financial Model'!CK8 -> 2056-09-01 | CK33: ='Financial Model'!CL8 -> 2057-03-01 | CL33: ='Financial Model'!CM8 -> 2057-09-01 | CM33: ='Financial Model'!CN8 -> 2058-03-01 | CN33: ='Financial Model'!CO8 -> 2058-09-01 | CO33: ='Financial Model'!CP8 -> 2059-03-01 | CP33: ='Financial Model'!CQ8 -> 2059-09-01 | CQ33: ='Financial Model'!CR8 -> 2060-03-01 | CR33: ='Financial Model'!CS8 -> 2060-09-01 | CS33: ='Financial Model'!CT8 -> 2061-03-01 | CT33: ='Financial Model'!CU8 -> 2061-09-01 | CU33: ='Financial Model'!CV8 -> 2062-03-01 | CV33: ='Financial Model'!CW8 -> 2062-09-01 | CW33: ='Financial Model'!CX8 -> 2063-03-01 | CX33: ='Financial Model'!CY8 -> 2063-09-01 | CY33: ='Financial Model'!CZ8 -> 2064-03-01 | CZ33: ='Financial Model'!DA8 -> 2064-09-01 | DA33: ='Financial Model'!DB8 -> 2065-03-01 | DB33: ='Financial Model'!DC8 -> 2065-09-01 | DC33: ='Financial Model'!DD8 -> 2066-03-01 | DD33: ='Financial Model'!DE8 -> 2066-09-01 | DE33: ='Financial Model'!DF8 -> 2067-03-01 | DF33: ='Financial Model'!DG8 -> 2067-09-01 | DG33: ='Financial Model'!DH8 -> 2068-03-01 | DH33: ='Financial Model'!DI8 -> 2068-09-01 | DI33: ='Financial Model'!DJ8 -> 2069-03-01 | DJ33: ='Financial Model'!DK8 -> 2069-09-01 | DK33: ='Financial Model'!DL8 -> 2070-03-01 | DL33: ='Financial Model'!DM8 -> 2070-09-01 | DM33: ='Financial Model'!DN8 -> 2071-03-01 | DN33: ='Financial Model'!DO8 -> 2071-09-01 | DO33: ='Financial Model'!DP8 -> 2072-03-01 | DP33: ='Financial Model'!DQ8 -> 2072-09-01 | DQ33: ='Financial Model'!DR8 -> 2073-03-01 | DR33: ='Financial Model'!DS8 -> 2073-09-01 | DS33: ='Financial Model'!DT8 -> 2074-03-01 | DT33: ='Financial Model'!DU8 -> 2074-09-01 | DU33: ='Financial Model'!DV8 -> 2075-03-01 | DV33: ='Financial Model'!DW8 -> 2075-09-01 | DW33: ='Financial Model'!DX8 -> 2076-03-01 | DX33: ='Financial Model'!DY8 -> 2076-09-01 | DY33: ='Financial Model'!DZ8 -> 2077-03-01 | DZ33: ='Financial Model'!EA8 -> 2077-09-01 | EA33: ='Financial Model'!EB8 -> 2078-03-01 | EB33: ='Financial Model'!EC8 -> 2078-09-01 | EC33: ='Financial Model'!ED8 -> 2079-03-01 | ED33: ='Financial Model'!EE8 -> 2079-09-01 | EE33: ='Financial Model'!EF8 -> 2080-03-01 | EF33: ='Financial Model'!EG8 -> 2080-09-01 | EG33: ='Financial Model'!EH8 -> 2081-03-01 | EH33: ='Financial Model'!EI8 -> 2081-09-01 | EI33: ='Financial Model'!EJ8 -> 2082-03-01 | EJ33: ='Financial Model'!EK8 -> 2082-09-01 | EK33: ='Financial Model'!EL8 -> 2083-03-01 | EL33: ='Financial Model'!EM8 -> 2083-09-01 | EM33: ='Financial Model'!EN8 -> 2084-03-01 | EN33: ='Financial Model'!EO8 -> 2084-09-01 | EO33: ='Financial Model'!EP8 -> 2085-03-01 | EP33: ='Financial Model'!EQ8 -> 2085-09-01 | EQ33: ='Financial Model'!ER8 -> 2086-03-01 | ER33: ='Financial Model'!ES8 -> 2086-09-01 | ES33: ='Financial Model'!ET8 -> 2087-03-01 | ET33: ='Financial Model'!EU8 -> 2087-09-01 | EU33: ='Financial Model'!EV8 -> 2088-03-01 | EV33: ='Financial Model'!EW8 -> 2088-09-01 | EW33: ='Financial Model'!EX8 -> 2089-03-01 | EX33: ='Financial Model'!EY8 -> 2089-09-01 | EY33: ='Financial Model'!EZ8 -> 2090-03-01 | EZ33: ='Financial Model'!FA8 -> 2090-09-01 | FA33: ='Financial Model'!FB8 -> 2091-03-01 | FB33: ='Financial Model'!FC8 -> 2091-09-01 | FC33: ='Financial Model'!FD8 -> 2092-03-01 | FD33: ='Financial Model'!FE8 -> 2092-09-01 | FE33: ='Financial Model'!FF8 -> 2093-03-01 | FF33: ='Financial Model'!FG8 -> 2093-09-01 | FG33: ='Financial Model'!FH8 -> 2094-03-01 | FH33: ='Financial Model'!FI8 -> 2094-09-01 | FI33: ='Financial Model'!FJ8 -> 2095-03-01 | FJ33: ='Financial Model'!FK8 -> 2095-09-01 | FK33: ='Financial Model'!FL8 -> 2096-03-01 | FL33: ='Financial Model'!FM8 -> 2096-09-01 | FM33: ='Financial Model'!FN8 -> 2097-03-01 | FN33: ='Financial Model'!FO8 -> 2097-09-01 | FO33: ='Financial Model'!FP8 -> 2098-03-01 | FP33: ='Financial Model'!FQ8 -> 2098-09-01 | FQ33: ='Financial Model'!FR8 -> 2099-03-01 | FR33: ='Financial Model'!FS8 -> 2099-09-01 | FS33: ='Financial Model'!FT8 -> 2100-03-01 | FT33: ='Financial Model'!FU8 -> 2100-09-01 | FU33: ='Financial Model'!FV8 -> 2101-03-01 | FV33: ='Financial Model'!FW8 -> 2101-09-01 | FW33: ='Financial Model'!FX8 -> 2102-03-01 | FX33: ='Financial Model'!FY8 -> 2102-09-01 | FY33: ='Financial Model'!FZ8 -> 2103-03-01 | FZ33: ='Financial Model'!GA8 -> 2103-09-01 | GA33: ='Financial Model'!GB8 -> 2104-03-01 | GB33: ='Financial Model'!GC8 -> 2104-09-01 | GC33: ='Financial Model'!GD8 -> 2105-03-01 | GD33: ='Financial Model'!GE8 -> 2105-09-01 | GE33: ='Financial Model'!GF8 -> 2106-03-01 | GF33: ='Financial Model'!GG8 -> 2106-09-01 | GG33: ='Financial Model'!GH8 -> 2107-03-01 | GH33: ='Financial Model'!GI8 -> 2107-09-01 | GI33: ='Financial Model'!GJ8 -> 2108-03-01 | GJ33: ='Financial Model'!GK8 -> 2108-09-01 | GK33: ='Financial Model'!GL8 -> 2109-03-01 | GL33: ='Financial Model'!GM8 -> 2109-09-01 | GM33: ='Financial Model'!GN8 -> 2110-03-01 | GN33: ='Financial Model'!GO8 -> 2110-09-01 | GO33: ='Financial Model'!GP8 -> 2111-03-01 | GP33: ='Financial Model'!GQ8 -> 2111-09-01 | GQ33: ='Financial Model'!GR8 -> 2112-03-01 | GR33: ='Financial Model'!GS8 -> 2112-09-01 | GS33: ='Financial Model'!GT8 -> 2113-03-01 | GT33: ='Financial Model'!GU8 -> 2113-09-01 | GU33: ='Financial Model'!GV8 -> 2114-03-01 | GV33: ='Financial Model'!GW8 -> 2114-09-01 | GW33: ='Financial Model'!GX8 -> 2115-03-01 | GX33: ='Financial Model'!GY8 -> 2115-09-01 | GY33: ='Financial Model'!GZ8 -> 2116-03-01 | GZ33: ='Financial Model'!HA8 -> 2116-09-01 | HA33: ='Financial Model'!HB8 -> 2117-03-01 | HB33: ='Financial Model'!HC8 -> 2117-09-01 | HC33: ='Financial Model'!HD8 -> 2118-03-01 | HD33: ='Financial Model'!HE8 -> 2118-09-01 | HE33: ='Financial Model'!HF8 -> 2119-03-01 | HF33: ='Financial Model'!HG8 -> 2119-09-01 | HG33: ='Financial Model'!HH8 -> 2120-03-01 | HH33: ='Financial Model'!HI8 -> 2120-09-01 | HI33: ='Financial Model'!HJ8 -> 2121-03-01 | HJ33: ='Financial Model'!HK8 -> 2121-09-01 | HK33: ='Financial Model'!HL8 -> 2122-03-01 | HL33: ='Financial Model'!HM8 -> 2122-09-01 | HM33: ='Financial Model'!HN8 -> 2123-03-01 | HN33: ='Financial Model'!HO8 -> 2123-09-01 | HO33: ='Financial Model'!HP8 -> 2124-03-01 | HP33: ='Financial Model'!HQ8 -> 2124-09-01 | HQ33: ='Financial Model'!HR8 -> 2125-03-01 | HR33: ='Financial Model'!HS8 -> 2125-09-01 | HS33: ='Financial Model'!HT8 -> 2126-03-01 | HT33: ='Financial Model'!HU8 -> 2126-09-01 | HU33: ='Financial Model'!HV8 -> 2127-03-01 | HV33: ='Financial Model'!HW8 -> 2127-09-01 | HW33: ='Financial Model'!HX8 -> 2128-03-01 | HX33: ='Financial Model'!HY8 -> 2128-09-01 | HY33: ='Financial Model'!HZ8 -> 2129-03-01 | HZ33: ='Financial Model'!IA8 -> 2129-09-01 | IA33: ='Financial Model'!IB8 -> 2130-03-01 | IB33: ='Financial Model'!IC8 -> 2130-09-01 | IC33: ='Financial Model'!ID8 -> 2131-03-01 | ID33: ='Financial Model'!IE8 -> 2131-09-01 | IE33: ='Financial Model'!IF8 -> 2132-03-01 | IF33: ='Financial Model'!IG8 -> 2132-09-01 | IG33: ='Financial Model'!IH8 -> 2133-03-01 | IH33: ='Financial Model'!II8 -> 2133-09-01 | II33: ='Financial Model'!IJ8 -> 2134-03-01 | IJ33: ='Financial Model'!IK8 -> 2134-09-01 | IK33: ='Financial Model'!IL8 -> 2135-03-01 | IL33: ='Financial Model'!IM8 -> 2135-09-01 | IM33: ='Financial Model'!IN8 -> 2136-03-01 | IN33: ='Financial Model'!IO8 -> 2136-09-01 | IO33: ='Financial Model'!IP8 -> 2137-03-01 | IP33: ='Financial Model'!IQ8 -> 2137-09-01 | IQ33: ='Financial Model'!IR8 -> 2138-03-01 | IR33: ='Financial Model'!IS8 -> 2138-09-01 | IS33: ='Financial Model'!IT8 -> 2139-03-01 | IT33: ='Financial Model'!IU8 -> 2139-09-01 | IU33: ='Financial Model'!IV8 -> 2140-03-01 | IV33: ='Financial Model'!IW8 -> 2140-09-01 | IW33: ='Financial Model'!IX8 -> 2141-03-01 | IX33: ='Financial Model'!IY8 -> 2141-09-01 | IY33: ='Financial Model'!IZ8 -> 2142-03-01 | IZ33: ='Financial Model'!JA8 -> 2142-09-01 | JA33: ='Financial Model'!JB8 -> 2143-03-01 | JB33: ='Financial Model'!JC8 -> 2143-09-01 | JC33: ='Financial Model'!JD8 -> 2144-03-01 | JD33: ='Financial Model'!JE8 -> 2144-09-01 | JE33: ='Financial Model'!JF8 -> 2145-03-01 | JF33: ='Financial Model'!JG8 -> 2145-09-01 | JG33: ='Financial Model'!JH8 -> 2146-03-01 | JH33: ='Financial Model'!JI8 -> 2146-09-01 | JI33: ='Financial Model'!JJ8 -> 2147-03-01 | JJ33: ='Financial Model'!JK8 -> 2147-09-01 | JK33: ='Financial Model'!JL8 -> 2148-03-01 | JL33: ='Financial Model'!JM8 -> 2148-09-01 | JM33: ='Financial Model'!JN8 -> 2149-03-01 | JN33: ='Financial Model'!JO8 -> 2149-09-01 | JO33: ='Financial Model'!JP8 -> 2150-03-01 | JP33: ='Financial Model'!JQ8 -> 2150-09-01 | JQ33: ='Financial Model'!JR8 -> 2151-03-01 | JR33: ='Financial Model'!JS8 -> 2151-09-01 | JS33: ='Financial Model'!JT8 -> 2152-03-01 | JT33: ='Financial Model'!JU8 -> 2152-09-01 | JU33: ='Financial Model'!JV8 -> 2153-03-01 | JV33: ='Financial Model'!JW8 -> 2153-09-01 | JW33: ='Financial Model'!JX8 -> 2154-03-01 | JX33: ='Financial Model'!JY8 -> 2154-09-01 | JY33: ='Financial Model'!JZ8 -> 2155-03-01 | JZ33: ='Financial Model'!KA8 -> 2155-09-01 | KA33: ='Financial Model'!KB8 -> 2156-03-01 | KB33: ='Financial Model'!KC8 -> 2156-09-01 | KC33: ='Financial Model'!KD8 -> 2157-03-01 | KD33: ='Financial Model'!KE8 -> 2157-09-01 | KE33: ='Financial Model'!KF8 -> 2158-03-01 | KF33: ='Financial Model'!KG8 -> 2158-09-01 | KG33: ='Financial Model'!KH8 -> 2159-03-01 | KH33: ='Financial Model'!KI8 -> 2159-09-01 | KI33: ='Financial Model'!KJ8 -> 2160-03-01 | KJ33: ='Financial Model'!KK8 -> 2160-09-01 | KK33: ='Financial Model'!KL8 -> 2161-03-01 | KL33: ='Financial Model'!KM8 -> 2161-09-01 | KM33: ='Financial Model'!KN8 -> 2162-03-01 | KN33: ='Financial Model'!KO8 -> 2162-09-01 | KO33: ='Financial Model'!KP8 -> 2163-03-01 | KP33: ='Financial Model'!KQ8 -> 2163-09-01 | KQ33: ='Financial Model'!KR8 -> 2164-03-01 | KR33: ='Financial Model'!KS8 -> 2164-09-01 | KS33: ='Financial Model'!KT8 -> 2165-03-01 | KT33: ='Financial Model'!KU8 -> 2165-09-01 | KU33: ='Financial Model'!KV8 -> 2166-03-01 | KV33: ='Financial Model'!KW8 -> 2166-09-01 | KW33: ='Financial Model'!KX8 -> 2167-03-01 | KX33: ='Financial Model'!KY8 -> 2167-09-01 | KY33: ='Financial Model'!KZ8 -> 2168-03-01 | KZ33: ='Financial Model'!LA8 -> 2168-09-01 | LA33: ='Financial Model'!LB8 -> 2169-03-01 | LB33: ='Financial Model'!LC8 -> 2169-09-01 | LC33: ='Financial Model'!LD8 -> 2170-03-01 | LD33: ='Financial Model'!LE8 -> 2170-09-01 | LE33: ='Financial Model'!LF8 -> 2171-03-01 | LF33: ='Financial Model'!LG8 -> 2171-09-01 | LG33: ='Financial Model'!LH8 -> 2172-03-01 | LH33: ='Financial Model'!LI8 -> 2172-09-01 | LI33: ='Financial Model'!LJ8 -> 2173-03-01 | LJ33: ='Financial Model'!LK8 -> 2173-09-01 | LK33: ='Financial Model'!LL8 -> 2174-03-01 | LL33: ='Financial Model'!LM8 -> 2174-09-01 | LM33: ='Financial Model'!LN8 -> 2175-03-01 | LN33: ='Financial Model'!LO8 -> 2175-09-01 | LO33: ='Financial Model'!LP8 -> 2176-03-01 | LP33: ='Financial Model'!LQ8 -> 2176-09-01 | LQ33: ='Financial Model'!LR8 -> 2177-03-01 | LR33: ='Financial Model'!LS8 -> 2177-09-01 | LS33: ='Financial Model'!LT8 -> 2178-03-01 | LT33: ='Financial Model'!LU8 -> 2178-09-01 | LU33: ='Financial Model'!LV8 -> 2179-03-01 | LV33: ='Financial Model'!LW8 -> 2179-09-01 | LW33: ='Financial Model'!LX8 -> 2180-03-01 | LX33: ='Financial Model'!LY8 -> 2180-09-01 | LY33: ='Financial Model'!LZ8 -> 2181-03-01 | LZ33: ='Financial Model'!MA8 -> 2181-09-01 | MA33: ='Financial Model'!MB8 -> 2182-03-01 | MB33: ='Financial Model'!MC8 -> 2182-09-01 | MC33: ='Financial Model'!MD8 -> 2183-03-01 | MD33: ='Financial Model'!ME8 -> 2183-09-01 | ME33: ='Financial Model'!MF8 -> 2184-03-01 | MF33: ='Financial Model'!MG8 -> 2184-09-01 | MG33: ='Financial Model'!MH8 -> 2185-03-01 | MH33: ='Financial Model'!MI8 -> 2185-09-01 | MI33: ='Financial Model'!MJ8 -> 2186-03-01 | MJ33: ='Financial Model'!MK8 -> 2186-09-01 | MK33: ='Financial Model'!ML8 -> 2187-03-01 | ML33: ='Financial Model'!MM8 -> 2187-09-01 | MM33: ='Financial Model'!MN8 -> 2188-03-01 | MN33: ='Financial Model'!MO8 -> 2188-09-01 | MO33: ='Financial Model'!MP8 -> 2189-03-01 | MP33: ='Financial Model'!MQ8 -> 2189-09-01 | MQ33: ='Financial Model'!MR8 -> 2190-03-01 | MR33: ='Financial Model'!MS8 -> 2190-09-01 | MS33: ='Financial Model'!MT8 -> 2191-03-01 | MT33: ='Financial Model'!MU8 -> 2191-09-01 | MU33: ='Financial Model'!MV8 -> 2192-03-01 | MV33: ='Financial Model'!MW8 -> 2192-09-01 | MW33: ='Financial Model'!MX8 -> 2193-03-01 | MX33: ='Financial Model'!MY8 -> 2193-09-01 | MY33: ='Financial Model'!MZ8 -> 2194-03-01 | MZ33: ='Financial Model'!NA8 -> 2194-09-01 | NA33: ='Financial Model'!NB8 -> 2195-03-01 | NB33: ='Financial Model'!NC8 -> 2195-09-01 | NC33: ='Financial Model'!ND8 -> 2196-03-01 | ND33: ='Financial Model'!NE8 -> 2196-09-01 | NE33: ='Financial Model'!NF8 -> 2197-03-01 | NF33: ='Financial Model'!NG8 -> 2197-09-01 | NG33: ='Financial Model'!NH8 -> 2198-03-01 | NH33: ='Financial Model'!NI8 -> 2198-09-01 | NI33: ='Financial Model'!NJ8 -> 2199-03-01 | NJ33: ='Financial Model'!NK8 -> 2199-09-01 | NK33: ='Financial Model'!NL8 -> 2200-03-01 | NL33: ='Financial Model'!NM8 -> 2200-09-01 | NM33: ='Financial Model'!NN8 -> 2201-03-01 | NN33: ='Financial Model'!NO8 -> 2201-09-01 | NO33: ='Financial Model'!NP8 -> 2202-03-01 | NP33: ='Financial Model'!NQ8 -> 2202-09-01 | NQ33: ='Financial Model'!NR8 -> 2203-03-01 | NR33: ='Financial Model'!NS8 -> 2203-09-01 | NS33: ='Financial Model'!NT8 -> 2204-03-01 | NT33: ='Financial Model'!NU8 -> 2204-09-01 | NU33: ='Financial Model'!NV8 -> 2205-03-01 | NV33: ='Financial Model'!NW8 -> 2205-09-01 | NW33: ='Financial Model'!NX8 -> 2206-03-01 | NX33: ='Financial Model'!NY8 -> 2206-09-01 | NY33: ='Financial Model'!NZ8 -> 2207-03-01 | NZ33: ='Financial Model'!OA8 -> 2207-09-01 | OA33: ='Financial Model'!OB8 -> 2208-03-01 | OB33: ='Financial Model'!OC8 -> 2208-09-01 | OC33: ='Financial Model'!OD8 -> 2209-03-01 | OD33: ='Financial Model'!OE8 -> 2209-09-01 | OE33: ='Financial Model'!OF8 -> 2210-03-01 | OF33: ='Financial Model'!OG8 -> 2210-09-01 | OG33: ='Financial Model'!OH8 -> 2211-03-01 | OH33: ='Financial Model'!OI8 -> 2211-09-01 | OI33: ='Financial Model'!OJ8 -> 2212-03-01 | OJ33: ='Financial Model'!OK8 -> 2212-09-01 | OK33: ='Financial Model'!OL8 -> 2213-03-01 | OL33: ='Financial Model'!OM8 -> 2213-09-01 | OM33: ='Financial Model'!ON8 -> 2214-03-01 | ON33: ='Financial Model'!OO8 -> 2214-09-01 | OO33: ='Financial Model'!OP8 -> 2215-03-01 | OP33: ='Financial Model'!OQ8 -> 2215-09-01 | OQ33: ='Financial Model'!OR8 -> 2216-03-01 | OR33: ='Financial Model'!OS8 -> 2216-09-01 | OS33: ='Financial Model'!OT8 -> 2217-03-01 | OT33: ='Financial Model'!OU8 -> 2217-09-01 | OU33: ='Financial Model'!OV8 -> 2218-03-01 | OV33: ='Financial Model'!OW8 -> 2218-09-01 | OW33: ='Financial Model'!OX8 -> 2219-03-01 | OX33: ='Financial Model'!OY8 -> 2219-09-01 | OY33: ='Financial Model'!OZ8 -> 2220-03-01 | OZ33: ='Financial Model'!PA8 -> 2220-09-01 | PA33: ='Financial Model'!PB8 -> 2221-03-01 | PB33: ='Financial Model'!PC8 -> 2221-09-01 | PC33: ='Financial Model'!PD8 -> 2222-03-01 | PD33: ='Financial Model'!PE8 -> 2222-09-01 | PE33: ='Financial Model'!PF8 -> 2223-03-01 | PF33: ='Financial Model'!PG8 -> 2223-09-01 | PG33: ='Financial Model'!PH8 -> 2224-03-01 | PH33: ='Financial Model'!PI8 -> 2224-09-01 | PI33: ='Financial Model'!PJ8 -> 2225-03-01 | PJ33: ='Financial Model'!PK8 -> 2225-09-01 | PK33: ='Financial Model'!PL8 -> 2226-03-01 | PL33: ='Financial Model'!PM8 -> 2226-09-01 | PM33: ='Financial Model'!PN8 -> 2227-03-01 | PN33: ='Financial Model'!PO8 -> 2227-09-01 | PO33: ='Financial Model'!PP8 -> 2228-03-01 | PP33: ='Financial Model'!PQ8 -> 2228-09-01 | PQ33: ='Financial Model'!PR8 -> 2229-03-01 | PR33: ='Financial Model'!PS8 -> 2229-09-01 | PS33: ='Financial Model'!PT8 -> 2230-03-01 | PT33: ='Financial Model'!PU8 -> 2230-09-01 | PU33: ='Financial Model'!PV8 -> 2231-03-01 | PV33: ='Financial Model'!PW8 -> 2231-09-01 | PW33: ='Financial Model'!PX8 -> 2232-03-01 | PX33: ='Financial Model'!PY8 -> 2232-09-01 | PY33: ='Financial Model'!PZ8 -> 2233-03-01 | PZ33: ='Financial Model'!QA8 -> 2233-09-01 | QA33: ='Financial Model'!QB8 -> 2234-03-01 | QB33: ='Financial Model'!QC8 -> 2234-09-01 | QC33: ='Financial Model'!QD8 -> 2235-03-01 | QD33: ='Financial Model'!QE8 -> 2235-09-01 | QE33: ='Financial Model'!QF8 -> 2236-03-01 | QF33: ='Financial Model'!QG8 -> 2236-09-01 | QG33: ='Financial Model'!QH8 -> 2237-03-01 | QH33: ='Financial Model'!QI8 -> 2237-09-01 | QI33: ='Financial Model'!QJ8 -> 2238-03-01 | QJ33: ='Financial Model'!QK8 -> 2238-09-01 | QK33: ='Financial Model'!QL8 -> 2239-03-01 | QL33: ='Financial Model'!QM8 -> 2239-09-01 | QM33: ='Financial Model'!QN8 -> 2240-03-01 | QN33: ='Financial Model'!QO8 -> 2240-09-01 | QO33: ='Financial Model'!QP8 -> 2241-03-01 | QP33: ='Financial Model'!QQ8 -> 2241-09-01 | QQ33: ='Financial Model'!QR8 -> 2242-03-01 | QR33: ='Financial Model'!QS8 -> 2242-09-01 | QS33: ='Financial Model'!QT8 -> 2243-03-01 | QT33: ='Financial Model'!QU8 -> 2243-09-01 | QU33: ='Financial Model'!QV8 -> 2244-03-01 | QV33: ='Financial Model'!QW8 -> 2244-09-01 | QW33: ='Financial Model'!QX8 -> 2245-03-01 | QX33: ='Financial Model'!QY8 -> 2245-09-01 | QY33: ='Financial Model'!QZ8 -> 2246-03-01 | QZ33: ='Financial Model'!RA8 -> 2246-09-01 | RA33: ='Financial Model'!RB8 -> 2247-03-01 | RB33: ='Financial Model'!RC8 -> 2247-09-01 | RC33: ='Financial Model'!RD8 -> 2248-03-01 | RD33: ='Financial Model'!RE8 -> 2248-09-01 | RE33: ='Financial Model'!RF8 -> 2249-03-01 | RF33: ='Financial Model'!RG8 -> 2249-09-01 | RG33: ='Financial Model'!RH8 -> 2250-03-01 | RH33: ='Financial Model'!RI8 -> 2250-09-01 | RI33: ='Financial Model'!RJ8 -> 2251-03-01 | RJ33: ='Financial Model'!RK8 -> 2251-09-01 | RK33: ='Financial Model'!RL8 -> 2252-03-01 | RL33: ='Financial Model'!RM8 -> 2252-09-01 | RM33: ='Financial Model'!RN8 -> 2253-03-01 | RN33: ='Financial Model'!RO8 -> 2253-09-01 | RO33: ='Financial Model'!RP8 -> 2254-03-01 | RP33: ='Financial Model'!RQ8 -> 2254-09-01 | RQ33: ='Financial Model'!RR8 -> 2255-03-01 | RR33: ='Financial Model'!RS8 -> 2255-09-01 | RS33: ='Financial Model'!RT8 -> 2256-03-01 | RT33: ='Financial Model'!RU8 -> 2256-09-01 | RU33: ='Financial Model'!RV8 -> 2257-03-01 | RV33: ='Financial Model'!RW8 -> 2257-09-01 | RW33: ='Financial Model'!RX8 -> 2258-03-01 | RX33: ='Financial Model'!RY8 -> 2258-09-01 | RY33: ='Financial Model'!RZ8 -> 2259-03-01 | RZ33: ='Financial Model'!SA8 -> 2259-09-01 | SA33: ='Financial Model'!SB8 -> 2260-03-01 | SB33: ='Financial Model'!SC8 -> 2260-09-01 | SC33: ='Financial Model'!SD8 -> 00:00:00 | SD33: ='Financial Model'!SE8 -> 00:00:00 | SE33: ='Financial Model'!SF8 -> 00:00:00 | SF33: ='Financial Model'!SG8 -> 00:00:00 | SG33: ='Financial Model'!SH8 -> 00:00:00 | SH33: ='Financial Model'!SI8 -> 00:00:00 | SI33: ='Financial Model'!SJ8 -> 00:00:00 | SJ33: ='Financial Model'!SK8 -> 00:00:00 | SK33: ='Financial Model'!SL8 -> 00:00:00 | SL33: ='Financial Model'!SM8 -> 00:00:00 | SM33: ='Financial Model'!SN8 -> 00:00:00 | SN33: ='Financial Model'!SO8 -> 00:00:00 | SO33: ='Financial Model'!SP8 -> 00:00:00 | SP33: ='Financial Model'!SQ8 -> 00:00:00 | SQ33: ='Financial Model'!SR8 -> 00:00:00 | SR33: ='Financial Model'!SS8 -> 00:00:00 | SS33: ='Financial Model'!ST8 -> 00:00:00 | ST33: ='Financial Model'!SU8 -> 00:00:00 | SU33: ='Financial Model'!SV8 -> 00:00:00 | SV33: ='Financial Model'!SW8 -> 00:00:00 | SW33: ='Financial Model'!SX8 -> 00:00:00 | SX33: ='Financial Model'!SY8 -> 00:00:00 | SY33: ='Financial Model'!SZ8 -> 00:00:00 | SZ33: ='Financial Model'!TA8 -> 00:00:00 | TA33: ='Financial Model'!TB8 -> 00:00:00 | TB33: ='Financial Model'!TC8 -> 00:00:00 | TC33: ='Financial Model'!TD8 -> 00:00:00 | TD33: ='Financial Model'!TE8 -> 00:00:00 | TE33: ='Financial Model'!TF8 -> 00:00:00 | TF33: ='Financial Model'!TG8 -> 00:00:00 | TG33: ='Financial Model'!TH8 -> 00:00:00 | TH33: ='Financial Model'!TI8 -> 00:00:00 | TI33: ='Financial Model'!TJ8 -> 00:00:00 | TJ33: ='Financial Model'!TK8 -> 00:00:00 | TK33: ='Financial Model'!TL8 -> 00:00:00 | TL33: ='Financial Model'!TM8 -> 00:00:00 | TM33: ='Financial Model'!TN8 -> 00:00:00 | TN33: ='Financial Model'!TO8 -> 00:00:00 | TO33: ='Financial Model'!TP8 -> 00:00:00 | TP33: ='Financial Model'!TQ8 -> 00:00:00 | TQ33: ='Financial Model'!TR8 -> 00:00:00 | TR33: ='Financial Model'!TS8 -> 00:00:00 | TS33: ='Financial Model'!TT8 -> 00:00:00 | TT33: ='Financial Model'!TU8 -> 00:00:00 | TU33: ='Financial Model'!TV8 -> 00:00:00 | TV33: ='Financial Model'!TW8 -> 00:00:00 | TW33: ='Financial Model'!TX8 -> 00:00:00 | TX33: ='Financial Model'!TY8 -> 00:00:00 | TY33: ='Financial Model'!TZ8 -> 00:00:00
J34: ='Financial Model'!K9 -> 2026-01-31 | K34: ='Financial Model'!L9 -> 2026-02-28 | L34: ='Financial Model'!M9 -> 2026-03-31 | M34: ='Financial Model'!N9 -> 2026-04-30 | N34: ='Financial Model'!O9 -> 2026-05-31 | O34: ='Financial Model'!P9 -> 2026-06-30 | P34: ='Financial Model'!Q9 -> 2026-07-31 | Q34: ='Financial Model'!R9 -> 2026-08-31 | R34: ='Financial Model'!S9 -> 2026-09-30 | S34: ='Financial Model'!T9 -> 2026-10-31 | T34: ='Financial Model'!U9 -> 2026-11-30 | U34: ='Financial Model'!V9 -> 2026-12-31 | V34: ='Financial Model'!W9 -> 2027-01-31 | W34: ='Financial Model'!X9 -> 2027-02-28 | X34: ='Financial Model'!Y9 -> 2027-03-31 | Y34: ='Financial Model'!Z9 -> 2027-04-30 | Z34: ='Financial Model'!AA9 -> 2027-05-31 | AA34: ='Financial Model'!AB9 -> 2027-06-30 | AB34: ='Financial Model'!AC9 -> 2027-07-31 | AC34: ='Financial Model'!AD9 -> 2027-08-31 | AD34: ='Financial Model'!AE9 -> 2028-02-29 | AE34: ='Financial Model'!AF9 -> 2028-08-31 | AF34: ='Financial Model'!AG9 -> 2029-02-28 | AG34: ='Financial Model'!AH9 -> 2029-08-31 | AH34: ='Financial Model'!AI9 -> 2030-02-28 | AI34: ='Financial Model'!AJ9 -> 2030-08-31 | AJ34: ='Financial Model'!AK9 -> 2031-02-28 | AK34: ='Financial Model'!AL9 -> 2031-08-31 | AL34: ='Financial Model'!AM9 -> 2032-02-29 | AM34: ='Financial Model'!AN9 -> 2032-08-31 | AN34: ='Financial Model'!AO9 -> 2033-02-28 | AO34: ='Financial Model'!AP9 -> 2033-08-31 | AP34: ='Financial Model'!AQ9 -> 2034-02-28 | AQ34: ='Financial Model'!AR9 -> 2034-08-31 | AR34: ='Financial Model'!AS9 -> 2035-02-28 | AS34: ='Financial Model'!AT9 -> 2035-08-31 | AT34: ='Financial Model'!AU9 -> 2036-02-29 | AU34: ='Financial Model'!AV9 -> 2036-08-31 | AV34: ='Financial Model'!AW9 -> 2037-02-28 | AW34: ='Financial Model'!AX9 -> 2037-08-31 | AX34: ='Financial Model'!AY9 -> 2038-02-28 | AY34: ='Financial Model'!AZ9 -> 2038-08-31 | AZ34: ='Financial Model'!BA9 -> 2039-02-28 | BA34: ='Financial Model'!BB9 -> 2039-08-31 | BB34: ='Financial Model'!BC9 -> 2040-02-29 | BC34: ='Financial Model'!BD9 -> 2040-08-31 | BD34: ='Financial Model'!BE9 -> 2041-02-28 | BE34: ='Financial Model'!BF9 -> 2041-08-31 | BF34: ='Financial Model'!BG9 -> 2042-02-28 | BG34: ='Financial Model'!BH9 -> 2042-08-31 | BH34: ='Financial Model'!BI9 -> 2043-02-28 | BI34: ='Financial Model'!BJ9 -> 2043-08-31 | BJ34: ='Financial Model'!BK9 -> 2044-02-29 | BK34: ='Financial Model'!BL9 -> 2044-08-31 | BL34: ='Financial Model'!BM9 -> 2045-02-28 | BM34: ='Financial Model'!BN9 -> 2045-08-31 | BN34: ='Financial Model'!BO9 -> 2046-02-28 | BO34: ='Financial Model'!BP9 -> 2046-08-31 | BP34: ='Financial Model'!BQ9 -> 2047-02-28 | BQ34: ='Financial Model'!BR9 -> 2047-08-31 | BR34: ='Financial Model'!BS9 -> 2048-02-29 | BS34: ='Financial Model'!BT9 -> 2048-08-31 | BT34: ='Financial Model'!BU9 -> 2049-02-28 | BU34: ='Financial Model'!BV9 -> 2049-08-31 | BV34: ='Financial Model'!BW9 -> 2050-02-28 | BW34: ='Financial Model'!BX9 -> 2050-08-31 | BX34: ='Financial Model'!BY9 -> 2051-02-28 | BY34: ='Financial Model'!BZ9 -> 2051-08-31 | BZ34: ='Financial Model'!CA9 -> 2052-02-29 | CA34: ='Financial Model'!CB9 -> 2052-08-31 | CB34: ='Financial Model'!CC9 -> 2053-02-28 | CC34: ='Financial Model'!CD9 -> 2053-08-31 | CD34: ='Financial Model'!CE9 -> 2054-02-28 | CE34: ='Financial Model'!CF9 -> 2054-08-31 | CF34: ='Financial Model'!CG9 -> 2055-02-28 | CG34: ='Financial Model'!CH9 -> 2055-08-31 | CH34: ='Financial Model'!CI9 -> 2056-02-29 | CI34: ='Financial Model'!CJ9 -> 2056-08-31 | CJ34: ='Financial Model'!CK9 -> 2057-02-28 | CK34: ='Financial Model'!CL9 -> 2057-08-31 | CL34: ='Financial Model'!CM9 -> 2058-02-28 | CM34: ='Financial Model'!CN9 -> 2058-08-31 | CN34: ='Financial Model'!CO9 -> 2059-02-28 | CO34: ='Financial Model'!CP9 -> 2059-08-31 | CP34: ='Financial Model'!CQ9 -> 2060-02-29 | CQ34: ='Financial Model'!CR9 -> 2060-08-31 | CR34: ='Financial Model'!CS9 -> 2061-02-28 | CS34: ='Financial Model'!CT9 -> 2061-08-31 | CT34: ='Financial Model'!CU9 -> 2062-02-28 | CU34: ='Financial Model'!CV9 -> 2062-08-31 | CV34: ='Financial Model'!CW9 -> 2063-02-28 | CW34: ='Financial Model'!CX9 -> 2063-08-31 | CX34: ='Financial Model'!CY9 -> 2064-02-29 | CY34: ='Financial Model'!CZ9 -> 2064-08-31 | CZ34: ='Financial Model'!DA9 -> 2065-02-28 | DA34: ='Financial Model'!DB9 -> 2065-08-31 | DB34: ='Financial Model'!DC9 -> 2066-02-28 | DC34: ='Financial Model'!DD9 -> 2066-08-31 | DD34: ='Financial Model'!DE9 -> 2067-02-28 | DE34: ='Financial Model'!DF9 -> 2067-08-31 | DF34: ='Financial Model'!DG9 -> 2068-02-29 | DG34: ='Financial Model'!DH9 -> 2068-08-31 | DH34: ='Financial Model'!DI9 -> 2069-02-28 | DI34: ='Financial Model'!DJ9 -> 2069-08-31 | DJ34: ='Financial Model'!DK9 -> 2070-02-28 | DK34: ='Financial Model'!DL9 -> 2070-08-31 | DL34: ='Financial Model'!DM9 -> 2071-02-28 | DM34: ='Financial Model'!DN9 -> 2071-08-31 | DN34: ='Financial Model'!DO9 -> 2072-02-29 | DO34: ='Financial Model'!DP9 -> 2072-08-31 | DP34: ='Financial Model'!DQ9 -> 2073-02-28 | DQ34: ='Financial Model'!DR9 -> 2073-08-31 | DR34: ='Financial Model'!DS9 -> 2074-02-28 | DS34: ='Financial Model'!DT9 -> 2074-08-31 | DT34: ='Financial Model'!DU9 -> 2075-02-28 | DU34: ='Financial Model'!DV9 -> 2075-08-31 | DV34: ='Financial Model'!DW9 -> 2076-02-29 | DW34: ='Financial Model'!DX9 -> 2076-08-31 | DX34: ='Financial Model'!DY9 -> 2077-02-28 | DY34: ='Financial Model'!DZ9 -> 2077-08-31 | DZ34: ='Financial Model'!EA9 -> 2078-02-28 | EA34: ='Financial Model'!EB9 -> 2078-08-31 | EB34: ='Financial Model'!EC9 -> 2079-02-28 | EC34: ='Financial Model'!ED9 -> 2079-08-31 | ED34: ='Financial Model'!EE9 -> 2080-02-29 | EE34: ='Financial Model'!EF9 -> 2080-08-31 | EF34: ='Financial Model'!EG9 -> 2081-02-28 | EG34: ='Financial Model'!EH9 -> 2081-08-31 | EH34: ='Financial Model'!EI9 -> 2082-02-28 | EI34: ='Financial Model'!EJ9 -> 2082-08-31 | EJ34: ='Financial Model'!EK9 -> 2083-02-28 | EK34: ='Financial Model'!EL9 -> 2083-08-31 | EL34: ='Financial Model'!EM9 -> 2084-02-29 | EM34: ='Financial Model'!EN9 -> 2084-08-31 | EN34: ='Financial Model'!EO9 -> 2085-02-28 | EO34: ='Financial Model'!EP9 -> 2085-08-31 | EP34: ='Financial Model'!EQ9 -> 2086-02-28 | EQ34: ='Financial Model'!ER9 -> 2086-08-31 | ER34: ='Financial Model'!ES9 -> 2087-02-28 | ES34: ='Financial Model'!ET9 -> 2087-08-31 | ET34: ='Financial Model'!EU9 -> 2088-02-29 | EU34: ='Financial Model'!EV9 -> 2088-08-31 | EV34: ='Financial Model'!EW9 -> 2089-02-28 | EW34: ='Financial Model'!EX9 -> 2089-08-31 | EX34: ='Financial Model'!EY9 -> 2090-02-28 | EY34: ='Financial Model'!EZ9 -> 2090-08-31 | EZ34: ='Financial Model'!FA9 -> 2091-02-28 | FA34: ='Financial Model'!FB9 -> 2091-08-31 | FB34: ='Financial Model'!FC9 -> 2092-02-29 | FC34: ='Financial Model'!FD9 -> 2092-08-31 | FD34: ='Financial Model'!FE9 -> 2093-02-28 | FE34: ='Financial Model'!FF9 -> 2093-08-31 | FF34: ='Financial Model'!FG9 -> 2094-02-28 | FG34: ='Financial Model'!FH9 -> 2094-08-31 | FH34: ='Financial Model'!FI9 -> 2095-02-28 | FI34: ='Financial Model'!FJ9 -> 2095-08-31 | FJ34: ='Financial Model'!FK9 -> 2096-02-29 | FK34: ='Financial Model'!FL9 -> 2096-08-31 | FL34: ='Financial Model'!FM9 -> 2097-02-28 | FM34: ='Financial Model'!FN9 -> 2097-08-31 | FN34: ='Financial Model'!FO9 -> 2098-02-28 | FO34: ='Financial Model'!FP9 -> 2098-08-31 | FP34: ='Financial Model'!FQ9 -> 2099-02-28 | FQ34: ='Financial Model'!FR9 -> 2099-08-31 | FR34: ='Financial Model'!FS9 -> 2100-02-28 | FS34: ='Financial Model'!FT9 -> 2100-08-31 | FT34: ='Financial Model'!FU9 -> 2101-02-28 | FU34: ='Financial Model'!FV9 -> 2101-08-31 | FV34: ='Financial Model'!FW9 -> 2102-02-28 | FW34: ='Financial Model'!FX9 -> 2102-08-31 | FX34: ='Financial Model'!FY9 -> 2103-02-28 | FY34: ='Financial Model'!FZ9 -> 2103-08-31 | FZ34: ='Financial Model'!GA9 -> 2104-02-29 | GA34: ='Financial Model'!GB9 -> 2104-08-31 | GB34: ='Financial Model'!GC9 -> 2105-02-28 | GC34: ='Financial Model'!GD9 -> 2105-08-31 | GD34: ='Financial Model'!GE9 -> 2106-02-28 | GE34: ='Financial Model'!GF9 -> 2106-08-31 | GF34: ='Financial Model'!GG9 -> 2107-02-28 | GG34: ='Financial Model'!GH9 -> 2107-08-31 | GH34: ='Financial Model'!GI9 -> 2108-02-29 | GI34: ='Financial Model'!GJ9 -> 2108-08-31 | GJ34: ='Financial Model'!GK9 -> 2109-02-28 | GK34: ='Financial Model'!GL9 -> 2109-08-31 | GL34: ='Financial Model'!GM9 -> 2110-02-28 | GM34: ='Financial Model'!GN9 -> 2110-08-31 | GN34: ='Financial Model'!GO9 -> 2111-02-28 | GO34: ='Financial Model'!GP9 -> 2111-08-31 | GP34: ='Financial Model'!GQ9 -> 2112-02-29 | GQ34: ='Financial Model'!GR9 -> 2112-08-31 | GR34: ='Financial Model'!GS9 -> 2113-02-28 | GS34: ='Financial Model'!GT9 -> 2113-08-31 | GT34: ='Financial Model'!GU9 -> 2114-02-28 | GU34: ='Financial Model'!GV9 -> 2114-08-31 | GV34: ='Financial Model'!GW9 -> 2115-02-28 | GW34: ='Financial Model'!GX9 -> 2115-08-31 | GX34: ='Financial Model'!GY9 -> 2116-02-29 | GY34: ='Financial Model'!GZ9 -> 2116-08-31 | GZ34: ='Financial Model'!HA9 -> 2117-02-28 | HA34: ='Financial Model'!HB9 -> 2117-08-31 | HB34: ='Financial Model'!HC9 -> 2118-02-28 | HC34: ='Financial Model'!HD9 -> 2118-08-31 | HD34: ='Financial Model'!HE9 -> 2119-02-28 | HE34: ='Financial Model'!HF9 -> 2119-08-31 | HF34: ='Financial Model'!HG9 -> 2120-02-29 | HG34: ='Financial Model'!HH9 -> 2120-08-31 | HH34: ='Financial Model'!HI9 -> 2121-02-28 | HI34: ='Financial Model'!HJ9 -> 2121-08-31 | HJ34: ='Financial Model'!HK9 -> 2122-02-28 | HK34: ='Financial Model'!HL9 -> 2122-08-31 | HL34: ='Financial Model'!HM9 -> 2123-02-28 | HM34: ='Financial Model'!HN9 -> 2123-08-31 | HN34: ='Financial Model'!HO9 -> 2124-02-29 | HO34: ='Financial Model'!HP9 -> 2124-08-31 | HP34: ='Financial Model'!HQ9 -> 2125-02-28 | HQ34: ='Financial Model'!HR9 -> 2125-08-31 | HR34: ='Financial Model'!HS9 -> 2126-02-28 | HS34: ='Financial Model'!HT9 -> 2126-08-31 | HT34: ='Financial Model'!HU9 -> 2127-02-28 | HU34: ='Financial Model'!HV9 -> 2127-08-31 | HV34: ='Financial Model'!HW9 -> 2128-02-29 | HW34: ='Financial Model'!HX9 -> 2128-08-31 | HX34: ='Financial Model'!HY9 -> 2129-02-28 | HY34: ='Financial Model'!HZ9 -> 2129-08-31 | HZ34: ='Financial Model'!IA9 -> 2130-02-28 | IA34: ='Financial Model'!IB9 -> 2130-08-31 | IB34: ='Financial Model'!IC9 -> 2131-02-28 | IC34: ='Financial Model'!ID9 -> 2131-08-31 | ID34: ='Financial Model'!IE9 -> 2132-02-29 | IE34: ='Financial Model'!IF9 -> 2132-08-31 | IF34: ='Financial Model'!IG9 -> 2133-02-28 | IG34: ='Financial Model'!IH9 -> 2133-08-31 | IH34: ='Financial Model'!II9 -> 2134-02-28 | II34: ='Financial Model'!IJ9 -> 2134-08-31 | IJ34: ='Financial Model'!IK9 -> 2135-02-28 | IK34: ='Financial Model'!IL9 -> 2135-08-31 | IL34: ='Financial Model'!IM9 -> 2136-02-29 | IM34: ='Financial Model'!IN9 -> 2136-08-31 | IN34: ='Financial Model'!IO9 -> 2137-02-28 | IO34: ='Financial Model'!IP9 -> 2137-08-31 | IP34: ='Financial Model'!IQ9 -> 2138-02-28 | IQ34: ='Financial Model'!IR9 -> 2138-08-31 | IR34: ='Financial Model'!IS9 -> 2139-02-28 | IS34: ='Financial Model'!IT9 -> 2139-08-31 | IT34: ='Financial Model'!IU9 -> 2140-02-29 | IU34: ='Financial Model'!IV9 -> 2140-08-31 | IV34: ='Financial Model'!IW9 -> 2141-02-28 | IW34: ='Financial Model'!IX9 -> 2141-08-31 | IX34: ='Financial Model'!IY9 -> 2142-02-28 | IY34: ='Financial Model'!IZ9 -> 2142-08-31 | IZ34: ='Financial Model'!JA9 -> 2143-02-28 | JA34: ='Financial Model'!JB9 -> 2143-08-31 | JB34: ='Financial Model'!JC9 -> 2144-02-29 | JC34: ='Financial Model'!JD9 -> 2144-08-31 | JD34: ='Financial Model'!JE9 -> 2145-02-28 | JE34: ='Financial Model'!JF9 -> 2145-08-31 | JF34: ='Financial Model'!JG9 -> 2146-02-28 | JG34: ='Financial Model'!JH9 -> 2146-08-31 | JH34: ='Financial Model'!JI9 -> 2147-02-28 | JI34: ='Financial Model'!JJ9 -> 2147-08-31 | JJ34: ='Financial Model'!JK9 -> 2148-02-29 | JK34: ='Financial Model'!JL9 -> 2148-08-31 | JL34: ='Financial Model'!JM9 -> 2149-02-28 | JM34: ='Financial Model'!JN9 -> 2149-08-31 | JN34: ='Financial Model'!JO9 -> 2150-02-28 | JO34: ='Financial Model'!JP9 -> 2150-08-31 | JP34: ='Financial Model'!JQ9 -> 2151-02-28 | JQ34: ='Financial Model'!JR9 -> 2151-08-31 | JR34: ='Financial Model'!JS9 -> 2152-02-29 | JS34: ='Financial Model'!JT9 -> 2152-08-31 | JT34: ='Financial Model'!JU9 -> 2153-02-28 | JU34: ='Financial Model'!JV9 -> 2153-08-31 | JV34: ='Financial Model'!JW9 -> 2154-02-28 | JW34: ='Financial Model'!JX9 -> 2154-08-31 | JX34: ='Financial Model'!JY9 -> 2155-02-28 | JY34: ='Financial Model'!JZ9 -> 2155-08-31 | JZ34: ='Financial Model'!KA9 -> 2156-02-29 | KA34: ='Financial Model'!KB9 -> 2156-08-31 | KB34: ='Financial Model'!KC9 -> 2157-02-28 | KC34: ='Financial Model'!KD9 -> 2157-08-31 | KD34: ='Financial Model'!KE9 -> 2158-02-28 | KE34: ='Financial Model'!KF9 -> 2158-08-31 | KF34: ='Financial Model'!KG9 -> 2159-02-28 | KG34: ='Financial Model'!KH9 -> 2159-08-31 | KH34: ='Financial Model'!KI9 -> 2160-02-29 | KI34: ='Financial Model'!KJ9 -> 2160-08-31 | KJ34: ='Financial Model'!KK9 -> 2161-02-28 | KK34: ='Financial Model'!KL9 -> 2161-08-31 | KL34: ='Financial Model'!KM9 -> 2162-02-28 | KM34: ='Financial Model'!KN9 -> 2162-08-31 | KN34: ='Financial Model'!KO9 -> 2163-02-28 | KO34: ='Financial Model'!KP9 -> 2163-08-31 | KP34: ='Financial Model'!KQ9 -> 2164-02-29 | KQ34: ='Financial Model'!KR9 -> 2164-08-31 | KR34: ='Financial Model'!KS9 -> 2165-02-28 | KS34: ='Financial Model'!KT9 -> 2165-08-31 | KT34: ='Financial Model'!KU9 -> 2166-02-28 | KU34: ='Financial Model'!KV9 -> 2166-08-31 | KV34: ='Financial Model'!KW9 -> 2167-02-28 | KW34: ='Financial Model'!KX9 -> 2167-08-31 | KX34: ='Financial Model'!KY9 -> 2168-02-29 | KY34: ='Financial Model'!KZ9 -> 2168-08-31 | KZ34: ='Financial Model'!LA9 -> 2169-02-28 | LA34: ='Financial Model'!LB9 -> 2169-08-31 | LB34: ='Financial Model'!LC9 -> 2170-02-28 | LC34: ='Financial Model'!LD9 -> 2170-08-31 | LD34: ='Financial Model'!LE9 -> 2171-02-28 | LE34: ='Financial Model'!LF9 -> 2171-08-31 | LF34: ='Financial Model'!LG9 -> 2172-02-29 | LG34: ='Financial Model'!LH9 -> 2172-08-31 | LH34: ='Financial Model'!LI9 -> 2173-02-28 | LI34: ='Financial Model'!LJ9 -> 2173-08-31 | LJ34: ='Financial Model'!LK9 -> 2174-02-28 | LK34: ='Financial Model'!LL9 -> 2174-08-31 | LL34: ='Financial Model'!LM9 -> 2175-02-28 | LM34: ='Financial Model'!LN9 -> 2175-08-31 | LN34: ='Financial Model'!LO9 -> 2176-02-29 | LO34: ='Financial Model'!LP9 -> 2176-08-31 | LP34: ='Financial Model'!LQ9 -> 2177-02-28 | LQ34: ='Financial Model'!LR9 -> 2177-08-31 | LR34: ='Financial Model'!LS9 -> 2178-02-28 | LS34: ='Financial Model'!LT9 -> 2178-08-31 | LT34: ='Financial Model'!LU9 -> 2179-02-28 | LU34: ='Financial Model'!LV9 -> 2179-08-31 | LV34: ='Financial Model'!LW9 -> 2180-02-29 | LW34: ='Financial Model'!LX9 -> 2180-08-31 | LX34: ='Financial Model'!LY9 -> 2181-02-28 | LY34: ='Financial Model'!LZ9 -> 2181-08-31 | LZ34: ='Financial Model'!MA9 -> 2182-02-28 | MA34: ='Financial Model'!MB9 -> 2182-08-31 | MB34: ='Financial Model'!MC9 -> 2183-02-28 | MC34: ='Financial Model'!MD9 -> 2183-08-31 | MD34: ='Financial Model'!ME9 -> 2184-02-29 | ME34: ='Financial Model'!MF9 -> 2184-08-31 | MF34: ='Financial Model'!MG9 -> 2185-02-28 | MG34: ='Financial Model'!MH9 -> 2185-08-31 | MH34: ='Financial Model'!MI9 -> 2186-02-28 | MI34: ='Financial Model'!MJ9 -> 2186-08-31 | MJ34: ='Financial Model'!MK9 -> 2187-02-28 | MK34: ='Financial Model'!ML9 -> 2187-08-31 | ML34: ='Financial Model'!MM9 -> 2188-02-29 | MM34: ='Financial Model'!MN9 -> 2188-08-31 | MN34: ='Financial Model'!MO9 -> 2189-02-28 | MO34: ='Financial Model'!MP9 -> 2189-08-31 | MP34: ='Financial Model'!MQ9 -> 2190-02-28 | MQ34: ='Financial Model'!MR9 -> 2190-08-31 | MR34: ='Financial Model'!MS9 -> 2191-02-28 | MS34: ='Financial Model'!MT9 -> 2191-08-31 | MT34: ='Financial Model'!MU9 -> 2192-02-29 | MU34: ='Financial Model'!MV9 -> 2192-08-31 | MV34: ='Financial Model'!MW9 -> 2193-02-28 | MW34: ='Financial Model'!MX9 -> 2193-08-31 | MX34: ='Financial Model'!MY9 -> 2194-02-28 | MY34: ='Financial Model'!MZ9 -> 2194-08-31 | MZ34: ='Financial Model'!NA9 -> 2195-02-28 | NA34: ='Financial Model'!NB9 -> 2195-08-31 | NB34: ='Financial Model'!NC9 -> 2196-02-29 | NC34: ='Financial Model'!ND9 -> 2196-08-31 | ND34: ='Financial Model'!NE9 -> 2197-02-28 | NE34: ='Financial Model'!NF9 -> 2197-08-31 | NF34: ='Financial Model'!NG9 -> 2198-02-28 | NG34: ='Financial Model'!NH9 -> 2198-08-31 | NH34: ='Financial Model'!NI9 -> 2199-02-28 | NI34: ='Financial Model'!NJ9 -> 2199-08-31 | NJ34: ='Financial Model'!NK9 -> 2200-02-28 | NK34: ='Financial Model'!NL9 -> 2200-08-31 | NL34: ='Financial Model'!NM9 -> 2201-02-28 | NM34: ='Financial Model'!NN9 -> 2201-08-31 | NN34: ='Financial Model'!NO9 -> 2202-02-28 | NO34: ='Financial Model'!NP9 -> 2202-08-31 | NP34: ='Financial Model'!NQ9 -> 2203-02-28 | NQ34: ='Financial Model'!NR9 -> 2203-08-31 | NR34: ='Financial Model'!NS9 -> 2204-02-29 | NS34: ='Financial Model'!NT9 -> 2204-08-31 | NT34: ='Financial Model'!NU9 -> 2205-02-28 | NU34: ='Financial Model'!NV9 -> 2205-08-31 | NV34: ='Financial Model'!NW9 -> 2206-02-28 | NW34: ='Financial Model'!NX9 -> 2206-08-31 | NX34: ='Financial Model'!NY9 -> 2207-02-28 | NY34: ='Financial Model'!NZ9 -> 2207-08-31 | NZ34: ='Financial Model'!OA9 -> 2208-02-29 | OA34: ='Financial Model'!OB9 -> 2208-08-31 | OB34: ='Financial Model'!OC9 -> 2209-02-28 | OC34: ='Financial Model'!OD9 -> 2209-08-31 | OD34: ='Financial Model'!OE9 -> 2210-02-28 | OE34: ='Financial Model'!OF9 -> 2210-08-31 | OF34: ='Financial Model'!OG9 -> 2211-02-28 | OG34: ='Financial Model'!OH9 -> 2211-08-31 | OH34: ='Financial Model'!OI9 -> 2212-02-29 | OI34: ='Financial Model'!OJ9 -> 2212-08-31 | OJ34: ='Financial Model'!OK9 -> 2213-02-28 | OK34: ='Financial Model'!OL9 -> 2213-08-31 | OL34: ='Financial Model'!OM9 -> 2214-02-28 | OM34: ='Financial Model'!ON9 -> 2214-08-31 | ON34: ='Financial Model'!OO9 -> 2215-02-28 | OO34: ='Financial Model'!OP9 -> 2215-08-31 | OP34: ='Financial Model'!OQ9 -> 2216-02-29 | OQ34: ='Financial Model'!OR9 -> 2216-08-31 | OR34: ='Financial Model'!OS9 -> 2217-02-28 | OS34: ='Financial Model'!OT9 -> 2217-08-31 | OT34: ='Financial Model'!OU9 -> 2218-02-28 | OU34: ='Financial Model'!OV9 -> 2218-08-31 | OV34: ='Financial Model'!OW9 -> 2219-02-28 | OW34: ='Financial Model'!OX9 -> 2219-08-31 | OX34: ='Financial Model'!OY9 -> 2220-02-29 | OY34: ='Financial Model'!OZ9 -> 2220-08-31 | OZ34: ='Financial Model'!PA9 -> 2221-02-28 | PA34: ='Financial Model'!PB9 -> 2221-08-31 | PB34: ='Financial Model'!PC9 -> 2222-02-28 | PC34: ='Financial Model'!PD9 -> 2222-08-31 | PD34: ='Financial Model'!PE9 -> 2223-02-28 | PE34: ='Financial Model'!PF9 -> 2223-08-31 | PF34: ='Financial Model'!PG9 -> 2224-02-29 | PG34: ='Financial Model'!PH9 -> 2224-08-31 | PH34: ='Financial Model'!PI9 -> 2225-02-28 | PI34: ='Financial Model'!PJ9 -> 2225-08-31 | PJ34: ='Financial Model'!PK9 -> 2226-02-28 | PK34: ='Financial Model'!PL9 -> 2226-08-31 | PL34: ='Financial Model'!PM9 -> 2227-02-28 | PM34: ='Financial Model'!PN9 -> 2227-08-31 | PN34: ='Financial Model'!PO9 -> 2228-02-29 | PO34: ='Financial Model'!PP9 -> 2228-08-31 | PP34: ='Financial Model'!PQ9 -> 2229-02-28 | PQ34: ='Financial Model'!PR9 -> 2229-08-31 | PR34: ='Financial Model'!PS9 -> 2230-02-28 | PS34: ='Financial Model'!PT9 -> 2230-08-31 | PT34: ='Financial Model'!PU9 -> 2231-02-28 | PU34: ='Financial Model'!PV9 -> 2231-08-31 | PV34: ='Financial Model'!PW9 -> 2232-02-29 | PW34: ='Financial Model'!PX9 -> 2232-08-31 | PX34: ='Financial Model'!PY9 -> 2233-02-28 | PY34: ='Financial Model'!PZ9 -> 2233-08-31 | PZ34: ='Financial Model'!QA9 -> 2234-02-28 | QA34: ='Financial Model'!QB9 -> 2234-08-31 | QB34: ='Financial Model'!QC9 -> 2235-02-28 | QC34: ='Financial Model'!QD9 -> 2235-08-31 | QD34: ='Financial Model'!QE9 -> 2236-02-29 | QE34: ='Financial Model'!QF9 -> 2236-08-31 | QF34: ='Financial Model'!QG9 -> 2237-02-28 | QG34: ='Financial Model'!QH9 -> 2237-08-31 | QH34: ='Financial Model'!QI9 -> 2238-02-28 | QI34: ='Financial Model'!QJ9 -> 2238-08-31 | QJ34: ='Financial Model'!QK9 -> 2239-02-28 | QK34: ='Financial Model'!QL9 -> 2239-08-31 | QL34: ='Financial Model'!QM9 -> 2240-02-29 | QM34: ='Financial Model'!QN9 -> 2240-08-31 | QN34: ='Financial Model'!QO9 -> 2241-02-28 | QO34: ='Financial Model'!QP9 -> 2241-08-31 | QP34: ='Financial Model'!QQ9 -> 2242-02-28 | QQ34: ='Financial Model'!QR9 -> 2242-08-31 | QR34: ='Financial Model'!QS9 -> 2243-02-28 | QS34: ='Financial Model'!QT9 -> 2243-08-31 | QT34: ='Financial Model'!QU9 -> 2244-02-29 | QU34: ='Financial Model'!QV9 -> 2244-08-31 | QV34: ='Financial Model'!QW9 -> 2245-02-28 | QW34: ='Financial Model'!QX9 -> 2245-08-31 | QX34: ='Financial Model'!QY9 -> 2246-02-28 | QY34: ='Financial Model'!QZ9 -> 2246-08-31 | QZ34: ='Financial Model'!RA9 -> 2247-02-28 | RA34: ='Financial Model'!RB9 -> 2247-08-31 | RB34: ='Financial Model'!RC9 -> 2248-02-29 | RC34: ='Financial Model'!RD9 -> 2248-08-31 | RD34: ='Financial Model'!RE9 -> 2249-02-28 | RE34: ='Financial Model'!RF9 -> 2249-08-31 | RF34: ='Financial Model'!RG9 -> 2250-02-28 | RG34: ='Financial Model'!RH9 -> 2250-08-31 | RH34: ='Financial Model'!RI9 -> 2251-02-28 | RI34: ='Financial Model'!RJ9 -> 2251-08-31 | RJ34: ='Financial Model'!RK9 -> 2252-02-29 | RK34: ='Financial Model'!RL9 -> 2252-08-31 | RL34: ='Financial Model'!RM9 -> 2253-02-28 | RM34: ='Financial Model'!RN9 -> 2253-08-31 | RN34: ='Financial Model'!RO9 -> 2254-02-28 | RO34: ='Financial Model'!RP9 -> 2254-08-31 | RP34: ='Financial Model'!RQ9 -> 2255-02-28 | RQ34: ='Financial Model'!RR9 -> 2255-08-31 | RR34: ='Financial Model'!RS9 -> 2256-02-29 | RS34: ='Financial Model'!RT9 -> 2256-08-31 | RT34: ='Financial Model'!RU9 -> 2257-02-28 | RU34: ='Financial Model'!RV9 -> 2257-08-31 | RV34: ='Financial Model'!RW9 -> 2258-02-28 | RW34: ='Financial Model'!RX9 -> 2258-08-31 | RX34: ='Financial Model'!RY9 -> 2259-02-28 | RY34: ='Financial Model'!RZ9 -> 2259-08-31 | RZ34: ='Financial Model'!SA9 -> 2260-02-29 | SA34: ='Financial Model'!SB9 -> 2260-08-31 | SB34: ='Financial Model'!SC9 -> 2261-02-28 | SC34: ='Financial Model'!SD9 -> 00:00:00 | SD34: ='Financial Model'!SE9 -> 00:00:00 | SE34: ='Financial Model'!SF9 -> 00:00:00 | SF34: ='Financial Model'!SG9 -> 00:00:00 | SG34: ='Financial Model'!SH9 -> 00:00:00 | SH34: ='Financial Model'!SI9 -> 00:00:00 | SI34: ='Financial Model'!SJ9 -> 00:00:00 | SJ34: ='Financial Model'!SK9 -> 00:00:00 | SK34: ='Financial Model'!SL9 -> 00:00:00 | SL34: ='Financial Model'!SM9 -> 00:00:00 | SM34: ='Financial Model'!SN9 -> 00:00:00 | SN34: ='Financial Model'!SO9 -> 00:00:00 | SO34: ='Financial Model'!SP9 -> 00:00:00 | SP34: ='Financial Model'!SQ9 -> 00:00:00 | SQ34: ='Financial Model'!SR9 -> 00:00:00 | SR34: ='Financial Model'!SS9 -> 00:00:00 | SS34: ='Financial Model'!ST9 -> 00:00:00 | ST34: ='Financial Model'!SU9 -> 00:00:00 | SU34: ='Financial Model'!SV9 -> 00:00:00 | SV34: ='Financial Model'!SW9 -> 00:00:00 | SW34: ='Financial Model'!SX9 -> 00:00:00 | SX34: ='Financial Model'!SY9 -> 00:00:00 | SY34: ='Financial Model'!SZ9 -> 00:00:00 | SZ34: ='Financial Model'!TA9 -> 00:00:00 | TA34: ='Financial Model'!TB9 -> 00:00:00 | TB34: ='Financial Model'!TC9 -> 00:00:00 | TC34: ='Financial Model'!TD9 -> 00:00:00 | TD34: ='Financial Model'!TE9 -> 00:00:00 | TE34: ='Financial Model'!TF9 -> 00:00:00 | TF34: ='Financial Model'!TG9 -> 00:00:00 | TG34: ='Financial Model'!TH9 -> 00:00:00 | TH34: ='Financial Model'!TI9 -> 00:00:00 | TI34: ='Financial Model'!TJ9 -> 00:00:00 | TJ34: ='Financial Model'!TK9 -> 00:00:00 | TK34: ='Financial Model'!TL9 -> 00:00:00 | TL34: ='Financial Model'!TM9 -> 00:00:00 | TM34: ='Financial Model'!TN9 -> 00:00:00 | TN34: ='Financial Model'!TO9 -> 00:00:00 | TO34: ='Financial Model'!TP9 -> 00:00:00 | TP34: ='Financial Model'!TQ9 -> 00:00:00 | TQ34: ='Financial Model'!TR9 -> 00:00:00 | TR34: ='Financial Model'!TS9 -> 00:00:00 | TS34: ='Financial Model'!TT9 -> 00:00:00 | TT34: ='Financial Model'!TU9 -> 00:00:00 | TU34: ='Financial Model'!TV9 -> 00:00:00 | TV34: ='Financial Model'!TW9 -> 00:00:00 | TW34: ='Financial Model'!TX9 -> 00:00:00 | TX34: ='Financial Model'!TY9 -> 00:00:00 | TY34: ='Financial Model'!TZ9 -> 00:00:00
F36: Month | G36: Average | H36: Pct of Yr
F37: 1 | G37: 269.8373797 | H37: 0.08418573867 | J37: =Find_Month(J$33,J$34,$F37) -> TRUE | K37: =Find_Month(K$33,K$34,$F37) -> FALSE | L37: =Find_Month(L$33,L$34,$F37) -> FALSE | M37: =Find_Month(M$33,M$34,$F37) -> FALSE | N37: =Find_Month(N$33,N$34,$F37) -> FALSE | O37: =Find_Month(O$33,O$34,$F37) -> FALSE | P37: =Find_Month(P$33,P$34,$F37) -> FALSE | Q37: =Find_Month(Q$33,Q$34,$F37) -> FALSE | R37: =Find_Month(R$33,R$34,$F37) -> FALSE | S37: =Find_Month(S$33,S$34,$F37) -> FALSE | T37: =Find_Month(T$33,T$34,$F37) -> FALSE | U37: =Find_Month(U$33,U$34,$F37) -> FALSE | V37: =Find_Month(V$33,V$34,$F37) -> TRUE | W37: =Find_Month(W$33,W$34,$F37) -> FALSE | X37: =Find_Month(X$33,X$34,$F37) -> FALSE | Y37: =Find_Month(Y$33,Y$34,$F37) -> FALSE | Z37: =Find_Month(Z$33,Z$34,$F37) -> FALSE | AA37: =Find_Month(AA$33,AA$34,$F37) -> FALSE | AB37: =Find_Month(AB$33,AB$34,$F37) -> FALSE | AC37: =Find_Month(AC$33,AC$34,$F37) -> FALSE | AD37: =Find_Month(AD$33,AD$34,$F37) -> TRUE | AE37: =Find_Month(AE$33,AE$34,$F37) -> FALSE | AF37: =Find_Month(AF$33,AF$34,$F37) -> TRUE | AG37: =Find_Month(AG$33,AG$34,$F37) -> FALSE | AH37: =Find_Month(AH$33,AH$34,$F37) -> TRUE | AI37: =Find_Month(AI$33,AI$34,$F37) -> FALSE | AJ37: =Find_Month(AJ$33,AJ$34,$F37) -> TRUE | AK37: =Find_Month(AK$33,AK$34,$F37) -> FALSE | AL37: =Find_Month(AL$33,AL$34,$F37) -> TRUE | AM37: =Find_Month(AM$33,AM$34,$F37) -> FALSE | AN37: =Find_Month(AN$33,AN$34,$F37) -> TRUE | AO37: =Find_Month(AO$33,AO$34,$F37) -> FALSE | AP37: =Find_Month(AP$33,AP$34,$F37) -> TRUE | AQ37: =Find_Month(AQ$33,AQ$34,$F37) -> FALSE | AR37: =Find_Month(AR$33,AR$34,$F37) -> TRUE | AS37: =Find_Month(AS$33,AS$34,$F37) -> FALSE | AT37: =Find_Month(AT$33,AT$34,$F37) -> TRUE | AU37: =Find_Month(AU$33,AU$34,$F37) -> FALSE | AV37: =Find_Month(AV$33,AV$34,$F37) -> TRUE | AW37: =Find_Month(AW$33,AW$34,$F37) -> FALSE | AX37: =Find_Month(AX$33,AX$34,$F37) -> TRUE | AY37: =Find_Month(AY$33,AY$34,$F37) -> FALSE | AZ37: =Find_Month(AZ$33,AZ$34,$F37) -> TRUE | BA37: =Find_Month(BA$33,BA$34,$F37) -> FALSE | BB37: =Find_Month(BB$33,BB$34,$F37) -> TRUE | BC37: =Find_Month(BC$33,BC$34,$F37) -> FALSE | BD37: =Find_Month(BD$33,BD$34,$F37) -> TRUE | BE37: =Find_Month(BE$33,BE$34,$F37) -> FALSE | BF37: =Find_Month(BF$33,BF$34,$F37) -> TRUE | BG37: =Find_Month(BG$33,BG$34,$F37) -> FALSE | BH37: =Find_Month(BH$33,BH$34,$F37) -> TRUE | BI37: =Find_Month(BI$33,BI$34,$F37) -> FALSE | BJ37: =Find_Month(BJ$33,BJ$34,$F37) -> TRUE | BK37: =Find_Month(BK$33,BK$34,$F37) -> FALSE | BL37: =Find_Month(BL$33,BL$34,$F37) -> TRUE | BM37: =Find_Month(BM$33,BM$34,$F37) -> FALSE | BN37: =Find_Month(BN$33,BN$34,$F37) -> TRUE | BO37: =Find_Month(BO$33,BO$34,$F37) -> FALSE | BP37: =Find_Month(BP$33,BP$34,$F37) -> TRUE | BQ37: =Find_Month(BQ$33,BQ$34,$F37) -> FALSE | BR37: =Find_Month(BR$33,BR$34,$F37) -> TRUE | BS37: =Find_Month(BS$33,BS$34,$F37) -> FALSE | BT37: =Find_Month(BT$33,BT$34,$F37) -> TRUE | BU37: =Find_Month(BU$33,BU$34,$F37) -> FALSE | BV37: =Find_Month(BV$33,BV$34,$F37) -> TRUE | BW37: =Find_Month(BW$33,BW$34,$F37) -> FALSE | BX37: =Find_Month(BX$33,BX$34,$F37) -> TRUE | BY37: =Find_Month(BY$33,BY$34,$F37) -> FALSE | BZ37: =Find_Month(BZ$33,BZ$34,$F37) -> TRUE | CA37: =Find_Month(CA$33,CA$34,$F37) -> FALSE | CB37: =Find_Month(CB$33,CB$34,$F37) -> TRUE | CC37: =Find_Month(CC$33,CC$34,$F37) -> FALSE | CD37: =Find_Month(CD$33,CD$34,$F37) -> TRUE | CE37: =Find_Month(CE$33,CE$34,$F37) -> FALSE | CF37: =Find_Month(CF$33,CF$34,$F37) -> TRUE | CG37: =Find_Month(CG$33,CG$34,$F37) -> FALSE | CH37: =Find_Month(CH$33,CH$34,$F37) -> TRUE | CI37: =Find_Month(CI$33,CI$34,$F37) -> FALSE | CJ37: =Find_Month(CJ$33,CJ$34,$F37) -> TRUE | CK37: =Find_Month(CK$33,CK$34,$F37) -> FALSE | CL37: =Find_Month(CL$33,CL$34,$F37) -> TRUE | CM37: =Find_Month(CM$33,CM$34,$F37) -> FALSE | CN37: =Find_Month(CN$33,CN$34,$F37) -> TRUE | CO37: =Find_Month(CO$33,CO$34,$F37) -> FALSE | CP37: =Find_Month(CP$33,CP$34,$F37) -> TRUE | CQ37: =Find_Month(CQ$33,CQ$34,$F37) -> FALSE | CR37: =Find_Month(CR$33,CR$34,$F37) -> TRUE | CS37: =Find_Month(CS$33,CS$34,$F37) -> FALSE | CT37: =Find_Month(CT$33,CT$34,$F37) -> TRUE | CU37: =Find_Month(CU$33,CU$34,$F37) -> FALSE | CV37: =Find_Month(CV$33,CV$34,$F37) -> TRUE | CW37: =Find_Month(CW$33,CW$34,$F37) -> FALSE | CX37: =Find_Month(CX$33,CX$34,$F37) -> TRUE | CY37: =Find_Month(CY$33,CY$34,$F37) -> FALSE | CZ37: =Find_Month(CZ$33,CZ$34,$F37) -> TRUE | DA37: =Find_Month(DA$33,DA$34,$F37) -> FALSE | DB37: =Find_Month(DB$33,DB$34,$F37) -> TRUE | DC37: =Find_Month(DC$33,DC$34,$F37) -> FALSE | DD37: =Find_Month(DD$33,DD$34,$F37) -> TRUE | DE37: =Find_Month(DE$33,DE$34,$F37) -> FALSE | DF37: =Find_Month(DF$33,DF$34,$F37) -> TRUE | DG37: =Find_Month(DG$33,DG$34,$F37) -> FALSE | DH37: =Find_Month(DH$33,DH$34,$F37) -> TRUE | DI37: =Find_Month(DI$33,DI$34,$F37) -> FALSE | DJ37: =Find_Month(DJ$33,DJ$34,$F37) -> TRUE | DK37: =Find_Month(DK$33,DK$34,$F37) -> FALSE | DL37: =Find_Month(DL$33,DL$34,$F37) -> TRUE | DM37: =Find_Month(DM$33,DM$34,$F37) -> FALSE | DN37: =Find_Month(DN$33,DN$34,$F37) -> TRUE | DO37: =Find_Month(DO$33,DO$34,$F37) -> FALSE | DP37: =Find_Month(DP$33,DP$34,$F37) -> TRUE | DQ37: =Find_Month(DQ$33,DQ$34,$F37) -> FALSE | DR37: =Find_Month(DR$33,DR$34,$F37) -> TRUE | DS37: =Find_Month(DS$33,DS$34,$F37) -> FALSE | DT37: =Find_Month(DT$33,DT$34,$F37) -> TRUE | DU37: =Find_Month(DU$33,DU$34,$F37) -> FALSE | DV37: =Find_Month(DV$33,DV$34,$F37) -> TRUE | DW37: =Find_Month(DW$33,DW$34,$F37) -> FALSE | DX37: =Find_Month(DX$33,DX$34,$F37) -> TRUE | DY37: =Find_Month(DY$33,DY$34,$F37) -> FALSE | DZ37: =Find_Month(DZ$33,DZ$34,$F37) -> TRUE | EA37: =Find_Month(EA$33,EA$34,$F37) -> FALSE | EB37: =Find_Month(EB$33,EB$34,$F37) -> TRUE | EC37: =Find_Month(EC$33,EC$34,$F37) -> FALSE | ED37: =Find_Month(ED$33,ED$34,$F37) -> TRUE | EE37: =Find_Month(EE$33,EE$34,$F37) -> FALSE | EF37: =Find_Month(EF$33,EF$34,$F37) -> TRUE | EG37: =Find_Month(EG$33,EG$34,$F37) -> FALSE | EH37: =Find_Month(EH$33,EH$34,$F37) -> TRUE | EI37: =Find_Month(EI$33,EI$34,$F37) -> FALSE | EJ37: =Find_Month(EJ$33,EJ$34,$F37) -> TRUE | EK37: =Find_Month(EK$33,EK$34,$F37) -> FALSE | EL37: =Find_Month(EL$33,EL$34,$F37) -> TRUE | EM37: =Find_Month(EM$33,EM$34,$F37) -> FALSE | EN37: =Find_Month(EN$33,EN$34,$F37) -> TRUE | EO37: =Find_Month(EO$33,EO$34,$F37) -> FALSE | EP37: =Find_Month(EP$33,EP$34,$F37) -> TRUE | EQ37: =Find_Month(EQ$33,EQ$34,$F37) -> FALSE | ER37: =Find_Month(ER$33,ER$34,$F37) -> TRUE | ES37: =Find_Month(ES$33,ES$34,$F37) -> FALSE | ET37: =Find_Month(ET$33,ET$34,$F37) -> TRUE | EU37: =Find_Month(EU$33,EU$34,$F37) -> FALSE | EV37: =Find_Month(EV$33,EV$34,$F37) -> TRUE | EW37: =Find_Month(EW$33,EW$34,$F37) -> FALSE | EX37: =Find_Month(EX$33,EX$34,$F37) -> TRUE | EY37: =Find_Month(EY$33,EY$34,$F37) -> FALSE | EZ37: =Find_Month(EZ$33,EZ$34,$F37) -> TRUE | FA37: =Find_Month(FA$33,FA$34,$F37) -> FALSE | FB37: =Find_Month(FB$33,FB$34,$F37) -> TRUE | FC37: =Find_Month(FC$33,FC$34,$F37) -> FALSE | FD37: =Find_Month(FD$33,FD$34,$F37) -> TRUE | FE37: =Find_Month(FE$33,FE$34,$F37) -> FALSE | FF37: =Find_Month(FF$33,FF$34,$F37) -> TRUE | FG37: =Find_Month(FG$33,FG$34,$F37) -> FALSE | FH37: =Find_Month(FH$33,FH$34,$F37) -> TRUE | FI37: =Find_Month(FI$33,FI$34,$F37) -> FALSE | FJ37: =Find_Month(FJ$33,FJ$34,$F37) -> TRUE | FK37: =Find_Month(FK$33,FK$34,$F37) -> FALSE | FL37: =Find_Month(FL$33,FL$34,$F37) -> TRUE | FM37: =Find_Month(FM$33,FM$34,$F37) -> FALSE | FN37: =Find_Month(FN$33,FN$34,$F37) -> TRUE | FO37: =Find_Month(FO$33,FO$34,$F37) -> FALSE | FP37: =Find_Month(FP$33,FP$34,$F37) -> TRUE | FQ37: =Find_Month(FQ$33,FQ$34,$F37) -> FALSE | FR37: =Find_Month(FR$33,FR$34,$F37) -> TRUE | FS37: =Find_Month(FS$33,FS$34,$F37) -> FALSE | FT37: =Find_Month(FT$33,FT$34,$F37) -> TRUE | FU37: =Find_Month(FU$33,FU$34,$F37) -> FALSE | FV37: =Find_Month(FV$33,FV$34,$F37) -> TRUE | FW37: =Find_Month(FW$33,FW$34,$F37) -> FALSE | FX37: =Find_Month(FX$33,FX$34,$F37) -> TRUE | FY37: =Find_Month(FY$33,FY$34,$F37) -> FALSE | FZ37: =Find_Month(FZ$33,FZ$34,$F37) -> TRUE | GA37: =Find_Month(GA$33,GA$34,$F37) -> FALSE | GB37: =Find_Month(GB$33,GB$34,$F37) -> TRUE | GC37: =Find_Month(GC$33,GC$34,$F37) -> FALSE | GD37: =Find_Month(GD$33,GD$34,$F37) -> TRUE | GE37: =Find_Month(GE$33,GE$34,$F37) -> FALSE | GF37: =Find_Month(GF$33,GF$34,$F37) -> TRUE | GG37: =Find_Month(GG$33,GG$34,$F37) -> FALSE | GH37: =Find_Month(GH$33,GH$34,$F37) -> TRUE | GI37: =Find_Month(GI$33,GI$34,$F37) -> FALSE | GJ37: =Find_Month(GJ$33,GJ$34,$F37) -> TRUE | GK37: =Find_Month(GK$33,GK$34,$F37) -> FALSE | GL37: =Find_Month(GL$33,GL$34,$F37) -> TRUE | GM37: =Find_Month(GM$33,GM$34,$F37) -> FALSE | GN37: =Find_Month(GN$33,GN$34,$F37) -> TRUE | GO37: =Find_Month(GO$33,GO$34,$F37) -> FALSE | GP37: =Find_Month(GP$33,GP$34,$F37) -> TRUE | GQ37: =Find_Month(GQ$33,GQ$34,$F37) -> FALSE | GR37: =Find_Month(GR$33,GR$34,$F37) -> TRUE | GS37: =Find_Month(GS$33,GS$34,$F37) -> FALSE | GT37: =Find_Month(GT$33,GT$34,$F37) -> TRUE | GU37: =Find_Month(GU$33,GU$34,$F37) -> FALSE | GV37: =Find_Month(GV$33,GV$34,$F37) -> TRUE | GW37: =Find_Month(GW$33,GW$34,$F37) -> FALSE | GX37: =Find_Month(GX$33,GX$34,$F37) -> TRUE | GY37: =Find_Month(GY$33,GY$34,$F37) -> FALSE | GZ37: =Find_Month(GZ$33,GZ$34,$F37) -> TRUE | HA37: =Find_Month(HA$33,HA$34,$F37) -> FALSE | HB37: =Find_Month(HB$33,HB$34,$F37) -> TRUE | HC37: =Find_Month(HC$33,HC$34,$F37) -> FALSE | HD37: =Find_Month(HD$33,HD$34,$F37) -> TRUE | HE37: =Find_Month(HE$33,HE$34,$F37) -> FALSE | HF37: =Find_Month(HF$33,HF$34,$F37) -> TRUE | HG37: =Find_Month(HG$33,HG$34,$F37) -> FALSE | HH37: =Find_Month(HH$33,HH$34,$F37) -> TRUE | HI37: =Find_Month(HI$33,HI$34,$F37) -> FALSE | HJ37: =Find_Month(HJ$33,HJ$34,$F37) -> TRUE | HK37: =Find_Month(HK$33,HK$34,$F37) -> FALSE | HL37: =Find_Month(HL$33,HL$34,$F37) -> TRUE | HM37: =Find_Month(HM$33,HM$34,$F37) -> FALSE | HN37: =Find_Month(HN$33,HN$34,$F37) -> TRUE | HO37: =Find_Month(HO$33,HO$34,$F37) -> FALSE | HP37: =Find_Month(HP$33,HP$34,$F37) -> TRUE | HQ37: =Find_Month(HQ$33,HQ$34,$F37) -> FALSE | HR37: =Find_Month(HR$33,HR$34,$F37) -> TRUE | HS37: =Find_Month(HS$33,HS$34,$F37) -> FALSE | HT37: =Find_Month(HT$33,HT$34,$F37) -> TRUE | HU37: =Find_Month(HU$33,HU$34,$F37) -> FALSE | HV37: =Find_Month(HV$33,HV$34,$F37) -> TRUE | HW37: =Find_Month(HW$33,HW$34,$F37) -> FALSE | HX37: =Find_Month(HX$33,HX$34,$F37) -> TRUE | HY37: =Find_Month(HY$33,HY$34,$F37) -> FALSE | HZ37: =Find_Month(HZ$33,HZ$34,$F37) -> TRUE | IA37: =Find_Month(IA$33,IA$34,$F37) -> FALSE | IB37: =Find_Month(IB$33,IB$34,$F37) -> TRUE | IC37: =Find_Month(IC$33,IC$34,$F37) -> FALSE | ID37: =Find_Month(ID$33,ID$34,$F37) -> TRUE | IE37: =Find_Month(IE$33,IE$34,$F37) -> FALSE | IF37: =Find_Month(IF$33,IF$34,$F37) -> TRUE | IG37: =Find_Month(IG$33,IG$34,$F37) -> FALSE | IH37: =Find_Month(IH$33,IH$34,$F37) -> TRUE | II37: =Find_Month(II$33,II$34,$F37) -> FALSE | IJ37: =Find_Month(IJ$33,IJ$34,$F37) -> TRUE | IK37: =Find_Month(IK$33,IK$34,$F37) -> FALSE | IL37: =Find_Month(IL$33,IL$34,$F37) -> TRUE | IM37: =Find_Month(IM$33,IM$34,$F37) -> FALSE | IN37: =Find_Month(IN$33,IN$34,$F37) -> TRUE | IO37: =Find_Month(IO$33,IO$34,$F37) -> FALSE | IP37: =Find_Month(IP$33,IP$34,$F37) -> TRUE | IQ37: =Find_Month(IQ$33,IQ$34,$F37) -> FALSE | IR37: =Find_Month(IR$33,IR$34,$F37) -> TRUE | IS37: =Find_Month(IS$33,IS$34,$F37) -> FALSE | IT37: =Find_Month(IT$33,IT$34,$F37) -> TRUE | IU37: =Find_Month(IU$33,IU$34,$F37) -> FALSE | IV37: =Find_Month(IV$33,IV$34,$F37) -> TRUE | IW37: =Find_Month(IW$33,IW$34,$F37) -> FALSE | IX37: =Find_Month(IX$33,IX$34,$F37) -> TRUE | IY37: =Find_Month(IY$33,IY$34,$F37) -> FALSE | IZ37: =Find_Month(IZ$33,IZ$34,$F37) -> TRUE | JA37: =Find_Month(JA$33,JA$34,$F37) -> FALSE | JB37: =Find_Month(JB$33,JB$34,$F37) -> TRUE | JC37: =Find_Month(JC$33,JC$34,$F37) -> FALSE | JD37: =Find_Month(JD$33,JD$34,$F37) -> TRUE | JE37: =Find_Month(JE$33,JE$34,$F37) -> FALSE | JF37: =Find_Month(JF$33,JF$34,$F37) -> TRUE | JG37: =Find_Month(JG$33,JG$34,$F37) -> FALSE | JH37: =Find_Month(JH$33,JH$34,$F37) -> TRUE | JI37: =Find_Month(JI$33,JI$34,$F37) -> FALSE | JJ37: =Find_Month(JJ$33,JJ$34,$F37) -> TRUE | JK37: =Find_Month(JK$33,JK$34,$F37) -> FALSE | JL37: =Find_Month(JL$33,JL$34,$F37) -> TRUE | JM37: =Find_Month(JM$33,JM$34,$F37) -> FALSE | JN37: =Find_Month(JN$33,JN$34,$F37) -> TRUE | JO37: =Find_Month(JO$33,JO$34,$F37) -> FALSE | JP37: =Find_Month(JP$33,JP$34,$F37) -> TRUE | JQ37: =Find_Month(JQ$33,JQ$34,$F37) -> FALSE | JR37: =Find_Month(JR$33,JR$34,$F37) -> TRUE | JS37: =Find_Month(JS$33,JS$34,$F37) -> FALSE | JT37: =Find_Month(JT$33,JT$34,$F37) -> TRUE | JU37: =Find_Month(JU$33,JU$34,$F37) -> FALSE | JV37: =Find_Month(JV$33,JV$34,$F37) -> TRUE | JW37: =Find_Month(JW$33,JW$34,$F37) -> FALSE | JX37: =Find_Month(JX$33,JX$34,$F37) -> TRUE | JY37: =Find_Month(JY$33,JY$34,$F37) -> FALSE | JZ37: =Find_Month(JZ$33,JZ$34,$F37) -> TRUE | KA37: =Find_Month(KA$33,KA$34,$F37) -> FALSE | KB37: =Find_Month(KB$33,KB$34,$F37) -> TRUE | KC37: =Find_Month(KC$33,KC$34,$F37) -> FALSE | KD37: =Find_Month(KD$33,KD$34,$F37) -> TRUE | KE37: =Find_Month(KE$33,KE$34,$F37) -> FALSE | KF37: =Find_Month(KF$33,KF$34,$F37) -> TRUE | KG37: =Find_Month(KG$33,KG$34,$F37) -> FALSE | KH37: =Find_Month(KH$33,KH$34,$F37) -> TRUE | KI37: =Find_Month(KI$33,KI$34,$F37) -> FALSE | KJ37: =Find_Month(KJ$33,KJ$34,$F37) -> TRUE | KK37: =Find_Month(KK$33,KK$34,$F37) -> FALSE | KL37: =Find_Month(KL$33,KL$34,$F37) -> TRUE | KM37: =Find_Month(KM$33,KM$34,$F37) -> FALSE | KN37: =Find_Month(KN$33,KN$34,$F37) -> TRUE | KO37: =Find_Month(KO$33,KO$34,$F37) -> FALSE | KP37: =Find_Month(KP$33,KP$34,$F37) -> TRUE | KQ37: =Find_Month(KQ$33,KQ$34,$F37) -> FALSE | KR37: =Find_Month(KR$33,KR$34,$F37) -> TRUE | KS37: =Find_Month(KS$33,KS$34,$F37) -> FALSE | KT37: =Find_Month(KT$33,KT$34,$F37) -> TRUE | KU37: =Find_Month(KU$33,KU$34,$F37) -> FALSE | KV37: =Find_Month(KV$33,KV$34,$F37) -> TRUE | KW37: =Find_Month(KW$33,KW$34,$F37) -> FALSE | KX37: =Find_Month(KX$33,KX$34,$F37) -> TRUE | KY37: =Find_Month(KY$33,KY$34,$F37) -> FALSE | KZ37: =Find_Month(KZ$33,KZ$34,$F37) -> TRUE | LA37: =Find_Month(LA$33,LA$34,$F37) -> FALSE | LB37: =Find_Month(LB$33,LB$34,$F37) -> TRUE | LC37: =Find_Month(LC$33,LC$34,$F37) -> FALSE | LD37: =Find_Month(LD$33,LD$34,$F37) -> TRUE | LE37: =Find_Month(LE$33,LE$34,$F37) -> FALSE | LF37: =Find_Month(LF$33,LF$34,$F37) -> TRUE | LG37: =Find_Month(LG$33,LG$34,$F37) -> FALSE | LH37: =Find_Month(LH$33,LH$34,$F37) -> TRUE | LI37: =Find_Month(LI$33,LI$34,$F37) -> FALSE | LJ37: =Find_Month(LJ$33,LJ$34,$F37) -> TRUE | LK37: =Find_Month(LK$33,LK$34,$F37) -> FALSE | LL37: =Find_Month(LL$33,LL$34,$F37) -> TRUE | LM37: =Find_Month(LM$33,LM$34,$F37) -> FALSE | LN37: =Find_Month(LN$33,LN$34,$F37) -> TRUE | LO37: =Find_Month(LO$33,LO$34,$F37) -> FALSE | LP37: =Find_Month(LP$33,LP$34,$F37) -> TRUE | LQ37: =Find_Month(LQ$33,LQ$34,$F37) -> FALSE | LR37: =Find_Month(LR$33,LR$34,$F37) -> TRUE | LS37: =Find_Month(LS$33,LS$34,$F37) -> FALSE | LT37: =Find_Month(LT$33,LT$34,$F37) -> TRUE | LU37: =Find_Month(LU$33,LU$34,$F37) -> FALSE | LV37: =Find_Month(LV$33,LV$34,$F37) -> TRUE | LW37: =Find_Month(LW$33,LW$34,$F37) -> FALSE | LX37: =Find_Month(LX$33,LX$34,$F37) -> TRUE | LY37: =Find_Month(LY$33,LY$34,$F37) -> FALSE | LZ37: =Find_Month(LZ$33,LZ$34,$F37) -> TRUE | MA37: =Find_Month(MA$33,MA$34,$F37) -> FALSE | MB37: =Find_Month(MB$33,MB$34,$F37) -> TRUE | MC37: =Find_Month(MC$33,MC$34,$F37) -> FALSE | MD37: =Find_Month(MD$33,MD$34,$F37) -> TRUE | ME37: =Find_Month(ME$33,ME$34,$F37) -> FALSE | MF37: =Find_Month(MF$33,MF$34,$F37) -> TRUE | MG37: =Find_Month(MG$33,MG$34,$F37) -> FALSE | MH37: =Find_Month(MH$33,MH$34,$F37) -> TRUE | MI37: =Find_Month(MI$33,MI$34,$F37) -> FALSE | MJ37: =Find_Month(MJ$33,MJ$34,$F37) -> TRUE | MK37: =Find_Month(MK$33,MK$34,$F37) -> FALSE | ML37: =Find_Month(ML$33,ML$34,$F37) -> TRUE | MM37: =Find_Month(MM$33,MM$34,$F37) -> FALSE | MN37: =Find_Month(MN$33,MN$34,$F37) -> TRUE | MO37: =Find_Month(MO$33,MO$34,$F37) -> FALSE | MP37: =Find_Month(MP$33,MP$34,$F37) -> TRUE | MQ37: =Find_Month(MQ$33,MQ$34,$F37) -> FALSE | MR37: =Find_Month(MR$33,MR$34,$F37) -> TRUE | MS37: =Find_Month(MS$33,MS$34,$F37) -> FALSE | MT37: =Find_Month(MT$33,MT$34,$F37) -> TRUE | MU37: =Find_Month(MU$33,MU$34,$F37) -> FALSE | MV37: =Find_Month(MV$33,MV$34,$F37) -> TRUE | MW37: =Find_Month(MW$33,MW$34,$F37) -> FALSE | MX37: =Find_Month(MX$33,MX$34,$F37) -> TRUE | MY37: =Find_Month(MY$33,MY$34,$F37) -> FALSE | MZ37: =Find_Month(MZ$33,MZ$34,$F37) -> TRUE | NA37: =Find_Month(NA$33,NA$34,$F37) -> FALSE | NB37: =Find_Month(NB$33,NB$34,$F37) -> TRUE | NC37: =Find_Month(NC$33,NC$34,$F37) -> FALSE | ND37: =Find_Month(ND$33,ND$34,$F37) -> TRUE | NE37: =Find_Month(NE$33,NE$34,$F37) -> FALSE | NF37: =Find_Month(NF$33,NF$34,$F37) -> TRUE | NG37: =Find_Month(NG$33,NG$34,$F37) -> FALSE | NH37: =Find_Month(NH$33,NH$34,$F37) -> TRUE | NI37: =Find_Month(NI$33,NI$34,$F37) -> FALSE | NJ37: =Find_Month(NJ$33,NJ$34,$F37) -> TRUE | NK37: =Find_Month(NK$33,NK$34,$F37) -> FALSE | NL37: =Find_Month(NL$33,NL$34,$F37) -> TRUE | NM37: =Find_Month(NM$33,NM$34,$F37) -> FALSE | NN37: =Find_Month(NN$33,NN$34,$F37) -> TRUE | NO37: =Find_Month(NO$33,NO$34,$F37) -> FALSE | NP37: =Find_Month(NP$33,NP$34,$F37) -> TRUE | NQ37: =Find_Month(NQ$33,NQ$34,$F37) -> FALSE | NR37: =Find_Month(NR$33,NR$34,$F37) -> TRUE | NS37: =Find_Month(NS$33,NS$34,$F37) -> FALSE | NT37: =Find_Month(NT$33,NT$34,$F37) -> TRUE | NU37: =Find_Month(NU$33,NU$34,$F37) -> FALSE | NV37: =Find_Month(NV$33,NV$34,$F37) -> TRUE | NW37: =Find_Month(NW$33,NW$34,$F37) -> FALSE | NX37: =Find_Month(NX$33,NX$34,$F37) -> TRUE | NY37: =Find_Month(NY$33,NY$34,$F37) -> FALSE | NZ37: =Find_Month(NZ$33,NZ$34,$F37) -> TRUE | OA37: =Find_Month(OA$33,OA$34,$F37) -> FALSE | OB37: =Find_Month(OB$33,OB$34,$F37) -> TRUE | OC37: =Find_Month(OC$33,OC$34,$F37) -> FALSE | OD37: =Find_Month(OD$33,OD$34,$F37) -> TRUE | OE37: =Find_Month(OE$33,OE$34,$F37) -> FALSE | OF37: =Find_Month(OF$33,OF$34,$F37) -> TRUE | OG37: =Find_Month(OG$33,OG$34,$F37) -> FALSE | OH37: =Find_Month(OH$33,OH$34,$F37) -> TRUE | OI37: =Find_Month(OI$33,OI$34,$F37) -> FALSE | OJ37: =Find_Month(OJ$33,OJ$34,$F37) -> TRUE | OK37: =Find_Month(OK$33,OK$34,$F37) -> FALSE | OL37: =Find_Month(OL$33,OL$34,$F37) -> TRUE | OM37: =Find_Month(OM$33,OM$34,$F37) -> FALSE | ON37: =Find_Month(ON$33,ON$34,$F37) -> TRUE | OO37: =Find_Month(OO$33,OO$34,$F37) -> FALSE | OP37: =Find_Month(OP$33,OP$34,$F37) -> TRUE | OQ37: =Find_Month(OQ$33,OQ$34,$F37) -> FALSE | OR37: =Find_Month(OR$33,OR$34,$F37) -> TRUE | OS37: =Find_Month(OS$33,OS$34,$F37) -> FALSE | OT37: =Find_Month(OT$33,OT$34,$F37) -> TRUE | OU37: =Find_Month(OU$33,OU$34,$F37) -> FALSE | OV37: =Find_Month(OV$33,OV$34,$F37) -> TRUE | OW37: =Find_Month(OW$33,OW$34,$F37) -> FALSE | OX37: =Find_Month(OX$33,OX$34,$F37) -> TRUE | OY37: =Find_Month(OY$33,OY$34,$F37) -> FALSE | OZ37: =Find_Month(OZ$33,OZ$34,$F37) -> TRUE | PA37: =Find_Month(PA$33,PA$34,$F37) -> FALSE | PB37: =Find_Month(PB$33,PB$34,$F37) -> TRUE | PC37: =Find_Month(PC$33,PC$34,$F37) -> FALSE | PD37: =Find_Month(PD$33,PD$34,$F37) -> TRUE | PE37: =Find_Month(PE$33,PE$34,$F37) -> FALSE | PF37: =Find_Month(PF$33,PF$34,$F37) -> TRUE | PG37: =Find_Month(PG$33,PG$34,$F37) -> FALSE | PH37: =Find_Month(PH$33,PH$34,$F37) -> TRUE | PI37: =Find_Month(PI$33,PI$34,$F37) -> FALSE | PJ37: =Find_Month(PJ$33,PJ$34,$F37) -> TRUE | PK37: =Find_Month(PK$33,PK$34,$F37) -> FALSE | PL37: =Find_Month(PL$33,PL$34,$F37) -> TRUE | PM37: =Find_Month(PM$33,PM$34,$F37) -> FALSE | PN37: =Find_Month(PN$33,PN$34,$F37) -> TRUE | PO37: =Find_Month(PO$33,PO$34,$F37) -> FALSE | PP37: =Find_Month(PP$33,PP$34,$F37) -> TRUE | PQ37: =Find_Month(PQ$33,PQ$34,$F37) -> FALSE | PR37: =Find_Month(PR$33,PR$34,$F37) -> TRUE | PS37: =Find_Month(PS$33,PS$34,$F37) -> FALSE | PT37: =Find_Month(PT$33,PT$34,$F37) -> TRUE | PU37: =Find_Month(PU$33,PU$34,$F37) -> FALSE | PV37: =Find_Month(PV$33,PV$34,$F37) -> TRUE | PW37: =Find_Month(PW$33,PW$34,$F37) -> FALSE | PX37: =Find_Month(PX$33,PX$34,$F37) -> TRUE | PY37: =Find_Month(PY$33,PY$34,$F37) -> FALSE | PZ37: =Find_Month(PZ$33,PZ$34,$F37) -> TRUE | QA37: =Find_Month(QA$33,QA$34,$F37) -> FALSE | QB37: =Find_Month(QB$33,QB$34,$F37) -> TRUE | QC37: =Find_Month(QC$33,QC$34,$F37) -> FALSE | QD37: =Find_Month(QD$33,QD$34,$F37) -> TRUE | QE37: =Find_Month(QE$33,QE$34,$F37) -> FALSE | QF37: =Find_Month(QF$33,QF$34,$F37) -> TRUE | QG37: =Find_Month(QG$33,QG$34,$F37) -> FALSE | QH37: =Find_Month(QH$33,QH$34,$F37) -> TRUE | QI37: =Find_Month(QI$33,QI$34,$F37) -> FALSE | QJ37: =Find_Month(QJ$33,QJ$34,$F37) -> TRUE | QK37: =Find_Month(QK$33,QK$34,$F37) -> FALSE | QL37: =Find_Month(QL$33,QL$34,$F37) -> TRUE | QM37: =Find_Month(QM$33,QM$34,$F37) -> FALSE | QN37: =Find_Month(QN$33,QN$34,$F37) -> TRUE | QO37: =Find_Month(QO$33,QO$34,$F37) -> FALSE | QP37: =Find_Month(QP$33,QP$34,$F37) -> TRUE | QQ37: =Find_Month(QQ$33,QQ$34,$F37) -> FALSE | QR37: =Find_Month(QR$33,QR$34,$F37) -> TRUE | QS37: =Find_Month(QS$33,QS$34,$F37) -> FALSE | QT37: =Find_Month(QT$33,QT$34,$F37) -> TRUE | QU37: =Find_Month(QU$33,QU$34,$F37) -> FALSE | QV37: =Find_Month(QV$33,QV$34,$F37) -> TRUE | QW37: =Find_Month(QW$33,QW$34,$F37) -> FALSE | QX37: =Find_Month(QX$33,QX$34,$F37) -> TRUE | QY37: =Find_Month(QY$33,QY$34,$F37) -> FALSE | QZ37: =Find_Month(QZ$33,QZ$34,$F37) -> TRUE | RA37: =Find_Month(RA$33,RA$34,$F37) -> FALSE | RB37: =Find_Month(RB$33,RB$34,$F37) -> TRUE | RC37: =Find_Month(RC$33,RC$34,$F37) -> FALSE | RD37: =Find_Month(RD$33,RD$34,$F37) -> TRUE | RE37: =Find_Month(RE$33,RE$34,$F37) -> FALSE | RF37: =Find_Month(RF$33,RF$34,$F37) -> TRUE | RG37: =Find_Month(RG$33,RG$34,$F37) -> FALSE | RH37: =Find_Month(RH$33,RH$34,$F37) -> TRUE | RI37: =Find_Month(RI$33,RI$34,$F37) -> FALSE | RJ37: =Find_Month(RJ$33,RJ$34,$F37) -> TRUE | RK37: =Find_Month(RK$33,RK$34,$F37) -> FALSE | RL37: =Find_Month(RL$33,RL$34,$F37) -> TRUE | RM37: =Find_Month(RM$33,RM$34,$F37) -> FALSE | RN37: =Find_Month(RN$33,RN$34,$F37) -> TRUE | RO37: =Find_Month(RO$33,RO$34,$F37) -> FALSE | RP37: =Find_Month(RP$33,RP$34,$F37) -> TRUE | RQ37: =Find_Month(RQ$33,RQ$34,$F37) -> FALSE | RR37: =Find_Month(RR$33,RR$34,$F37) -> TRUE | RS37: =Find_Month(RS$33,RS$34,$F37) -> FALSE | RT37: =Find_Month(RT$33,RT$34,$F37) -> TRUE | RU37: =Find_Month(RU$33,RU$34,$F37) -> FALSE | RV37: =Find_Month(RV$33,RV$34,$F37) -> TRUE | RW37: =Find_Month(RW$33,RW$34,$F37) -> FALSE | RX37: =Find_Month(RX$33,RX$34,$F37) -> TRUE | RY37: =Find_Month(RY$33,RY$34,$F37) -> FALSE | RZ37: =Find_Month(RZ$33,RZ$34,$F37) -> TRUE | SA37: =Find_Month(SA$33,SA$34,$F37) -> FALSE | SB37: =Find_Month(SB$33,SB$34,$F37) -> TRUE | SC37: =Find_Month(SC$33,SC$34,$F37) -> FALSE | SD37: =Find_Month(SD$33,SD$34,$F37) -> FALSE | SE37: =Find_Month(SE$33,SE$34,$F37) -> FALSE | SF37: =Find_Month(SF$33,SF$34,$F37) -> FALSE | SG37: =Find_Month(SG$33,SG$34,$F37) -> FALSE | SH37: =Find_Month(SH$33,SH$34,$F37) -> FALSE | SI37: =Find_Month(SI$33,SI$34,$F37) -> FALSE | SJ37: =Find_Month(SJ$33,SJ$34,$F37) -> FALSE | SK37: =Find_Month(SK$33,SK$34,$F37) -> FALSE | SL37: =Find_Month(SL$33,SL$34,$F37) -> FALSE | SM37: =Find_Month(SM$33,SM$34,$F37) -> FALSE | SN37: =Find_Month(SN$33,SN$34,$F37) -> FALSE | SO37: =Find_Month(SO$33,SO$34,$F37) -> FALSE | SP37: =Find_Month(SP$33,SP$34,$F37) -> FALSE | SQ37: =Find_Month(SQ$33,SQ$34,$F37) -> FALSE | SR37: =Find_Month(SR$33,SR$34,$F37) -> FALSE | SS37: =Find_Month(SS$33,SS$34,$F37) -> FALSE | ST37: =Find_Month(ST$33,ST$34,$F37) -> FALSE | SU37: =Find_Month(SU$33,SU$34,$F37) -> FALSE | SV37: =Find_Month(SV$33,SV$34,$F37) -> FALSE | SW37: =Find_Month(SW$33,SW$34,$F37) -> FALSE | SX37: =Find_Month(SX$33,SX$34,$F37) -> FALSE | SY37: =Find_Month(SY$33,SY$34,$F37) -> FALSE | SZ37: =Find_Month(SZ$33,SZ$34,$F37) -> FALSE | TA37: =Find_Month(TA$33,TA$34,$F37) -> FALSE | TB37: =Find_Month(TB$33,TB$34,$F37) -> FALSE | TC37: =Find_Month(TC$33,TC$34,$F37) -> FALSE | TD37: =Find_Month(TD$33,TD$34,$F37) -> FALSE | TE37: =Find_Month(TE$33,TE$34,$F37) -> FALSE | TF37: =Find_Month(TF$33,TF$34,$F37) -> FALSE | TG37: =Find_Month(TG$33,TG$34,$F37) -> FALSE | TH37: =Find_Month(TH$33,TH$34,$F37) -> FALSE | TI37: =Find_Month(TI$33,TI$34,$F37) -> FALSE | TJ37: =Find_Month(TJ$33,TJ$34,$F37) -> FALSE | TK37: =Find_Month(TK$33,TK$34,$F37) -> FALSE | TL37: =Find_Month(TL$33,TL$34,$F37) -> FALSE | TM37: =Find_Month(TM$33,TM$34,$F37) -> FALSE | TN37: =Find_Month(TN$33,TN$34,$F37) -> FALSE | TO37: =Find_Month(TO$33,TO$34,$F37) -> FALSE | TP37: =Find_Month(TP$33,TP$34,$F37) -> FALSE | TQ37: =Find_Month(TQ$33,TQ$34,$F37) -> FALSE | TR37: =Find_Month(TR$33,TR$34,$F37) -> FALSE | TS37: =Find_Month(TS$33,TS$34,$F37) -> FALSE | TT37: =Find_Month(TT$33,TT$34,$F37) -> FALSE | TU37: =Find_Month(TU$33,TU$34,$F37) -> FALSE | TV37: =Find_Month(TV$33,TV$34,$F37) -> FALSE | TW37: =Find_Month(TW$33,TW$34,$F37) -> FALSE | TX37: =Find_Month(TX$33,TX$34,$F37) -> FALSE | TY37: =Find_Month(TY$33,TY$34,$F37) -> FALSE
F38: 2 | G38: 289.8354011 | H38: 0.09042486019 | J38: =Find_Month(J$33,J$34,$F38) -> FALSE | K38: =Find_Month(K$33,K$34,$F38) -> TRUE | L38: =Find_Month(L$33,L$34,$F38) -> FALSE | M38: =Find_Month(M$33,M$34,$F38) -> FALSE | N38: =Find_Month(N$33,N$34,$F38) -> FALSE | O38: =Find_Month(O$33,O$34,$F38) -> FALSE | P38: =Find_Month(P$33,P$34,$F38) -> FALSE | Q38: =Find_Month(Q$33,Q$34,$F38) -> FALSE | R38: =Find_Month(R$33,R$34,$F38) -> FALSE | S38: =Find_Month(S$33,S$34,$F38) -> FALSE | T38: =Find_Month(T$33,T$34,$F38) -> FALSE | U38: =Find_Month(U$33,U$34,$F38) -> FALSE | V38: =Find_Month(V$33,V$34,$F38) -> FALSE | W38: =Find_Month(W$33,W$34,$F38) -> TRUE | X38: =Find_Month(X$33,X$34,$F38) -> FALSE | Y38: =Find_Month(Y$33,Y$34,$F38) -> FALSE | Z38: =Find_Month(Z$33,Z$34,$F38) -> FALSE | AA38: =Find_Month(AA$33,AA$34,$F38) -> FALSE | AB38: =Find_Month(AB$33,AB$34,$F38) -> FALSE | AC38: =Find_Month(AC$33,AC$34,$F38) -> FALSE | AD38: =Find_Month(AD$33,AD$34,$F38) -> TRUE | AE38: =Find_Month(AE$33,AE$34,$F38) -> FALSE | AF38: =Find_Month(AF$33,AF$34,$F38) -> TRUE | AG38: =Find_Month(AG$33,AG$34,$F38) -> FALSE | AH38: =Find_Month(AH$33,AH$34,$F38) -> TRUE | AI38: =Find_Month(AI$33,AI$34,$F38) -> FALSE | AJ38: =Find_Month(AJ$33,AJ$34,$F38) -> TRUE | AK38: =Find_Month(AK$33,AK$34,$F38) -> FALSE | AL38: =Find_Month(AL$33,AL$34,$F38) -> TRUE | AM38: =Find_Month(AM$33,AM$34,$F38) -> FALSE | AN38: =Find_Month(AN$33,AN$34,$F38) -> TRUE | AO38: =Find_Month(AO$33,AO$34,$F38) -> FALSE | AP38: =Find_Month(AP$33,AP$34,$F38) -> TRUE | AQ38: =Find_Month(AQ$33,AQ$34,$F38) -> FALSE | AR38: =Find_Month(AR$33,AR$34,$F38) -> TRUE | AS38: =Find_Month(AS$33,AS$34,$F38) -> FALSE | AT38: =Find_Month(AT$33,AT$34,$F38) -> TRUE | AU38: =Find_Month(AU$33,AU$34,$F38) -> FALSE | AV38: =Find_Month(AV$33,AV$34,$F38) -> TRUE | AW38: =Find_Month(AW$33,AW$34,$F38) -> FALSE | AX38: =Find_Month(AX$33,AX$34,$F38) -> TRUE | AY38: =Find_Month(AY$33,AY$34,$F38) -> FALSE | AZ38: =Find_Month(AZ$33,AZ$34,$F38) -> TRUE | BA38: =Find_Month(BA$33,BA$34,$F38) -> FALSE | BB38: =Find_Month(BB$33,BB$34,$F38) -> TRUE | BC38: =Find_Month(BC$33,BC$34,$F38) -> FALSE | BD38: =Find_Month(BD$33,BD$34,$F38) -> TRUE | BE38: =Find_Month(BE$33,BE$34,$F38) -> FALSE | BF38: =Find_Month(BF$33,BF$34,$F38) -> TRUE | BG38: =Find_Month(BG$33,BG$34,$F38) -> FALSE | BH38: =Find_Month(BH$33,BH$34,$F38) -> TRUE | BI38: =Find_Month(BI$33,BI$34,$F38) -> FALSE | BJ38: =Find_Month(BJ$33,BJ$34,$F38) -> TRUE | BK38: =Find_Month(BK$33,BK$34,$F38) -> FALSE | BL38: =Find_Month(BL$33,BL$34,$F38) -> TRUE | BM38: =Find_Month(BM$33,BM$34,$F38) -> FALSE | BN38: =Find_Month(BN$33,BN$34,$F38) -> TRUE | BO38: =Find_Month(BO$33,BO$34,$F38) -> FALSE | BP38: =Find_Month(BP$33,BP$34,$F38) -> TRUE | BQ38: =Find_Month(BQ$33,BQ$34,$F38) -> FALSE | BR38: =Find_Month(BR$33,BR$34,$F38) -> TRUE | BS38: =Find_Month(BS$33,BS$34,$F38) -> FALSE | BT38: =Find_Month(BT$33,BT$34,$F38) -> TRUE | BU38: =Find_Month(BU$33,BU$34,$F38) -> FALSE | BV38: =Find_Month(BV$33,BV$34,$F38) -> TRUE | BW38: =Find_Month(BW$33,BW$34,$F38) -> FALSE | BX38: =Find_Month(BX$33,BX$34,$F38) -> TRUE | BY38: =Find_Month(BY$33,BY$34,$F38) -> FALSE | BZ38: =Find_Month(BZ$33,BZ$34,$F38) -> TRUE | CA38: =Find_Month(CA$33,CA$34,$F38) -> FALSE | CB38: =Find_Month(CB$33,CB$34,$F38) -> TRUE | CC38: =Find_Month(CC$33,CC$34,$F38) -> FALSE | CD38: =Find_Month(CD$33,CD$34,$F38) -> TRUE | CE38: =Find_Month(CE$33,CE$34,$F38) -> FALSE | CF38: =Find_Month(CF$33,CF$34,$F38) -> TRUE | CG38: =Find_Month(CG$33,CG$34,$F38) -> FALSE | CH38: =Find_Month(CH$33,CH$34,$F38) -> TRUE | CI38: =Find_Month(CI$33,CI$34,$F38) -> FALSE | CJ38: =Find_Month(CJ$33,CJ$34,$F38) -> TRUE | CK38: =Find_Month(CK$33,CK$34,$F38) -> FALSE | CL38: =Find_Month(CL$33,CL$34,$F38) -> TRUE | CM38: =Find_Month(CM$33,CM$34,$F38) -> FALSE | CN38: =Find_Month(CN$33,CN$34,$F38) -> TRUE | CO38: =Find_Month(CO$33,CO$34,$F38) -> FALSE | CP38: =Find_Month(CP$33,CP$34,$F38) -> TRUE | CQ38: =Find_Month(CQ$33,CQ$34,$F38) -> FALSE | CR38: =Find_Month(CR$33,CR$34,$F38) -> TRUE | CS38: =Find_Month(CS$33,CS$34,$F38) -> FALSE | CT38: =Find_Month(CT$33,CT$34,$F38) -> TRUE | CU38: =Find_Month(CU$33,CU$34,$F38) -> FALSE | CV38: =Find_Month(CV$33,CV$34,$F38) -> TRUE | CW38: =Find_Month(CW$33,CW$34,$F38) -> FALSE | CX38: =Find_Month(CX$33,CX$34,$F38) -> TRUE | CY38: =Find_Month(CY$33,CY$34,$F38) -> FALSE | CZ38: =Find_Month(CZ$33,CZ$34,$F38) -> TRUE | DA38: =Find_Month(DA$33,DA$34,$F38) -> FALSE | DB38: =Find_Month(DB$33,DB$34,$F38) -> TRUE | DC38: =Find_Month(DC$33,DC$34,$F38) -> FALSE | DD38: =Find_Month(DD$33,DD$34,$F38) -> TRUE | DE38: =Find_Month(DE$33,DE$34,$F38) -> FALSE | DF38: =Find_Month(DF$33,DF$34,$F38) -> TRUE | DG38: =Find_Month(DG$33,DG$34,$F38) -> FALSE | DH38: =Find_Month(DH$33,DH$34,$F38) -> TRUE | DI38: =Find_Month(DI$33,DI$34,$F38) -> FALSE | DJ38: =Find_Month(DJ$33,DJ$34,$F38) -> TRUE | DK38: =Find_Month(DK$33,DK$34,$F38) -> FALSE | DL38: =Find_Month(DL$33,DL$34,$F38) -> TRUE | DM38: =Find_Month(DM$33,DM$34,$F38) -> FALSE | DN38: =Find_Month(DN$33,DN$34,$F38) -> TRUE | DO38: =Find_Month(DO$33,DO$34,$F38) -> FALSE | DP38: =Find_Month(DP$33,DP$34,$F38) -> TRUE | DQ38: =Find_Month(DQ$33,DQ$34,$F38) -> FALSE | DR38: =Find_Month(DR$33,DR$34,$F38) -> TRUE | DS38: =Find_Month(DS$33,DS$34,$F38) -> FALSE | DT38: =Find_Month(DT$33,DT$34,$F38) -> TRUE | DU38: =Find_Month(DU$33,DU$34,$F38) -> FALSE | DV38: =Find_Month(DV$33,DV$34,$F38) -> TRUE | DW38: =Find_Month(DW$33,DW$34,$F38) -> FALSE | DX38: =Find_Month(DX$33,DX$34,$F38) -> TRUE | DY38: =Find_Month(DY$33,DY$34,$F38) -> FALSE | DZ38: =Find_Month(DZ$33,DZ$34,$F38) -> TRUE | EA38: =Find_Month(EA$33,EA$34,$F38) -> FALSE | EB38: =Find_Month(EB$33,EB$34,$F38) -> TRUE | EC38: =Find_Month(EC$33,EC$34,$F38) -> FALSE | ED38: =Find_Month(ED$33,ED$34,$F38) -> TRUE | EE38: =Find_Month(EE$33,EE$34,$F38) -> FALSE | EF38: =Find_Month(EF$33,EF$34,$F38) -> TRUE | EG38: =Find_Month(EG$33,EG$34,$F38) -> FALSE | EH38: =Find_Month(EH$33,EH$34,$F38) -> TRUE | EI38: =Find_Month(EI$33,EI$34,$F38) -> FALSE | EJ38: =Find_Month(EJ$33,EJ$34,$F38) -> TRUE | EK38: =Find_Month(EK$33,EK$34,$F38) -> FALSE | EL38: =Find_Month(EL$33,EL$34,$F38) -> TRUE | EM38: =Find_Month(EM$33,EM$34,$F38) -> FALSE | EN38: =Find_Month(EN$33,EN$34,$F38) -> TRUE | EO38: =Find_Month(EO$33,EO$34,$F38) -> FALSE | EP38: =Find_Month(EP$33,EP$34,$F38) -> TRUE | EQ38: =Find_Month(EQ$33,EQ$34,$F38) -> FALSE | ER38: =Find_Month(ER$33,ER$34,$F38) -> TRUE | ES38: =Find_Month(ES$33,ES$34,$F38) -> FALSE | ET38: =Find_Month(ET$33,ET$34,$F38) -> TRUE | EU38: =Find_Month(EU$33,EU$34,$F38) -> FALSE | EV38: =Find_Month(EV$33,EV$34,$F38) -> TRUE | EW38: =Find_Month(EW$33,EW$34,$F38) -> FALSE | EX38: =Find_Month(EX$33,EX$34,$F38) -> TRUE | EY38: =Find_Month(EY$33,EY$34,$F38) -> FALSE | EZ38: =Find_Month(EZ$33,EZ$34,$F38) -> TRUE | FA38: =Find_Month(FA$33,FA$34,$F38) -> FALSE | FB38: =Find_Month(FB$33,FB$34,$F38) -> TRUE | FC38: =Find_Month(FC$33,FC$34,$F38) -> FALSE | FD38: =Find_Month(FD$33,FD$34,$F38) -> TRUE | FE38: =Find_Month(FE$33,FE$34,$F38) -> FALSE | FF38: =Find_Month(FF$33,FF$34,$F38) -> TRUE | FG38: =Find_Month(FG$33,FG$34,$F38) -> FALSE | FH38: =Find_Month(FH$33,FH$34,$F38) -> TRUE | FI38: =Find_Month(FI$33,FI$34,$F38) -> FALSE | FJ38: =Find_Month(FJ$33,FJ$34,$F38) -> TRUE | FK38: =Find_Month(FK$33,FK$34,$F38) -> FALSE | FL38: =Find_Month(FL$33,FL$34,$F38) -> TRUE | FM38: =Find_Month(FM$33,FM$34,$F38) -> FALSE | FN38: =Find_Month(FN$33,FN$34,$F38) -> TRUE | FO38: =Find_Month(FO$33,FO$34,$F38) -> FALSE | FP38: =Find_Month(FP$33,FP$34,$F38) -> TRUE | FQ38: =Find_Month(FQ$33,FQ$34,$F38) -> FALSE | FR38: =Find_Month(FR$33,FR$34,$F38) -> TRUE | FS38: =Find_Month(FS$33,FS$34,$F38) -> FALSE | FT38: =Find_Month(FT$33,FT$34,$F38) -> TRUE | FU38: =Find_Month(FU$33,FU$34,$F38) -> FALSE | FV38: =Find_Month(FV$33,FV$34,$F38) -> TRUE | FW38: =Find_Month(FW$33,FW$34,$F38) -> FALSE | FX38: =Find_Month(FX$33,FX$34,$F38) -> TRUE | FY38: =Find_Month(FY$33,FY$34,$F38) -> FALSE | FZ38: =Find_Month(FZ$33,FZ$34,$F38) -> TRUE | GA38: =Find_Month(GA$33,GA$34,$F38) -> FALSE | GB38: =Find_Month(GB$33,GB$34,$F38) -> TRUE | GC38: =Find_Month(GC$33,GC$34,$F38) -> FALSE | GD38: =Find_Month(GD$33,GD$34,$F38) -> TRUE | GE38: =Find_Month(GE$33,GE$34,$F38) -> FALSE | GF38: =Find_Month(GF$33,GF$34,$F38) -> TRUE | GG38: =Find_Month(GG$33,GG$34,$F38) -> FALSE | GH38: =Find_Month(GH$33,GH$34,$F38) -> TRUE | GI38: =Find_Month(GI$33,GI$34,$F38) -> FALSE | GJ38: =Find_Month(GJ$33,GJ$34,$F38) -> TRUE | GK38: =Find_Month(GK$33,GK$34,$F38) -> FALSE | GL38: =Find_Month(GL$33,GL$34,$F38) -> TRUE | GM38: =Find_Month(GM$33,GM$34,$F38) -> FALSE | GN38: =Find_Month(GN$33,GN$34,$F38) -> TRUE | GO38: =Find_Month(GO$33,GO$34,$F38) -> FALSE | GP38: =Find_Month(GP$33,GP$34,$F38) -> TRUE | GQ38: =Find_Month(GQ$33,GQ$34,$F38) -> FALSE | GR38: =Find_Month(GR$33,GR$34,$F38) -> TRUE | GS38: =Find_Month(GS$33,GS$34,$F38) -> FALSE | GT38: =Find_Month(GT$33,GT$34,$F38) -> TRUE | GU38: =Find_Month(GU$33,GU$34,$F38) -> FALSE | GV38: =Find_Month(GV$33,GV$34,$F38) -> TRUE | GW38: =Find_Month(GW$33,GW$34,$F38) -> FALSE | GX38: =Find_Month(GX$33,GX$34,$F38) -> TRUE | GY38: =Find_Month(GY$33,GY$34,$F38) -> FALSE | GZ38: =Find_Month(GZ$33,GZ$34,$F38) -> TRUE | HA38: =Find_Month(HA$33,HA$34,$F38) -> FALSE | HB38: =Find_Month(HB$33,HB$34,$F38) -> TRUE | HC38: =Find_Month(HC$33,HC$34,$F38) -> FALSE | HD38: =Find_Month(HD$33,HD$34,$F38) -> TRUE | HE38: =Find_Month(HE$33,HE$34,$F38) -> FALSE | HF38: =Find_Month(HF$33,HF$34,$F38) -> TRUE | HG38: =Find_Month(HG$33,HG$34,$F38) -> FALSE | HH38: =Find_Month(HH$33,HH$34,$F38) -> TRUE | HI38: =Find_Month(HI$33,HI$34,$F38) -> FALSE | HJ38: =Find_Month(HJ$33,HJ$34,$F38) -> TRUE | HK38: =Find_Month(HK$33,HK$34,$F38) -> FALSE | HL38: =Find_Month(HL$33,HL$34,$F38) -> TRUE | HM38: =Find_Month(HM$33,HM$34,$F38) -> FALSE | HN38: =Find_Month(HN$33,HN$34,$F38) -> TRUE | HO38: =Find_Month(HO$33,HO$34,$F38) -> FALSE | HP38: =Find_Month(HP$33,HP$34,$F38) -> TRUE | HQ38: =Find_Month(HQ$33,HQ$34,$F38) -> FALSE | HR38: =Find_Month(HR$33,HR$34,$F38) -> TRUE | HS38: =Find_Month(HS$33,HS$34,$F38) -> FALSE | HT38: =Find_Month(HT$33,HT$34,$F38) -> TRUE | HU38: =Find_Month(HU$33,HU$34,$F38) -> FALSE | HV38: =Find_Month(HV$33,HV$34,$F38) -> TRUE | HW38: =Find_Month(HW$33,HW$34,$F38) -> FALSE | HX38: =Find_Month(HX$33,HX$34,$F38) -> TRUE | HY38: =Find_Month(HY$33,HY$34,$F38) -> FALSE | HZ38: =Find_Month(HZ$33,HZ$34,$F38) -> TRUE | IA38: =Find_Month(IA$33,IA$34,$F38) -> FALSE | IB38: =Find_Month(IB$33,IB$34,$F38) -> TRUE | IC38: =Find_Month(IC$33,IC$34,$F38) -> FALSE | ID38: =Find_Month(ID$33,ID$34,$F38) -> TRUE | IE38: =Find_Month(IE$33,IE$34,$F38) -> FALSE | IF38: =Find_Month(IF$33,IF$34,$F38) -> TRUE | IG38: =Find_Month(IG$33,IG$34,$F38) -> FALSE | IH38: =Find_Month(IH$33,IH$34,$F38) -> TRUE | II38: =Find_Month(II$33,II$34,$F38) -> FALSE | IJ38: =Find_Month(IJ$33,IJ$34,$F38) -> TRUE | IK38: =Find_Month(IK$33,IK$34,$F38) -> FALSE | IL38: =Find_Month(IL$33,IL$34,$F38) -> TRUE | IM38: =Find_Month(IM$33,IM$34,$F38) -> FALSE | IN38: =Find_Month(IN$33,IN$34,$F38) -> TRUE | IO38: =Find_Month(IO$33,IO$34,$F38) -> FALSE | IP38: =Find_Month(IP$33,IP$34,$F38) -> TRUE | IQ38: =Find_Month(IQ$33,IQ$34,$F38) -> FALSE | IR38: =Find_Month(IR$33,IR$34,$F38) -> TRUE | IS38: =Find_Month(IS$33,IS$34,$F38) -> FALSE | IT38: =Find_Month(IT$33,IT$34,$F38) -> TRUE | IU38: =Find_Month(IU$33,IU$34,$F38) -> FALSE | IV38: =Find_Month(IV$33,IV$34,$F38) -> TRUE | IW38: =Find_Month(IW$33,IW$34,$F38) -> FALSE | IX38: =Find_Month(IX$33,IX$34,$F38) -> TRUE | IY38: =Find_Month(IY$33,IY$34,$F38) -> FALSE | IZ38: =Find_Month(IZ$33,IZ$34,$F38) -> TRUE | JA38: =Find_Month(JA$33,JA$34,$F38) -> FALSE | JB38: =Find_Month(JB$33,JB$34,$F38) -> TRUE | JC38: =Find_Month(JC$33,JC$34,$F38) -> FALSE | JD38: =Find_Month(JD$33,JD$34,$F38) -> TRUE | JE38: =Find_Month(JE$33,JE$34,$F38) -> FALSE | JF38: =Find_Month(JF$33,JF$34,$F38) -> TRUE | JG38: =Find_Month(JG$33,JG$34,$F38) -> FALSE | JH38: =Find_Month(JH$33,JH$34,$F38) -> TRUE | JI38: =Find_Month(JI$33,JI$34,$F38) -> FALSE | JJ38: =Find_Month(JJ$33,JJ$34,$F38) -> TRUE | JK38: =Find_Month(JK$33,JK$34,$F38) -> FALSE | JL38: =Find_Month(JL$33,JL$34,$F38) -> TRUE | JM38: =Find_Month(JM$33,JM$34,$F38) -> FALSE | JN38: =Find_Month(JN$33,JN$34,$F38) -> TRUE | JO38: =Find_Month(JO$33,JO$34,$F38) -> FALSE | JP38: =Find_Month(JP$33,JP$34,$F38) -> TRUE | JQ38: =Find_Month(JQ$33,JQ$34,$F38) -> FALSE | JR38: =Find_Month(JR$33,JR$34,$F38) -> TRUE | JS38: =Find_Month(JS$33,JS$34,$F38) -> FALSE | JT38: =Find_Month(JT$33,JT$34,$F38) -> TRUE | JU38: =Find_Month(JU$33,JU$34,$F38) -> FALSE | JV38: =Find_Month(JV$33,JV$34,$F38) -> TRUE | JW38: =Find_Month(JW$33,JW$34,$F38) -> FALSE | JX38: =Find_Month(JX$33,JX$34,$F38) -> TRUE | JY38: =Find_Month(JY$33,JY$34,$F38) -> FALSE | JZ38: =Find_Month(JZ$33,JZ$34,$F38) -> TRUE | KA38: =Find_Month(KA$33,KA$34,$F38) -> FALSE | KB38: =Find_Month(KB$33,KB$34,$F38) -> TRUE | KC38: =Find_Month(KC$33,KC$34,$F38) -> FALSE | KD38: =Find_Month(KD$33,KD$34,$F38) -> TRUE | KE38: =Find_Month(KE$33,KE$34,$F38) -> FALSE | KF38: =Find_Month(KF$33,KF$34,$F38) -> TRUE | KG38: =Find_Month(KG$33,KG$34,$F38) -> FALSE | KH38: =Find_Month(KH$33,KH$34,$F38) -> TRUE | KI38: =Find_Month(KI$33,KI$34,$F38) -> FALSE | KJ38: =Find_Month(KJ$33,KJ$34,$F38) -> TRUE | KK38: =Find_Month(KK$33,KK$34,$F38) -> FALSE | KL38: =Find_Month(KL$33,KL$34,$F38) -> TRUE | KM38: =Find_Month(KM$33,KM$34,$F38) -> FALSE | KN38: =Find_Month(KN$33,KN$34,$F38) -> TRUE | KO38: =Find_Month(KO$33,KO$34,$F38) -> FALSE | KP38: =Find_Month(KP$33,KP$34,$F38) -> TRUE | KQ38: =Find_Month(KQ$33,KQ$34,$F38) -> FALSE | KR38: =Find_Month(KR$33,KR$34,$F38) -> TRUE | KS38: =Find_Month(KS$33,KS$34,$F38) -> FALSE | KT38: =Find_Month(KT$33,KT$34,$F38) -> TRUE | KU38: =Find_Month(KU$33,KU$34,$F38) -> FALSE | KV38: =Find_Month(KV$33,KV$34,$F38) -> TRUE | KW38: =Find_Month(KW$33,KW$34,$F38) -> FALSE | KX38: =Find_Month(KX$33,KX$34,$F38) -> TRUE | KY38: =Find_Month(KY$33,KY$34,$F38) -> FALSE | KZ38: =Find_Month(KZ$33,KZ$34,$F38) -> TRUE | LA38: =Find_Month(LA$33,LA$34,$F38) -> FALSE | LB38: =Find_Month(LB$33,LB$34,$F38) -> TRUE | LC38: =Find_Month(LC$33,LC$34,$F38) -> FALSE | LD38: =Find_Month(LD$33,LD$34,$F38) -> TRUE | LE38: =Find_Month(LE$33,LE$34,$F38) -> FALSE | LF38: =Find_Month(LF$33,LF$34,$F38) -> TRUE | LG38: =Find_Month(LG$33,LG$34,$F38) -> FALSE | LH38: =Find_Month(LH$33,LH$34,$F38) -> TRUE | LI38: =Find_Month(LI$33,LI$34,$F38) -> FALSE | LJ38: =Find_Month(LJ$33,LJ$34,$F38) -> TRUE | LK38: =Find_Month(LK$33,LK$34,$F38) -> FALSE | LL38: =Find_Month(LL$33,LL$34,$F38) -> TRUE | LM38: =Find_Month(LM$33,LM$34,$F38) -> FALSE | LN38: =Find_Month(LN$33,LN$34,$F38) -> TRUE | LO38: =Find_Month(LO$33,LO$34,$F38) -> FALSE | LP38: =Find_Month(LP$33,LP$34,$F38) -> TRUE | LQ38: =Find_Month(LQ$33,LQ$34,$F38) -> FALSE | LR38: =Find_Month(LR$33,LR$34,$F38) -> TRUE | LS38: =Find_Month(LS$33,LS$34,$F38) -> FALSE | LT38: =Find_Month(LT$33,LT$34,$F38) -> TRUE | LU38: =Find_Month(LU$33,LU$34,$F38) -> FALSE | LV38: =Find_Month(LV$33,LV$34,$F38) -> TRUE | LW38: =Find_Month(LW$33,LW$34,$F38) -> FALSE | LX38: =Find_Month(LX$33,LX$34,$F38) -> TRUE | LY38: =Find_Month(LY$33,LY$34,$F38) -> FALSE | LZ38: =Find_Month(LZ$33,LZ$34,$F38) -> TRUE | MA38: =Find_Month(MA$33,MA$34,$F38) -> FALSE | MB38: =Find_Month(MB$33,MB$34,$F38) -> TRUE | MC38: =Find_Month(MC$33,MC$34,$F38) -> FALSE | MD38: =Find_Month(MD$33,MD$34,$F38) -> TRUE | ME38: =Find_Month(ME$33,ME$34,$F38) -> FALSE | MF38: =Find_Month(MF$33,MF$34,$F38) -> TRUE | MG38: =Find_Month(MG$33,MG$34,$F38) -> FALSE | MH38: =Find_Month(MH$33,MH$34,$F38) -> TRUE | MI38: =Find_Month(MI$33,MI$34,$F38) -> FALSE | MJ38: =Find_Month(MJ$33,MJ$34,$F38) -> TRUE | MK38: =Find_Month(MK$33,MK$34,$F38) -> FALSE | ML38: =Find_Month(ML$33,ML$34,$F38) -> TRUE | MM38: =Find_Month(MM$33,MM$34,$F38) -> FALSE | MN38: =Find_Month(MN$33,MN$34,$F38) -> TRUE | MO38: =Find_Month(MO$33,MO$34,$F38) -> FALSE | MP38: =Find_Month(MP$33,MP$34,$F38) -> TRUE | MQ38: =Find_Month(MQ$33,MQ$34,$F38) -> FALSE | MR38: =Find_Month(MR$33,MR$34,$F38) -> TRUE | MS38: =Find_Month(MS$33,MS$34,$F38) -> FALSE | MT38: =Find_Month(MT$33,MT$34,$F38) -> TRUE | MU38: =Find_Month(MU$33,MU$34,$F38) -> FALSE | MV38: =Find_Month(MV$33,MV$34,$F38) -> TRUE | MW38: =Find_Month(MW$33,MW$34,$F38) -> FALSE | MX38: =Find_Month(MX$33,MX$34,$F38) -> TRUE | MY38: =Find_Month(MY$33,MY$34,$F38) -> FALSE | MZ38: =Find_Month(MZ$33,MZ$34,$F38) -> TRUE | NA38: =Find_Month(NA$33,NA$34,$F38) -> FALSE | NB38: =Find_Month(NB$33,NB$34,$F38) -> TRUE | NC38: =Find_Month(NC$33,NC$34,$F38) -> FALSE | ND38: =Find_Month(ND$33,ND$34,$F38) -> TRUE | NE38: =Find_Month(NE$33,NE$34,$F38) -> FALSE | NF38: =Find_Month(NF$33,NF$34,$F38) -> TRUE | NG38: =Find_Month(NG$33,NG$34,$F38) -> FALSE | NH38: =Find_Month(NH$33,NH$34,$F38) -> TRUE | NI38: =Find_Month(NI$33,NI$34,$F38) -> FALSE | NJ38: =Find_Month(NJ$33,NJ$34,$F38) -> TRUE | NK38: =Find_Month(NK$33,NK$34,$F38) -> FALSE | NL38: =Find_Month(NL$33,NL$34,$F38) -> TRUE | NM38: =Find_Month(NM$33,NM$34,$F38) -> FALSE | NN38: =Find_Month(NN$33,NN$34,$F38) -> TRUE | NO38: =Find_Month(NO$33,NO$34,$F38) -> FALSE | NP38: =Find_Month(NP$33,NP$34,$F38) -> TRUE | NQ38: =Find_Month(NQ$33,NQ$34,$F38) -> FALSE | NR38: =Find_Month(NR$33,NR$34,$F38) -> TRUE | NS38: =Find_Month(NS$33,NS$34,$F38) -> FALSE | NT38: =Find_Month(NT$33,NT$34,$F38) -> TRUE | NU38: =Find_Month(NU$33,NU$34,$F38) -> FALSE | NV38: =Find_Month(NV$33,NV$34,$F38) -> TRUE | NW38: =Find_Month(NW$33,NW$34,$F38) -> FALSE | NX38: =Find_Month(NX$33,NX$34,$F38) -> TRUE | NY38: =Find_Month(NY$33,NY$34,$F38) -> FALSE | NZ38: =Find_Month(NZ$33,NZ$34,$F38) -> TRUE | OA38: =Find_Month(OA$33,OA$34,$F38) -> FALSE | OB38: =Find_Month(OB$33,OB$34,$F38) -> TRUE | OC38: =Find_Month(OC$33,OC$34,$F38) -> FALSE | OD38: =Find_Month(OD$33,OD$34,$F38) -> TRUE | OE38: =Find_Month(OE$33,OE$34,$F38) -> FALSE | OF38: =Find_Month(OF$33,OF$34,$F38) -> TRUE | OG38: =Find_Month(OG$33,OG$34,$F38) -> FALSE | OH38: =Find_Month(OH$33,OH$34,$F38) -> TRUE | OI38: =Find_Month(OI$33,OI$34,$F38) -> FALSE | OJ38: =Find_Month(OJ$33,OJ$34,$F38) -> TRUE | OK38: =Find_Month(OK$33,OK$34,$F38) -> FALSE | OL38: =Find_Month(OL$33,OL$34,$F38) -> TRUE | OM38: =Find_Month(OM$33,OM$34,$F38) -> FALSE | ON38: =Find_Month(ON$33,ON$34,$F38) -> TRUE | OO38: =Find_Month(OO$33,OO$34,$F38) -> FALSE | OP38: =Find_Month(OP$33,OP$34,$F38) -> TRUE | OQ38: =Find_Month(OQ$33,OQ$34,$F38) -> FALSE | OR38: =Find_Month(OR$33,OR$34,$F38) -> TRUE | OS38: =Find_Month(OS$33,OS$34,$F38) -> FALSE | OT38: =Find_Month(OT$33,OT$34,$F38) -> TRUE | OU38: =Find_Month(OU$33,OU$34,$F38) -> FALSE | OV38: =Find_Month(OV$33,OV$34,$F38) -> TRUE | OW38: =Find_Month(OW$33,OW$34,$F38) -> FALSE | OX38: =Find_Month(OX$33,OX$34,$F38) -> TRUE | OY38: =Find_Month(OY$33,OY$34,$F38) -> FALSE | OZ38: =Find_Month(OZ$33,OZ$34,$F38) -> TRUE | PA38: =Find_Month(PA$33,PA$34,$F38) -> FALSE | PB38: =Find_Month(PB$33,PB$34,$F38) -> TRUE | PC38: =Find_Month(PC$33,PC$34,$F38) -> FALSE | PD38: =Find_Month(PD$33,PD$34,$F38) -> TRUE | PE38: =Find_Month(PE$33,PE$34,$F38) -> FALSE | PF38: =Find_Month(PF$33,PF$34,$F38) -> TRUE | PG38: =Find_Month(PG$33,PG$34,$F38) -> FALSE | PH38: =Find_Month(PH$33,PH$34,$F38) -> TRUE | PI38: =Find_Month(PI$33,PI$34,$F38) -> FALSE | PJ38: =Find_Month(PJ$33,PJ$34,$F38) -> TRUE | PK38: =Find_Month(PK$33,PK$34,$F38) -> FALSE | PL38: =Find_Month(PL$33,PL$34,$F38) -> TRUE | PM38: =Find_Month(PM$33,PM$34,$F38) -> FALSE | PN38: =Find_Month(PN$33,PN$34,$F38) -> TRUE | PO38: =Find_Month(PO$33,PO$34,$F38) -> FALSE | PP38: =Find_Month(PP$33,PP$34,$F38) -> TRUE | PQ38: =Find_Month(PQ$33,PQ$34,$F38) -> FALSE | PR38: =Find_Month(PR$33,PR$34,$F38) -> TRUE | PS38: =Find_Month(PS$33,PS$34,$F38) -> FALSE | PT38: =Find_Month(PT$33,PT$34,$F38) -> TRUE | PU38: =Find_Month(PU$33,PU$34,$F38) -> FALSE | PV38: =Find_Month(PV$33,PV$34,$F38) -> TRUE | PW38: =Find_Month(PW$33,PW$34,$F38) -> FALSE | PX38: =Find_Month(PX$33,PX$34,$F38) -> TRUE | PY38: =Find_Month(PY$33,PY$34,$F38) -> FALSE | PZ38: =Find_Month(PZ$33,PZ$34,$F38) -> TRUE | QA38: =Find_Month(QA$33,QA$34,$F38) -> FALSE | QB38: =Find_Month(QB$33,QB$34,$F38) -> TRUE | QC38: =Find_Month(QC$33,QC$34,$F38) -> FALSE | QD38: =Find_Month(QD$33,QD$34,$F38) -> TRUE | QE38: =Find_Month(QE$33,QE$34,$F38) -> FALSE | QF38: =Find_Month(QF$33,QF$34,$F38) -> TRUE | QG38: =Find_Month(QG$33,QG$34,$F38) -> FALSE | QH38: =Find_Month(QH$33,QH$34,$F38) -> TRUE | QI38: =Find_Month(QI$33,QI$34,$F38) -> FALSE | QJ38: =Find_Month(QJ$33,QJ$34,$F38) -> TRUE | QK38: =Find_Month(QK$33,QK$34,$F38) -> FALSE | QL38: =Find_Month(QL$33,QL$34,$F38) -> TRUE | QM38: =Find_Month(QM$33,QM$34,$F38) -> FALSE | QN38: =Find_Month(QN$33,QN$34,$F38) -> TRUE | QO38: =Find_Month(QO$33,QO$34,$F38) -> FALSE | QP38: =Find_Month(QP$33,QP$34,$F38) -> TRUE | QQ38: =Find_Month(QQ$33,QQ$34,$F38) -> FALSE | QR38: =Find_Month(QR$33,QR$34,$F38) -> TRUE | QS38: =Find_Month(QS$33,QS$34,$F38) -> FALSE | QT38: =Find_Month(QT$33,QT$34,$F38) -> TRUE | QU38: =Find_Month(QU$33,QU$34,$F38) -> FALSE | QV38: =Find_Month(QV$33,QV$34,$F38) -> TRUE | QW38: =Find_Month(QW$33,QW$34,$F38) -> FALSE | QX38: =Find_Month(QX$33,QX$34,$F38) -> TRUE | QY38: =Find_Month(QY$33,QY$34,$F38) -> FALSE | QZ38: =Find_Month(QZ$33,QZ$34,$F38) -> TRUE | RA38: =Find_Month(RA$33,RA$34,$F38) -> FALSE | RB38: =Find_Month(RB$33,RB$34,$F38) -> TRUE | RC38: =Find_Month(RC$33,RC$34,$F38) -> FALSE | RD38: =Find_Month(RD$33,RD$34,$F38) -> TRUE | RE38: =Find_Month(RE$33,RE$34,$F38) -> FALSE | RF38: =Find_Month(RF$33,RF$34,$F38) -> TRUE | RG38: =Find_Month(RG$33,RG$34,$F38) -> FALSE | RH38: =Find_Month(RH$33,RH$34,$F38) -> TRUE | RI38: =Find_Month(RI$33,RI$34,$F38) -> FALSE | RJ38: =Find_Month(RJ$33,RJ$34,$F38) -> TRUE | RK38: =Find_Month(RK$33,RK$34,$F38) -> FALSE | RL38: =Find_Month(RL$33,RL$34,$F38) -> TRUE | RM38: =Find_Month(RM$33,RM$34,$F38) -> FALSE | RN38: =Find_Month(RN$33,RN$34,$F38) -> TRUE | RO38: =Find_Month(RO$33,RO$34,$F38) -> FALSE | RP38: =Find_Month(RP$33,RP$34,$F38) -> TRUE | RQ38: =Find_Month(RQ$33,RQ$34,$F38) -> FALSE | RR38: =Find_Month(RR$33,RR$34,$F38) -> TRUE | RS38: =Find_Month(RS$33,RS$34,$F38) -> FALSE | RT38: =Find_Month(RT$33,RT$34,$F38) -> TRUE | RU38: =Find_Month(RU$33,RU$34,$F38) -> FALSE | RV38: =Find_Month(RV$33,RV$34,$F38) -> TRUE | RW38: =Find_Month(RW$33,RW$34,$F38) -> FALSE | RX38: =Find_Month(RX$33,RX$34,$F38) -> TRUE | RY38: =Find_Month(RY$33,RY$34,$F38) -> FALSE | RZ38: =Find_Month(RZ$33,RZ$34,$F38) -> TRUE | SA38: =Find_Month(SA$33,SA$34,$F38) -> FALSE | SB38: =Find_Month(SB$33,SB$34,$F38) -> TRUE | SC38: =Find_Month(SC$33,SC$34,$F38) -> FALSE | SD38: =Find_Month(SD$33,SD$34,$F38) -> FALSE | SE38: =Find_Month(SE$33,SE$34,$F38) -> FALSE | SF38: =Find_Month(SF$33,SF$34,$F38) -> FALSE | SG38: =Find_Month(SG$33,SG$34,$F38) -> FALSE | SH38: =Find_Month(SH$33,SH$34,$F38) -> FALSE | SI38: =Find_Month(SI$33,SI$34,$F38) -> FALSE | SJ38: =Find_Month(SJ$33,SJ$34,$F38) -> FALSE | SK38: =Find_Month(SK$33,SK$34,$F38) -> FALSE | SL38: =Find_Month(SL$33,SL$34,$F38) -> FALSE | SM38: =Find_Month(SM$33,SM$34,$F38) -> FALSE | SN38: =Find_Month(SN$33,SN$34,$F38) -> FALSE | SO38: =Find_Month(SO$33,SO$34,$F38) -> FALSE | SP38: =Find_Month(SP$33,SP$34,$F38) -> FALSE | SQ38: =Find_Month(SQ$33,SQ$34,$F38) -> FALSE | SR38: =Find_Month(SR$33,SR$34,$F38) -> FALSE | SS38: =Find_Month(SS$33,SS$34,$F38) -> FALSE | ST38: =Find_Month(ST$33,ST$34,$F38) -> FALSE | SU38: =Find_Month(SU$33,SU$34,$F38) -> FALSE | SV38: =Find_Month(SV$33,SV$34,$F38) -> FALSE | SW38: =Find_Month(SW$33,SW$34,$F38) -> FALSE | SX38: =Find_Month(SX$33,SX$34,$F38) -> FALSE | SY38: =Find_Month(SY$33,SY$34,$F38) -> FALSE | SZ38: =Find_Month(SZ$33,SZ$34,$F38) -> FALSE | TA38: =Find_Month(TA$33,TA$34,$F38) -> FALSE | TB38: =Find_Month(TB$33,TB$34,$F38) -> FALSE | TC38: =Find_Month(TC$33,TC$34,$F38) -> FALSE | TD38: =Find_Month(TD$33,TD$34,$F38) -> FALSE | TE38: =Find_Month(TE$33,TE$34,$F38) -> FALSE | TF38: =Find_Month(TF$33,TF$34,$F38) -> FALSE | TG38: =Find_Month(TG$33,TG$34,$F38) -> FALSE | TH38: =Find_Month(TH$33,TH$34,$F38) -> FALSE | TI38: =Find_Month(TI$33,TI$34,$F38) -> FALSE | TJ38: =Find_Month(TJ$33,TJ$34,$F38) -> FALSE | TK38: =Find_Month(TK$33,TK$34,$F38) -> FALSE | TL38: =Find_Month(TL$33,TL$34,$F38) -> FALSE | TM38: =Find_Month(TM$33,TM$34,$F38) -> FALSE | TN38: =Find_Month(TN$33,TN$34,$F38) -> FALSE | TO38: =Find_Month(TO$33,TO$34,$F38) -> FALSE | TP38: =Find_Month(TP$33,TP$34,$F38) -> FALSE | TQ38: =Find_Month(TQ$33,TQ$34,$F38) -> FALSE | TR38: =Find_Month(TR$33,TR$34,$F38) -> FALSE | TS38: =Find_Month(TS$33,TS$34,$F38) -> FALSE | TT38: =Find_Month(TT$33,TT$34,$F38) -> FALSE | TU38: =Find_Month(TU$33,TU$34,$F38) -> FALSE | TV38: =Find_Month(TV$33,TV$34,$F38) -> FALSE | TW38: =Find_Month(TW$33,TW$34,$F38) -> FALSE | TX38: =Find_Month(TX$33,TX$34,$F38) -> FALSE | TY38: =Find_Month(TY$33,TY$34,$F38) -> FALSE
F39: 3 | G39: 299.4086771 | H39: 0.09341159729 | J39: =Find_Month(J$33,J$34,$F39) -> FALSE | K39: =Find_Month(K$33,K$34,$F39) -> FALSE | L39: =Find_Month(L$33,L$34,$F39) -> TRUE | M39: =Find_Month(M$33,M$34,$F39) -> FALSE | N39: =Find_Month(N$33,N$34,$F39) -> FALSE | O39: =Find_Month(O$33,O$34,$F39) -> FALSE | P39: =Find_Month(P$33,P$34,$F39) -> FALSE | Q39: =Find_Month(Q$33,Q$34,$F39) -> FALSE | R39: =Find_Month(R$33,R$34,$F39) -> FALSE | S39: =Find_Month(S$33,S$34,$F39) -> FALSE | T39: =Find_Month(T$33,T$34,$F39) -> FALSE | U39: =Find_Month(U$33,U$34,$F39) -> FALSE | V39: =Find_Month(V$33,V$34,$F39) -> FALSE | W39: =Find_Month(W$33,W$34,$F39) -> FALSE | X39: =Find_Month(X$33,X$34,$F39) -> TRUE | Y39: =Find_Month(Y$33,Y$34,$F39) -> FALSE | Z39: =Find_Month(Z$33,Z$34,$F39) -> FALSE | AA39: =Find_Month(AA$33,AA$34,$F39) -> FALSE | AB39: =Find_Month(AB$33,AB$34,$F39) -> FALSE | AC39: =Find_Month(AC$33,AC$34,$F39) -> FALSE | AD39: =Find_Month(AD$33,AD$34,$F39) -> FALSE | AE39: =Find_Month(AE$33,AE$34,$F39) -> TRUE | AF39: =Find_Month(AF$33,AF$34,$F39) -> FALSE | AG39: =Find_Month(AG$33,AG$34,$F39) -> TRUE | AH39: =Find_Month(AH$33,AH$34,$F39) -> FALSE | AI39: =Find_Month(AI$33,AI$34,$F39) -> TRUE | AJ39: =Find_Month(AJ$33,AJ$34,$F39) -> FALSE | AK39: =Find_Month(AK$33,AK$34,$F39) -> TRUE | AL39: =Find_Month(AL$33,AL$34,$F39) -> FALSE | AM39: =Find_Month(AM$33,AM$34,$F39) -> TRUE | AN39: =Find_Month(AN$33,AN$34,$F39) -> FALSE | AO39: =Find_Month(AO$33,AO$34,$F39) -> TRUE | AP39: =Find_Month(AP$33,AP$34,$F39) -> FALSE | AQ39: =Find_Month(AQ$33,AQ$34,$F39) -> TRUE | AR39: =Find_Month(AR$33,AR$34,$F39) -> FALSE | AS39: =Find_Month(AS$33,AS$34,$F39) -> TRUE | AT39: =Find_Month(AT$33,AT$34,$F39) -> FALSE | AU39: =Find_Month(AU$33,AU$34,$F39) -> TRUE | AV39: =Find_Month(AV$33,AV$34,$F39) -> FALSE | AW39: =Find_Month(AW$33,AW$34,$F39) -> TRUE | AX39: =Find_Month(AX$33,AX$34,$F39) -> FALSE | AY39: =Find_Month(AY$33,AY$34,$F39) -> TRUE | AZ39: =Find_Month(AZ$33,AZ$34,$F39) -> FALSE | BA39: =Find_Month(BA$33,BA$34,$F39) -> TRUE | BB39: =Find_Month(BB$33,BB$34,$F39) -> FALSE | BC39: =Find_Month(BC$33,BC$34,$F39) -> TRUE | BD39: =Find_Month(BD$33,BD$34,$F39) -> FALSE | BE39: =Find_Month(BE$33,BE$34,$F39) -> TRUE | BF39: =Find_Month(BF$33,BF$34,$F39) -> FALSE | BG39: =Find_Month(BG$33,BG$34,$F39) -> TRUE | BH39: =Find_Month(BH$33,BH$34,$F39) -> FALSE | BI39: =Find_Month(BI$33,BI$34,$F39) -> TRUE | BJ39: =Find_Month(BJ$33,BJ$34,$F39) -> FALSE | BK39: =Find_Month(BK$33,BK$34,$F39) -> TRUE | BL39: =Find_Month(BL$33,BL$34,$F39) -> FALSE | BM39: =Find_Month(BM$33,BM$34,$F39) -> TRUE | BN39: =Find_Month(BN$33,BN$34,$F39) -> FALSE | BO39: =Find_Month(BO$33,BO$34,$F39) -> TRUE | BP39: =Find_Month(BP$33,BP$34,$F39) -> FALSE | BQ39: =Find_Month(BQ$33,BQ$34,$F39) -> TRUE | BR39: =Find_Month(BR$33,BR$34,$F39) -> FALSE | BS39: =Find_Month(BS$33,BS$34,$F39) -> TRUE | BT39: =Find_Month(BT$33,BT$34,$F39) -> FALSE | BU39: =Find_Month(BU$33,BU$34,$F39) -> TRUE | BV39: =Find_Month(BV$33,BV$34,$F39) -> FALSE | BW39: =Find_Month(BW$33,BW$34,$F39) -> TRUE | BX39: =Find_Month(BX$33,BX$34,$F39) -> FALSE | BY39: =Find_Month(BY$33,BY$34,$F39) -> TRUE | BZ39: =Find_Month(BZ$33,BZ$34,$F39) -> FALSE | CA39: =Find_Month(CA$33,CA$34,$F39) -> TRUE | CB39: =Find_Month(CB$33,CB$34,$F39) -> FALSE | CC39: =Find_Month(CC$33,CC$34,$F39) -> TRUE | CD39: =Find_Month(CD$33,CD$34,$F39) -> FALSE | CE39: =Find_Month(CE$33,CE$34,$F39) -> TRUE | CF39: =Find_Month(CF$33,CF$34,$F39) -> FALSE | CG39: =Find_Month(CG$33,CG$34,$F39) -> TRUE | CH39: =Find_Month(CH$33,CH$34,$F39) -> FALSE | CI39: =Find_Month(CI$33,CI$34,$F39) -> TRUE | CJ39: =Find_Month(CJ$33,CJ$34,$F39) -> FALSE | CK39: =Find_Month(CK$33,CK$34,$F39) -> TRUE | CL39: =Find_Month(CL$33,CL$34,$F39) -> FALSE | CM39: =Find_Month(CM$33,CM$34,$F39) -> TRUE | CN39: =Find_Month(CN$33,CN$34,$F39) -> FALSE | CO39: =Find_Month(CO$33,CO$34,$F39) -> TRUE | CP39: =Find_Month(CP$33,CP$34,$F39) -> FALSE | CQ39: =Find_Month(CQ$33,CQ$34,$F39) -> TRUE | CR39: =Find_Month(CR$33,CR$34,$F39) -> FALSE | CS39: =Find_Month(CS$33,CS$34,$F39) -> TRUE | CT39: =Find_Month(CT$33,CT$34,$F39) -> FALSE | CU39: =Find_Month(CU$33,CU$34,$F39) -> TRUE | CV39: =Find_Month(CV$33,CV$34,$F39) -> FALSE | CW39: =Find_Month(CW$33,CW$34,$F39) -> TRUE | CX39: =Find_Month(CX$33,CX$34,$F39) -> FALSE | CY39: =Find_Month(CY$33,CY$34,$F39) -> TRUE | CZ39: =Find_Month(CZ$33,CZ$34,$F39) -> FALSE | DA39: =Find_Month(DA$33,DA$34,$F39) -> TRUE | DB39: =Find_Month(DB$33,DB$34,$F39) -> FALSE | DC39: =Find_Month(DC$33,DC$34,$F39) -> TRUE | DD39: =Find_Month(DD$33,DD$34,$F39) -> FALSE | DE39: =Find_Month(DE$33,DE$34,$F39) -> TRUE | DF39: =Find_Month(DF$33,DF$34,$F39) -> FALSE | DG39: =Find_Month(DG$33,DG$34,$F39) -> TRUE | DH39: =Find_Month(DH$33,DH$34,$F39) -> FALSE | DI39: =Find_Month(DI$33,DI$34,$F39) -> TRUE | DJ39: =Find_Month(DJ$33,DJ$34,$F39) -> FALSE | DK39: =Find_Month(DK$33,DK$34,$F39) -> TRUE | DL39: =Find_Month(DL$33,DL$34,$F39) -> FALSE | DM39: =Find_Month(DM$33,DM$34,$F39) -> TRUE | DN39: =Find_Month(DN$33,DN$34,$F39) -> FALSE | DO39: =Find_Month(DO$33,DO$34,$F39) -> TRUE | DP39: =Find_Month(DP$33,DP$34,$F39) -> FALSE | DQ39: =Find_Month(DQ$33,DQ$34,$F39) -> TRUE | DR39: =Find_Month(DR$33,DR$34,$F39) -> FALSE | DS39: =Find_Month(DS$33,DS$34,$F39) -> TRUE | DT39: =Find_Month(DT$33,DT$34,$F39) -> FALSE | DU39: =Find_Month(DU$33,DU$34,$F39) -> TRUE | DV39: =Find_Month(DV$33,DV$34,$F39) -> FALSE | DW39: =Find_Month(DW$33,DW$34,$F39) -> TRUE | DX39: =Find_Month(DX$33,DX$34,$F39) -> FALSE | DY39: =Find_Month(DY$33,DY$34,$F39) -> TRUE | DZ39: =Find_Month(DZ$33,DZ$34,$F39) -> FALSE | EA39: =Find_Month(EA$33,EA$34,$F39) -> TRUE | EB39: =Find_Month(EB$33,EB$34,$F39) -> FALSE | EC39: =Find_Month(EC$33,EC$34,$F39) -> TRUE | ED39: =Find_Month(ED$33,ED$34,$F39) -> FALSE | EE39: =Find_Month(EE$33,EE$34,$F39) -> TRUE | EF39: =Find_Month(EF$33,EF$34,$F39) -> FALSE | EG39: =Find_Month(EG$33,EG$34,$F39) -> TRUE | EH39: =Find_Month(EH$33,EH$34,$F39) -> FALSE | EI39: =Find_Month(EI$33,EI$34,$F39) -> TRUE | EJ39: =Find_Month(EJ$33,EJ$34,$F39) -> FALSE | EK39: =Find_Month(EK$33,EK$34,$F39) -> TRUE | EL39: =Find_Month(EL$33,EL$34,$F39) -> FALSE | EM39: =Find_Month(EM$33,EM$34,$F39) -> TRUE | EN39: =Find_Month(EN$33,EN$34,$F39) -> FALSE | EO39: =Find_Month(EO$33,EO$34,$F39) -> TRUE | EP39: =Find_Month(EP$33,EP$34,$F39) -> FALSE | EQ39: =Find_Month(EQ$33,EQ$34,$F39) -> TRUE | ER39: =Find_Month(ER$33,ER$34,$F39) -> FALSE | ES39: =Find_Month(ES$33,ES$34,$F39) -> TRUE | ET39: =Find_Month(ET$33,ET$34,$F39) -> FALSE | EU39: =Find_Month(EU$33,EU$34,$F39) -> TRUE | EV39: =Find_Month(EV$33,EV$34,$F39) -> FALSE | EW39: =Find_Month(EW$33,EW$34,$F39) -> TRUE | EX39: =Find_Month(EX$33,EX$34,$F39) -> FALSE | EY39: =Find_Month(EY$33,EY$34,$F39) -> TRUE | EZ39: =Find_Month(EZ$33,EZ$34,$F39) -> FALSE | FA39: =Find_Month(FA$33,FA$34,$F39) -> TRUE | FB39: =Find_Month(FB$33,FB$34,$F39) -> FALSE | FC39: =Find_Month(FC$33,FC$34,$F39) -> TRUE | FD39: =Find_Month(FD$33,FD$34,$F39) -> FALSE | FE39: =Find_Month(FE$33,FE$34,$F39) -> TRUE | FF39: =Find_Month(FF$33,FF$34,$F39) -> FALSE | FG39: =Find_Month(FG$33,FG$34,$F39) -> TRUE | FH39: =Find_Month(FH$33,FH$34,$F39) -> FALSE | FI39: =Find_Month(FI$33,FI$34,$F39) -> TRUE | FJ39: =Find_Month(FJ$33,FJ$34,$F39) -> FALSE | FK39: =Find_Month(FK$33,FK$34,$F39) -> TRUE | FL39: =Find_Month(FL$33,FL$34,$F39) -> FALSE | FM39: =Find_Month(FM$33,FM$34,$F39) -> TRUE | FN39: =Find_Month(FN$33,FN$34,$F39) -> FALSE | FO39: =Find_Month(FO$33,FO$34,$F39) -> TRUE | FP39: =Find_Month(FP$33,FP$34,$F39) -> FALSE | FQ39: =Find_Month(FQ$33,FQ$34,$F39) -> TRUE | FR39: =Find_Month(FR$33,FR$34,$F39) -> FALSE | FS39: =Find_Month(FS$33,FS$34,$F39) -> TRUE | FT39: =Find_Month(FT$33,FT$34,$F39) -> FALSE | FU39: =Find_Month(FU$33,FU$34,$F39) -> TRUE | FV39: =Find_Month(FV$33,FV$34,$F39) -> FALSE | FW39: =Find_Month(FW$33,FW$34,$F39) -> TRUE | FX39: =Find_Month(FX$33,FX$34,$F39) -> FALSE | FY39: =Find_Month(FY$33,FY$34,$F39) -> TRUE | FZ39: =Find_Month(FZ$33,FZ$34,$F39) -> FALSE | GA39: =Find_Month(GA$33,GA$34,$F39) -> TRUE | GB39: =Find_Month(GB$33,GB$34,$F39) -> FALSE | GC39: =Find_Month(GC$33,GC$34,$F39) -> TRUE | GD39: =Find_Month(GD$33,GD$34,$F39) -> FALSE | GE39: =Find_Month(GE$33,GE$34,$F39) -> TRUE | GF39: =Find_Month(GF$33,GF$34,$F39) -> FALSE | GG39: =Find_Month(GG$33,GG$34,$F39) -> TRUE | GH39: =Find_Month(GH$33,GH$34,$F39) -> FALSE | GI39: =Find_Month(GI$33,GI$34,$F39) -> TRUE | GJ39: =Find_Month(GJ$33,GJ$34,$F39) -> FALSE | GK39: =Find_Month(GK$33,GK$34,$F39) -> TRUE | GL39: =Find_Month(GL$33,GL$34,$F39) -> FALSE | GM39: =Find_Month(GM$33,GM$34,$F39) -> TRUE | GN39: =Find_Month(GN$33,GN$34,$F39) -> FALSE | GO39: =Find_Month(GO$33,GO$34,$F39) -> TRUE | GP39: =Find_Month(GP$33,GP$34,$F39) -> FALSE | GQ39: =Find_Month(GQ$33,GQ$34,$F39) -> TRUE | GR39: =Find_Month(GR$33,GR$34,$F39) -> FALSE | GS39: =Find_Month(GS$33,GS$34,$F39) -> TRUE | GT39: =Find_Month(GT$33,GT$34,$F39) -> FALSE | GU39: =Find_Month(GU$33,GU$34,$F39) -> TRUE | GV39: =Find_Month(GV$33,GV$34,$F39) -> FALSE | GW39: =Find_Month(GW$33,GW$34,$F39) -> TRUE | GX39: =Find_Month(GX$33,GX$34,$F39) -> FALSE | GY39: =Find_Month(GY$33,GY$34,$F39) -> TRUE | GZ39: =Find_Month(GZ$33,GZ$34,$F39) -> FALSE | HA39: =Find_Month(HA$33,HA$34,$F39) -> TRUE | HB39: =Find_Month(HB$33,HB$34,$F39) -> FALSE | HC39: =Find_Month(HC$33,HC$34,$F39) -> TRUE | HD39: =Find_Month(HD$33,HD$34,$F39) -> FALSE | HE39: =Find_Month(HE$33,HE$34,$F39) -> TRUE | HF39: =Find_Month(HF$33,HF$34,$F39) -> FALSE | HG39: =Find_Month(HG$33,HG$34,$F39) -> TRUE | HH39: =Find_Month(HH$33,HH$34,$F39) -> FALSE | HI39: =Find_Month(HI$33,HI$34,$F39) -> TRUE | HJ39: =Find_Month(HJ$33,HJ$34,$F39) -> FALSE | HK39: =Find_Month(HK$33,HK$34,$F39) -> TRUE | HL39: =Find_Month(HL$33,HL$34,$F39) -> FALSE | HM39: =Find_Month(HM$33,HM$34,$F39) -> TRUE | HN39: =Find_Month(HN$33,HN$34,$F39) -> FALSE | HO39: =Find_Month(HO$33,HO$34,$F39) -> TRUE | HP39: =Find_Month(HP$33,HP$34,$F39) -> FALSE | HQ39: =Find_Month(HQ$33,HQ$34,$F39) -> TRUE | HR39: =Find_Month(HR$33,HR$34,$F39) -> FALSE | HS39: =Find_Month(HS$33,HS$34,$F39) -> TRUE | HT39: =Find_Month(HT$33,HT$34,$F39) -> FALSE | HU39: =Find_Month(HU$33,HU$34,$F39) -> TRUE | HV39: =Find_Month(HV$33,HV$34,$F39) -> FALSE | HW39: =Find_Month(HW$33,HW$34,$F39) -> TRUE | HX39: =Find_Month(HX$33,HX$34,$F39) -> FALSE | HY39: =Find_Month(HY$33,HY$34,$F39) -> TRUE | HZ39: =Find_Month(HZ$33,HZ$34,$F39) -> FALSE | IA39: =Find_Month(IA$33,IA$34,$F39) -> TRUE | IB39: =Find_Month(IB$33,IB$34,$F39) -> FALSE | IC39: =Find_Month(IC$33,IC$34,$F39) -> TRUE | ID39: =Find_Month(ID$33,ID$34,$F39) -> FALSE | IE39: =Find_Month(IE$33,IE$34,$F39) -> TRUE | IF39: =Find_Month(IF$33,IF$34,$F39) -> FALSE | IG39: =Find_Month(IG$33,IG$34,$F39) -> TRUE | IH39: =Find_Month(IH$33,IH$34,$F39) -> FALSE | II39: =Find_Month(II$33,II$34,$F39) -> TRUE | IJ39: =Find_Month(IJ$33,IJ$34,$F39) -> FALSE | IK39: =Find_Month(IK$33,IK$34,$F39) -> TRUE | IL39: =Find_Month(IL$33,IL$34,$F39) -> FALSE | IM39: =Find_Month(IM$33,IM$34,$F39) -> TRUE | IN39: =Find_Month(IN$33,IN$34,$F39) -> FALSE | IO39: =Find_Month(IO$33,IO$34,$F39) -> TRUE | IP39: =Find_Month(IP$33,IP$34,$F39) -> FALSE | IQ39: =Find_Month(IQ$33,IQ$34,$F39) -> TRUE | IR39: =Find_Month(IR$33,IR$34,$F39) -> FALSE | IS39: =Find_Month(IS$33,IS$34,$F39) -> TRUE | IT39: =Find_Month(IT$33,IT$34,$F39) -> FALSE | IU39: =Find_Month(IU$33,IU$34,$F39) -> TRUE | IV39: =Find_Month(IV$33,IV$34,$F39) -> FALSE | IW39: =Find_Month(IW$33,IW$34,$F39) -> TRUE | IX39: =Find_Month(IX$33,IX$34,$F39) -> FALSE | IY39: =Find_Month(IY$33,IY$34,$F39) -> TRUE | IZ39: =Find_Month(IZ$33,IZ$34,$F39) -> FALSE | JA39: =Find_Month(JA$33,JA$34,$F39) -> TRUE | JB39: =Find_Month(JB$33,JB$34,$F39) -> FALSE | JC39: =Find_Month(JC$33,JC$34,$F39) -> TRUE | JD39: =Find_Month(JD$33,JD$34,$F39) -> FALSE | JE39: =Find_Month(JE$33,JE$34,$F39) -> TRUE | JF39: =Find_Month(JF$33,JF$34,$F39) -> FALSE | JG39: =Find_Month(JG$33,JG$34,$F39) -> TRUE | JH39: =Find_Month(JH$33,JH$34,$F39) -> FALSE | JI39: =Find_Month(JI$33,JI$34,$F39) -> TRUE | JJ39: =Find_Month(JJ$33,JJ$34,$F39) -> FALSE | JK39: =Find_Month(JK$33,JK$34,$F39) -> TRUE | JL39: =Find_Month(JL$33,JL$34,$F39) -> FALSE | JM39: =Find_Month(JM$33,JM$34,$F39) -> TRUE | JN39: =Find_Month(JN$33,JN$34,$F39) -> FALSE | JO39: =Find_Month(JO$33,JO$34,$F39) -> TRUE | JP39: =Find_Month(JP$33,JP$34,$F39) -> FALSE | JQ39: =Find_Month(JQ$33,JQ$34,$F39) -> TRUE | JR39: =Find_Month(JR$33,JR$34,$F39) -> FALSE | JS39: =Find_Month(JS$33,JS$34,$F39) -> TRUE | JT39: =Find_Month(JT$33,JT$34,$F39) -> FALSE | JU39: =Find_Month(JU$33,JU$34,$F39) -> TRUE | JV39: =Find_Month(JV$33,JV$34,$F39) -> FALSE | JW39: =Find_Month(JW$33,JW$34,$F39) -> TRUE | JX39: =Find_Month(JX$33,JX$34,$F39) -> FALSE | JY39: =Find_Month(JY$33,JY$34,$F39) -> TRUE | JZ39: =Find_Month(JZ$33,JZ$34,$F39) -> FALSE | KA39: =Find_Month(KA$33,KA$34,$F39) -> TRUE | KB39: =Find_Month(KB$33,KB$34,$F39) -> FALSE | KC39: =Find_Month(KC$33,KC$34,$F39) -> TRUE | KD39: =Find_Month(KD$33,KD$34,$F39) -> FALSE | KE39: =Find_Month(KE$33,KE$34,$F39) -> TRUE | KF39: =Find_Month(KF$33,KF$34,$F39) -> FALSE | KG39: =Find_Month(KG$33,KG$34,$F39) -> TRUE | KH39: =Find_Month(KH$33,KH$34,$F39) -> FALSE | KI39: =Find_Month(KI$33,KI$34,$F39) -> TRUE | KJ39: =Find_Month(KJ$33,KJ$34,$F39) -> FALSE | KK39: =Find_Month(KK$33,KK$34,$F39) -> TRUE | KL39: =Find_Month(KL$33,KL$34,$F39) -> FALSE | KM39: =Find_Month(KM$33,KM$34,$F39) -> TRUE | KN39: =Find_Month(KN$33,KN$34,$F39) -> FALSE | KO39: =Find_Month(KO$33,KO$34,$F39) -> TRUE | KP39: =Find_Month(KP$33,KP$34,$F39) -> FALSE | KQ39: =Find_Month(KQ$33,KQ$34,$F39) -> TRUE | KR39: =Find_Month(KR$33,KR$34,$F39) -> FALSE | KS39: =Find_Month(KS$33,KS$34,$F39) -> TRUE | KT39: =Find_Month(KT$33,KT$34,$F39) -> FALSE | KU39: =Find_Month(KU$33,KU$34,$F39) -> TRUE | KV39: =Find_Month(KV$33,KV$34,$F39) -> FALSE | KW39: =Find_Month(KW$33,KW$34,$F39) -> TRUE | KX39: =Find_Month(KX$33,KX$34,$F39) -> FALSE | KY39: =Find_Month(KY$33,KY$34,$F39) -> TRUE | KZ39: =Find_Month(KZ$33,KZ$34,$F39) -> FALSE | LA39: =Find_Month(LA$33,LA$34,$F39) -> TRUE | LB39: =Find_Month(LB$33,LB$34,$F39) -> FALSE | LC39: =Find_Month(LC$33,LC$34,$F39) -> TRUE | LD39: =Find_Month(LD$33,LD$34,$F39) -> FALSE | LE39: =Find_Month(LE$33,LE$34,$F39) -> TRUE | LF39: =Find_Month(LF$33,LF$34,$F39) -> FALSE | LG39: =Find_Month(LG$33,LG$34,$F39) -> TRUE | LH39: =Find_Month(LH$33,LH$34,$F39) -> FALSE | LI39: =Find_Month(LI$33,LI$34,$F39) -> TRUE | LJ39: =Find_Month(LJ$33,LJ$34,$F39) -> FALSE | LK39: =Find_Month(LK$33,LK$34,$F39) -> TRUE | LL39: =Find_Month(LL$33,LL$34,$F39) -> FALSE | LM39: =Find_Month(LM$33,LM$34,$F39) -> TRUE | LN39: =Find_Month(LN$33,LN$34,$F39) -> FALSE | LO39: =Find_Month(LO$33,LO$34,$F39) -> TRUE | LP39: =Find_Month(LP$33,LP$34,$F39) -> FALSE | LQ39: =Find_Month(LQ$33,LQ$34,$F39) -> TRUE | LR39: =Find_Month(LR$33,LR$34,$F39) -> FALSE | LS39: =Find_Month(LS$33,LS$34,$F39) -> TRUE | LT39: =Find_Month(LT$33,LT$34,$F39) -> FALSE | LU39: =Find_Month(LU$33,LU$34,$F39) -> TRUE | LV39: =Find_Month(LV$33,LV$34,$F39) -> FALSE | LW39: =Find_Month(LW$33,LW$34,$F39) -> TRUE | LX39: =Find_Month(LX$33,LX$34,$F39) -> FALSE | LY39: =Find_Month(LY$33,LY$34,$F39) -> TRUE | LZ39: =Find_Month(LZ$33,LZ$34,$F39) -> FALSE | MA39: =Find_Month(MA$33,MA$34,$F39) -> TRUE | MB39: =Find_Month(MB$33,MB$34,$F39) -> FALSE | MC39: =Find_Month(MC$33,MC$34,$F39) -> TRUE | MD39: =Find_Month(MD$33,MD$34,$F39) -> FALSE | ME39: =Find_Month(ME$33,ME$34,$F39) -> TRUE | MF39: =Find_Month(MF$33,MF$34,$F39) -> FALSE | MG39: =Find_Month(MG$33,MG$34,$F39) -> TRUE | MH39: =Find_Month(MH$33,MH$34,$F39) -> FALSE | MI39: =Find_Month(MI$33,MI$34,$F39) -> TRUE | MJ39: =Find_Month(MJ$33,MJ$34,$F39) -> FALSE | MK39: =Find_Month(MK$33,MK$34,$F39) -> TRUE | ML39: =Find_Month(ML$33,ML$34,$F39) -> FALSE | MM39: =Find_Month(MM$33,MM$34,$F39) -> TRUE | MN39: =Find_Month(MN$33,MN$34,$F39) -> FALSE | MO39: =Find_Month(MO$33,MO$34,$F39) -> TRUE | MP39: =Find_Month(MP$33,MP$34,$F39) -> FALSE | MQ39: =Find_Month(MQ$33,MQ$34,$F39) -> TRUE | MR39: =Find_Month(MR$33,MR$34,$F39) -> FALSE | MS39: =Find_Month(MS$33,MS$34,$F39) -> TRUE | MT39: =Find_Month(MT$33,MT$34,$F39) -> FALSE | MU39: =Find_Month(MU$33,MU$34,$F39) -> TRUE | MV39: =Find_Month(MV$33,MV$34,$F39) -> FALSE | MW39: =Find_Month(MW$33,MW$34,$F39) -> TRUE | MX39: =Find_Month(MX$33,MX$34,$F39) -> FALSE | MY39: =Find_Month(MY$33,MY$34,$F39) -> TRUE | MZ39: =Find_Month(MZ$33,MZ$34,$F39) -> FALSE | NA39: =Find_Month(NA$33,NA$34,$F39) -> TRUE | NB39: =Find_Month(NB$33,NB$34,$F39) -> FALSE | NC39: =Find_Month(NC$33,NC$34,$F39) -> TRUE | ND39: =Find_Month(ND$33,ND$34,$F39) -> FALSE | NE39: =Find_Month(NE$33,NE$34,$F39) -> TRUE | NF39: =Find_Month(NF$33,NF$34,$F39) -> FALSE | NG39: =Find_Month(NG$33,NG$34,$F39) -> TRUE | NH39: =Find_Month(NH$33,NH$34,$F39) -> FALSE | NI39: =Find_Month(NI$33,NI$34,$F39) -> TRUE | NJ39: =Find_Month(NJ$33,NJ$34,$F39) -> FALSE | NK39: =Find_Month(NK$33,NK$34,$F39) -> TRUE | NL39: =Find_Month(NL$33,NL$34,$F39) -> FALSE | NM39: =Find_Month(NM$33,NM$34,$F39) -> TRUE | NN39: =Find_Month(NN$33,NN$34,$F39) -> FALSE | NO39: =Find_Month(NO$33,NO$34,$F39) -> TRUE | NP39: =Find_Month(NP$33,NP$34,$F39) -> FALSE | NQ39: =Find_Month(NQ$33,NQ$34,$F39) -> TRUE | NR39: =Find_Month(NR$33,NR$34,$F39) -> FALSE | NS39: =Find_Month(NS$33,NS$34,$F39) -> TRUE | NT39: =Find_Month(NT$33,NT$34,$F39) -> FALSE | NU39: =Find_Month(NU$33,NU$34,$F39) -> TRUE | NV39: =Find_Month(NV$33,NV$34,$F39) -> FALSE | NW39: =Find_Month(NW$33,NW$34,$F39) -> TRUE | NX39: =Find_Month(NX$33,NX$34,$F39) -> FALSE | NY39: =Find_Month(NY$33,NY$34,$F39) -> TRUE | NZ39: =Find_Month(NZ$33,NZ$34,$F39) -> FALSE | OA39: =Find_Month(OA$33,OA$34,$F39) -> TRUE | OB39: =Find_Month(OB$33,OB$34,$F39) -> FALSE | OC39: =Find_Month(OC$33,OC$34,$F39) -> TRUE | OD39: =Find_Month(OD$33,OD$34,$F39) -> FALSE | OE39: =Find_Month(OE$33,OE$34,$F39) -> TRUE | OF39: =Find_Month(OF$33,OF$34,$F39) -> FALSE | OG39: =Find_Month(OG$33,OG$34,$F39) -> TRUE | OH39: =Find_Month(OH$33,OH$34,$F39) -> FALSE | OI39: =Find_Month(OI$33,OI$34,$F39) -> TRUE | OJ39: =Find_Month(OJ$33,OJ$34,$F39) -> FALSE | OK39: =Find_Month(OK$33,OK$34,$F39) -> TRUE | OL39: =Find_Month(OL$33,OL$34,$F39) -> FALSE | OM39: =Find_Month(OM$33,OM$34,$F39) -> TRUE | ON39: =Find_Month(ON$33,ON$34,$F39) -> FALSE | OO39: =Find_Month(OO$33,OO$34,$F39) -> TRUE | OP39: =Find_Month(OP$33,OP$34,$F39) -> FALSE | OQ39: =Find_Month(OQ$33,OQ$34,$F39) -> TRUE | OR39: =Find_Month(OR$33,OR$34,$F39) -> FALSE | OS39: =Find_Month(OS$33,OS$34,$F39) -> TRUE | OT39: =Find_Month(OT$33,OT$34,$F39) -> FALSE | OU39: =Find_Month(OU$33,OU$34,$F39) -> TRUE | OV39: =Find_Month(OV$33,OV$34,$F39) -> FALSE | OW39: =Find_Month(OW$33,OW$34,$F39) -> TRUE | OX39: =Find_Month(OX$33,OX$34,$F39) -> FALSE | OY39: =Find_Month(OY$33,OY$34,$F39) -> TRUE | OZ39: =Find_Month(OZ$33,OZ$34,$F39) -> FALSE | PA39: =Find_Month(PA$33,PA$34,$F39) -> TRUE | PB39: =Find_Month(PB$33,PB$34,$F39) -> FALSE | PC39: =Find_Month(PC$33,PC$34,$F39) -> TRUE | PD39: =Find_Month(PD$33,PD$34,$F39) -> FALSE | PE39: =Find_Month(PE$33,PE$34,$F39) -> TRUE | PF39: =Find_Month(PF$33,PF$34,$F39) -> FALSE | PG39: =Find_Month(PG$33,PG$34,$F39) -> TRUE | PH39: =Find_Month(PH$33,PH$34,$F39) -> FALSE | PI39: =Find_Month(PI$33,PI$34,$F39) -> TRUE | PJ39: =Find_Month(PJ$33,PJ$34,$F39) -> FALSE | PK39: =Find_Month(PK$33,PK$34,$F39) -> TRUE | PL39: =Find_Month(PL$33,PL$34,$F39) -> FALSE | PM39: =Find_Month(PM$33,PM$34,$F39) -> TRUE | PN39: =Find_Month(PN$33,PN$34,$F39) -> FALSE | PO39: =Find_Month(PO$33,PO$34,$F39) -> TRUE | PP39: =Find_Month(PP$33,PP$34,$F39) -> FALSE | PQ39: =Find_Month(PQ$33,PQ$34,$F39) -> TRUE | PR39: =Find_Month(PR$33,PR$34,$F39) -> FALSE | PS39: =Find_Month(PS$33,PS$34,$F39) -> TRUE | PT39: =Find_Month(PT$33,PT$34,$F39) -> FALSE | PU39: =Find_Month(PU$33,PU$34,$F39) -> TRUE | PV39: =Find_Month(PV$33,PV$34,$F39) -> FALSE | PW39: =Find_Month(PW$33,PW$34,$F39) -> TRUE | PX39: =Find_Month(PX$33,PX$34,$F39) -> FALSE | PY39: =Find_Month(PY$33,PY$34,$F39) -> TRUE | PZ39: =Find_Month(PZ$33,PZ$34,$F39) -> FALSE | QA39: =Find_Month(QA$33,QA$34,$F39) -> TRUE | QB39: =Find_Month(QB$33,QB$34,$F39) -> FALSE | QC39: =Find_Month(QC$33,QC$34,$F39) -> TRUE | QD39: =Find_Month(QD$33,QD$34,$F39) -> FALSE | QE39: =Find_Month(QE$33,QE$34,$F39) -> TRUE | QF39: =Find_Month(QF$33,QF$34,$F39) -> FALSE | QG39: =Find_Month(QG$33,QG$34,$F39) -> TRUE | QH39: =Find_Month(QH$33,QH$34,$F39) -> FALSE | QI39: =Find_Month(QI$33,QI$34,$F39) -> TRUE | QJ39: =Find_Month(QJ$33,QJ$34,$F39) -> FALSE | QK39: =Find_Month(QK$33,QK$34,$F39) -> TRUE | QL39: =Find_Month(QL$33,QL$34,$F39) -> FALSE | QM39: =Find_Month(QM$33,QM$34,$F39) -> TRUE | QN39: =Find_Month(QN$33,QN$34,$F39) -> FALSE | QO39: =Find_Month(QO$33,QO$34,$F39) -> TRUE | QP39: =Find_Month(QP$33,QP$34,$F39) -> FALSE | QQ39: =Find_Month(QQ$33,QQ$34,$F39) -> TRUE | QR39: =Find_Month(QR$33,QR$34,$F39) -> FALSE | QS39: =Find_Month(QS$33,QS$34,$F39) -> TRUE | QT39: =Find_Month(QT$33,QT$34,$F39) -> FALSE | QU39: =Find_Month(QU$33,QU$34,$F39) -> TRUE | QV39: =Find_Month(QV$33,QV$34,$F39) -> FALSE | QW39: =Find_Month(QW$33,QW$34,$F39) -> TRUE | QX39: =Find_Month(QX$33,QX$34,$F39) -> FALSE | QY39: =Find_Month(QY$33,QY$34,$F39) -> TRUE | QZ39: =Find_Month(QZ$33,QZ$34,$F39) -> FALSE | RA39: =Find_Month(RA$33,RA$34,$F39) -> TRUE | RB39: =Find_Month(RB$33,RB$34,$F39) -> FALSE | RC39: =Find_Month(RC$33,RC$34,$F39) -> TRUE | RD39: =Find_Month(RD$33,RD$34,$F39) -> FALSE | RE39: =Find_Month(RE$33,RE$34,$F39) -> TRUE | RF39: =Find_Month(RF$33,RF$34,$F39) -> FALSE | RG39: =Find_Month(RG$33,RG$34,$F39) -> TRUE | RH39: =Find_Month(RH$33,RH$34,$F39) -> FALSE | RI39: =Find_Month(RI$33,RI$34,$F39) -> TRUE | RJ39: =Find_Month(RJ$33,RJ$34,$F39) -> FALSE | RK39: =Find_Month(RK$33,RK$34,$F39) -> TRUE | RL39: =Find_Month(RL$33,RL$34,$F39) -> FALSE | RM39: =Find_Month(RM$33,RM$34,$F39) -> TRUE | RN39: =Find_Month(RN$33,RN$34,$F39) -> FALSE | RO39: =Find_Month(RO$33,RO$34,$F39) -> TRUE | RP39: =Find_Month(RP$33,RP$34,$F39) -> FALSE | RQ39: =Find_Month(RQ$33,RQ$34,$F39) -> TRUE | RR39: =Find_Month(RR$33,RR$34,$F39) -> FALSE | RS39: =Find_Month(RS$33,RS$34,$F39) -> TRUE | RT39: =Find_Month(RT$33,RT$34,$F39) -> FALSE | RU39: =Find_Month(RU$33,RU$34,$F39) -> TRUE | RV39: =Find_Month(RV$33,RV$34,$F39) -> FALSE | RW39: =Find_Month(RW$33,RW$34,$F39) -> TRUE | RX39: =Find_Month(RX$33,RX$34,$F39) -> FALSE | RY39: =Find_Month(RY$33,RY$34,$F39) -> TRUE | RZ39: =Find_Month(RZ$33,RZ$34,$F39) -> FALSE | SA39: =Find_Month(SA$33,SA$34,$F39) -> TRUE | SB39: =Find_Month(SB$33,SB$34,$F39) -> FALSE | SC39: =Find_Month(SC$33,SC$34,$F39) -> FALSE | SD39: =Find_Month(SD$33,SD$34,$F39) -> FALSE | SE39: =Find_Month(SE$33,SE$34,$F39) -> FALSE | SF39: =Find_Month(SF$33,SF$34,$F39) -> FALSE | SG39: =Find_Month(SG$33,SG$34,$F39) -> FALSE | SH39: =Find_Month(SH$33,SH$34,$F39) -> FALSE | SI39: =Find_Month(SI$33,SI$34,$F39) -> FALSE | SJ39: =Find_Month(SJ$33,SJ$34,$F39) -> FALSE | SK39: =Find_Month(SK$33,SK$34,$F39) -> FALSE | SL39: =Find_Month(SL$33,SL$34,$F39) -> FALSE | SM39: =Find_Month(SM$33,SM$34,$F39) -> FALSE | SN39: =Find_Month(SN$33,SN$34,$F39) -> FALSE | SO39: =Find_Month(SO$33,SO$34,$F39) -> FALSE | SP39: =Find_Month(SP$33,SP$34,$F39) -> FALSE | SQ39: =Find_Month(SQ$33,SQ$34,$F39) -> FALSE | SR39: =Find_Month(SR$33,SR$34,$F39) -> FALSE | SS39: =Find_Month(SS$33,SS$34,$F39) -> FALSE | ST39: =Find_Month(ST$33,ST$34,$F39) -> FALSE | SU39: =Find_Month(SU$33,SU$34,$F39) -> FALSE | SV39: =Find_Month(SV$33,SV$34,$F39) -> FALSE | SW39: =Find_Month(SW$33,SW$34,$F39) -> FALSE | SX39: =Find_Month(SX$33,SX$34,$F39) -> FALSE | SY39: =Find_Month(SY$33,SY$34,$F39) -> FALSE | SZ39: =Find_Month(SZ$33,SZ$34,$F39) -> FALSE | TA39: =Find_Month(TA$33,TA$34,$F39) -> FALSE | TB39: =Find_Month(TB$33,TB$34,$F39) -> FALSE | TC39: =Find_Month(TC$33,TC$34,$F39) -> FALSE | TD39: =Find_Month(TD$33,TD$34,$F39) -> FALSE | TE39: =Find_Month(TE$33,TE$34,$F39) -> FALSE | TF39: =Find_Month(TF$33,TF$34,$F39) -> FALSE | TG39: =Find_Month(TG$33,TG$34,$F39) -> FALSE | TH39: =Find_Month(TH$33,TH$34,$F39) -> FALSE | TI39: =Find_Month(TI$33,TI$34,$F39) -> FALSE | TJ39: =Find_Month(TJ$33,TJ$34,$F39) -> FALSE | TK39: =Find_Month(TK$33,TK$34,$F39) -> FALSE | TL39: =Find_Month(TL$33,TL$34,$F39) -> FALSE | TM39: =Find_Month(TM$33,TM$34,$F39) -> FALSE | TN39: =Find_Month(TN$33,TN$34,$F39) -> FALSE | TO39: =Find_Month(TO$33,TO$34,$F39) -> FALSE | TP39: =Find_Month(TP$33,TP$34,$F39) -> FALSE | TQ39: =Find_Month(TQ$33,TQ$34,$F39) -> FALSE | TR39: =Find_Month(TR$33,TR$34,$F39) -> FALSE | TS39: =Find_Month(TS$33,TS$34,$F39) -> FALSE | TT39: =Find_Month(TT$33,TT$34,$F39) -> FALSE | TU39: =Find_Month(TU$33,TU$34,$F39) -> FALSE | TV39: =Find_Month(TV$33,TV$34,$F39) -> FALSE | TW39: =Find_Month(TW$33,TW$34,$F39) -> FALSE | TX39: =Find_Month(TX$33,TX$34,$F39) -> FALSE | TY39: =Find_Month(TY$33,TY$34,$F39) -> FALSE
F40: 4 | G40: 301.3629854 | H40: 0.09402131594 | J40: =Find_Month(J$33,J$34,$F40) -> FALSE | K40: =Find_Month(K$33,K$34,$F40) -> FALSE | L40: =Find_Month(L$33,L$34,$F40) -> FALSE | M40: =Find_Month(M$33,M$34,$F40) -> TRUE | N40: =Find_Month(N$33,N$34,$F40) -> FALSE | O40: =Find_Month(O$33,O$34,$F40) -> FALSE | P40: =Find_Month(P$33,P$34,$F40) -> FALSE | Q40: =Find_Month(Q$33,Q$34,$F40) -> FALSE | R40: =Find_Month(R$33,R$34,$F40) -> FALSE | S40: =Find_Month(S$33,S$34,$F40) -> FALSE | T40: =Find_Month(T$33,T$34,$F40) -> FALSE | U40: =Find_Month(U$33,U$34,$F40) -> FALSE | V40: =Find_Month(V$33,V$34,$F40) -> FALSE | W40: =Find_Month(W$33,W$34,$F40) -> FALSE | X40: =Find_Month(X$33,X$34,$F40) -> FALSE | Y40: =Find_Month(Y$33,Y$34,$F40) -> TRUE | Z40: =Find_Month(Z$33,Z$34,$F40) -> FALSE | AA40: =Find_Month(AA$33,AA$34,$F40) -> FALSE | AB40: =Find_Month(AB$33,AB$34,$F40) -> FALSE | AC40: =Find_Month(AC$33,AC$34,$F40) -> FALSE | AD40: =Find_Month(AD$33,AD$34,$F40) -> FALSE | AE40: =Find_Month(AE$33,AE$34,$F40) -> TRUE | AF40: =Find_Month(AF$33,AF$34,$F40) -> FALSE | AG40: =Find_Month(AG$33,AG$34,$F40) -> TRUE | AH40: =Find_Month(AH$33,AH$34,$F40) -> FALSE | AI40: =Find_Month(AI$33,AI$34,$F40) -> TRUE | AJ40: =Find_Month(AJ$33,AJ$34,$F40) -> FALSE | AK40: =Find_Month(AK$33,AK$34,$F40) -> TRUE | AL40: =Find_Month(AL$33,AL$34,$F40) -> FALSE | AM40: =Find_Month(AM$33,AM$34,$F40) -> TRUE | AN40: =Find_Month(AN$33,AN$34,$F40) -> FALSE | AO40: =Find_Month(AO$33,AO$34,$F40) -> TRUE | AP40: =Find_Month(AP$33,AP$34,$F40) -> FALSE | AQ40: =Find_Month(AQ$33,AQ$34,$F40) -> TRUE | AR40: =Find_Month(AR$33,AR$34,$F40) -> FALSE | AS40: =Find_Month(AS$33,AS$34,$F40) -> TRUE | AT40: =Find_Month(AT$33,AT$34,$F40) -> FALSE | AU40: =Find_Month(AU$33,AU$34,$F40) -> TRUE | AV40: =Find_Month(AV$33,AV$34,$F40) -> FALSE | AW40: =Find_Month(AW$33,AW$34,$F40) -> TRUE | AX40: =Find_Month(AX$33,AX$34,$F40) -> FALSE | AY40: =Find_Month(AY$33,AY$34,$F40) -> TRUE | AZ40: =Find_Month(AZ$33,AZ$34,$F40) -> FALSE | BA40: =Find_Month(BA$33,BA$34,$F40) -> TRUE | BB40: =Find_Month(BB$33,BB$34,$F40) -> FALSE | BC40: =Find_Month(BC$33,BC$34,$F40) -> TRUE | BD40: =Find_Month(BD$33,BD$34,$F40) -> FALSE | BE40: =Find_Month(BE$33,BE$34,$F40) -> TRUE | BF40: =Find_Month(BF$33,BF$34,$F40) -> FALSE | BG40: =Find_Month(BG$33,BG$34,$F40) -> TRUE | BH40: =Find_Month(BH$33,BH$34,$F40) -> FALSE | BI40: =Find_Month(BI$33,BI$34,$F40) -> TRUE | BJ40: =Find_Month(BJ$33,BJ$34,$F40) -> FALSE | BK40: =Find_Month(BK$33,BK$34,$F40) -> TRUE | BL40: =Find_Month(BL$33,BL$34,$F40) -> FALSE | BM40: =Find_Month(BM$33,BM$34,$F40) -> TRUE | BN40: =Find_Month(BN$33,BN$34,$F40) -> FALSE | BO40: =Find_Month(BO$33,BO$34,$F40) -> TRUE | BP40: =Find_Month(BP$33,BP$34,$F40) -> FALSE | BQ40: =Find_Month(BQ$33,BQ$34,$F40) -> TRUE | BR40: =Find_Month(BR$33,BR$34,$F40) -> FALSE | BS40: =Find_Month(BS$33,BS$34,$F40) -> TRUE | BT40: =Find_Month(BT$33,BT$34,$F40) -> FALSE | BU40: =Find_Month(BU$33,BU$34,$F40) -> TRUE | BV40: =Find_Month(BV$33,BV$34,$F40) -> FALSE | BW40: =Find_Month(BW$33,BW$34,$F40) -> TRUE | BX40: =Find_Month(BX$33,BX$34,$F40) -> FALSE | BY40: =Find_Month(BY$33,BY$34,$F40) -> TRUE | BZ40: =Find_Month(BZ$33,BZ$34,$F40) -> FALSE | CA40: =Find_Month(CA$33,CA$34,$F40) -> TRUE | CB40: =Find_Month(CB$33,CB$34,$F40) -> FALSE | CC40: =Find_Month(CC$33,CC$34,$F40) -> TRUE | CD40: =Find_Month(CD$33,CD$34,$F40) -> FALSE | CE40: =Find_Month(CE$33,CE$34,$F40) -> TRUE | CF40: =Find_Month(CF$33,CF$34,$F40) -> FALSE | CG40: =Find_Month(CG$33,CG$34,$F40) -> TRUE | CH40: =Find_Month(CH$33,CH$34,$F40) -> FALSE | CI40: =Find_Month(CI$33,CI$34,$F40) -> TRUE | CJ40: =Find_Month(CJ$33,CJ$34,$F40) -> FALSE | CK40: =Find_Month(CK$33,CK$34,$F40) -> TRUE | CL40: =Find_Month(CL$33,CL$34,$F40) -> FALSE | CM40: =Find_Month(CM$33,CM$34,$F40) -> TRUE | CN40: =Find_Month(CN$33,CN$34,$F40) -> FALSE | CO40: =Find_Month(CO$33,CO$34,$F40) -> TRUE | CP40: =Find_Month(CP$33,CP$34,$F40) -> FALSE | CQ40: =Find_Month(CQ$33,CQ$34,$F40) -> TRUE | CR40: =Find_Month(CR$33,CR$34,$F40) -> FALSE | CS40: =Find_Month(CS$33,CS$34,$F40) -> TRUE | CT40: =Find_Month(CT$33,CT$34,$F40) -> FALSE | CU40: =Find_Month(CU$33,CU$34,$F40) -> TRUE | CV40: =Find_Month(CV$33,CV$34,$F40) -> FALSE | CW40: =Find_Month(CW$33,CW$34,$F40) -> TRUE | CX40: =Find_Month(CX$33,CX$34,$F40) -> FALSE | CY40: =Find_Month(CY$33,CY$34,$F40) -> TRUE | CZ40: =Find_Month(CZ$33,CZ$34,$F40) -> FALSE | DA40: =Find_Month(DA$33,DA$34,$F40) -> TRUE | DB40: =Find_Month(DB$33,DB$34,$F40) -> FALSE | DC40: =Find_Month(DC$33,DC$34,$F40) -> TRUE | DD40: =Find_Month(DD$33,DD$34,$F40) -> FALSE | DE40: =Find_Month(DE$33,DE$34,$F40) -> TRUE | DF40: =Find_Month(DF$33,DF$34,$F40) -> FALSE | DG40: =Find_Month(DG$33,DG$34,$F40) -> TRUE | DH40: =Find_Month(DH$33,DH$34,$F40) -> FALSE | DI40: =Find_Month(DI$33,DI$34,$F40) -> TRUE | DJ40: =Find_Month(DJ$33,DJ$34,$F40) -> FALSE | DK40: =Find_Month(DK$33,DK$34,$F40) -> TRUE | DL40: =Find_Month(DL$33,DL$34,$F40) -> FALSE | DM40: =Find_Month(DM$33,DM$34,$F40) -> TRUE | DN40: =Find_Month(DN$33,DN$34,$F40) -> FALSE | DO40: =Find_Month(DO$33,DO$34,$F40) -> TRUE | DP40: =Find_Month(DP$33,DP$34,$F40) -> FALSE | DQ40: =Find_Month(DQ$33,DQ$34,$F40) -> TRUE | DR40: =Find_Month(DR$33,DR$34,$F40) -> FALSE | DS40: =Find_Month(DS$33,DS$34,$F40) -> TRUE | DT40: =Find_Month(DT$33,DT$34,$F40) -> FALSE | DU40: =Find_Month(DU$33,DU$34,$F40) -> TRUE | DV40: =Find_Month(DV$33,DV$34,$F40) -> FALSE | DW40: =Find_Month(DW$33,DW$34,$F40) -> TRUE | DX40: =Find_Month(DX$33,DX$34,$F40) -> FALSE | DY40: =Find_Month(DY$33,DY$34,$F40) -> TRUE | DZ40: =Find_Month(DZ$33,DZ$34,$F40) -> FALSE | EA40: =Find_Month(EA$33,EA$34,$F40) -> TRUE | EB40: =Find_Month(EB$33,EB$34,$F40) -> FALSE | EC40: =Find_Month(EC$33,EC$34,$F40) -> TRUE | ED40: =Find_Month(ED$33,ED$34,$F40) -> FALSE | EE40: =Find_Month(EE$33,EE$34,$F40) -> TRUE | EF40: =Find_Month(EF$33,EF$34,$F40) -> FALSE | EG40: =Find_Month(EG$33,EG$34,$F40) -> TRUE | EH40: =Find_Month(EH$33,EH$34,$F40) -> FALSE | EI40: =Find_Month(EI$33,EI$34,$F40) -> TRUE | EJ40: =Find_Month(EJ$33,EJ$34,$F40) -> FALSE | EK40: =Find_Month(EK$33,EK$34,$F40) -> TRUE | EL40: =Find_Month(EL$33,EL$34,$F40) -> FALSE | EM40: =Find_Month(EM$33,EM$34,$F40) -> TRUE | EN40: =Find_Month(EN$33,EN$34,$F40) -> FALSE | EO40: =Find_Month(EO$33,EO$34,$F40) -> TRUE | EP40: =Find_Month(EP$33,EP$34,$F40) -> FALSE | EQ40: =Find_Month(EQ$33,EQ$34,$F40) -> TRUE | ER40: =Find_Month(ER$33,ER$34,$F40) -> FALSE | ES40: =Find_Month(ES$33,ES$34,$F40) -> TRUE | ET40: =Find_Month(ET$33,ET$34,$F40) -> FALSE | EU40: =Find_Month(EU$33,EU$34,$F40) -> TRUE | EV40: =Find_Month(EV$33,EV$34,$F40) -> FALSE | EW40: =Find_Month(EW$33,EW$34,$F40) -> TRUE | EX40: =Find_Month(EX$33,EX$34,$F40) -> FALSE | EY40: =Find_Month(EY$33,EY$34,$F40) -> TRUE | EZ40: =Find_Month(EZ$33,EZ$34,$F40) -> FALSE | FA40: =Find_Month(FA$33,FA$34,$F40) -> TRUE | FB40: =Find_Month(FB$33,FB$34,$F40) -> FALSE | FC40: =Find_Month(FC$33,FC$34,$F40) -> TRUE | FD40: =Find_Month(FD$33,FD$34,$F40) -> FALSE | FE40: =Find_Month(FE$33,FE$34,$F40) -> TRUE | FF40: =Find_Month(FF$33,FF$34,$F40) -> FALSE | FG40: =Find_Month(FG$33,FG$34,$F40) -> TRUE | FH40: =Find_Month(FH$33,FH$34,$F40) -> FALSE | FI40: =Find_Month(FI$33,FI$34,$F40) -> TRUE | FJ40: =Find_Month(FJ$33,FJ$34,$F40) -> FALSE | FK40: =Find_Month(FK$33,FK$34,$F40) -> TRUE | FL40: =Find_Month(FL$33,FL$34,$F40) -> FALSE | FM40: =Find_Month(FM$33,FM$34,$F40) -> TRUE | FN40: =Find_Month(FN$33,FN$34,$F40) -> FALSE | FO40: =Find_Month(FO$33,FO$34,$F40) -> TRUE | FP40: =Find_Month(FP$33,FP$34,$F40) -> FALSE | FQ40: =Find_Month(FQ$33,FQ$34,$F40) -> TRUE | FR40: =Find_Month(FR$33,FR$34,$F40) -> FALSE | FS40: =Find_Month(FS$33,FS$34,$F40) -> TRUE | FT40: =Find_Month(FT$33,FT$34,$F40) -> FALSE | FU40: =Find_Month(FU$33,FU$34,$F40) -> TRUE | FV40: =Find_Month(FV$33,FV$34,$F40) -> FALSE | FW40: =Find_Month(FW$33,FW$34,$F40) -> TRUE | FX40: =Find_Month(FX$33,FX$34,$F40) -> FALSE | FY40: =Find_Month(FY$33,FY$34,$F40) -> TRUE | FZ40: =Find_Month(FZ$33,FZ$34,$F40) -> FALSE | GA40: =Find_Month(GA$33,GA$34,$F40) -> TRUE | GB40: =Find_Month(GB$33,GB$34,$F40) -> FALSE | GC40: =Find_Month(GC$33,GC$34,$F40) -> TRUE | GD40: =Find_Month(GD$33,GD$34,$F40) -> FALSE | GE40: =Find_Month(GE$33,GE$34,$F40) -> TRUE | GF40: =Find_Month(GF$33,GF$34,$F40) -> FALSE | GG40: =Find_Month(GG$33,GG$34,$F40) -> TRUE | GH40: =Find_Month(GH$33,GH$34,$F40) -> FALSE | GI40: =Find_Month(GI$33,GI$34,$F40) -> TRUE | GJ40: =Find_Month(GJ$33,GJ$34,$F40) -> FALSE | GK40: =Find_Month(GK$33,GK$34,$F40) -> TRUE | GL40: =Find_Month(GL$33,GL$34,$F40) -> FALSE | GM40: =Find_Month(GM$33,GM$34,$F40) -> TRUE | GN40: =Find_Month(GN$33,GN$34,$F40) -> FALSE | GO40: =Find_Month(GO$33,GO$34,$F40) -> TRUE | GP40: =Find_Month(GP$33,GP$34,$F40) -> FALSE | GQ40: =Find_Month(GQ$33,GQ$34,$F40) -> TRUE | GR40: =Find_Month(GR$33,GR$34,$F40) -> FALSE | GS40: =Find_Month(GS$33,GS$34,$F40) -> TRUE | GT40: =Find_Month(GT$33,GT$34,$F40) -> FALSE | GU40: =Find_Month(GU$33,GU$34,$F40) -> TRUE | GV40: =Find_Month(GV$33,GV$34,$F40) -> FALSE | GW40: =Find_Month(GW$33,GW$34,$F40) -> TRUE | GX40: =Find_Month(GX$33,GX$34,$F40) -> FALSE | GY40: =Find_Month(GY$33,GY$34,$F40) -> TRUE | GZ40: =Find_Month(GZ$33,GZ$34,$F40) -> FALSE | HA40: =Find_Month(HA$33,HA$34,$F40) -> TRUE | HB40: =Find_Month(HB$33,HB$34,$F40) -> FALSE | HC40: =Find_Month(HC$33,HC$34,$F40) -> TRUE | HD40: =Find_Month(HD$33,HD$34,$F40) -> FALSE | HE40: =Find_Month(HE$33,HE$34,$F40) -> TRUE | HF40: =Find_Month(HF$33,HF$34,$F40) -> FALSE | HG40: =Find_Month(HG$33,HG$34,$F40) -> TRUE | HH40: =Find_Month(HH$33,HH$34,$F40) -> FALSE | HI40: =Find_Month(HI$33,HI$34,$F40) -> TRUE | HJ40: =Find_Month(HJ$33,HJ$34,$F40) -> FALSE | HK40: =Find_Month(HK$33,HK$34,$F40) -> TRUE | HL40: =Find_Month(HL$33,HL$34,$F40) -> FALSE | HM40: =Find_Month(HM$33,HM$34,$F40) -> TRUE | HN40: =Find_Month(HN$33,HN$34,$F40) -> FALSE | HO40: =Find_Month(HO$33,HO$34,$F40) -> TRUE | HP40: =Find_Month(HP$33,HP$34,$F40) -> FALSE | HQ40: =Find_Month(HQ$33,HQ$34,$F40) -> TRUE | HR40: =Find_Month(HR$33,HR$34,$F40) -> FALSE | HS40: =Find_Month(HS$33,HS$34,$F40) -> TRUE | HT40: =Find_Month(HT$33,HT$34,$F40) -> FALSE | HU40: =Find_Month(HU$33,HU$34,$F40) -> TRUE | HV40: =Find_Month(HV$33,HV$34,$F40) -> FALSE | HW40: =Find_Month(HW$33,HW$34,$F40) -> TRUE | HX40: =Find_Month(HX$33,HX$34,$F40) -> FALSE | HY40: =Find_Month(HY$33,HY$34,$F40) -> TRUE | HZ40: =Find_Month(HZ$33,HZ$34,$F40) -> FALSE | IA40: =Find_Month(IA$33,IA$34,$F40) -> TRUE | IB40: =Find_Month(IB$33,IB$34,$F40) -> FALSE | IC40: =Find_Month(IC$33,IC$34,$F40) -> TRUE | ID40: =Find_Month(ID$33,ID$34,$F40) -> FALSE | IE40: =Find_Month(IE$33,IE$34,$F40) -> TRUE | IF40: =Find_Month(IF$33,IF$34,$F40) -> FALSE | IG40: =Find_Month(IG$33,IG$34,$F40) -> TRUE | IH40: =Find_Month(IH$33,IH$34,$F40) -> FALSE | II40: =Find_Month(II$33,II$34,$F40) -> TRUE | IJ40: =Find_Month(IJ$33,IJ$34,$F40) -> FALSE | IK40: =Find_Month(IK$33,IK$34,$F40) -> TRUE | IL40: =Find_Month(IL$33,IL$34,$F40) -> FALSE | IM40: =Find_Month(IM$33,IM$34,$F40) -> TRUE | IN40: =Find_Month(IN$33,IN$34,$F40) -> FALSE | IO40: =Find_Month(IO$33,IO$34,$F40) -> TRUE | IP40: =Find_Month(IP$33,IP$34,$F40) -> FALSE | IQ40: =Find_Month(IQ$33,IQ$34,$F40) -> TRUE | IR40: =Find_Month(IR$33,IR$34,$F40) -> FALSE | IS40: =Find_Month(IS$33,IS$34,$F40) -> TRUE | IT40: =Find_Month(IT$33,IT$34,$F40) -> FALSE | IU40: =Find_Month(IU$33,IU$34,$F40) -> TRUE | IV40: =Find_Month(IV$33,IV$34,$F40) -> FALSE | IW40: =Find_Month(IW$33,IW$34,$F40) -> TRUE | IX40: =Find_Month(IX$33,IX$34,$F40) -> FALSE | IY40: =Find_Month(IY$33,IY$34,$F40) -> TRUE | IZ40: =Find_Month(IZ$33,IZ$34,$F40) -> FALSE | JA40: =Find_Month(JA$33,JA$34,$F40) -> TRUE | JB40: =Find_Month(JB$33,JB$34,$F40) -> FALSE | JC40: =Find_Month(JC$33,JC$34,$F40) -> TRUE | JD40: =Find_Month(JD$33,JD$34,$F40) -> FALSE | JE40: =Find_Month(JE$33,JE$34,$F40) -> TRUE | JF40: =Find_Month(JF$33,JF$34,$F40) -> FALSE | JG40: =Find_Month(JG$33,JG$34,$F40) -> TRUE | JH40: =Find_Month(JH$33,JH$34,$F40) -> FALSE | JI40: =Find_Month(JI$33,JI$34,$F40) -> TRUE | JJ40: =Find_Month(JJ$33,JJ$34,$F40) -> FALSE | JK40: =Find_Month(JK$33,JK$34,$F40) -> TRUE | JL40: =Find_Month(JL$33,JL$34,$F40) -> FALSE | JM40: =Find_Month(JM$33,JM$34,$F40) -> TRUE | JN40: =Find_Month(JN$33,JN$34,$F40) -> FALSE | JO40: =Find_Month(JO$33,JO$34,$F40) -> TRUE | JP40: =Find_Month(JP$33,JP$34,$F40) -> FALSE | JQ40: =Find_Month(JQ$33,JQ$34,$F40) -> TRUE | JR40: =Find_Month(JR$33,JR$34,$F40) -> FALSE | JS40: =Find_Month(JS$33,JS$34,$F40) -> TRUE | JT40: =Find_Month(JT$33,JT$34,$F40) -> FALSE | JU40: =Find_Month(JU$33,JU$34,$F40) -> TRUE | JV40: =Find_Month(JV$33,JV$34,$F40) -> FALSE | JW40: =Find_Month(JW$33,JW$34,$F40) -> TRUE | JX40: =Find_Month(JX$33,JX$34,$F40) -> FALSE | JY40: =Find_Month(JY$33,JY$34,$F40) -> TRUE | JZ40: =Find_Month(JZ$33,JZ$34,$F40) -> FALSE | KA40: =Find_Month(KA$33,KA$34,$F40) -> TRUE | KB40: =Find_Month(KB$33,KB$34,$F40) -> FALSE | KC40: =Find_Month(KC$33,KC$34,$F40) -> TRUE | KD40: =Find_Month(KD$33,KD$34,$F40) -> FALSE | KE40: =Find_Month(KE$33,KE$34,$F40) -> TRUE | KF40: =Find_Month(KF$33,KF$34,$F40) -> FALSE | KG40: =Find_Month(KG$33,KG$34,$F40) -> TRUE | KH40: =Find_Month(KH$33,KH$34,$F40) -> FALSE | KI40: =Find_Month(KI$33,KI$34,$F40) -> TRUE | KJ40: =Find_Month(KJ$33,KJ$34,$F40) -> FALSE | KK40: =Find_Month(KK$33,KK$34,$F40) -> TRUE | KL40: =Find_Month(KL$33,KL$34,$F40) -> FALSE | KM40: =Find_Month(KM$33,KM$34,$F40) -> TRUE | KN40: =Find_Month(KN$33,KN$34,$F40) -> FALSE | KO40: =Find_Month(KO$33,KO$34,$F40) -> TRUE | KP40: =Find_Month(KP$33,KP$34,$F40) -> FALSE | KQ40: =Find_Month(KQ$33,KQ$34,$F40) -> TRUE | KR40: =Find_Month(KR$33,KR$34,$F40) -> FALSE | KS40: =Find_Month(KS$33,KS$34,$F40) -> TRUE | KT40: =Find_Month(KT$33,KT$34,$F40) -> FALSE | KU40: =Find_Month(KU$33,KU$34,$F40) -> TRUE | KV40: =Find_Month(KV$33,KV$34,$F40) -> FALSE | KW40: =Find_Month(KW$33,KW$34,$F40) -> TRUE | KX40: =Find_Month(KX$33,KX$34,$F40) -> FALSE | KY40: =Find_Month(KY$33,KY$34,$F40) -> TRUE | KZ40: =Find_Month(KZ$33,KZ$34,$F40) -> FALSE | LA40: =Find_Month(LA$33,LA$34,$F40) -> TRUE | LB40: =Find_Month(LB$33,LB$34,$F40) -> FALSE | LC40: =Find_Month(LC$33,LC$34,$F40) -> TRUE | LD40: =Find_Month(LD$33,LD$34,$F40) -> FALSE | LE40: =Find_Month(LE$33,LE$34,$F40) -> TRUE | LF40: =Find_Month(LF$33,LF$34,$F40) -> FALSE | LG40: =Find_Month(LG$33,LG$34,$F40) -> TRUE | LH40: =Find_Month(LH$33,LH$34,$F40) -> FALSE | LI40: =Find_Month(LI$33,LI$34,$F40) -> TRUE | LJ40: =Find_Month(LJ$33,LJ$34,$F40) -> FALSE | LK40: =Find_Month(LK$33,LK$34,$F40) -> TRUE | LL40: =Find_Month(LL$33,LL$34,$F40) -> FALSE | LM40: =Find_Month(LM$33,LM$34,$F40) -> TRUE | LN40: =Find_Month(LN$33,LN$34,$F40) -> FALSE | LO40: =Find_Month(LO$33,LO$34,$F40) -> TRUE | LP40: =Find_Month(LP$33,LP$34,$F40) -> FALSE | LQ40: =Find_Month(LQ$33,LQ$34,$F40) -> TRUE | LR40: =Find_Month(LR$33,LR$34,$F40) -> FALSE | LS40: =Find_Month(LS$33,LS$34,$F40) -> TRUE | LT40: =Find_Month(LT$33,LT$34,$F40) -> FALSE | LU40: =Find_Month(LU$33,LU$34,$F40) -> TRUE | LV40: =Find_Month(LV$33,LV$34,$F40) -> FALSE | LW40: =Find_Month(LW$33,LW$34,$F40) -> TRUE | LX40: =Find_Month(LX$33,LX$34,$F40) -> FALSE | LY40: =Find_Month(LY$33,LY$34,$F40) -> TRUE | LZ40: =Find_Month(LZ$33,LZ$34,$F40) -> FALSE | MA40: =Find_Month(MA$33,MA$34,$F40) -> TRUE | MB40: =Find_Month(MB$33,MB$34,$F40) -> FALSE | MC40: =Find_Month(MC$33,MC$34,$F40) -> TRUE | MD40: =Find_Month(MD$33,MD$34,$F40) -> FALSE | ME40: =Find_Month(ME$33,ME$34,$F40) -> TRUE | MF40: =Find_Month(MF$33,MF$34,$F40) -> FALSE | MG40: =Find_Month(MG$33,MG$34,$F40) -> TRUE | MH40: =Find_Month(MH$33,MH$34,$F40) -> FALSE | MI40: =Find_Month(MI$33,MI$34,$F40) -> TRUE | MJ40: =Find_Month(MJ$33,MJ$34,$F40) -> FALSE | MK40: =Find_Month(MK$33,MK$34,$F40) -> TRUE | ML40: =Find_Month(ML$33,ML$34,$F40) -> FALSE | MM40: =Find_Month(MM$33,MM$34,$F40) -> TRUE | MN40: =Find_Month(MN$33,MN$34,$F40) -> FALSE | MO40: =Find_Month(MO$33,MO$34,$F40) -> TRUE | MP40: =Find_Month(MP$33,MP$34,$F40) -> FALSE | MQ40: =Find_Month(MQ$33,MQ$34,$F40) -> TRUE | MR40: =Find_Month(MR$33,MR$34,$F40) -> FALSE | MS40: =Find_Month(MS$33,MS$34,$F40) -> TRUE | MT40: =Find_Month(MT$33,MT$34,$F40) -> FALSE | MU40: =Find_Month(MU$33,MU$34,$F40) -> TRUE | MV40: =Find_Month(MV$33,MV$34,$F40) -> FALSE | MW40: =Find_Month(MW$33,MW$34,$F40) -> TRUE | MX40: =Find_Month(MX$33,MX$34,$F40) -> FALSE | MY40: =Find_Month(MY$33,MY$34,$F40) -> TRUE | MZ40: =Find_Month(MZ$33,MZ$34,$F40) -> FALSE | NA40: =Find_Month(NA$33,NA$34,$F40) -> TRUE | NB40: =Find_Month(NB$33,NB$34,$F40) -> FALSE | NC40: =Find_Month(NC$33,NC$34,$F40) -> TRUE | ND40: =Find_Month(ND$33,ND$34,$F40) -> FALSE | NE40: =Find_Month(NE$33,NE$34,$F40) -> TRUE | NF40: =Find_Month(NF$33,NF$34,$F40) -> FALSE | NG40: =Find_Month(NG$33,NG$34,$F40) -> TRUE | NH40: =Find_Month(NH$33,NH$34,$F40) -> FALSE | NI40: =Find_Month(NI$33,NI$34,$F40) -> TRUE | NJ40: =Find_Month(NJ$33,NJ$34,$F40) -> FALSE | NK40: =Find_Month(NK$33,NK$34,$F40) -> TRUE | NL40: =Find_Month(NL$33,NL$34,$F40) -> FALSE | NM40: =Find_Month(NM$33,NM$34,$F40) -> TRUE | NN40: =Find_Month(NN$33,NN$34,$F40) -> FALSE | NO40: =Find_Month(NO$33,NO$34,$F40) -> TRUE | NP40: =Find_Month(NP$33,NP$34,$F40) -> FALSE | NQ40: =Find_Month(NQ$33,NQ$34,$F40) -> TRUE | NR40: =Find_Month(NR$33,NR$34,$F40) -> FALSE | NS40: =Find_Month(NS$33,NS$34,$F40) -> TRUE | NT40: =Find_Month(NT$33,NT$34,$F40) -> FALSE | NU40: =Find_Month(NU$33,NU$34,$F40) -> TRUE | NV40: =Find_Month(NV$33,NV$34,$F40) -> FALSE | NW40: =Find_Month(NW$33,NW$34,$F40) -> TRUE | NX40: =Find_Month(NX$33,NX$34,$F40) -> FALSE | NY40: =Find_Month(NY$33,NY$34,$F40) -> TRUE | NZ40: =Find_Month(NZ$33,NZ$34,$F40) -> FALSE | OA40: =Find_Month(OA$33,OA$34,$F40) -> TRUE | OB40: =Find_Month(OB$33,OB$34,$F40) -> FALSE | OC40: =Find_Month(OC$33,OC$34,$F40) -> TRUE | OD40: =Find_Month(OD$33,OD$34,$F40) -> FALSE | OE40: =Find_Month(OE$33,OE$34,$F40) -> TRUE | OF40: =Find_Month(OF$33,OF$34,$F40) -> FALSE | OG40: =Find_Month(OG$33,OG$34,$F40) -> TRUE | OH40: =Find_Month(OH$33,OH$34,$F40) -> FALSE | OI40: =Find_Month(OI$33,OI$34,$F40) -> TRUE | OJ40: =Find_Month(OJ$33,OJ$34,$F40) -> FALSE | OK40: =Find_Month(OK$33,OK$34,$F40) -> TRUE | OL40: =Find_Month(OL$33,OL$34,$F40) -> FALSE | OM40: =Find_Month(OM$33,OM$34,$F40) -> TRUE | ON40: =Find_Month(ON$33,ON$34,$F40) -> FALSE | OO40: =Find_Month(OO$33,OO$34,$F40) -> TRUE | OP40: =Find_Month(OP$33,OP$34,$F40) -> FALSE | OQ40: =Find_Month(OQ$33,OQ$34,$F40) -> TRUE | OR40: =Find_Month(OR$33,OR$34,$F40) -> FALSE | OS40: =Find_Month(OS$33,OS$34,$F40) -> TRUE | OT40: =Find_Month(OT$33,OT$34,$F40) -> FALSE | OU40: =Find_Month(OU$33,OU$34,$F40) -> TRUE | OV40: =Find_Month(OV$33,OV$34,$F40) -> FALSE | OW40: =Find_Month(OW$33,OW$34,$F40) -> TRUE | OX40: =Find_Month(OX$33,OX$34,$F40) -> FALSE | OY40: =Find_Month(OY$33,OY$34,$F40) -> TRUE | OZ40: =Find_Month(OZ$33,OZ$34,$F40) -> FALSE | PA40: =Find_Month(PA$33,PA$34,$F40) -> TRUE | PB40: =Find_Month(PB$33,PB$34,$F40) -> FALSE | PC40: =Find_Month(PC$33,PC$34,$F40) -> TRUE | PD40: =Find_Month(PD$33,PD$34,$F40) -> FALSE | PE40: =Find_Month(PE$33,PE$34,$F40) -> TRUE | PF40: =Find_Month(PF$33,PF$34,$F40) -> FALSE | PG40: =Find_Month(PG$33,PG$34,$F40) -> TRUE | PH40: =Find_Month(PH$33,PH$34,$F40) -> FALSE | PI40: =Find_Month(PI$33,PI$34,$F40) -> TRUE | PJ40: =Find_Month(PJ$33,PJ$34,$F40) -> FALSE | PK40: =Find_Month(PK$33,PK$34,$F40) -> TRUE | PL40: =Find_Month(PL$33,PL$34,$F40) -> FALSE | PM40: =Find_Month(PM$33,PM$34,$F40) -> TRUE | PN40: =Find_Month(PN$33,PN$34,$F40) -> FALSE | PO40: =Find_Month(PO$33,PO$34,$F40) -> TRUE | PP40: =Find_Month(PP$33,PP$34,$F40) -> FALSE | PQ40: =Find_Month(PQ$33,PQ$34,$F40) -> TRUE | PR40: =Find_Month(PR$33,PR$34,$F40) -> FALSE | PS40: =Find_Month(PS$33,PS$34,$F40) -> TRUE | PT40: =Find_Month(PT$33,PT$34,$F40) -> FALSE | PU40: =Find_Month(PU$33,PU$34,$F40) -> TRUE | PV40: =Find_Month(PV$33,PV$34,$F40) -> FALSE | PW40: =Find_Month(PW$33,PW$34,$F40) -> TRUE | PX40: =Find_Month(PX$33,PX$34,$F40) -> FALSE | PY40: =Find_Month(PY$33,PY$34,$F40) -> TRUE | PZ40: =Find_Month(PZ$33,PZ$34,$F40) -> FALSE | QA40: =Find_Month(QA$33,QA$34,$F40) -> TRUE | QB40: =Find_Month(QB$33,QB$34,$F40) -> FALSE | QC40: =Find_Month(QC$33,QC$34,$F40) -> TRUE | QD40: =Find_Month(QD$33,QD$34,$F40) -> FALSE | QE40: =Find_Month(QE$33,QE$34,$F40) -> TRUE | QF40: =Find_Month(QF$33,QF$34,$F40) -> FALSE | QG40: =Find_Month(QG$33,QG$34,$F40) -> TRUE | QH40: =Find_Month(QH$33,QH$34,$F40) -> FALSE | QI40: =Find_Month(QI$33,QI$34,$F40) -> TRUE | QJ40: =Find_Month(QJ$33,QJ$34,$F40) -> FALSE | QK40: =Find_Month(QK$33,QK$34,$F40) -> TRUE | QL40: =Find_Month(QL$33,QL$34,$F40) -> FALSE | QM40: =Find_Month(QM$33,QM$34,$F40) -> TRUE | QN40: =Find_Month(QN$33,QN$34,$F40) -> FALSE | QO40: =Find_Month(QO$33,QO$34,$F40) -> TRUE | QP40: =Find_Month(QP$33,QP$34,$F40) -> FALSE | QQ40: =Find_Month(QQ$33,QQ$34,$F40) -> TRUE | QR40: =Find_Month(QR$33,QR$34,$F40) -> FALSE | QS40: =Find_Month(QS$33,QS$34,$F40) -> TRUE | QT40: =Find_Month(QT$33,QT$34,$F40) -> FALSE | QU40: =Find_Month(QU$33,QU$34,$F40) -> TRUE | QV40: =Find_Month(QV$33,QV$34,$F40) -> FALSE | QW40: =Find_Month(QW$33,QW$34,$F40) -> TRUE | QX40: =Find_Month(QX$33,QX$34,$F40) -> FALSE | QY40: =Find_Month(QY$33,QY$34,$F40) -> TRUE | QZ40: =Find_Month(QZ$33,QZ$34,$F40) -> FALSE | RA40: =Find_Month(RA$33,RA$34,$F40) -> TRUE | RB40: =Find_Month(RB$33,RB$34,$F40) -> FALSE | RC40: =Find_Month(RC$33,RC$34,$F40) -> TRUE | RD40: =Find_Month(RD$33,RD$34,$F40) -> FALSE | RE40: =Find_Month(RE$33,RE$34,$F40) -> TRUE | RF40: =Find_Month(RF$33,RF$34,$F40) -> FALSE | RG40: =Find_Month(RG$33,RG$34,$F40) -> TRUE | RH40: =Find_Month(RH$33,RH$34,$F40) -> FALSE | RI40: =Find_Month(RI$33,RI$34,$F40) -> TRUE | RJ40: =Find_Month(RJ$33,RJ$34,$F40) -> FALSE | RK40: =Find_Month(RK$33,RK$34,$F40) -> TRUE | RL40: =Find_Month(RL$33,RL$34,$F40) -> FALSE | RM40: =Find_Month(RM$33,RM$34,$F40) -> TRUE | RN40: =Find_Month(RN$33,RN$34,$F40) -> FALSE | RO40: =Find_Month(RO$33,RO$34,$F40) -> TRUE | RP40: =Find_Month(RP$33,RP$34,$F40) -> FALSE | RQ40: =Find_Month(RQ$33,RQ$34,$F40) -> TRUE | RR40: =Find_Month(RR$33,RR$34,$F40) -> FALSE | RS40: =Find_Month(RS$33,RS$34,$F40) -> TRUE | RT40: =Find_Month(RT$33,RT$34,$F40) -> FALSE | RU40: =Find_Month(RU$33,RU$34,$F40) -> TRUE | RV40: =Find_Month(RV$33,RV$34,$F40) -> FALSE | RW40: =Find_Month(RW$33,RW$34,$F40) -> TRUE | RX40: =Find_Month(RX$33,RX$34,$F40) -> FALSE | RY40: =Find_Month(RY$33,RY$34,$F40) -> TRUE | RZ40: =Find_Month(RZ$33,RZ$34,$F40) -> FALSE | SA40: =Find_Month(SA$33,SA$34,$F40) -> TRUE | SB40: =Find_Month(SB$33,SB$34,$F40) -> FALSE | SC40: =Find_Month(SC$33,SC$34,$F40) -> FALSE | SD40: =Find_Month(SD$33,SD$34,$F40) -> FALSE | SE40: =Find_Month(SE$33,SE$34,$F40) -> FALSE | SF40: =Find_Month(SF$33,SF$34,$F40) -> FALSE | SG40: =Find_Month(SG$33,SG$34,$F40) -> FALSE | SH40: =Find_Month(SH$33,SH$34,$F40) -> FALSE | SI40: =Find_Month(SI$33,SI$34,$F40) -> FALSE | SJ40: =Find_Month(SJ$33,SJ$34,$F40) -> FALSE | SK40: =Find_Month(SK$33,SK$34,$F40) -> FALSE | SL40: =Find_Month(SL$33,SL$34,$F40) -> FALSE | SM40: =Find_Month(SM$33,SM$34,$F40) -> FALSE | SN40: =Find_Month(SN$33,SN$34,$F40) -> FALSE | SO40: =Find_Month(SO$33,SO$34,$F40) -> FALSE | SP40: =Find_Month(SP$33,SP$34,$F40) -> FALSE | SQ40: =Find_Month(SQ$33,SQ$34,$F40) -> FALSE | SR40: =Find_Month(SR$33,SR$34,$F40) -> FALSE | SS40: =Find_Month(SS$33,SS$34,$F40) -> FALSE | ST40: =Find_Month(ST$33,ST$34,$F40) -> FALSE | SU40: =Find_Month(SU$33,SU$34,$F40) -> FALSE | SV40: =Find_Month(SV$33,SV$34,$F40) -> FALSE | SW40: =Find_Month(SW$33,SW$34,$F40) -> FALSE | SX40: =Find_Month(SX$33,SX$34,$F40) -> FALSE | SY40: =Find_Month(SY$33,SY$34,$F40) -> FALSE | SZ40: =Find_Month(SZ$33,SZ$34,$F40) -> FALSE | TA40: =Find_Month(TA$33,TA$34,$F40) -> FALSE | TB40: =Find_Month(TB$33,TB$34,$F40) -> FALSE | TC40: =Find_Month(TC$33,TC$34,$F40) -> FALSE | TD40: =Find_Month(TD$33,TD$34,$F40) -> FALSE | TE40: =Find_Month(TE$33,TE$34,$F40) -> FALSE | TF40: =Find_Month(TF$33,TF$34,$F40) -> FALSE | TG40: =Find_Month(TG$33,TG$34,$F40) -> FALSE | TH40: =Find_Month(TH$33,TH$34,$F40) -> FALSE | TI40: =Find_Month(TI$33,TI$34,$F40) -> FALSE | TJ40: =Find_Month(TJ$33,TJ$34,$F40) -> FALSE | TK40: =Find_Month(TK$33,TK$34,$F40) -> FALSE | TL40: =Find_Month(TL$33,TL$34,$F40) -> FALSE | TM40: =Find_Month(TM$33,TM$34,$F40) -> FALSE | TN40: =Find_Month(TN$33,TN$34,$F40) -> FALSE | TO40: =Find_Month(TO$33,TO$34,$F40) -> FALSE | TP40: =Find_Month(TP$33,TP$34,$F40) -> FALSE | TQ40: =Find_Month(TQ$33,TQ$34,$F40) -> FALSE | TR40: =Find_Month(TR$33,TR$34,$F40) -> FALSE | TS40: =Find_Month(TS$33,TS$34,$F40) -> FALSE | TT40: =Find_Month(TT$33,TT$34,$F40) -> FALSE | TU40: =Find_Month(TU$33,TU$34,$F40) -> FALSE | TV40: =Find_Month(TV$33,TV$34,$F40) -> FALSE | TW40: =Find_Month(TW$33,TW$34,$F40) -> FALSE | TX40: =Find_Month(TX$33,TX$34,$F40) -> FALSE | TY40: =Find_Month(TY$33,TY$34,$F40) -> FALSE
F41: 5 | G41: 284.7911071 | H41: 0.08885110633 | J41: =Find_Month(J$33,J$34,$F41) -> FALSE | K41: =Find_Month(K$33,K$34,$F41) -> FALSE | L41: =Find_Month(L$33,L$34,$F41) -> FALSE | M41: =Find_Month(M$33,M$34,$F41) -> FALSE | N41: =Find_Month(N$33,N$34,$F41) -> TRUE | O41: =Find_Month(O$33,O$34,$F41) -> FALSE | P41: =Find_Month(P$33,P$34,$F41) -> FALSE | Q41: =Find_Month(Q$33,Q$34,$F41) -> FALSE | R41: =Find_Month(R$33,R$34,$F41) -> FALSE | S41: =Find_Month(S$33,S$34,$F41) -> FALSE | T41: =Find_Month(T$33,T$34,$F41) -> FALSE | U41: =Find_Month(U$33,U$34,$F41) -> FALSE | V41: =Find_Month(V$33,V$34,$F41) -> FALSE | W41: =Find_Month(W$33,W$34,$F41) -> FALSE | X41: =Find_Month(X$33,X$34,$F41) -> FALSE | Y41: =Find_Month(Y$33,Y$34,$F41) -> FALSE | Z41: =Find_Month(Z$33,Z$34,$F41) -> TRUE | AA41: =Find_Month(AA$33,AA$34,$F41) -> FALSE | AB41: =Find_Month(AB$33,AB$34,$F41) -> FALSE | AC41: =Find_Month(AC$33,AC$34,$F41) -> FALSE | AD41: =Find_Month(AD$33,AD$34,$F41) -> FALSE | AE41: =Find_Month(AE$33,AE$34,$F41) -> TRUE | AF41: =Find_Month(AF$33,AF$34,$F41) -> FALSE | AG41: =Find_Month(AG$33,AG$34,$F41) -> TRUE | AH41: =Find_Month(AH$33,AH$34,$F41) -> FALSE | AI41: =Find_Month(AI$33,AI$34,$F41) -> TRUE | AJ41: =Find_Month(AJ$33,AJ$34,$F41) -> FALSE | AK41: =Find_Month(AK$33,AK$34,$F41) -> TRUE | AL41: =Find_Month(AL$33,AL$34,$F41) -> FALSE | AM41: =Find_Month(AM$33,AM$34,$F41) -> TRUE | AN41: =Find_Month(AN$33,AN$34,$F41) -> FALSE | AO41: =Find_Month(AO$33,AO$34,$F41) -> TRUE | AP41: =Find_Month(AP$33,AP$34,$F41) -> FALSE | AQ41: =Find_Month(AQ$33,AQ$34,$F41) -> TRUE | AR41: =Find_Month(AR$33,AR$34,$F41) -> FALSE | AS41: =Find_Month(AS$33,AS$34,$F41) -> TRUE | AT41: =Find_Month(AT$33,AT$34,$F41) -> FALSE | AU41: =Find_Month(AU$33,AU$34,$F41) -> TRUE | AV41: =Find_Month(AV$33,AV$34,$F41) -> FALSE | AW41: =Find_Month(AW$33,AW$34,$F41) -> TRUE | AX41: =Find_Month(AX$33,AX$34,$F41) -> FALSE | AY41: =Find_Month(AY$33,AY$34,$F41) -> TRUE | AZ41: =Find_Month(AZ$33,AZ$34,$F41) -> FALSE | BA41: =Find_Month(BA$33,BA$34,$F41) -> TRUE | BB41: =Find_Month(BB$33,BB$34,$F41) -> FALSE | BC41: =Find_Month(BC$33,BC$34,$F41) -> TRUE | BD41: =Find_Month(BD$33,BD$34,$F41) -> FALSE | BE41: =Find_Month(BE$33,BE$34,$F41) -> TRUE | BF41: =Find_Month(BF$33,BF$34,$F41) -> FALSE | BG41: =Find_Month(BG$33,BG$34,$F41) -> TRUE | BH41: =Find_Month(BH$33,BH$34,$F41) -> FALSE | BI41: =Find_Month(BI$33,BI$34,$F41) -> TRUE | BJ41: =Find_Month(BJ$33,BJ$34,$F41) -> FALSE | BK41: =Find_Month(BK$33,BK$34,$F41) -> TRUE | BL41: =Find_Month(BL$33,BL$34,$F41) -> FALSE | BM41: =Find_Month(BM$33,BM$34,$F41) -> TRUE | BN41: =Find_Month(BN$33,BN$34,$F41) -> FALSE | BO41: =Find_Month(BO$33,BO$34,$F41) -> TRUE | BP41: =Find_Month(BP$33,BP$34,$F41) -> FALSE | BQ41: =Find_Month(BQ$33,BQ$34,$F41) -> TRUE | BR41: =Find_Month(BR$33,BR$34,$F41) -> FALSE | BS41: =Find_Month(BS$33,BS$34,$F41) -> TRUE | BT41: =Find_Month(BT$33,BT$34,$F41) -> FALSE | BU41: =Find_Month(BU$33,BU$34,$F41) -> TRUE | BV41: =Find_Month(BV$33,BV$34,$F41) -> FALSE | BW41: =Find_Month(BW$33,BW$34,$F41) -> TRUE | BX41: =Find_Month(BX$33,BX$34,$F41) -> FALSE | BY41: =Find_Month(BY$33,BY$34,$F41) -> TRUE | BZ41: =Find_Month(BZ$33,BZ$34,$F41) -> FALSE | CA41: =Find_Month(CA$33,CA$34,$F41) -> TRUE | CB41: =Find_Month(CB$33,CB$34,$F41) -> FALSE | CC41: =Find_Month(CC$33,CC$34,$F41) -> TRUE | CD41: =Find_Month(CD$33,CD$34,$F41) -> FALSE | CE41: =Find_Month(CE$33,CE$34,$F41) -> TRUE | CF41: =Find_Month(CF$33,CF$34,$F41) -> FALSE | CG41: =Find_Month(CG$33,CG$34,$F41) -> TRUE | CH41: =Find_Month(CH$33,CH$34,$F41) -> FALSE | CI41: =Find_Month(CI$33,CI$34,$F41) -> TRUE | CJ41: =Find_Month(CJ$33,CJ$34,$F41) -> FALSE | CK41: =Find_Month(CK$33,CK$34,$F41) -> TRUE | CL41: =Find_Month(CL$33,CL$34,$F41) -> FALSE | CM41: =Find_Month(CM$33,CM$34,$F41) -> TRUE | CN41: =Find_Month(CN$33,CN$34,$F41) -> FALSE | CO41: =Find_Month(CO$33,CO$34,$F41) -> TRUE | CP41: =Find_Month(CP$33,CP$34,$F41) -> FALSE | CQ41: =Find_Month(CQ$33,CQ$34,$F41) -> TRUE | CR41: =Find_Month(CR$33,CR$34,$F41) -> FALSE | CS41: =Find_Month(CS$33,CS$34,$F41) -> TRUE | CT41: =Find_Month(CT$33,CT$34,$F41) -> FALSE | CU41: =Find_Month(CU$33,CU$34,$F41) -> TRUE | CV41: =Find_Month(CV$33,CV$34,$F41) -> FALSE | CW41: =Find_Month(CW$33,CW$34,$F41) -> TRUE | CX41: =Find_Month(CX$33,CX$34,$F41) -> FALSE | CY41: =Find_Month(CY$33,CY$34,$F41) -> TRUE | CZ41: =Find_Month(CZ$33,CZ$34,$F41) -> FALSE | DA41: =Find_Month(DA$33,DA$34,$F41) -> TRUE | DB41: =Find_Month(DB$33,DB$34,$F41) -> FALSE | DC41: =Find_Month(DC$33,DC$34,$F41) -> TRUE | DD41: =Find_Month(DD$33,DD$34,$F41) -> FALSE | DE41: =Find_Month(DE$33,DE$34,$F41) -> TRUE | DF41: =Find_Month(DF$33,DF$34,$F41) -> FALSE | DG41: =Find_Month(DG$33,DG$34,$F41) -> TRUE | DH41: =Find_Month(DH$33,DH$34,$F41) -> FALSE | DI41: =Find_Month(DI$33,DI$34,$F41) -> TRUE | DJ41: =Find_Month(DJ$33,DJ$34,$F41) -> FALSE | DK41: =Find_Month(DK$33,DK$34,$F41) -> TRUE | DL41: =Find_Month(DL$33,DL$34,$F41) -> FALSE | DM41: =Find_Month(DM$33,DM$34,$F41) -> TRUE | DN41: =Find_Month(DN$33,DN$34,$F41) -> FALSE | DO41: =Find_Month(DO$33,DO$34,$F41) -> TRUE | DP41: =Find_Month(DP$33,DP$34,$F41) -> FALSE | DQ41: =Find_Month(DQ$33,DQ$34,$F41) -> TRUE | DR41: =Find_Month(DR$33,DR$34,$F41) -> FALSE | DS41: =Find_Month(DS$33,DS$34,$F41) -> TRUE | DT41: =Find_Month(DT$33,DT$34,$F41) -> FALSE | DU41: =Find_Month(DU$33,DU$34,$F41) -> TRUE | DV41: =Find_Month(DV$33,DV$34,$F41) -> FALSE | DW41: =Find_Month(DW$33,DW$34,$F41) -> TRUE | DX41: =Find_Month(DX$33,DX$34,$F41) -> FALSE | DY41: =Find_Month(DY$33,DY$34,$F41) -> TRUE | DZ41: =Find_Month(DZ$33,DZ$34,$F41) -> FALSE | EA41: =Find_Month(EA$33,EA$34,$F41) -> TRUE | EB41: =Find_Month(EB$33,EB$34,$F41) -> FALSE | EC41: =Find_Month(EC$33,EC$34,$F41) -> TRUE | ED41: =Find_Month(ED$33,ED$34,$F41) -> FALSE | EE41: =Find_Month(EE$33,EE$34,$F41) -> TRUE | EF41: =Find_Month(EF$33,EF$34,$F41) -> FALSE | EG41: =Find_Month(EG$33,EG$34,$F41) -> TRUE | EH41: =Find_Month(EH$33,EH$34,$F41) -> FALSE | EI41: =Find_Month(EI$33,EI$34,$F41) -> TRUE | EJ41: =Find_Month(EJ$33,EJ$34,$F41) -> FALSE | EK41: =Find_Month(EK$33,EK$34,$F41) -> TRUE | EL41: =Find_Month(EL$33,EL$34,$F41) -> FALSE | EM41: =Find_Month(EM$33,EM$34,$F41) -> TRUE | EN41: =Find_Month(EN$33,EN$34,$F41) -> FALSE | EO41: =Find_Month(EO$33,EO$34,$F41) -> TRUE | EP41: =Find_Month(EP$33,EP$34,$F41) -> FALSE | EQ41: =Find_Month(EQ$33,EQ$34,$F41) -> TRUE | ER41: =Find_Month(ER$33,ER$34,$F41) -> FALSE | ES41: =Find_Month(ES$33,ES$34,$F41) -> TRUE | ET41: =Find_Month(ET$33,ET$34,$F41) -> FALSE | EU41: =Find_Month(EU$33,EU$34,$F41) -> TRUE | EV41: =Find_Month(EV$33,EV$34,$F41) -> FALSE | EW41: =Find_Month(EW$33,EW$34,$F41) -> TRUE | EX41: =Find_Month(EX$33,EX$34,$F41) -> FALSE | EY41: =Find_Month(EY$33,EY$34,$F41) -> TRUE | EZ41: =Find_Month(EZ$33,EZ$34,$F41) -> FALSE | FA41: =Find_Month(FA$33,FA$34,$F41) -> TRUE | FB41: =Find_Month(FB$33,FB$34,$F41) -> FALSE | FC41: =Find_Month(FC$33,FC$34,$F41) -> TRUE | FD41: =Find_Month(FD$33,FD$34,$F41) -> FALSE | FE41: =Find_Month(FE$33,FE$34,$F41) -> TRUE | FF41: =Find_Month(FF$33,FF$34,$F41) -> FALSE | FG41: =Find_Month(FG$33,FG$34,$F41) -> TRUE | FH41: =Find_Month(FH$33,FH$34,$F41) -> FALSE | FI41: =Find_Month(FI$33,FI$34,$F41) -> TRUE | FJ41: =Find_Month(FJ$33,FJ$34,$F41) -> FALSE | FK41: =Find_Month(FK$33,FK$34,$F41) -> TRUE | FL41: =Find_Month(FL$33,FL$34,$F41) -> FALSE | FM41: =Find_Month(FM$33,FM$34,$F41) -> TRUE | FN41: =Find_Month(FN$33,FN$34,$F41) -> FALSE | FO41: =Find_Month(FO$33,FO$34,$F41) -> TRUE | FP41: =Find_Month(FP$33,FP$34,$F41) -> FALSE | FQ41: =Find_Month(FQ$33,FQ$34,$F41) -> TRUE | FR41: =Find_Month(FR$33,FR$34,$F41) -> FALSE | FS41: =Find_Month(FS$33,FS$34,$F41) -> TRUE | FT41: =Find_Month(FT$33,FT$34,$F41) -> FALSE | FU41: =Find_Month(FU$33,FU$34,$F41) -> TRUE | FV41: =Find_Month(FV$33,FV$34,$F41) -> FALSE | FW41: =Find_Month(FW$33,FW$34,$F41) -> TRUE | FX41: =Find_Month(FX$33,FX$34,$F41) -> FALSE | FY41: =Find_Month(FY$33,FY$34,$F41) -> TRUE | FZ41: =Find_Month(FZ$33,FZ$34,$F41) -> FALSE | GA41: =Find_Month(GA$33,GA$34,$F41) -> TRUE | GB41: =Find_Month(GB$33,GB$34,$F41) -> FALSE | GC41: =Find_Month(GC$33,GC$34,$F41) -> TRUE | GD41: =Find_Month(GD$33,GD$34,$F41) -> FALSE | GE41: =Find_Month(GE$33,GE$34,$F41) -> TRUE | GF41: =Find_Month(GF$33,GF$34,$F41) -> FALSE | GG41: =Find_Month(GG$33,GG$34,$F41) -> TRUE | GH41: =Find_Month(GH$33,GH$34,$F41) -> FALSE | GI41: =Find_Month(GI$33,GI$34,$F41) -> TRUE | GJ41: =Find_Month(GJ$33,GJ$34,$F41) -> FALSE | GK41: =Find_Month(GK$33,GK$34,$F41) -> TRUE | GL41: =Find_Month(GL$33,GL$34,$F41) -> FALSE | GM41: =Find_Month(GM$33,GM$34,$F41) -> TRUE | GN41: =Find_Month(GN$33,GN$34,$F41) -> FALSE | GO41: =Find_Month(GO$33,GO$34,$F41) -> TRUE | GP41: =Find_Month(GP$33,GP$34,$F41) -> FALSE | GQ41: =Find_Month(GQ$33,GQ$34,$F41) -> TRUE | GR41: =Find_Month(GR$33,GR$34,$F41) -> FALSE | GS41: =Find_Month(GS$33,GS$34,$F41) -> TRUE | GT41: =Find_Month(GT$33,GT$34,$F41) -> FALSE | GU41: =Find_Month(GU$33,GU$34,$F41) -> TRUE | GV41: =Find_Month(GV$33,GV$34,$F41) -> FALSE | GW41: =Find_Month(GW$33,GW$34,$F41) -> TRUE | GX41: =Find_Month(GX$33,GX$34,$F41) -> FALSE | GY41: =Find_Month(GY$33,GY$34,$F41) -> TRUE | GZ41: =Find_Month(GZ$33,GZ$34,$F41) -> FALSE | HA41: =Find_Month(HA$33,HA$34,$F41) -> TRUE | HB41: =Find_Month(HB$33,HB$34,$F41) -> FALSE | HC41: =Find_Month(HC$33,HC$34,$F41) -> TRUE | HD41: =Find_Month(HD$33,HD$34,$F41) -> FALSE | HE41: =Find_Month(HE$33,HE$34,$F41) -> TRUE | HF41: =Find_Month(HF$33,HF$34,$F41) -> FALSE | HG41: =Find_Month(HG$33,HG$34,$F41) -> TRUE | HH41: =Find_Month(HH$33,HH$34,$F41) -> FALSE | HI41: =Find_Month(HI$33,HI$34,$F41) -> TRUE | HJ41: =Find_Month(HJ$33,HJ$34,$F41) -> FALSE | HK41: =Find_Month(HK$33,HK$34,$F41) -> TRUE | HL41: =Find_Month(HL$33,HL$34,$F41) -> FALSE | HM41: =Find_Month(HM$33,HM$34,$F41) -> TRUE | HN41: =Find_Month(HN$33,HN$34,$F41) -> FALSE | HO41: =Find_Month(HO$33,HO$34,$F41) -> TRUE | HP41: =Find_Month(HP$33,HP$34,$F41) -> FALSE | HQ41: =Find_Month(HQ$33,HQ$34,$F41) -> TRUE | HR41: =Find_Month(HR$33,HR$34,$F41) -> FALSE | HS41: =Find_Month(HS$33,HS$34,$F41) -> TRUE | HT41: =Find_Month(HT$33,HT$34,$F41) -> FALSE | HU41: =Find_Month(HU$33,HU$34,$F41) -> TRUE | HV41: =Find_Month(HV$33,HV$34,$F41) -> FALSE | HW41: =Find_Month(HW$33,HW$34,$F41) -> TRUE | HX41: =Find_Month(HX$33,HX$34,$F41) -> FALSE | HY41: =Find_Month(HY$33,HY$34,$F41) -> TRUE | HZ41: =Find_Month(HZ$33,HZ$34,$F41) -> FALSE | IA41: =Find_Month(IA$33,IA$34,$F41) -> TRUE | IB41: =Find_Month(IB$33,IB$34,$F41) -> FALSE | IC41: =Find_Month(IC$33,IC$34,$F41) -> TRUE | ID41: =Find_Month(ID$33,ID$34,$F41) -> FALSE | IE41: =Find_Month(IE$33,IE$34,$F41) -> TRUE | IF41: =Find_Month(IF$33,IF$34,$F41) -> FALSE | IG41: =Find_Month(IG$33,IG$34,$F41) -> TRUE | IH41: =Find_Month(IH$33,IH$34,$F41) -> FALSE | II41: =Find_Month(II$33,II$34,$F41) -> TRUE | IJ41: =Find_Month(IJ$33,IJ$34,$F41) -> FALSE | IK41: =Find_Month(IK$33,IK$34,$F41) -> TRUE | IL41: =Find_Month(IL$33,IL$34,$F41) -> FALSE | IM41: =Find_Month(IM$33,IM$34,$F41) -> TRUE | IN41: =Find_Month(IN$33,IN$34,$F41) -> FALSE | IO41: =Find_Month(IO$33,IO$34,$F41) -> TRUE | IP41: =Find_Month(IP$33,IP$34,$F41) -> FALSE | IQ41: =Find_Month(IQ$33,IQ$34,$F41) -> TRUE | IR41: =Find_Month(IR$33,IR$34,$F41) -> FALSE | IS41: =Find_Month(IS$33,IS$34,$F41) -> TRUE | IT41: =Find_Month(IT$33,IT$34,$F41) -> FALSE | IU41: =Find_Month(IU$33,IU$34,$F41) -> TRUE | IV41: =Find_Month(IV$33,IV$34,$F41) -> FALSE | IW41: =Find_Month(IW$33,IW$34,$F41) -> TRUE | IX41: =Find_Month(IX$33,IX$34,$F41) -> FALSE | IY41: =Find_Month(IY$33,IY$34,$F41) -> TRUE | IZ41: =Find_Month(IZ$33,IZ$34,$F41) -> FALSE | JA41: =Find_Month(JA$33,JA$34,$F41) -> TRUE | JB41: =Find_Month(JB$33,JB$34,$F41) -> FALSE | JC41: =Find_Month(JC$33,JC$34,$F41) -> TRUE | JD41: =Find_Month(JD$33,JD$34,$F41) -> FALSE | JE41: =Find_Month(JE$33,JE$34,$F41) -> TRUE | JF41: =Find_Month(JF$33,JF$34,$F41) -> FALSE | JG41: =Find_Month(JG$33,JG$34,$F41) -> TRUE | JH41: =Find_Month(JH$33,JH$34,$F41) -> FALSE | JI41: =Find_Month(JI$33,JI$34,$F41) -> TRUE | JJ41: =Find_Month(JJ$33,JJ$34,$F41) -> FALSE | JK41: =Find_Month(JK$33,JK$34,$F41) -> TRUE | JL41: =Find_Month(JL$33,JL$34,$F41) -> FALSE | JM41: =Find_Month(JM$33,JM$34,$F41) -> TRUE | JN41: =Find_Month(JN$33,JN$34,$F41) -> FALSE | JO41: =Find_Month(JO$33,JO$34,$F41) -> TRUE | JP41: =Find_Month(JP$33,JP$34,$F41) -> FALSE | JQ41: =Find_Month(JQ$33,JQ$34,$F41) -> TRUE | JR41: =Find_Month(JR$33,JR$34,$F41) -> FALSE | JS41: =Find_Month(JS$33,JS$34,$F41) -> TRUE | JT41: =Find_Month(JT$33,JT$34,$F41) -> FALSE | JU41: =Find_Month(JU$33,JU$34,$F41) -> TRUE | JV41: =Find_Month(JV$33,JV$34,$F41) -> FALSE | JW41: =Find_Month(JW$33,JW$34,$F41) -> TRUE | JX41: =Find_Month(JX$33,JX$34,$F41) -> FALSE | JY41: =Find_Month(JY$33,JY$34,$F41) -> TRUE | JZ41: =Find_Month(JZ$33,JZ$34,$F41) -> FALSE | KA41: =Find_Month(KA$33,KA$34,$F41) -> TRUE | KB41: =Find_Month(KB$33,KB$34,$F41) -> FALSE | KC41: =Find_Month(KC$33,KC$34,$F41) -> TRUE | KD41: =Find_Month(KD$33,KD$34,$F41) -> FALSE | KE41: =Find_Month(KE$33,KE$34,$F41) -> TRUE | KF41: =Find_Month(KF$33,KF$34,$F41) -> FALSE | KG41: =Find_Month(KG$33,KG$34,$F41) -> TRUE | KH41: =Find_Month(KH$33,KH$34,$F41) -> FALSE | KI41: =Find_Month(KI$33,KI$34,$F41) -> TRUE | KJ41: =Find_Month(KJ$33,KJ$34,$F41) -> FALSE | KK41: =Find_Month(KK$33,KK$34,$F41) -> TRUE | KL41: =Find_Month(KL$33,KL$34,$F41) -> FALSE | KM41: =Find_Month(KM$33,KM$34,$F41) -> TRUE | KN41: =Find_Month(KN$33,KN$34,$F41) -> FALSE | KO41: =Find_Month(KO$33,KO$34,$F41) -> TRUE | KP41: =Find_Month(KP$33,KP$34,$F41) -> FALSE | KQ41: =Find_Month(KQ$33,KQ$34,$F41) -> TRUE | KR41: =Find_Month(KR$33,KR$34,$F41) -> FALSE | KS41: =Find_Month(KS$33,KS$34,$F41) -> TRUE | KT41: =Find_Month(KT$33,KT$34,$F41) -> FALSE | KU41: =Find_Month(KU$33,KU$34,$F41) -> TRUE | KV41: =Find_Month(KV$33,KV$34,$F41) -> FALSE | KW41: =Find_Month(KW$33,KW$34,$F41) -> TRUE | KX41: =Find_Month(KX$33,KX$34,$F41) -> FALSE | KY41: =Find_Month(KY$33,KY$34,$F41) -> TRUE | KZ41: =Find_Month(KZ$33,KZ$34,$F41) -> FALSE | LA41: =Find_Month(LA$33,LA$34,$F41) -> TRUE | LB41: =Find_Month(LB$33,LB$34,$F41) -> FALSE | LC41: =Find_Month(LC$33,LC$34,$F41) -> TRUE | LD41: =Find_Month(LD$33,LD$34,$F41) -> FALSE | LE41: =Find_Month(LE$33,LE$34,$F41) -> TRUE | LF41: =Find_Month(LF$33,LF$34,$F41) -> FALSE | LG41: =Find_Month(LG$33,LG$34,$F41) -> TRUE | LH41: =Find_Month(LH$33,LH$34,$F41) -> FALSE | LI41: =Find_Month(LI$33,LI$34,$F41) -> TRUE | LJ41: =Find_Month(LJ$33,LJ$34,$F41) -> FALSE | LK41: =Find_Month(LK$33,LK$34,$F41) -> TRUE | LL41: =Find_Month(LL$33,LL$34,$F41) -> FALSE | LM41: =Find_Month(LM$33,LM$34,$F41) -> TRUE | LN41: =Find_Month(LN$33,LN$34,$F41) -> FALSE | LO41: =Find_Month(LO$33,LO$34,$F41) -> TRUE | LP41: =Find_Month(LP$33,LP$34,$F41) -> FALSE | LQ41: =Find_Month(LQ$33,LQ$34,$F41) -> TRUE | LR41: =Find_Month(LR$33,LR$34,$F41) -> FALSE | LS41: =Find_Month(LS$33,LS$34,$F41) -> TRUE | LT41: =Find_Month(LT$33,LT$34,$F41) -> FALSE | LU41: =Find_Month(LU$33,LU$34,$F41) -> TRUE | LV41: =Find_Month(LV$33,LV$34,$F41) -> FALSE | LW41: =Find_Month(LW$33,LW$34,$F41) -> TRUE | LX41: =Find_Month(LX$33,LX$34,$F41) -> FALSE | LY41: =Find_Month(LY$33,LY$34,$F41) -> TRUE | LZ41: =Find_Month(LZ$33,LZ$34,$F41) -> FALSE | MA41: =Find_Month(MA$33,MA$34,$F41) -> TRUE | MB41: =Find_Month(MB$33,MB$34,$F41) -> FALSE | MC41: =Find_Month(MC$33,MC$34,$F41) -> TRUE | MD41: =Find_Month(MD$33,MD$34,$F41) -> FALSE | ME41: =Find_Month(ME$33,ME$34,$F41) -> TRUE | MF41: =Find_Month(MF$33,MF$34,$F41) -> FALSE | MG41: =Find_Month(MG$33,MG$34,$F41) -> TRUE | MH41: =Find_Month(MH$33,MH$34,$F41) -> FALSE | MI41: =Find_Month(MI$33,MI$34,$F41) -> TRUE | MJ41: =Find_Month(MJ$33,MJ$34,$F41) -> FALSE | MK41: =Find_Month(MK$33,MK$34,$F41) -> TRUE | ML41: =Find_Month(ML$33,ML$34,$F41) -> FALSE | MM41: =Find_Month(MM$33,MM$34,$F41) -> TRUE | MN41: =Find_Month(MN$33,MN$34,$F41) -> FALSE | MO41: =Find_Month(MO$33,MO$34,$F41) -> TRUE | MP41: =Find_Month(MP$33,MP$34,$F41) -> FALSE | MQ41: =Find_Month(MQ$33,MQ$34,$F41) -> TRUE | MR41: =Find_Month(MR$33,MR$34,$F41) -> FALSE | MS41: =Find_Month(MS$33,MS$34,$F41) -> TRUE | MT41: =Find_Month(MT$33,MT$34,$F41) -> FALSE | MU41: =Find_Month(MU$33,MU$34,$F41) -> TRUE | MV41: =Find_Month(MV$33,MV$34,$F41) -> FALSE | MW41: =Find_Month(MW$33,MW$34,$F41) -> TRUE | MX41: =Find_Month(MX$33,MX$34,$F41) -> FALSE | MY41: =Find_Month(MY$33,MY$34,$F41) -> TRUE | MZ41: =Find_Month(MZ$33,MZ$34,$F41) -> FALSE | NA41: =Find_Month(NA$33,NA$34,$F41) -> TRUE | NB41: =Find_Month(NB$33,NB$34,$F41) -> FALSE | NC41: =Find_Month(NC$33,NC$34,$F41) -> TRUE | ND41: =Find_Month(ND$33,ND$34,$F41) -> FALSE | NE41: =Find_Month(NE$33,NE$34,$F41) -> TRUE | NF41: =Find_Month(NF$33,NF$34,$F41) -> FALSE | NG41: =Find_Month(NG$33,NG$34,$F41) -> TRUE | NH41: =Find_Month(NH$33,NH$34,$F41) -> FALSE | NI41: =Find_Month(NI$33,NI$34,$F41) -> TRUE | NJ41: =Find_Month(NJ$33,NJ$34,$F41) -> FALSE | NK41: =Find_Month(NK$33,NK$34,$F41) -> TRUE | NL41: =Find_Month(NL$33,NL$34,$F41) -> FALSE | NM41: =Find_Month(NM$33,NM$34,$F41) -> TRUE | NN41: =Find_Month(NN$33,NN$34,$F41) -> FALSE | NO41: =Find_Month(NO$33,NO$34,$F41) -> TRUE | NP41: =Find_Month(NP$33,NP$34,$F41) -> FALSE | NQ41: =Find_Month(NQ$33,NQ$34,$F41) -> TRUE | NR41: =Find_Month(NR$33,NR$34,$F41) -> FALSE | NS41: =Find_Month(NS$33,NS$34,$F41) -> TRUE | NT41: =Find_Month(NT$33,NT$34,$F41) -> FALSE | NU41: =Find_Month(NU$33,NU$34,$F41) -> TRUE | NV41: =Find_Month(NV$33,NV$34,$F41) -> FALSE | NW41: =Find_Month(NW$33,NW$34,$F41) -> TRUE | NX41: =Find_Month(NX$33,NX$34,$F41) -> FALSE | NY41: =Find_Month(NY$33,NY$34,$F41) -> TRUE | NZ41: =Find_Month(NZ$33,NZ$34,$F41) -> FALSE | OA41: =Find_Month(OA$33,OA$34,$F41) -> TRUE | OB41: =Find_Month(OB$33,OB$34,$F41) -> FALSE | OC41: =Find_Month(OC$33,OC$34,$F41) -> TRUE | OD41: =Find_Month(OD$33,OD$34,$F41) -> FALSE | OE41: =Find_Month(OE$33,OE$34,$F41) -> TRUE | OF41: =Find_Month(OF$33,OF$34,$F41) -> FALSE | OG41: =Find_Month(OG$33,OG$34,$F41) -> TRUE | OH41: =Find_Month(OH$33,OH$34,$F41) -> FALSE | OI41: =Find_Month(OI$33,OI$34,$F41) -> TRUE | OJ41: =Find_Month(OJ$33,OJ$34,$F41) -> FALSE | OK41: =Find_Month(OK$33,OK$34,$F41) -> TRUE | OL41: =Find_Month(OL$33,OL$34,$F41) -> FALSE | OM41: =Find_Month(OM$33,OM$34,$F41) -> TRUE | ON41: =Find_Month(ON$33,ON$34,$F41) -> FALSE | OO41: =Find_Month(OO$33,OO$34,$F41) -> TRUE | OP41: =Find_Month(OP$33,OP$34,$F41) -> FALSE | OQ41: =Find_Month(OQ$33,OQ$34,$F41) -> TRUE | OR41: =Find_Month(OR$33,OR$34,$F41) -> FALSE | OS41: =Find_Month(OS$33,OS$34,$F41) -> TRUE | OT41: =Find_Month(OT$33,OT$34,$F41) -> FALSE | OU41: =Find_Month(OU$33,OU$34,$F41) -> TRUE | OV41: =Find_Month(OV$33,OV$34,$F41) -> FALSE | OW41: =Find_Month(OW$33,OW$34,$F41) -> TRUE | OX41: =Find_Month(OX$33,OX$34,$F41) -> FALSE | OY41: =Find_Month(OY$33,OY$34,$F41) -> TRUE | OZ41: =Find_Month(OZ$33,OZ$34,$F41) -> FALSE | PA41: =Find_Month(PA$33,PA$34,$F41) -> TRUE | PB41: =Find_Month(PB$33,PB$34,$F41) -> FALSE | PC41: =Find_Month(PC$33,PC$34,$F41) -> TRUE | PD41: =Find_Month(PD$33,PD$34,$F41) -> FALSE | PE41: =Find_Month(PE$33,PE$34,$F41) -> TRUE | PF41: =Find_Month(PF$33,PF$34,$F41) -> FALSE | PG41: =Find_Month(PG$33,PG$34,$F41) -> TRUE | PH41: =Find_Month(PH$33,PH$34,$F41) -> FALSE | PI41: =Find_Month(PI$33,PI$34,$F41) -> TRUE | PJ41: =Find_Month(PJ$33,PJ$34,$F41) -> FALSE | PK41: =Find_Month(PK$33,PK$34,$F41) -> TRUE | PL41: =Find_Month(PL$33,PL$34,$F41) -> FALSE | PM41: =Find_Month(PM$33,PM$34,$F41) -> TRUE | PN41: =Find_Month(PN$33,PN$34,$F41) -> FALSE | PO41: =Find_Month(PO$33,PO$34,$F41) -> TRUE | PP41: =Find_Month(PP$33,PP$34,$F41) -> FALSE | PQ41: =Find_Month(PQ$33,PQ$34,$F41) -> TRUE | PR41: =Find_Month(PR$33,PR$34,$F41) -> FALSE | PS41: =Find_Month(PS$33,PS$34,$F41) -> TRUE | PT41: =Find_Month(PT$33,PT$34,$F41) -> FALSE | PU41: =Find_Month(PU$33,PU$34,$F41) -> TRUE | PV41: =Find_Month(PV$33,PV$34,$F41) -> FALSE | PW41: =Find_Month(PW$33,PW$34,$F41) -> TRUE | PX41: =Find_Month(PX$33,PX$34,$F41) -> FALSE | PY41: =Find_Month(PY$33,PY$34,$F41) -> TRUE | PZ41: =Find_Month(PZ$33,PZ$34,$F41) -> FALSE | QA41: =Find_Month(QA$33,QA$34,$F41) -> TRUE | QB41: =Find_Month(QB$33,QB$34,$F41) -> FALSE | QC41: =Find_Month(QC$33,QC$34,$F41) -> TRUE | QD41: =Find_Month(QD$33,QD$34,$F41) -> FALSE | QE41: =Find_Month(QE$33,QE$34,$F41) -> TRUE | QF41: =Find_Month(QF$33,QF$34,$F41) -> FALSE | QG41: =Find_Month(QG$33,QG$34,$F41) -> TRUE | QH41: =Find_Month(QH$33,QH$34,$F41) -> FALSE | QI41: =Find_Month(QI$33,QI$34,$F41) -> TRUE | QJ41: =Find_Month(QJ$33,QJ$34,$F41) -> FALSE | QK41: =Find_Month(QK$33,QK$34,$F41) -> TRUE | QL41: =Find_Month(QL$33,QL$34,$F41) -> FALSE | QM41: =Find_Month(QM$33,QM$34,$F41) -> TRUE | QN41: =Find_Month(QN$33,QN$34,$F41) -> FALSE | QO41: =Find_Month(QO$33,QO$34,$F41) -> TRUE | QP41: =Find_Month(QP$33,QP$34,$F41) -> FALSE | QQ41: =Find_Month(QQ$33,QQ$34,$F41) -> TRUE | QR41: =Find_Month(QR$33,QR$34,$F41) -> FALSE | QS41: =Find_Month(QS$33,QS$34,$F41) -> TRUE | QT41: =Find_Month(QT$33,QT$34,$F41) -> FALSE | QU41: =Find_Month(QU$33,QU$34,$F41) -> TRUE | QV41: =Find_Month(QV$33,QV$34,$F41) -> FALSE | QW41: =Find_Month(QW$33,QW$34,$F41) -> TRUE | QX41: =Find_Month(QX$33,QX$34,$F41) -> FALSE | QY41: =Find_Month(QY$33,QY$34,$F41) -> TRUE | QZ41: =Find_Month(QZ$33,QZ$34,$F41) -> FALSE | RA41: =Find_Month(RA$33,RA$34,$F41) -> TRUE | RB41: =Find_Month(RB$33,RB$34,$F41) -> FALSE | RC41: =Find_Month(RC$33,RC$34,$F41) -> TRUE | RD41: =Find_Month(RD$33,RD$34,$F41) -> FALSE | RE41: =Find_Month(RE$33,RE$34,$F41) -> TRUE | RF41: =Find_Month(RF$33,RF$34,$F41) -> FALSE | RG41: =Find_Month(RG$33,RG$34,$F41) -> TRUE | RH41: =Find_Month(RH$33,RH$34,$F41) -> FALSE | RI41: =Find_Month(RI$33,RI$34,$F41) -> TRUE | RJ41: =Find_Month(RJ$33,RJ$34,$F41) -> FALSE | RK41: =Find_Month(RK$33,RK$34,$F41) -> TRUE | RL41: =Find_Month(RL$33,RL$34,$F41) -> FALSE | RM41: =Find_Month(RM$33,RM$34,$F41) -> TRUE | RN41: =Find_Month(RN$33,RN$34,$F41) -> FALSE | RO41: =Find_Month(RO$33,RO$34,$F41) -> TRUE | RP41: =Find_Month(RP$33,RP$34,$F41) -> FALSE | RQ41: =Find_Month(RQ$33,RQ$34,$F41) -> TRUE | RR41: =Find_Month(RR$33,RR$34,$F41) -> FALSE | RS41: =Find_Month(RS$33,RS$34,$F41) -> TRUE | RT41: =Find_Month(RT$33,RT$34,$F41) -> FALSE | RU41: =Find_Month(RU$33,RU$34,$F41) -> TRUE | RV41: =Find_Month(RV$33,RV$34,$F41) -> FALSE | RW41: =Find_Month(RW$33,RW$34,$F41) -> TRUE | RX41: =Find_Month(RX$33,RX$34,$F41) -> FALSE | RY41: =Find_Month(RY$33,RY$34,$F41) -> TRUE | RZ41: =Find_Month(RZ$33,RZ$34,$F41) -> FALSE | SA41: =Find_Month(SA$33,SA$34,$F41) -> TRUE | SB41: =Find_Month(SB$33,SB$34,$F41) -> FALSE | SC41: =Find_Month(SC$33,SC$34,$F41) -> FALSE | SD41: =Find_Month(SD$33,SD$34,$F41) -> FALSE | SE41: =Find_Month(SE$33,SE$34,$F41) -> FALSE | SF41: =Find_Month(SF$33,SF$34,$F41) -> FALSE | SG41: =Find_Month(SG$33,SG$34,$F41) -> FALSE | SH41: =Find_Month(SH$33,SH$34,$F41) -> FALSE | SI41: =Find_Month(SI$33,SI$34,$F41) -> FALSE | SJ41: =Find_Month(SJ$33,SJ$34,$F41) -> FALSE | SK41: =Find_Month(SK$33,SK$34,$F41) -> FALSE | SL41: =Find_Month(SL$33,SL$34,$F41) -> FALSE | SM41: =Find_Month(SM$33,SM$34,$F41) -> FALSE | SN41: =Find_Month(SN$33,SN$34,$F41) -> FALSE | SO41: =Find_Month(SO$33,SO$34,$F41) -> FALSE | SP41: =Find_Month(SP$33,SP$34,$F41) -> FALSE | SQ41: =Find_Month(SQ$33,SQ$34,$F41) -> FALSE | SR41: =Find_Month(SR$33,SR$34,$F41) -> FALSE | SS41: =Find_Month(SS$33,SS$34,$F41) -> FALSE | ST41: =Find_Month(ST$33,ST$34,$F41) -> FALSE | SU41: =Find_Month(SU$33,SU$34,$F41) -> FALSE | SV41: =Find_Month(SV$33,SV$34,$F41) -> FALSE | SW41: =Find_Month(SW$33,SW$34,$F41) -> FALSE | SX41: =Find_Month(SX$33,SX$34,$F41) -> FALSE | SY41: =Find_Month(SY$33,SY$34,$F41) -> FALSE | SZ41: =Find_Month(SZ$33,SZ$34,$F41) -> FALSE | TA41: =Find_Month(TA$33,TA$34,$F41) -> FALSE | TB41: =Find_Month(TB$33,TB$34,$F41) -> FALSE | TC41: =Find_Month(TC$33,TC$34,$F41) -> FALSE | TD41: =Find_Month(TD$33,TD$34,$F41) -> FALSE | TE41: =Find_Month(TE$33,TE$34,$F41) -> FALSE | TF41: =Find_Month(TF$33,TF$34,$F41) -> FALSE | TG41: =Find_Month(TG$33,TG$34,$F41) -> FALSE | TH41: =Find_Month(TH$33,TH$34,$F41) -> FALSE | TI41: =Find_Month(TI$33,TI$34,$F41) -> FALSE | TJ41: =Find_Month(TJ$33,TJ$34,$F41) -> FALSE | TK41: =Find_Month(TK$33,TK$34,$F41) -> FALSE | TL41: =Find_Month(TL$33,TL$34,$F41) -> FALSE | TM41: =Find_Month(TM$33,TM$34,$F41) -> FALSE | TN41: =Find_Month(TN$33,TN$34,$F41) -> FALSE | TO41: =Find_Month(TO$33,TO$34,$F41) -> FALSE | TP41: =Find_Month(TP$33,TP$34,$F41) -> FALSE | TQ41: =Find_Month(TQ$33,TQ$34,$F41) -> FALSE | TR41: =Find_Month(TR$33,TR$34,$F41) -> FALSE | TS41: =Find_Month(TS$33,TS$34,$F41) -> FALSE | TT41: =Find_Month(TT$33,TT$34,$F41) -> FALSE | TU41: =Find_Month(TU$33,TU$34,$F41) -> FALSE | TV41: =Find_Month(TV$33,TV$34,$F41) -> FALSE | TW41: =Find_Month(TW$33,TW$34,$F41) -> FALSE | TX41: =Find_Month(TX$33,TX$34,$F41) -> FALSE | TY41: =Find_Month(TY$33,TY$34,$F41) -> FALSE
F42: 6 | G42: 252.9233173 | H42: 0.07890877206 | J42: =Find_Month(J$33,J$34,$F42) -> FALSE | K42: =Find_Month(K$33,K$34,$F42) -> FALSE | L42: =Find_Month(L$33,L$34,$F42) -> FALSE | M42: =Find_Month(M$33,M$34,$F42) -> FALSE | N42: =Find_Month(N$33,N$34,$F42) -> FALSE | O42: =Find_Month(O$33,O$34,$F42) -> TRUE | P42: =Find_Month(P$33,P$34,$F42) -> FALSE | Q42: =Find_Month(Q$33,Q$34,$F42) -> FALSE | R42: =Find_Month(R$33,R$34,$F42) -> FALSE | S42: =Find_Month(S$33,S$34,$F42) -> FALSE | T42: =Find_Month(T$33,T$34,$F42) -> FALSE | U42: =Find_Month(U$33,U$34,$F42) -> FALSE | V42: =Find_Month(V$33,V$34,$F42) -> FALSE | W42: =Find_Month(W$33,W$34,$F42) -> FALSE | X42: =Find_Month(X$33,X$34,$F42) -> FALSE | Y42: =Find_Month(Y$33,Y$34,$F42) -> FALSE | Z42: =Find_Month(Z$33,Z$34,$F42) -> FALSE | AA42: =Find_Month(AA$33,AA$34,$F42) -> TRUE | AB42: =Find_Month(AB$33,AB$34,$F42) -> FALSE | AC42: =Find_Month(AC$33,AC$34,$F42) -> FALSE | AD42: =Find_Month(AD$33,AD$34,$F42) -> FALSE | AE42: =Find_Month(AE$33,AE$34,$F42) -> TRUE | AF42: =Find_Month(AF$33,AF$34,$F42) -> FALSE | AG42: =Find_Month(AG$33,AG$34,$F42) -> TRUE | AH42: =Find_Month(AH$33,AH$34,$F42) -> FALSE | AI42: =Find_Month(AI$33,AI$34,$F42) -> TRUE | AJ42: =Find_Month(AJ$33,AJ$34,$F42) -> FALSE | AK42: =Find_Month(AK$33,AK$34,$F42) -> TRUE | AL42: =Find_Month(AL$33,AL$34,$F42) -> FALSE | AM42: =Find_Month(AM$33,AM$34,$F42) -> TRUE | AN42: =Find_Month(AN$33,AN$34,$F42) -> FALSE | AO42: =Find_Month(AO$33,AO$34,$F42) -> TRUE | AP42: =Find_Month(AP$33,AP$34,$F42) -> FALSE | AQ42: =Find_Month(AQ$33,AQ$34,$F42) -> TRUE | AR42: =Find_Month(AR$33,AR$34,$F42) -> FALSE | AS42: =Find_Month(AS$33,AS$34,$F42) -> TRUE | AT42: =Find_Month(AT$33,AT$34,$F42) -> FALSE | AU42: =Find_Month(AU$33,AU$34,$F42) -> TRUE | AV42: =Find_Month(AV$33,AV$34,$F42) -> FALSE | AW42: =Find_Month(AW$33,AW$34,$F42) -> TRUE | AX42: =Find_Month(AX$33,AX$34,$F42) -> FALSE | AY42: =Find_Month(AY$33,AY$34,$F42) -> TRUE | AZ42: =Find_Month(AZ$33,AZ$34,$F42) -> FALSE | BA42: =Find_Month(BA$33,BA$34,$F42) -> TRUE | BB42: =Find_Month(BB$33,BB$34,$F42) -> FALSE | BC42: =Find_Month(BC$33,BC$34,$F42) -> TRUE | BD42: =Find_Month(BD$33,BD$34,$F42) -> FALSE | BE42: =Find_Month(BE$33,BE$34,$F42) -> TRUE | BF42: =Find_Month(BF$33,BF$34,$F42) -> FALSE | BG42: =Find_Month(BG$33,BG$34,$F42) -> TRUE | BH42: =Find_Month(BH$33,BH$34,$F42) -> FALSE | BI42: =Find_Month(BI$33,BI$34,$F42) -> TRUE | BJ42: =Find_Month(BJ$33,BJ$34,$F42) -> FALSE | BK42: =Find_Month(BK$33,BK$34,$F42) -> TRUE | BL42: =Find_Month(BL$33,BL$34,$F42) -> FALSE | BM42: =Find_Month(BM$33,BM$34,$F42) -> TRUE | BN42: =Find_Month(BN$33,BN$34,$F42) -> FALSE | BO42: =Find_Month(BO$33,BO$34,$F42) -> TRUE | BP42: =Find_Month(BP$33,BP$34,$F42) -> FALSE | BQ42: =Find_Month(BQ$33,BQ$34,$F42) -> TRUE | BR42: =Find_Month(BR$33,BR$34,$F42) -> FALSE | BS42: =Find_Month(BS$33,BS$34,$F42) -> TRUE | BT42: =Find_Month(BT$33,BT$34,$F42) -> FALSE | BU42: =Find_Month(BU$33,BU$34,$F42) -> TRUE | BV42: =Find_Month(BV$33,BV$34,$F42) -> FALSE | BW42: =Find_Month(BW$33,BW$34,$F42) -> TRUE | BX42: =Find_Month(BX$33,BX$34,$F42) -> FALSE | BY42: =Find_Month(BY$33,BY$34,$F42) -> TRUE | BZ42: =Find_Month(BZ$33,BZ$34,$F42) -> FALSE | CA42: =Find_Month(CA$33,CA$34,$F42) -> TRUE | CB42: =Find_Month(CB$33,CB$34,$F42) -> FALSE | CC42: =Find_Month(CC$33,CC$34,$F42) -> TRUE | CD42: =Find_Month(CD$33,CD$34,$F42) -> FALSE | CE42: =Find_Month(CE$33,CE$34,$F42) -> TRUE | CF42: =Find_Month(CF$33,CF$34,$F42) -> FALSE | CG42: =Find_Month(CG$33,CG$34,$F42) -> TRUE | CH42: =Find_Month(CH$33,CH$34,$F42) -> FALSE | CI42: =Find_Month(CI$33,CI$34,$F42) -> TRUE | CJ42: =Find_Month(CJ$33,CJ$34,$F42) -> FALSE | CK42: =Find_Month(CK$33,CK$34,$F42) -> TRUE | CL42: =Find_Month(CL$33,CL$34,$F42) -> FALSE | CM42: =Find_Month(CM$33,CM$34,$F42) -> TRUE | CN42: =Find_Month(CN$33,CN$34,$F42) -> FALSE | CO42: =Find_Month(CO$33,CO$34,$F42) -> TRUE | CP42: =Find_Month(CP$33,CP$34,$F42) -> FALSE | CQ42: =Find_Month(CQ$33,CQ$34,$F42) -> TRUE | CR42: =Find_Month(CR$33,CR$34,$F42) -> FALSE | CS42: =Find_Month(CS$33,CS$34,$F42) -> TRUE | CT42: =Find_Month(CT$33,CT$34,$F42) -> FALSE | CU42: =Find_Month(CU$33,CU$34,$F42) -> TRUE | CV42: =Find_Month(CV$33,CV$34,$F42) -> FALSE | CW42: =Find_Month(CW$33,CW$34,$F42) -> TRUE | CX42: =Find_Month(CX$33,CX$34,$F42) -> FALSE | CY42: =Find_Month(CY$33,CY$34,$F42) -> TRUE | CZ42: =Find_Month(CZ$33,CZ$34,$F42) -> FALSE | DA42: =Find_Month(DA$33,DA$34,$F42) -> TRUE | DB42: =Find_Month(DB$33,DB$34,$F42) -> FALSE | DC42: =Find_Month(DC$33,DC$34,$F42) -> TRUE | DD42: =Find_Month(DD$33,DD$34,$F42) -> FALSE | DE42: =Find_Month(DE$33,DE$34,$F42) -> TRUE | DF42: =Find_Month(DF$33,DF$34,$F42) -> FALSE | DG42: =Find_Month(DG$33,DG$34,$F42) -> TRUE | DH42: =Find_Month(DH$33,DH$34,$F42) -> FALSE | DI42: =Find_Month(DI$33,DI$34,$F42) -> TRUE | DJ42: =Find_Month(DJ$33,DJ$34,$F42) -> FALSE | DK42: =Find_Month(DK$33,DK$34,$F42) -> TRUE | DL42: =Find_Month(DL$33,DL$34,$F42) -> FALSE | DM42: =Find_Month(DM$33,DM$34,$F42) -> TRUE | DN42: =Find_Month(DN$33,DN$34,$F42) -> FALSE | DO42: =Find_Month(DO$33,DO$34,$F42) -> TRUE | DP42: =Find_Month(DP$33,DP$34,$F42) -> FALSE | DQ42: =Find_Month(DQ$33,DQ$34,$F42) -> TRUE | DR42: =Find_Month(DR$33,DR$34,$F42) -> FALSE | DS42: =Find_Month(DS$33,DS$34,$F42) -> TRUE | DT42: =Find_Month(DT$33,DT$34,$F42) -> FALSE | DU42: =Find_Month(DU$33,DU$34,$F42) -> TRUE | DV42: =Find_Month(DV$33,DV$34,$F42) -> FALSE | DW42: =Find_Month(DW$33,DW$34,$F42) -> TRUE | DX42: =Find_Month(DX$33,DX$34,$F42) -> FALSE | DY42: =Find_Month(DY$33,DY$34,$F42) -> TRUE | DZ42: =Find_Month(DZ$33,DZ$34,$F42) -> FALSE | EA42: =Find_Month(EA$33,EA$34,$F42) -> TRUE | EB42: =Find_Month(EB$33,EB$34,$F42) -> FALSE | EC42: =Find_Month(EC$33,EC$34,$F42) -> TRUE | ED42: =Find_Month(ED$33,ED$34,$F42) -> FALSE | EE42: =Find_Month(EE$33,EE$34,$F42) -> TRUE | EF42: =Find_Month(EF$33,EF$34,$F42) -> FALSE | EG42: =Find_Month(EG$33,EG$34,$F42) -> TRUE | EH42: =Find_Month(EH$33,EH$34,$F42) -> FALSE | EI42: =Find_Month(EI$33,EI$34,$F42) -> TRUE | EJ42: =Find_Month(EJ$33,EJ$34,$F42) -> FALSE | EK42: =Find_Month(EK$33,EK$34,$F42) -> TRUE | EL42: =Find_Month(EL$33,EL$34,$F42) -> FALSE | EM42: =Find_Month(EM$33,EM$34,$F42) -> TRUE | EN42: =Find_Month(EN$33,EN$34,$F42) -> FALSE | EO42: =Find_Month(EO$33,EO$34,$F42) -> TRUE | EP42: =Find_Month(EP$33,EP$34,$F42) -> FALSE | EQ42: =Find_Month(EQ$33,EQ$34,$F42) -> TRUE | ER42: =Find_Month(ER$33,ER$34,$F42) -> FALSE | ES42: =Find_Month(ES$33,ES$34,$F42) -> TRUE | ET42: =Find_Month(ET$33,ET$34,$F42) -> FALSE | EU42: =Find_Month(EU$33,EU$34,$F42) -> TRUE | EV42: =Find_Month(EV$33,EV$34,$F42) -> FALSE | EW42: =Find_Month(EW$33,EW$34,$F42) -> TRUE | EX42: =Find_Month(EX$33,EX$34,$F42) -> FALSE | EY42: =Find_Month(EY$33,EY$34,$F42) -> TRUE | EZ42: =Find_Month(EZ$33,EZ$34,$F42) -> FALSE | FA42: =Find_Month(FA$33,FA$34,$F42) -> TRUE | FB42: =Find_Month(FB$33,FB$34,$F42) -> FALSE | FC42: =Find_Month(FC$33,FC$34,$F42) -> TRUE | FD42: =Find_Month(FD$33,FD$34,$F42) -> FALSE | FE42: =Find_Month(FE$33,FE$34,$F42) -> TRUE | FF42: =Find_Month(FF$33,FF$34,$F42) -> FALSE | FG42: =Find_Month(FG$33,FG$34,$F42) -> TRUE | FH42: =Find_Month(FH$33,FH$34,$F42) -> FALSE | FI42: =Find_Month(FI$33,FI$34,$F42) -> TRUE | FJ42: =Find_Month(FJ$33,FJ$34,$F42) -> FALSE | FK42: =Find_Month(FK$33,FK$34,$F42) -> TRUE | FL42: =Find_Month(FL$33,FL$34,$F42) -> FALSE | FM42: =Find_Month(FM$33,FM$34,$F42) -> TRUE | FN42: =Find_Month(FN$33,FN$34,$F42) -> FALSE | FO42: =Find_Month(FO$33,FO$34,$F42) -> TRUE | FP42: =Find_Month(FP$33,FP$34,$F42) -> FALSE | FQ42: =Find_Month(FQ$33,FQ$34,$F42) -> TRUE | FR42: =Find_Month(FR$33,FR$34,$F42) -> FALSE | FS42: =Find_Month(FS$33,FS$34,$F42) -> TRUE | FT42: =Find_Month(FT$33,FT$34,$F42) -> FALSE | FU42: =Find_Month(FU$33,FU$34,$F42) -> TRUE | FV42: =Find_Month(FV$33,FV$34,$F42) -> FALSE | FW42: =Find_Month(FW$33,FW$34,$F42) -> TRUE | FX42: =Find_Month(FX$33,FX$34,$F42) -> FALSE | FY42: =Find_Month(FY$33,FY$34,$F42) -> TRUE | FZ42: =Find_Month(FZ$33,FZ$34,$F42) -> FALSE | GA42: =Find_Month(GA$33,GA$34,$F42) -> TRUE | GB42: =Find_Month(GB$33,GB$34,$F42) -> FALSE | GC42: =Find_Month(GC$33,GC$34,$F42) -> TRUE | GD42: =Find_Month(GD$33,GD$34,$F42) -> FALSE | GE42: =Find_Month(GE$33,GE$34,$F42) -> TRUE | GF42: =Find_Month(GF$33,GF$34,$F42) -> FALSE | GG42: =Find_Month(GG$33,GG$34,$F42) -> TRUE | GH42: =Find_Month(GH$33,GH$34,$F42) -> FALSE | GI42: =Find_Month(GI$33,GI$34,$F42) -> TRUE | GJ42: =Find_Month(GJ$33,GJ$34,$F42) -> FALSE | GK42: =Find_Month(GK$33,GK$34,$F42) -> TRUE | GL42: =Find_Month(GL$33,GL$34,$F42) -> FALSE | GM42: =Find_Month(GM$33,GM$34,$F42) -> TRUE | GN42: =Find_Month(GN$33,GN$34,$F42) -> FALSE | GO42: =Find_Month(GO$33,GO$34,$F42) -> TRUE | GP42: =Find_Month(GP$33,GP$34,$F42) -> FALSE | GQ42: =Find_Month(GQ$33,GQ$34,$F42) -> TRUE | GR42: =Find_Month(GR$33,GR$34,$F42) -> FALSE | GS42: =Find_Month(GS$33,GS$34,$F42) -> TRUE | GT42: =Find_Month(GT$33,GT$34,$F42) -> FALSE | GU42: =Find_Month(GU$33,GU$34,$F42) -> TRUE | GV42: =Find_Month(GV$33,GV$34,$F42) -> FALSE | GW42: =Find_Month(GW$33,GW$34,$F42) -> TRUE | GX42: =Find_Month(GX$33,GX$34,$F42) -> FALSE | GY42: =Find_Month(GY$33,GY$34,$F42) -> TRUE | GZ42: =Find_Month(GZ$33,GZ$34,$F42) -> FALSE | HA42: =Find_Month(HA$33,HA$34,$F42) -> TRUE | HB42: =Find_Month(HB$33,HB$34,$F42) -> FALSE | HC42: =Find_Month(HC$33,HC$34,$F42) -> TRUE | HD42: =Find_Month(HD$33,HD$34,$F42) -> FALSE | HE42: =Find_Month(HE$33,HE$34,$F42) -> TRUE | HF42: =Find_Month(HF$33,HF$34,$F42) -> FALSE | HG42: =Find_Month(HG$33,HG$34,$F42) -> TRUE | HH42: =Find_Month(HH$33,HH$34,$F42) -> FALSE | HI42: =Find_Month(HI$33,HI$34,$F42) -> TRUE | HJ42: =Find_Month(HJ$33,HJ$34,$F42) -> FALSE | HK42: =Find_Month(HK$33,HK$34,$F42) -> TRUE | HL42: =Find_Month(HL$33,HL$34,$F42) -> FALSE | HM42: =Find_Month(HM$33,HM$34,$F42) -> TRUE | HN42: =Find_Month(HN$33,HN$34,$F42) -> FALSE | HO42: =Find_Month(HO$33,HO$34,$F42) -> TRUE | HP42: =Find_Month(HP$33,HP$34,$F42) -> FALSE | HQ42: =Find_Month(HQ$33,HQ$34,$F42) -> TRUE | HR42: =Find_Month(HR$33,HR$34,$F42) -> FALSE | HS42: =Find_Month(HS$33,HS$34,$F42) -> TRUE | HT42: =Find_Month(HT$33,HT$34,$F42) -> FALSE | HU42: =Find_Month(HU$33,HU$34,$F42) -> TRUE | HV42: =Find_Month(HV$33,HV$34,$F42) -> FALSE | HW42: =Find_Month(HW$33,HW$34,$F42) -> TRUE | HX42: =Find_Month(HX$33,HX$34,$F42) -> FALSE | HY42: =Find_Month(HY$33,HY$34,$F42) -> TRUE | HZ42: =Find_Month(HZ$33,HZ$34,$F42) -> FALSE | IA42: =Find_Month(IA$33,IA$34,$F42) -> TRUE | IB42: =Find_Month(IB$33,IB$34,$F42) -> FALSE | IC42: =Find_Month(IC$33,IC$34,$F42) -> TRUE | ID42: =Find_Month(ID$33,ID$34,$F42) -> FALSE | IE42: =Find_Month(IE$33,IE$34,$F42) -> TRUE | IF42: =Find_Month(IF$33,IF$34,$F42) -> FALSE | IG42: =Find_Month(IG$33,IG$34,$F42) -> TRUE | IH42: =Find_Month(IH$33,IH$34,$F42) -> FALSE | II42: =Find_Month(II$33,II$34,$F42) -> TRUE | IJ42: =Find_Month(IJ$33,IJ$34,$F42) -> FALSE | IK42: =Find_Month(IK$33,IK$34,$F42) -> TRUE | IL42: =Find_Month(IL$33,IL$34,$F42) -> FALSE | IM42: =Find_Month(IM$33,IM$34,$F42) -> TRUE | IN42: =Find_Month(IN$33,IN$34,$F42) -> FALSE | IO42: =Find_Month(IO$33,IO$34,$F42) -> TRUE | IP42: =Find_Month(IP$33,IP$34,$F42) -> FALSE | IQ42: =Find_Month(IQ$33,IQ$34,$F42) -> TRUE | IR42: =Find_Month(IR$33,IR$34,$F42) -> FALSE | IS42: =Find_Month(IS$33,IS$34,$F42) -> TRUE | IT42: =Find_Month(IT$33,IT$34,$F42) -> FALSE | IU42: =Find_Month(IU$33,IU$34,$F42) -> TRUE | IV42: =Find_Month(IV$33,IV$34,$F42) -> FALSE | IW42: =Find_Month(IW$33,IW$34,$F42) -> TRUE | IX42: =Find_Month(IX$33,IX$34,$F42) -> FALSE | IY42: =Find_Month(IY$33,IY$34,$F42) -> TRUE | IZ42: =Find_Month(IZ$33,IZ$34,$F42) -> FALSE | JA42: =Find_Month(JA$33,JA$34,$F42) -> TRUE | JB42: =Find_Month(JB$33,JB$34,$F42) -> FALSE | JC42: =Find_Month(JC$33,JC$34,$F42) -> TRUE | JD42: =Find_Month(JD$33,JD$34,$F42) -> FALSE | JE42: =Find_Month(JE$33,JE$34,$F42) -> TRUE | JF42: =Find_Month(JF$33,JF$34,$F42) -> FALSE | JG42: =Find_Month(JG$33,JG$34,$F42) -> TRUE | JH42: =Find_Month(JH$33,JH$34,$F42) -> FALSE | JI42: =Find_Month(JI$33,JI$34,$F42) -> TRUE | JJ42: =Find_Month(JJ$33,JJ$34,$F42) -> FALSE | JK42: =Find_Month(JK$33,JK$34,$F42) -> TRUE | JL42: =Find_Month(JL$33,JL$34,$F42) -> FALSE | JM42: =Find_Month(JM$33,JM$34,$F42) -> TRUE | JN42: =Find_Month(JN$33,JN$34,$F42) -> FALSE | JO42: =Find_Month(JO$33,JO$34,$F42) -> TRUE | JP42: =Find_Month(JP$33,JP$34,$F42) -> FALSE | JQ42: =Find_Month(JQ$33,JQ$34,$F42) -> TRUE | JR42: =Find_Month(JR$33,JR$34,$F42) -> FALSE | JS42: =Find_Month(JS$33,JS$34,$F42) -> TRUE | JT42: =Find_Month(JT$33,JT$34,$F42) -> FALSE | JU42: =Find_Month(JU$33,JU$34,$F42) -> TRUE | JV42: =Find_Month(JV$33,JV$34,$F42) -> FALSE | JW42: =Find_Month(JW$33,JW$34,$F42) -> TRUE | JX42: =Find_Month(JX$33,JX$34,$F42) -> FALSE | JY42: =Find_Month(JY$33,JY$34,$F42) -> TRUE | JZ42: =Find_Month(JZ$33,JZ$34,$F42) -> FALSE | KA42: =Find_Month(KA$33,KA$34,$F42) -> TRUE | KB42: =Find_Month(KB$33,KB$34,$F42) -> FALSE | KC42: =Find_Month(KC$33,KC$34,$F42) -> TRUE | KD42: =Find_Month(KD$33,KD$34,$F42) -> FALSE | KE42: =Find_Month(KE$33,KE$34,$F42) -> TRUE | KF42: =Find_Month(KF$33,KF$34,$F42) -> FALSE | KG42: =Find_Month(KG$33,KG$34,$F42) -> TRUE | KH42: =Find_Month(KH$33,KH$34,$F42) -> FALSE | KI42: =Find_Month(KI$33,KI$34,$F42) -> TRUE | KJ42: =Find_Month(KJ$33,KJ$34,$F42) -> FALSE | KK42: =Find_Month(KK$33,KK$34,$F42) -> TRUE | KL42: =Find_Month(KL$33,KL$34,$F42) -> FALSE | KM42: =Find_Month(KM$33,KM$34,$F42) -> TRUE | KN42: =Find_Month(KN$33,KN$34,$F42) -> FALSE | KO42: =Find_Month(KO$33,KO$34,$F42) -> TRUE | KP42: =Find_Month(KP$33,KP$34,$F42) -> FALSE | KQ42: =Find_Month(KQ$33,KQ$34,$F42) -> TRUE | KR42: =Find_Month(KR$33,KR$34,$F42) -> FALSE | KS42: =Find_Month(KS$33,KS$34,$F42) -> TRUE | KT42: =Find_Month(KT$33,KT$34,$F42) -> FALSE | KU42: =Find_Month(KU$33,KU$34,$F42) -> TRUE | KV42: =Find_Month(KV$33,KV$34,$F42) -> FALSE | KW42: =Find_Month(KW$33,KW$34,$F42) -> TRUE | KX42: =Find_Month(KX$33,KX$34,$F42) -> FALSE | KY42: =Find_Month(KY$33,KY$34,$F42) -> TRUE | KZ42: =Find_Month(KZ$33,KZ$34,$F42) -> FALSE | LA42: =Find_Month(LA$33,LA$34,$F42) -> TRUE | LB42: =Find_Month(LB$33,LB$34,$F42) -> FALSE | LC42: =Find_Month(LC$33,LC$34,$F42) -> TRUE | LD42: =Find_Month(LD$33,LD$34,$F42) -> FALSE | LE42: =Find_Month(LE$33,LE$34,$F42) -> TRUE | LF42: =Find_Month(LF$33,LF$34,$F42) -> FALSE | LG42: =Find_Month(LG$33,LG$34,$F42) -> TRUE | LH42: =Find_Month(LH$33,LH$34,$F42) -> FALSE | LI42: =Find_Month(LI$33,LI$34,$F42) -> TRUE | LJ42: =Find_Month(LJ$33,LJ$34,$F42) -> FALSE | LK42: =Find_Month(LK$33,LK$34,$F42) -> TRUE | LL42: =Find_Month(LL$33,LL$34,$F42) -> FALSE | LM42: =Find_Month(LM$33,LM$34,$F42) -> TRUE | LN42: =Find_Month(LN$33,LN$34,$F42) -> FALSE | LO42: =Find_Month(LO$33,LO$34,$F42) -> TRUE | LP42: =Find_Month(LP$33,LP$34,$F42) -> FALSE | LQ42: =Find_Month(LQ$33,LQ$34,$F42) -> TRUE | LR42: =Find_Month(LR$33,LR$34,$F42) -> FALSE | LS42: =Find_Month(LS$33,LS$34,$F42) -> TRUE | LT42: =Find_Month(LT$33,LT$34,$F42) -> FALSE | LU42: =Find_Month(LU$33,LU$34,$F42) -> TRUE | LV42: =Find_Month(LV$33,LV$34,$F42) -> FALSE | LW42: =Find_Month(LW$33,LW$34,$F42) -> TRUE | LX42: =Find_Month(LX$33,LX$34,$F42) -> FALSE | LY42: =Find_Month(LY$33,LY$34,$F42) -> TRUE | LZ42: =Find_Month(LZ$33,LZ$34,$F42) -> FALSE | MA42: =Find_Month(MA$33,MA$34,$F42) -> TRUE | MB42: =Find_Month(MB$33,MB$34,$F42) -> FALSE | MC42: =Find_Month(MC$33,MC$34,$F42) -> TRUE | MD42: =Find_Month(MD$33,MD$34,$F42) -> FALSE | ME42: =Find_Month(ME$33,ME$34,$F42) -> TRUE | MF42: =Find_Month(MF$33,MF$34,$F42) -> FALSE | MG42: =Find_Month(MG$33,MG$34,$F42) -> TRUE | MH42: =Find_Month(MH$33,MH$34,$F42) -> FALSE | MI42: =Find_Month(MI$33,MI$34,$F42) -> TRUE | MJ42: =Find_Month(MJ$33,MJ$34,$F42) -> FALSE | MK42: =Find_Month(MK$33,MK$34,$F42) -> TRUE | ML42: =Find_Month(ML$33,ML$34,$F42) -> FALSE | MM42: =Find_Month(MM$33,MM$34,$F42) -> TRUE | MN42: =Find_Month(MN$33,MN$34,$F42) -> FALSE | MO42: =Find_Month(MO$33,MO$34,$F42) -> TRUE | MP42: =Find_Month(MP$33,MP$34,$F42) -> FALSE | MQ42: =Find_Month(MQ$33,MQ$34,$F42) -> TRUE | MR42: =Find_Month(MR$33,MR$34,$F42) -> FALSE | MS42: =Find_Month(MS$33,MS$34,$F42) -> TRUE | MT42: =Find_Month(MT$33,MT$34,$F42) -> FALSE | MU42: =Find_Month(MU$33,MU$34,$F42) -> TRUE | MV42: =Find_Month(MV$33,MV$34,$F42) -> FALSE | MW42: =Find_Month(MW$33,MW$34,$F42) -> TRUE | MX42: =Find_Month(MX$33,MX$34,$F42) -> FALSE | MY42: =Find_Month(MY$33,MY$34,$F42) -> TRUE | MZ42: =Find_Month(MZ$33,MZ$34,$F42) -> FALSE | NA42: =Find_Month(NA$33,NA$34,$F42) -> TRUE | NB42: =Find_Month(NB$33,NB$34,$F42) -> FALSE | NC42: =Find_Month(NC$33,NC$34,$F42) -> TRUE | ND42: =Find_Month(ND$33,ND$34,$F42) -> FALSE | NE42: =Find_Month(NE$33,NE$34,$F42) -> TRUE | NF42: =Find_Month(NF$33,NF$34,$F42) -> FALSE | NG42: =Find_Month(NG$33,NG$34,$F42) -> TRUE | NH42: =Find_Month(NH$33,NH$34,$F42) -> FALSE | NI42: =Find_Month(NI$33,NI$34,$F42) -> TRUE | NJ42: =Find_Month(NJ$33,NJ$34,$F42) -> FALSE | NK42: =Find_Month(NK$33,NK$34,$F42) -> TRUE | NL42: =Find_Month(NL$33,NL$34,$F42) -> FALSE | NM42: =Find_Month(NM$33,NM$34,$F42) -> TRUE | NN42: =Find_Month(NN$33,NN$34,$F42) -> FALSE | NO42: =Find_Month(NO$33,NO$34,$F42) -> TRUE | NP42: =Find_Month(NP$33,NP$34,$F42) -> FALSE | NQ42: =Find_Month(NQ$33,NQ$34,$F42) -> TRUE | NR42: =Find_Month(NR$33,NR$34,$F42) -> FALSE | NS42: =Find_Month(NS$33,NS$34,$F42) -> TRUE | NT42: =Find_Month(NT$33,NT$34,$F42) -> FALSE | NU42: =Find_Month(NU$33,NU$34,$F42) -> TRUE | NV42: =Find_Month(NV$33,NV$34,$F42) -> FALSE | NW42: =Find_Month(NW$33,NW$34,$F42) -> TRUE | NX42: =Find_Month(NX$33,NX$34,$F42) -> FALSE | NY42: =Find_Month(NY$33,NY$34,$F42) -> TRUE | NZ42: =Find_Month(NZ$33,NZ$34,$F42) -> FALSE | OA42: =Find_Month(OA$33,OA$34,$F42) -> TRUE | OB42: =Find_Month(OB$33,OB$34,$F42) -> FALSE | OC42: =Find_Month(OC$33,OC$34,$F42) -> TRUE | OD42: =Find_Month(OD$33,OD$34,$F42) -> FALSE | OE42: =Find_Month(OE$33,OE$34,$F42) -> TRUE | OF42: =Find_Month(OF$33,OF$34,$F42) -> FALSE | OG42: =Find_Month(OG$33,OG$34,$F42) -> TRUE | OH42: =Find_Month(OH$33,OH$34,$F42) -> FALSE | OI42: =Find_Month(OI$33,OI$34,$F42) -> TRUE | OJ42: =Find_Month(OJ$33,OJ$34,$F42) -> FALSE | OK42: =Find_Month(OK$33,OK$34,$F42) -> TRUE | OL42: =Find_Month(OL$33,OL$34,$F42) -> FALSE | OM42: =Find_Month(OM$33,OM$34,$F42) -> TRUE | ON42: =Find_Month(ON$33,ON$34,$F42) -> FALSE | OO42: =Find_Month(OO$33,OO$34,$F42) -> TRUE | OP42: =Find_Month(OP$33,OP$34,$F42) -> FALSE | OQ42: =Find_Month(OQ$33,OQ$34,$F42) -> TRUE | OR42: =Find_Month(OR$33,OR$34,$F42) -> FALSE | OS42: =Find_Month(OS$33,OS$34,$F42) -> TRUE | OT42: =Find_Month(OT$33,OT$34,$F42) -> FALSE | OU42: =Find_Month(OU$33,OU$34,$F42) -> TRUE | OV42: =Find_Month(OV$33,OV$34,$F42) -> FALSE | OW42: =Find_Month(OW$33,OW$34,$F42) -> TRUE | OX42: =Find_Month(OX$33,OX$34,$F42) -> FALSE | OY42: =Find_Month(OY$33,OY$34,$F42) -> TRUE | OZ42: =Find_Month(OZ$33,OZ$34,$F42) -> FALSE | PA42: =Find_Month(PA$33,PA$34,$F42) -> TRUE | PB42: =Find_Month(PB$33,PB$34,$F42) -> FALSE | PC42: =Find_Month(PC$33,PC$34,$F42) -> TRUE | PD42: =Find_Month(PD$33,PD$34,$F42) -> FALSE | PE42: =Find_Month(PE$33,PE$34,$F42) -> TRUE | PF42: =Find_Month(PF$33,PF$34,$F42) -> FALSE | PG42: =Find_Month(PG$33,PG$34,$F42) -> TRUE | PH42: =Find_Month(PH$33,PH$34,$F42) -> FALSE | PI42: =Find_Month(PI$33,PI$34,$F42) -> TRUE | PJ42: =Find_Month(PJ$33,PJ$34,$F42) -> FALSE | PK42: =Find_Month(PK$33,PK$34,$F42) -> TRUE | PL42: =Find_Month(PL$33,PL$34,$F42) -> FALSE | PM42: =Find_Month(PM$33,PM$34,$F42) -> TRUE | PN42: =Find_Month(PN$33,PN$34,$F42) -> FALSE | PO42: =Find_Month(PO$33,PO$34,$F42) -> TRUE | PP42: =Find_Month(PP$33,PP$34,$F42) -> FALSE | PQ42: =Find_Month(PQ$33,PQ$34,$F42) -> TRUE | PR42: =Find_Month(PR$33,PR$34,$F42) -> FALSE | PS42: =Find_Month(PS$33,PS$34,$F42) -> TRUE | PT42: =Find_Month(PT$33,PT$34,$F42) -> FALSE | PU42: =Find_Month(PU$33,PU$34,$F42) -> TRUE | PV42: =Find_Month(PV$33,PV$34,$F42) -> FALSE | PW42: =Find_Month(PW$33,PW$34,$F42) -> TRUE | PX42: =Find_Month(PX$33,PX$34,$F42) -> FALSE | PY42: =Find_Month(PY$33,PY$34,$F42) -> TRUE | PZ42: =Find_Month(PZ$33,PZ$34,$F42) -> FALSE | QA42: =Find_Month(QA$33,QA$34,$F42) -> TRUE | QB42: =Find_Month(QB$33,QB$34,$F42) -> FALSE | QC42: =Find_Month(QC$33,QC$34,$F42) -> TRUE | QD42: =Find_Month(QD$33,QD$34,$F42) -> FALSE | QE42: =Find_Month(QE$33,QE$34,$F42) -> TRUE | QF42: =Find_Month(QF$33,QF$34,$F42) -> FALSE | QG42: =Find_Month(QG$33,QG$34,$F42) -> TRUE | QH42: =Find_Month(QH$33,QH$34,$F42) -> FALSE | QI42: =Find_Month(QI$33,QI$34,$F42) -> TRUE | QJ42: =Find_Month(QJ$33,QJ$34,$F42) -> FALSE | QK42: =Find_Month(QK$33,QK$34,$F42) -> TRUE | QL42: =Find_Month(QL$33,QL$34,$F42) -> FALSE | QM42: =Find_Month(QM$33,QM$34,$F42) -> TRUE | QN42: =Find_Month(QN$33,QN$34,$F42) -> FALSE | QO42: =Find_Month(QO$33,QO$34,$F42) -> TRUE | QP42: =Find_Month(QP$33,QP$34,$F42) -> FALSE | QQ42: =Find_Month(QQ$33,QQ$34,$F42) -> TRUE | QR42: =Find_Month(QR$33,QR$34,$F42) -> FALSE | QS42: =Find_Month(QS$33,QS$34,$F42) -> TRUE | QT42: =Find_Month(QT$33,QT$34,$F42) -> FALSE | QU42: =Find_Month(QU$33,QU$34,$F42) -> TRUE | QV42: =Find_Month(QV$33,QV$34,$F42) -> FALSE | QW42: =Find_Month(QW$33,QW$34,$F42) -> TRUE | QX42: =Find_Month(QX$33,QX$34,$F42) -> FALSE | QY42: =Find_Month(QY$33,QY$34,$F42) -> TRUE | QZ42: =Find_Month(QZ$33,QZ$34,$F42) -> FALSE | RA42: =Find_Month(RA$33,RA$34,$F42) -> TRUE | RB42: =Find_Month(RB$33,RB$34,$F42) -> FALSE | RC42: =Find_Month(RC$33,RC$34,$F42) -> TRUE | RD42: =Find_Month(RD$33,RD$34,$F42) -> FALSE | RE42: =Find_Month(RE$33,RE$34,$F42) -> TRUE | RF42: =Find_Month(RF$33,RF$34,$F42) -> FALSE | RG42: =Find_Month(RG$33,RG$34,$F42) -> TRUE | RH42: =Find_Month(RH$33,RH$34,$F42) -> FALSE | RI42: =Find_Month(RI$33,RI$34,$F42) -> TRUE | RJ42: =Find_Month(RJ$33,RJ$34,$F42) -> FALSE | RK42: =Find_Month(RK$33,RK$34,$F42) -> TRUE | RL42: =Find_Month(RL$33,RL$34,$F42) -> FALSE | RM42: =Find_Month(RM$33,RM$34,$F42) -> TRUE | RN42: =Find_Month(RN$33,RN$34,$F42) -> FALSE | RO42: =Find_Month(RO$33,RO$34,$F42) -> TRUE | RP42: =Find_Month(RP$33,RP$34,$F42) -> FALSE | RQ42: =Find_Month(RQ$33,RQ$34,$F42) -> TRUE | RR42: =Find_Month(RR$33,RR$34,$F42) -> FALSE | RS42: =Find_Month(RS$33,RS$34,$F42) -> TRUE | RT42: =Find_Month(RT$33,RT$34,$F42) -> FALSE | RU42: =Find_Month(RU$33,RU$34,$F42) -> TRUE | RV42: =Find_Month(RV$33,RV$34,$F42) -> FALSE | RW42: =Find_Month(RW$33,RW$34,$F42) -> TRUE | RX42: =Find_Month(RX$33,RX$34,$F42) -> FALSE | RY42: =Find_Month(RY$33,RY$34,$F42) -> TRUE | RZ42: =Find_Month(RZ$33,RZ$34,$F42) -> FALSE | SA42: =Find_Month(SA$33,SA$34,$F42) -> TRUE | SB42: =Find_Month(SB$33,SB$34,$F42) -> FALSE | SC42: =Find_Month(SC$33,SC$34,$F42) -> FALSE | SD42: =Find_Month(SD$33,SD$34,$F42) -> FALSE | SE42: =Find_Month(SE$33,SE$34,$F42) -> FALSE | SF42: =Find_Month(SF$33,SF$34,$F42) -> FALSE | SG42: =Find_Month(SG$33,SG$34,$F42) -> FALSE | SH42: =Find_Month(SH$33,SH$34,$F42) -> FALSE | SI42: =Find_Month(SI$33,SI$34,$F42) -> FALSE | SJ42: =Find_Month(SJ$33,SJ$34,$F42) -> FALSE | SK42: =Find_Month(SK$33,SK$34,$F42) -> FALSE | SL42: =Find_Month(SL$33,SL$34,$F42) -> FALSE | SM42: =Find_Month(SM$33,SM$34,$F42) -> FALSE | SN42: =Find_Month(SN$33,SN$34,$F42) -> FALSE | SO42: =Find_Month(SO$33,SO$34,$F42) -> FALSE | SP42: =Find_Month(SP$33,SP$34,$F42) -> FALSE | SQ42: =Find_Month(SQ$33,SQ$34,$F42) -> FALSE | SR42: =Find_Month(SR$33,SR$34,$F42) -> FALSE | SS42: =Find_Month(SS$33,SS$34,$F42) -> FALSE | ST42: =Find_Month(ST$33,ST$34,$F42) -> FALSE | SU42: =Find_Month(SU$33,SU$34,$F42) -> FALSE | SV42: =Find_Month(SV$33,SV$34,$F42) -> FALSE | SW42: =Find_Month(SW$33,SW$34,$F42) -> FALSE | SX42: =Find_Month(SX$33,SX$34,$F42) -> FALSE | SY42: =Find_Month(SY$33,SY$34,$F42) -> FALSE | SZ42: =Find_Month(SZ$33,SZ$34,$F42) -> FALSE | TA42: =Find_Month(TA$33,TA$34,$F42) -> FALSE | TB42: =Find_Month(TB$33,TB$34,$F42) -> FALSE | TC42: =Find_Month(TC$33,TC$34,$F42) -> FALSE | TD42: =Find_Month(TD$33,TD$34,$F42) -> FALSE | TE42: =Find_Month(TE$33,TE$34,$F42) -> FALSE | TF42: =Find_Month(TF$33,TF$34,$F42) -> FALSE | TG42: =Find_Month(TG$33,TG$34,$F42) -> FALSE | TH42: =Find_Month(TH$33,TH$34,$F42) -> FALSE | TI42: =Find_Month(TI$33,TI$34,$F42) -> FALSE | TJ42: =Find_Month(TJ$33,TJ$34,$F42) -> FALSE | TK42: =Find_Month(TK$33,TK$34,$F42) -> FALSE | TL42: =Find_Month(TL$33,TL$34,$F42) -> FALSE | TM42: =Find_Month(TM$33,TM$34,$F42) -> FALSE | TN42: =Find_Month(TN$33,TN$34,$F42) -> FALSE | TO42: =Find_Month(TO$33,TO$34,$F42) -> FALSE | TP42: =Find_Month(TP$33,TP$34,$F42) -> FALSE | TQ42: =Find_Month(TQ$33,TQ$34,$F42) -> FALSE | TR42: =Find_Month(TR$33,TR$34,$F42) -> FALSE | TS42: =Find_Month(TS$33,TS$34,$F42) -> FALSE | TT42: =Find_Month(TT$33,TT$34,$F42) -> FALSE | TU42: =Find_Month(TU$33,TU$34,$F42) -> FALSE | TV42: =Find_Month(TV$33,TV$34,$F42) -> FALSE | TW42: =Find_Month(TW$33,TW$34,$F42) -> FALSE | TX42: =Find_Month(TX$33,TX$34,$F42) -> FALSE | TY42: =Find_Month(TY$33,TY$34,$F42) -> FALSE
F43: 7 | G43: 219.704937 | H43: 0.06854507123 | J43: =Find_Month(J$33,J$34,$F43) -> FALSE | K43: =Find_Month(K$33,K$34,$F43) -> FALSE | L43: =Find_Month(L$33,L$34,$F43) -> FALSE | M43: =Find_Month(M$33,M$34,$F43) -> FALSE | N43: =Find_Month(N$33,N$34,$F43) -> FALSE | O43: =Find_Month(O$33,O$34,$F43) -> FALSE | P43: =Find_Month(P$33,P$34,$F43) -> TRUE | Q43: =Find_Month(Q$33,Q$34,$F43) -> FALSE | R43: =Find_Month(R$33,R$34,$F43) -> FALSE | S43: =Find_Month(S$33,S$34,$F43) -> FALSE | T43: =Find_Month(T$33,T$34,$F43) -> FALSE | U43: =Find_Month(U$33,U$34,$F43) -> FALSE | V43: =Find_Month(V$33,V$34,$F43) -> FALSE | W43: =Find_Month(W$33,W$34,$F43) -> FALSE | X43: =Find_Month(X$33,X$34,$F43) -> FALSE | Y43: =Find_Month(Y$33,Y$34,$F43) -> FALSE | Z43: =Find_Month(Z$33,Z$34,$F43) -> FALSE | AA43: =Find_Month(AA$33,AA$34,$F43) -> FALSE | AB43: =Find_Month(AB$33,AB$34,$F43) -> TRUE | AC43: =Find_Month(AC$33,AC$34,$F43) -> FALSE | AD43: =Find_Month(AD$33,AD$34,$F43) -> FALSE | AE43: =Find_Month(AE$33,AE$34,$F43) -> TRUE | AF43: =Find_Month(AF$33,AF$34,$F43) -> FALSE | AG43: =Find_Month(AG$33,AG$34,$F43) -> TRUE | AH43: =Find_Month(AH$33,AH$34,$F43) -> FALSE | AI43: =Find_Month(AI$33,AI$34,$F43) -> TRUE | AJ43: =Find_Month(AJ$33,AJ$34,$F43) -> FALSE | AK43: =Find_Month(AK$33,AK$34,$F43) -> TRUE | AL43: =Find_Month(AL$33,AL$34,$F43) -> FALSE | AM43: =Find_Month(AM$33,AM$34,$F43) -> TRUE | AN43: =Find_Month(AN$33,AN$34,$F43) -> FALSE | AO43: =Find_Month(AO$33,AO$34,$F43) -> TRUE | AP43: =Find_Month(AP$33,AP$34,$F43) -> FALSE | AQ43: =Find_Month(AQ$33,AQ$34,$F43) -> TRUE | AR43: =Find_Month(AR$33,AR$34,$F43) -> FALSE | AS43: =Find_Month(AS$33,AS$34,$F43) -> TRUE | AT43: =Find_Month(AT$33,AT$34,$F43) -> FALSE | AU43: =Find_Month(AU$33,AU$34,$F43) -> TRUE | AV43: =Find_Month(AV$33,AV$34,$F43) -> FALSE | AW43: =Find_Month(AW$33,AW$34,$F43) -> TRUE | AX43: =Find_Month(AX$33,AX$34,$F43) -> FALSE | AY43: =Find_Month(AY$33,AY$34,$F43) -> TRUE | AZ43: =Find_Month(AZ$33,AZ$34,$F43) -> FALSE | BA43: =Find_Month(BA$33,BA$34,$F43) -> TRUE | BB43: =Find_Month(BB$33,BB$34,$F43) -> FALSE | BC43: =Find_Month(BC$33,BC$34,$F43) -> TRUE | BD43: =Find_Month(BD$33,BD$34,$F43) -> FALSE | BE43: =Find_Month(BE$33,BE$34,$F43) -> TRUE | BF43: =Find_Month(BF$33,BF$34,$F43) -> FALSE | BG43: =Find_Month(BG$33,BG$34,$F43) -> TRUE | BH43: =Find_Month(BH$33,BH$34,$F43) -> FALSE | BI43: =Find_Month(BI$33,BI$34,$F43) -> TRUE | BJ43: =Find_Month(BJ$33,BJ$34,$F43) -> FALSE | BK43: =Find_Month(BK$33,BK$34,$F43) -> TRUE | BL43: =Find_Month(BL$33,BL$34,$F43) -> FALSE | BM43: =Find_Month(BM$33,BM$34,$F43) -> TRUE | BN43: =Find_Month(BN$33,BN$34,$F43) -> FALSE | BO43: =Find_Month(BO$33,BO$34,$F43) -> TRUE | BP43: =Find_Month(BP$33,BP$34,$F43) -> FALSE | BQ43: =Find_Month(BQ$33,BQ$34,$F43) -> TRUE | BR43: =Find_Month(BR$33,BR$34,$F43) -> FALSE | BS43: =Find_Month(BS$33,BS$34,$F43) -> TRUE | BT43: =Find_Month(BT$33,BT$34,$F43) -> FALSE | BU43: =Find_Month(BU$33,BU$34,$F43) -> TRUE | BV43: =Find_Month(BV$33,BV$34,$F43) -> FALSE | BW43: =Find_Month(BW$33,BW$34,$F43) -> TRUE | BX43: =Find_Month(BX$33,BX$34,$F43) -> FALSE | BY43: =Find_Month(BY$33,BY$34,$F43) -> TRUE | BZ43: =Find_Month(BZ$33,BZ$34,$F43) -> FALSE | CA43: =Find_Month(CA$33,CA$34,$F43) -> TRUE | CB43: =Find_Month(CB$33,CB$34,$F43) -> FALSE | CC43: =Find_Month(CC$33,CC$34,$F43) -> TRUE | CD43: =Find_Month(CD$33,CD$34,$F43) -> FALSE | CE43: =Find_Month(CE$33,CE$34,$F43) -> TRUE | CF43: =Find_Month(CF$33,CF$34,$F43) -> FALSE | CG43: =Find_Month(CG$33,CG$34,$F43) -> TRUE | CH43: =Find_Month(CH$33,CH$34,$F43) -> FALSE | CI43: =Find_Month(CI$33,CI$34,$F43) -> TRUE | CJ43: =Find_Month(CJ$33,CJ$34,$F43) -> FALSE | CK43: =Find_Month(CK$33,CK$34,$F43) -> TRUE | CL43: =Find_Month(CL$33,CL$34,$F43) -> FALSE | CM43: =Find_Month(CM$33,CM$34,$F43) -> TRUE | CN43: =Find_Month(CN$33,CN$34,$F43) -> FALSE | CO43: =Find_Month(CO$33,CO$34,$F43) -> TRUE | CP43: =Find_Month(CP$33,CP$34,$F43) -> FALSE | CQ43: =Find_Month(CQ$33,CQ$34,$F43) -> TRUE | CR43: =Find_Month(CR$33,CR$34,$F43) -> FALSE | CS43: =Find_Month(CS$33,CS$34,$F43) -> TRUE | CT43: =Find_Month(CT$33,CT$34,$F43) -> FALSE | CU43: =Find_Month(CU$33,CU$34,$F43) -> TRUE | CV43: =Find_Month(CV$33,CV$34,$F43) -> FALSE | CW43: =Find_Month(CW$33,CW$34,$F43) -> TRUE | CX43: =Find_Month(CX$33,CX$34,$F43) -> FALSE | CY43: =Find_Month(CY$33,CY$34,$F43) -> TRUE | CZ43: =Find_Month(CZ$33,CZ$34,$F43) -> FALSE | DA43: =Find_Month(DA$33,DA$34,$F43) -> TRUE | DB43: =Find_Month(DB$33,DB$34,$F43) -> FALSE | DC43: =Find_Month(DC$33,DC$34,$F43) -> TRUE | DD43: =Find_Month(DD$33,DD$34,$F43) -> FALSE | DE43: =Find_Month(DE$33,DE$34,$F43) -> TRUE | DF43: =Find_Month(DF$33,DF$34,$F43) -> FALSE | DG43: =Find_Month(DG$33,DG$34,$F43) -> TRUE | DH43: =Find_Month(DH$33,DH$34,$F43) -> FALSE | DI43: =Find_Month(DI$33,DI$34,$F43) -> TRUE | DJ43: =Find_Month(DJ$33,DJ$34,$F43) -> FALSE | DK43: =Find_Month(DK$33,DK$34,$F43) -> TRUE | DL43: =Find_Month(DL$33,DL$34,$F43) -> FALSE | DM43: =Find_Month(DM$33,DM$34,$F43) -> TRUE | DN43: =Find_Month(DN$33,DN$34,$F43) -> FALSE | DO43: =Find_Month(DO$33,DO$34,$F43) -> TRUE | DP43: =Find_Month(DP$33,DP$34,$F43) -> FALSE | DQ43: =Find_Month(DQ$33,DQ$34,$F43) -> TRUE | DR43: =Find_Month(DR$33,DR$34,$F43) -> FALSE | DS43: =Find_Month(DS$33,DS$34,$F43) -> TRUE | DT43: =Find_Month(DT$33,DT$34,$F43) -> FALSE | DU43: =Find_Month(DU$33,DU$34,$F43) -> TRUE | DV43: =Find_Month(DV$33,DV$34,$F43) -> FALSE | DW43: =Find_Month(DW$33,DW$34,$F43) -> TRUE | DX43: =Find_Month(DX$33,DX$34,$F43) -> FALSE | DY43: =Find_Month(DY$33,DY$34,$F43) -> TRUE | DZ43: =Find_Month(DZ$33,DZ$34,$F43) -> FALSE | EA43: =Find_Month(EA$33,EA$34,$F43) -> TRUE | EB43: =Find_Month(EB$33,EB$34,$F43) -> FALSE | EC43: =Find_Month(EC$33,EC$34,$F43) -> TRUE | ED43: =Find_Month(ED$33,ED$34,$F43) -> FALSE | EE43: =Find_Month(EE$33,EE$34,$F43) -> TRUE | EF43: =Find_Month(EF$33,EF$34,$F43) -> FALSE | EG43: =Find_Month(EG$33,EG$34,$F43) -> TRUE | EH43: =Find_Month(EH$33,EH$34,$F43) -> FALSE | EI43: =Find_Month(EI$33,EI$34,$F43) -> TRUE | EJ43: =Find_Month(EJ$33,EJ$34,$F43) -> FALSE | EK43: =Find_Month(EK$33,EK$34,$F43) -> TRUE | EL43: =Find_Month(EL$33,EL$34,$F43) -> FALSE | EM43: =Find_Month(EM$33,EM$34,$F43) -> TRUE | EN43: =Find_Month(EN$33,EN$34,$F43) -> FALSE | EO43: =Find_Month(EO$33,EO$34,$F43) -> TRUE | EP43: =Find_Month(EP$33,EP$34,$F43) -> FALSE | EQ43: =Find_Month(EQ$33,EQ$34,$F43) -> TRUE | ER43: =Find_Month(ER$33,ER$34,$F43) -> FALSE | ES43: =Find_Month(ES$33,ES$34,$F43) -> TRUE | ET43: =Find_Month(ET$33,ET$34,$F43) -> FALSE | EU43: =Find_Month(EU$33,EU$34,$F43) -> TRUE | EV43: =Find_Month(EV$33,EV$34,$F43) -> FALSE | EW43: =Find_Month(EW$33,EW$34,$F43) -> TRUE | EX43: =Find_Month(EX$33,EX$34,$F43) -> FALSE | EY43: =Find_Month(EY$33,EY$34,$F43) -> TRUE | EZ43: =Find_Month(EZ$33,EZ$34,$F43) -> FALSE | FA43: =Find_Month(FA$33,FA$34,$F43) -> TRUE | FB43: =Find_Month(FB$33,FB$34,$F43) -> FALSE | FC43: =Find_Month(FC$33,FC$34,$F43) -> TRUE | FD43: =Find_Month(FD$33,FD$34,$F43) -> FALSE | FE43: =Find_Month(FE$33,FE$34,$F43) -> TRUE | FF43: =Find_Month(FF$33,FF$34,$F43) -> FALSE | FG43: =Find_Month(FG$33,FG$34,$F43) -> TRUE | FH43: =Find_Month(FH$33,FH$34,$F43) -> FALSE | FI43: =Find_Month(FI$33,FI$34,$F43) -> TRUE | FJ43: =Find_Month(FJ$33,FJ$34,$F43) -> FALSE | FK43: =Find_Month(FK$33,FK$34,$F43) -> TRUE | FL43: =Find_Month(FL$33,FL$34,$F43) -> FALSE | FM43: =Find_Month(FM$33,FM$34,$F43) -> TRUE | FN43: =Find_Month(FN$33,FN$34,$F43) -> FALSE | FO43: =Find_Month(FO$33,FO$34,$F43) -> TRUE | FP43: =Find_Month(FP$33,FP$34,$F43) -> FALSE | FQ43: =Find_Month(FQ$33,FQ$34,$F43) -> TRUE | FR43: =Find_Month(FR$33,FR$34,$F43) -> FALSE | FS43: =Find_Month(FS$33,FS$34,$F43) -> TRUE | FT43: =Find_Month(FT$33,FT$34,$F43) -> FALSE | FU43: =Find_Month(FU$33,FU$34,$F43) -> TRUE | FV43: =Find_Month(FV$33,FV$34,$F43) -> FALSE | FW43: =Find_Month(FW$33,FW$34,$F43) -> TRUE | FX43: =Find_Month(FX$33,FX$34,$F43) -> FALSE | FY43: =Find_Month(FY$33,FY$34,$F43) -> TRUE | FZ43: =Find_Month(FZ$33,FZ$34,$F43) -> FALSE | GA43: =Find_Month(GA$33,GA$34,$F43) -> TRUE | GB43: =Find_Month(GB$33,GB$34,$F43) -> FALSE | GC43: =Find_Month(GC$33,GC$34,$F43) -> TRUE | GD43: =Find_Month(GD$33,GD$34,$F43) -> FALSE | GE43: =Find_Month(GE$33,GE$34,$F43) -> TRUE | GF43: =Find_Month(GF$33,GF$34,$F43) -> FALSE | GG43: =Find_Month(GG$33,GG$34,$F43) -> TRUE | GH43: =Find_Month(GH$33,GH$34,$F43) -> FALSE | GI43: =Find_Month(GI$33,GI$34,$F43) -> TRUE | GJ43: =Find_Month(GJ$33,GJ$34,$F43) -> FALSE | GK43: =Find_Month(GK$33,GK$34,$F43) -> TRUE | GL43: =Find_Month(GL$33,GL$34,$F43) -> FALSE | GM43: =Find_Month(GM$33,GM$34,$F43) -> TRUE | GN43: =Find_Month(GN$33,GN$34,$F43) -> FALSE | GO43: =Find_Month(GO$33,GO$34,$F43) -> TRUE | GP43: =Find_Month(GP$33,GP$34,$F43) -> FALSE | GQ43: =Find_Month(GQ$33,GQ$34,$F43) -> TRUE | GR43: =Find_Month(GR$33,GR$34,$F43) -> FALSE | GS43: =Find_Month(GS$33,GS$34,$F43) -> TRUE | GT43: =Find_Month(GT$33,GT$34,$F43) -> FALSE | GU43: =Find_Month(GU$33,GU$34,$F43) -> TRUE | GV43: =Find_Month(GV$33,GV$34,$F43) -> FALSE | GW43: =Find_Month(GW$33,GW$34,$F43) -> TRUE | GX43: =Find_Month(GX$33,GX$34,$F43) -> FALSE | GY43: =Find_Month(GY$33,GY$34,$F43) -> TRUE | GZ43: =Find_Month(GZ$33,GZ$34,$F43) -> FALSE | HA43: =Find_Month(HA$33,HA$34,$F43) -> TRUE | HB43: =Find_Month(HB$33,HB$34,$F43) -> FALSE | HC43: =Find_Month(HC$33,HC$34,$F43) -> TRUE | HD43: =Find_Month(HD$33,HD$34,$F43) -> FALSE | HE43: =Find_Month(HE$33,HE$34,$F43) -> TRUE | HF43: =Find_Month(HF$33,HF$34,$F43) -> FALSE | HG43: =Find_Month(HG$33,HG$34,$F43) -> TRUE | HH43: =Find_Month(HH$33,HH$34,$F43) -> FALSE | HI43: =Find_Month(HI$33,HI$34,$F43) -> TRUE | HJ43: =Find_Month(HJ$33,HJ$34,$F43) -> FALSE | HK43: =Find_Month(HK$33,HK$34,$F43) -> TRUE | HL43: =Find_Month(HL$33,HL$34,$F43) -> FALSE | HM43: =Find_Month(HM$33,HM$34,$F43) -> TRUE | HN43: =Find_Month(HN$33,HN$34,$F43) -> FALSE | HO43: =Find_Month(HO$33,HO$34,$F43) -> TRUE | HP43: =Find_Month(HP$33,HP$34,$F43) -> FALSE | HQ43: =Find_Month(HQ$33,HQ$34,$F43) -> TRUE | HR43: =Find_Month(HR$33,HR$34,$F43) -> FALSE | HS43: =Find_Month(HS$33,HS$34,$F43) -> TRUE | HT43: =Find_Month(HT$33,HT$34,$F43) -> FALSE | HU43: =Find_Month(HU$33,HU$34,$F43) -> TRUE | HV43: =Find_Month(HV$33,HV$34,$F43) -> FALSE | HW43: =Find_Month(HW$33,HW$34,$F43) -> TRUE | HX43: =Find_Month(HX$33,HX$34,$F43) -> FALSE | HY43: =Find_Month(HY$33,HY$34,$F43) -> TRUE | HZ43: =Find_Month(HZ$33,HZ$34,$F43) -> FALSE | IA43: =Find_Month(IA$33,IA$34,$F43) -> TRUE | IB43: =Find_Month(IB$33,IB$34,$F43) -> FALSE | IC43: =Find_Month(IC$33,IC$34,$F43) -> TRUE | ID43: =Find_Month(ID$33,ID$34,$F43) -> FALSE | IE43: =Find_Month(IE$33,IE$34,$F43) -> TRUE | IF43: =Find_Month(IF$33,IF$34,$F43) -> FALSE | IG43: =Find_Month(IG$33,IG$34,$F43) -> TRUE | IH43: =Find_Month(IH$33,IH$34,$F43) -> FALSE | II43: =Find_Month(II$33,II$34,$F43) -> TRUE | IJ43: =Find_Month(IJ$33,IJ$34,$F43) -> FALSE | IK43: =Find_Month(IK$33,IK$34,$F43) -> TRUE | IL43: =Find_Month(IL$33,IL$34,$F43) -> FALSE | IM43: =Find_Month(IM$33,IM$34,$F43) -> TRUE | IN43: =Find_Month(IN$33,IN$34,$F43) -> FALSE | IO43: =Find_Month(IO$33,IO$34,$F43) -> TRUE | IP43: =Find_Month(IP$33,IP$34,$F43) -> FALSE | IQ43: =Find_Month(IQ$33,IQ$34,$F43) -> TRUE | IR43: =Find_Month(IR$33,IR$34,$F43) -> FALSE | IS43: =Find_Month(IS$33,IS$34,$F43) -> TRUE | IT43: =Find_Month(IT$33,IT$34,$F43) -> FALSE | IU43: =Find_Month(IU$33,IU$34,$F43) -> TRUE | IV43: =Find_Month(IV$33,IV$34,$F43) -> FALSE | IW43: =Find_Month(IW$33,IW$34,$F43) -> TRUE | IX43: =Find_Month(IX$33,IX$34,$F43) -> FALSE | IY43: =Find_Month(IY$33,IY$34,$F43) -> TRUE | IZ43: =Find_Month(IZ$33,IZ$34,$F43) -> FALSE | JA43: =Find_Month(JA$33,JA$34,$F43) -> TRUE | JB43: =Find_Month(JB$33,JB$34,$F43) -> FALSE | JC43: =Find_Month(JC$33,JC$34,$F43) -> TRUE | JD43: =Find_Month(JD$33,JD$34,$F43) -> FALSE | JE43: =Find_Month(JE$33,JE$34,$F43) -> TRUE | JF43: =Find_Month(JF$33,JF$34,$F43) -> FALSE | JG43: =Find_Month(JG$33,JG$34,$F43) -> TRUE | JH43: =Find_Month(JH$33,JH$34,$F43) -> FALSE | JI43: =Find_Month(JI$33,JI$34,$F43) -> TRUE | JJ43: =Find_Month(JJ$33,JJ$34,$F43) -> FALSE | JK43: =Find_Month(JK$33,JK$34,$F43) -> TRUE | JL43: =Find_Month(JL$33,JL$34,$F43) -> FALSE | JM43: =Find_Month(JM$33,JM$34,$F43) -> TRUE | JN43: =Find_Month(JN$33,JN$34,$F43) -> FALSE | JO43: =Find_Month(JO$33,JO$34,$F43) -> TRUE | JP43: =Find_Month(JP$33,JP$34,$F43) -> FALSE | JQ43: =Find_Month(JQ$33,JQ$34,$F43) -> TRUE | JR43: =Find_Month(JR$33,JR$34,$F43) -> FALSE | JS43: =Find_Month(JS$33,JS$34,$F43) -> TRUE | JT43: =Find_Month(JT$33,JT$34,$F43) -> FALSE | JU43: =Find_Month(JU$33,JU$34,$F43) -> TRUE | JV43: =Find_Month(JV$33,JV$34,$F43) -> FALSE | JW43: =Find_Month(JW$33,JW$34,$F43) -> TRUE | JX43: =Find_Month(JX$33,JX$34,$F43) -> FALSE | JY43: =Find_Month(JY$33,JY$34,$F43) -> TRUE | JZ43: =Find_Month(JZ$33,JZ$34,$F43) -> FALSE | KA43: =Find_Month(KA$33,KA$34,$F43) -> TRUE | KB43: =Find_Month(KB$33,KB$34,$F43) -> FALSE | KC43: =Find_Month(KC$33,KC$34,$F43) -> TRUE | KD43: =Find_Month(KD$33,KD$34,$F43) -> FALSE | KE43: =Find_Month(KE$33,KE$34,$F43) -> TRUE | KF43: =Find_Month(KF$33,KF$34,$F43) -> FALSE | KG43: =Find_Month(KG$33,KG$34,$F43) -> TRUE | KH43: =Find_Month(KH$33,KH$34,$F43) -> FALSE | KI43: =Find_Month(KI$33,KI$34,$F43) -> TRUE | KJ43: =Find_Month(KJ$33,KJ$34,$F43) -> FALSE | KK43: =Find_Month(KK$33,KK$34,$F43) -> TRUE | KL43: =Find_Month(KL$33,KL$34,$F43) -> FALSE | KM43: =Find_Month(KM$33,KM$34,$F43) -> TRUE | KN43: =Find_Month(KN$33,KN$34,$F43) -> FALSE | KO43: =Find_Month(KO$33,KO$34,$F43) -> TRUE | KP43: =Find_Month(KP$33,KP$34,$F43) -> FALSE | KQ43: =Find_Month(KQ$33,KQ$34,$F43) -> TRUE | KR43: =Find_Month(KR$33,KR$34,$F43) -> FALSE | KS43: =Find_Month(KS$33,KS$34,$F43) -> TRUE | KT43: =Find_Month(KT$33,KT$34,$F43) -> FALSE | KU43: =Find_Month(KU$33,KU$34,$F43) -> TRUE | KV43: =Find_Month(KV$33,KV$34,$F43) -> FALSE | KW43: =Find_Month(KW$33,KW$34,$F43) -> TRUE | KX43: =Find_Month(KX$33,KX$34,$F43) -> FALSE | KY43: =Find_Month(KY$33,KY$34,$F43) -> TRUE | KZ43: =Find_Month(KZ$33,KZ$34,$F43) -> FALSE | LA43: =Find_Month(LA$33,LA$34,$F43) -> TRUE | LB43: =Find_Month(LB$33,LB$34,$F43) -> FALSE | LC43: =Find_Month(LC$33,LC$34,$F43) -> TRUE | LD43: =Find_Month(LD$33,LD$34,$F43) -> FALSE | LE43: =Find_Month(LE$33,LE$34,$F43) -> TRUE | LF43: =Find_Month(LF$33,LF$34,$F43) -> FALSE | LG43: =Find_Month(LG$33,LG$34,$F43) -> TRUE | LH43: =Find_Month(LH$33,LH$34,$F43) -> FALSE | LI43: =Find_Month(LI$33,LI$34,$F43) -> TRUE | LJ43: =Find_Month(LJ$33,LJ$34,$F43) -> FALSE | LK43: =Find_Month(LK$33,LK$34,$F43) -> TRUE | LL43: =Find_Month(LL$33,LL$34,$F43) -> FALSE | LM43: =Find_Month(LM$33,LM$34,$F43) -> TRUE | LN43: =Find_Month(LN$33,LN$34,$F43) -> FALSE | LO43: =Find_Month(LO$33,LO$34,$F43) -> TRUE | LP43: =Find_Month(LP$33,LP$34,$F43) -> FALSE | LQ43: =Find_Month(LQ$33,LQ$34,$F43) -> TRUE | LR43: =Find_Month(LR$33,LR$34,$F43) -> FALSE | LS43: =Find_Month(LS$33,LS$34,$F43) -> TRUE | LT43: =Find_Month(LT$33,LT$34,$F43) -> FALSE | LU43: =Find_Month(LU$33,LU$34,$F43) -> TRUE | LV43: =Find_Month(LV$33,LV$34,$F43) -> FALSE | LW43: =Find_Month(LW$33,LW$34,$F43) -> TRUE | LX43: =Find_Month(LX$33,LX$34,$F43) -> FALSE | LY43: =Find_Month(LY$33,LY$34,$F43) -> TRUE | LZ43: =Find_Month(LZ$33,LZ$34,$F43) -> FALSE | MA43: =Find_Month(MA$33,MA$34,$F43) -> TRUE | MB43: =Find_Month(MB$33,MB$34,$F43) -> FALSE | MC43: =Find_Month(MC$33,MC$34,$F43) -> TRUE | MD43: =Find_Month(MD$33,MD$34,$F43) -> FALSE | ME43: =Find_Month(ME$33,ME$34,$F43) -> TRUE | MF43: =Find_Month(MF$33,MF$34,$F43) -> FALSE | MG43: =Find_Month(MG$33,MG$34,$F43) -> TRUE | MH43: =Find_Month(MH$33,MH$34,$F43) -> FALSE | MI43: =Find_Month(MI$33,MI$34,$F43) -> TRUE | MJ43: =Find_Month(MJ$33,MJ$34,$F43) -> FALSE | MK43: =Find_Month(MK$33,MK$34,$F43) -> TRUE | ML43: =Find_Month(ML$33,ML$34,$F43) -> FALSE | MM43: =Find_Month(MM$33,MM$34,$F43) -> TRUE | MN43: =Find_Month(MN$33,MN$34,$F43) -> FALSE | MO43: =Find_Month(MO$33,MO$34,$F43) -> TRUE | MP43: =Find_Month(MP$33,MP$34,$F43) -> FALSE | MQ43: =Find_Month(MQ$33,MQ$34,$F43) -> TRUE | MR43: =Find_Month(MR$33,MR$34,$F43) -> FALSE | MS43: =Find_Month(MS$33,MS$34,$F43) -> TRUE | MT43: =Find_Month(MT$33,MT$34,$F43) -> FALSE | MU43: =Find_Month(MU$33,MU$34,$F43) -> TRUE | MV43: =Find_Month(MV$33,MV$34,$F43) -> FALSE | MW43: =Find_Month(MW$33,MW$34,$F43) -> TRUE | MX43: =Find_Month(MX$33,MX$34,$F43) -> FALSE | MY43: =Find_Month(MY$33,MY$34,$F43) -> TRUE | MZ43: =Find_Month(MZ$33,MZ$34,$F43) -> FALSE | NA43: =Find_Month(NA$33,NA$34,$F43) -> TRUE | NB43: =Find_Month(NB$33,NB$34,$F43) -> FALSE | NC43: =Find_Month(NC$33,NC$34,$F43) -> TRUE | ND43: =Find_Month(ND$33,ND$34,$F43) -> FALSE | NE43: =Find_Month(NE$33,NE$34,$F43) -> TRUE | NF43: =Find_Month(NF$33,NF$34,$F43) -> FALSE | NG43: =Find_Month(NG$33,NG$34,$F43) -> TRUE | NH43: =Find_Month(NH$33,NH$34,$F43) -> FALSE | NI43: =Find_Month(NI$33,NI$34,$F43) -> TRUE | NJ43: =Find_Month(NJ$33,NJ$34,$F43) -> FALSE | NK43: =Find_Month(NK$33,NK$34,$F43) -> TRUE | NL43: =Find_Month(NL$33,NL$34,$F43) -> FALSE | NM43: =Find_Month(NM$33,NM$34,$F43) -> TRUE | NN43: =Find_Month(NN$33,NN$34,$F43) -> FALSE | NO43: =Find_Month(NO$33,NO$34,$F43) -> TRUE | NP43: =Find_Month(NP$33,NP$34,$F43) -> FALSE | NQ43: =Find_Month(NQ$33,NQ$34,$F43) -> TRUE | NR43: =Find_Month(NR$33,NR$34,$F43) -> FALSE | NS43: =Find_Month(NS$33,NS$34,$F43) -> TRUE | NT43: =Find_Month(NT$33,NT$34,$F43) -> FALSE | NU43: =Find_Month(NU$33,NU$34,$F43) -> TRUE | NV43: =Find_Month(NV$33,NV$34,$F43) -> FALSE | NW43: =Find_Month(NW$33,NW$34,$F43) -> TRUE | NX43: =Find_Month(NX$33,NX$34,$F43) -> FALSE | NY43: =Find_Month(NY$33,NY$34,$F43) -> TRUE | NZ43: =Find_Month(NZ$33,NZ$34,$F43) -> FALSE | OA43: =Find_Month(OA$33,OA$34,$F43) -> TRUE | OB43: =Find_Month(OB$33,OB$34,$F43) -> FALSE | OC43: =Find_Month(OC$33,OC$34,$F43) -> TRUE | OD43: =Find_Month(OD$33,OD$34,$F43) -> FALSE | OE43: =Find_Month(OE$33,OE$34,$F43) -> TRUE | OF43: =Find_Month(OF$33,OF$34,$F43) -> FALSE | OG43: =Find_Month(OG$33,OG$34,$F43) -> TRUE | OH43: =Find_Month(OH$33,OH$34,$F43) -> FALSE | OI43: =Find_Month(OI$33,OI$34,$F43) -> TRUE | OJ43: =Find_Month(OJ$33,OJ$34,$F43) -> FALSE | OK43: =Find_Month(OK$33,OK$34,$F43) -> TRUE | OL43: =Find_Month(OL$33,OL$34,$F43) -> FALSE | OM43: =Find_Month(OM$33,OM$34,$F43) -> TRUE | ON43: =Find_Month(ON$33,ON$34,$F43) -> FALSE | OO43: =Find_Month(OO$33,OO$34,$F43) -> TRUE | OP43: =Find_Month(OP$33,OP$34,$F43) -> FALSE | OQ43: =Find_Month(OQ$33,OQ$34,$F43) -> TRUE | OR43: =Find_Month(OR$33,OR$34,$F43) -> FALSE | OS43: =Find_Month(OS$33,OS$34,$F43) -> TRUE | OT43: =Find_Month(OT$33,OT$34,$F43) -> FALSE | OU43: =Find_Month(OU$33,OU$34,$F43) -> TRUE | OV43: =Find_Month(OV$33,OV$34,$F43) -> FALSE | OW43: =Find_Month(OW$33,OW$34,$F43) -> TRUE | OX43: =Find_Month(OX$33,OX$34,$F43) -> FALSE | OY43: =Find_Month(OY$33,OY$34,$F43) -> TRUE | OZ43: =Find_Month(OZ$33,OZ$34,$F43) -> FALSE | PA43: =Find_Month(PA$33,PA$34,$F43) -> TRUE | PB43: =Find_Month(PB$33,PB$34,$F43) -> FALSE | PC43: =Find_Month(PC$33,PC$34,$F43) -> TRUE | PD43: =Find_Month(PD$33,PD$34,$F43) -> FALSE | PE43: =Find_Month(PE$33,PE$34,$F43) -> TRUE | PF43: =Find_Month(PF$33,PF$34,$F43) -> FALSE | PG43: =Find_Month(PG$33,PG$34,$F43) -> TRUE | PH43: =Find_Month(PH$33,PH$34,$F43) -> FALSE | PI43: =Find_Month(PI$33,PI$34,$F43) -> TRUE | PJ43: =Find_Month(PJ$33,PJ$34,$F43) -> FALSE | PK43: =Find_Month(PK$33,PK$34,$F43) -> TRUE | PL43: =Find_Month(PL$33,PL$34,$F43) -> FALSE | PM43: =Find_Month(PM$33,PM$34,$F43) -> TRUE | PN43: =Find_Month(PN$33,PN$34,$F43) -> FALSE | PO43: =Find_Month(PO$33,PO$34,$F43) -> TRUE | PP43: =Find_Month(PP$33,PP$34,$F43) -> FALSE | PQ43: =Find_Month(PQ$33,PQ$34,$F43) -> TRUE | PR43: =Find_Month(PR$33,PR$34,$F43) -> FALSE | PS43: =Find_Month(PS$33,PS$34,$F43) -> TRUE | PT43: =Find_Month(PT$33,PT$34,$F43) -> FALSE | PU43: =Find_Month(PU$33,PU$34,$F43) -> TRUE | PV43: =Find_Month(PV$33,PV$34,$F43) -> FALSE | PW43: =Find_Month(PW$33,PW$34,$F43) -> TRUE | PX43: =Find_Month(PX$33,PX$34,$F43) -> FALSE | PY43: =Find_Month(PY$33,PY$34,$F43) -> TRUE | PZ43: =Find_Month(PZ$33,PZ$34,$F43) -> FALSE | QA43: =Find_Month(QA$33,QA$34,$F43) -> TRUE | QB43: =Find_Month(QB$33,QB$34,$F43) -> FALSE | QC43: =Find_Month(QC$33,QC$34,$F43) -> TRUE | QD43: =Find_Month(QD$33,QD$34,$F43) -> FALSE | QE43: =Find_Month(QE$33,QE$34,$F43) -> TRUE | QF43: =Find_Month(QF$33,QF$34,$F43) -> FALSE | QG43: =Find_Month(QG$33,QG$34,$F43) -> TRUE | QH43: =Find_Month(QH$33,QH$34,$F43) -> FALSE | QI43: =Find_Month(QI$33,QI$34,$F43) -> TRUE | QJ43: =Find_Month(QJ$33,QJ$34,$F43) -> FALSE | QK43: =Find_Month(QK$33,QK$34,$F43) -> TRUE | QL43: =Find_Month(QL$33,QL$34,$F43) -> FALSE | QM43: =Find_Month(QM$33,QM$34,$F43) -> TRUE | QN43: =Find_Month(QN$33,QN$34,$F43) -> FALSE | QO43: =Find_Month(QO$33,QO$34,$F43) -> TRUE | QP43: =Find_Month(QP$33,QP$34,$F43) -> FALSE | QQ43: =Find_Month(QQ$33,QQ$34,$F43) -> TRUE | QR43: =Find_Month(QR$33,QR$34,$F43) -> FALSE | QS43: =Find_Month(QS$33,QS$34,$F43) -> TRUE | QT43: =Find_Month(QT$33,QT$34,$F43) -> FALSE | QU43: =Find_Month(QU$33,QU$34,$F43) -> TRUE | QV43: =Find_Month(QV$33,QV$34,$F43) -> FALSE | QW43: =Find_Month(QW$33,QW$34,$F43) -> TRUE | QX43: =Find_Month(QX$33,QX$34,$F43) -> FALSE | QY43: =Find_Month(QY$33,QY$34,$F43) -> TRUE | QZ43: =Find_Month(QZ$33,QZ$34,$F43) -> FALSE | RA43: =Find_Month(RA$33,RA$34,$F43) -> TRUE | RB43: =Find_Month(RB$33,RB$34,$F43) -> FALSE | RC43: =Find_Month(RC$33,RC$34,$F43) -> TRUE | RD43: =Find_Month(RD$33,RD$34,$F43) -> FALSE | RE43: =Find_Month(RE$33,RE$34,$F43) -> TRUE | RF43: =Find_Month(RF$33,RF$34,$F43) -> FALSE | RG43: =Find_Month(RG$33,RG$34,$F43) -> TRUE | RH43: =Find_Month(RH$33,RH$34,$F43) -> FALSE | RI43: =Find_Month(RI$33,RI$34,$F43) -> TRUE | RJ43: =Find_Month(RJ$33,RJ$34,$F43) -> FALSE | RK43: =Find_Month(RK$33,RK$34,$F43) -> TRUE | RL43: =Find_Month(RL$33,RL$34,$F43) -> FALSE | RM43: =Find_Month(RM$33,RM$34,$F43) -> TRUE | RN43: =Find_Month(RN$33,RN$34,$F43) -> FALSE | RO43: =Find_Month(RO$33,RO$34,$F43) -> TRUE | RP43: =Find_Month(RP$33,RP$34,$F43) -> FALSE | RQ43: =Find_Month(RQ$33,RQ$34,$F43) -> TRUE | RR43: =Find_Month(RR$33,RR$34,$F43) -> FALSE | RS43: =Find_Month(RS$33,RS$34,$F43) -> TRUE | RT43: =Find_Month(RT$33,RT$34,$F43) -> FALSE | RU43: =Find_Month(RU$33,RU$34,$F43) -> TRUE | RV43: =Find_Month(RV$33,RV$34,$F43) -> FALSE | RW43: =Find_Month(RW$33,RW$34,$F43) -> TRUE | RX43: =Find_Month(RX$33,RX$34,$F43) -> FALSE | RY43: =Find_Month(RY$33,RY$34,$F43) -> TRUE | RZ43: =Find_Month(RZ$33,RZ$34,$F43) -> FALSE | SA43: =Find_Month(SA$33,SA$34,$F43) -> TRUE | SB43: =Find_Month(SB$33,SB$34,$F43) -> FALSE | SC43: =Find_Month(SC$33,SC$34,$F43) -> FALSE | SD43: =Find_Month(SD$33,SD$34,$F43) -> FALSE | SE43: =Find_Month(SE$33,SE$34,$F43) -> FALSE | SF43: =Find_Month(SF$33,SF$34,$F43) -> FALSE | SG43: =Find_Month(SG$33,SG$34,$F43) -> FALSE | SH43: =Find_Month(SH$33,SH$34,$F43) -> FALSE | SI43: =Find_Month(SI$33,SI$34,$F43) -> FALSE | SJ43: =Find_Month(SJ$33,SJ$34,$F43) -> FALSE | SK43: =Find_Month(SK$33,SK$34,$F43) -> FALSE | SL43: =Find_Month(SL$33,SL$34,$F43) -> FALSE | SM43: =Find_Month(SM$33,SM$34,$F43) -> FALSE | SN43: =Find_Month(SN$33,SN$34,$F43) -> FALSE | SO43: =Find_Month(SO$33,SO$34,$F43) -> FALSE | SP43: =Find_Month(SP$33,SP$34,$F43) -> FALSE | SQ43: =Find_Month(SQ$33,SQ$34,$F43) -> FALSE | SR43: =Find_Month(SR$33,SR$34,$F43) -> FALSE | SS43: =Find_Month(SS$33,SS$34,$F43) -> FALSE | ST43: =Find_Month(ST$33,ST$34,$F43) -> FALSE | SU43: =Find_Month(SU$33,SU$34,$F43) -> FALSE | SV43: =Find_Month(SV$33,SV$34,$F43) -> FALSE | SW43: =Find_Month(SW$33,SW$34,$F43) -> FALSE | SX43: =Find_Month(SX$33,SX$34,$F43) -> FALSE | SY43: =Find_Month(SY$33,SY$34,$F43) -> FALSE | SZ43: =Find_Month(SZ$33,SZ$34,$F43) -> FALSE | TA43: =Find_Month(TA$33,TA$34,$F43) -> FALSE | TB43: =Find_Month(TB$33,TB$34,$F43) -> FALSE | TC43: =Find_Month(TC$33,TC$34,$F43) -> FALSE | TD43: =Find_Month(TD$33,TD$34,$F43) -> FALSE | TE43: =Find_Month(TE$33,TE$34,$F43) -> FALSE | TF43: =Find_Month(TF$33,TF$34,$F43) -> FALSE | TG43: =Find_Month(TG$33,TG$34,$F43) -> FALSE | TH43: =Find_Month(TH$33,TH$34,$F43) -> FALSE | TI43: =Find_Month(TI$33,TI$34,$F43) -> FALSE | TJ43: =Find_Month(TJ$33,TJ$34,$F43) -> FALSE | TK43: =Find_Month(TK$33,TK$34,$F43) -> FALSE | TL43: =Find_Month(TL$33,TL$34,$F43) -> FALSE | TM43: =Find_Month(TM$33,TM$34,$F43) -> FALSE | TN43: =Find_Month(TN$33,TN$34,$F43) -> FALSE | TO43: =Find_Month(TO$33,TO$34,$F43) -> FALSE | TP43: =Find_Month(TP$33,TP$34,$F43) -> FALSE | TQ43: =Find_Month(TQ$33,TQ$34,$F43) -> FALSE | TR43: =Find_Month(TR$33,TR$34,$F43) -> FALSE | TS43: =Find_Month(TS$33,TS$34,$F43) -> FALSE | TT43: =Find_Month(TT$33,TT$34,$F43) -> FALSE | TU43: =Find_Month(TU$33,TU$34,$F43) -> FALSE | TV43: =Find_Month(TV$33,TV$34,$F43) -> FALSE | TW43: =Find_Month(TW$33,TW$34,$F43) -> FALSE | TX43: =Find_Month(TX$33,TX$34,$F43) -> FALSE | TY43: =Find_Month(TY$33,TY$34,$F43) -> FALSE
F44: 8 | G44: 217.6722432 | H44: 0.0679108973 | J44: =Find_Month(J$33,J$34,$F44) -> FALSE | K44: =Find_Month(K$33,K$34,$F44) -> FALSE | L44: =Find_Month(L$33,L$34,$F44) -> FALSE | M44: =Find_Month(M$33,M$34,$F44) -> FALSE | N44: =Find_Month(N$33,N$34,$F44) -> FALSE | O44: =Find_Month(O$33,O$34,$F44) -> FALSE | P44: =Find_Month(P$33,P$34,$F44) -> FALSE | Q44: =Find_Month(Q$33,Q$34,$F44) -> TRUE | R44: =Find_Month(R$33,R$34,$F44) -> FALSE | S44: =Find_Month(S$33,S$34,$F44) -> FALSE | T44: =Find_Month(T$33,T$34,$F44) -> FALSE | U44: =Find_Month(U$33,U$34,$F44) -> FALSE | V44: =Find_Month(V$33,V$34,$F44) -> FALSE | W44: =Find_Month(W$33,W$34,$F44) -> FALSE | X44: =Find_Month(X$33,X$34,$F44) -> FALSE | Y44: =Find_Month(Y$33,Y$34,$F44) -> FALSE | Z44: =Find_Month(Z$33,Z$34,$F44) -> FALSE | AA44: =Find_Month(AA$33,AA$34,$F44) -> FALSE | AB44: =Find_Month(AB$33,AB$34,$F44) -> FALSE | AC44: =Find_Month(AC$33,AC$34,$F44) -> TRUE | AD44: =Find_Month(AD$33,AD$34,$F44) -> FALSE | AE44: =Find_Month(AE$33,AE$34,$F44) -> TRUE | AF44: =Find_Month(AF$33,AF$34,$F44) -> FALSE | AG44: =Find_Month(AG$33,AG$34,$F44) -> TRUE | AH44: =Find_Month(AH$33,AH$34,$F44) -> FALSE | AI44: =Find_Month(AI$33,AI$34,$F44) -> TRUE | AJ44: =Find_Month(AJ$33,AJ$34,$F44) -> FALSE | AK44: =Find_Month(AK$33,AK$34,$F44) -> TRUE | AL44: =Find_Month(AL$33,AL$34,$F44) -> FALSE | AM44: =Find_Month(AM$33,AM$34,$F44) -> TRUE | AN44: =Find_Month(AN$33,AN$34,$F44) -> FALSE | AO44: =Find_Month(AO$33,AO$34,$F44) -> TRUE | AP44: =Find_Month(AP$33,AP$34,$F44) -> FALSE | AQ44: =Find_Month(AQ$33,AQ$34,$F44) -> TRUE | AR44: =Find_Month(AR$33,AR$34,$F44) -> FALSE | AS44: =Find_Month(AS$33,AS$34,$F44) -> TRUE | AT44: =Find_Month(AT$33,AT$34,$F44) -> FALSE | AU44: =Find_Month(AU$33,AU$34,$F44) -> TRUE | AV44: =Find_Month(AV$33,AV$34,$F44) -> FALSE | AW44: =Find_Month(AW$33,AW$34,$F44) -> TRUE | AX44: =Find_Month(AX$33,AX$34,$F44) -> FALSE | AY44: =Find_Month(AY$33,AY$34,$F44) -> TRUE | AZ44: =Find_Month(AZ$33,AZ$34,$F44) -> FALSE | BA44: =Find_Month(BA$33,BA$34,$F44) -> TRUE | BB44: =Find_Month(BB$33,BB$34,$F44) -> FALSE | BC44: =Find_Month(BC$33,BC$34,$F44) -> TRUE | BD44: =Find_Month(BD$33,BD$34,$F44) -> FALSE | BE44: =Find_Month(BE$33,BE$34,$F44) -> TRUE | BF44: =Find_Month(BF$33,BF$34,$F44) -> FALSE | BG44: =Find_Month(BG$33,BG$34,$F44) -> TRUE | BH44: =Find_Month(BH$33,BH$34,$F44) -> FALSE | BI44: =Find_Month(BI$33,BI$34,$F44) -> TRUE | BJ44: =Find_Month(BJ$33,BJ$34,$F44) -> FALSE | BK44: =Find_Month(BK$33,BK$34,$F44) -> TRUE | BL44: =Find_Month(BL$33,BL$34,$F44) -> FALSE | BM44: =Find_Month(BM$33,BM$34,$F44) -> TRUE | BN44: =Find_Month(BN$33,BN$34,$F44) -> FALSE | BO44: =Find_Month(BO$33,BO$34,$F44) -> TRUE | BP44: =Find_Month(BP$33,BP$34,$F44) -> FALSE | BQ44: =Find_Month(BQ$33,BQ$34,$F44) -> TRUE | BR44: =Find_Month(BR$33,BR$34,$F44) -> FALSE | BS44: =Find_Month(BS$33,BS$34,$F44) -> TRUE | BT44: =Find_Month(BT$33,BT$34,$F44) -> FALSE | BU44: =Find_Month(BU$33,BU$34,$F44) -> TRUE | BV44: =Find_Month(BV$33,BV$34,$F44) -> FALSE | BW44: =Find_Month(BW$33,BW$34,$F44) -> TRUE | BX44: =Find_Month(BX$33,BX$34,$F44) -> FALSE | BY44: =Find_Month(BY$33,BY$34,$F44) -> TRUE | BZ44: =Find_Month(BZ$33,BZ$34,$F44) -> FALSE | CA44: =Find_Month(CA$33,CA$34,$F44) -> TRUE | CB44: =Find_Month(CB$33,CB$34,$F44) -> FALSE | CC44: =Find_Month(CC$33,CC$34,$F44) -> TRUE | CD44: =Find_Month(CD$33,CD$34,$F44) -> FALSE | CE44: =Find_Month(CE$33,CE$34,$F44) -> TRUE | CF44: =Find_Month(CF$33,CF$34,$F44) -> FALSE | CG44: =Find_Month(CG$33,CG$34,$F44) -> TRUE | CH44: =Find_Month(CH$33,CH$34,$F44) -> FALSE | CI44: =Find_Month(CI$33,CI$34,$F44) -> TRUE | CJ44: =Find_Month(CJ$33,CJ$34,$F44) -> FALSE | CK44: =Find_Month(CK$33,CK$34,$F44) -> TRUE | CL44: =Find_Month(CL$33,CL$34,$F44) -> FALSE | CM44: =Find_Month(CM$33,CM$34,$F44) -> TRUE | CN44: =Find_Month(CN$33,CN$34,$F44) -> FALSE | CO44: =Find_Month(CO$33,CO$34,$F44) -> TRUE | CP44: =Find_Month(CP$33,CP$34,$F44) -> FALSE | CQ44: =Find_Month(CQ$33,CQ$34,$F44) -> TRUE | CR44: =Find_Month(CR$33,CR$34,$F44) -> FALSE | CS44: =Find_Month(CS$33,CS$34,$F44) -> TRUE | CT44: =Find_Month(CT$33,CT$34,$F44) -> FALSE | CU44: =Find_Month(CU$33,CU$34,$F44) -> TRUE | CV44: =Find_Month(CV$33,CV$34,$F44) -> FALSE | CW44: =Find_Month(CW$33,CW$34,$F44) -> TRUE | CX44: =Find_Month(CX$33,CX$34,$F44) -> FALSE | CY44: =Find_Month(CY$33,CY$34,$F44) -> TRUE | CZ44: =Find_Month(CZ$33,CZ$34,$F44) -> FALSE | DA44: =Find_Month(DA$33,DA$34,$F44) -> TRUE | DB44: =Find_Month(DB$33,DB$34,$F44) -> FALSE | DC44: =Find_Month(DC$33,DC$34,$F44) -> TRUE | DD44: =Find_Month(DD$33,DD$34,$F44) -> FALSE | DE44: =Find_Month(DE$33,DE$34,$F44) -> TRUE | DF44: =Find_Month(DF$33,DF$34,$F44) -> FALSE | DG44: =Find_Month(DG$33,DG$34,$F44) -> TRUE | DH44: =Find_Month(DH$33,DH$34,$F44) -> FALSE | DI44: =Find_Month(DI$33,DI$34,$F44) -> TRUE | DJ44: =Find_Month(DJ$33,DJ$34,$F44) -> FALSE | DK44: =Find_Month(DK$33,DK$34,$F44) -> TRUE | DL44: =Find_Month(DL$33,DL$34,$F44) -> FALSE | DM44: =Find_Month(DM$33,DM$34,$F44) -> TRUE | DN44: =Find_Month(DN$33,DN$34,$F44) -> FALSE | DO44: =Find_Month(DO$33,DO$34,$F44) -> TRUE | DP44: =Find_Month(DP$33,DP$34,$F44) -> FALSE | DQ44: =Find_Month(DQ$33,DQ$34,$F44) -> TRUE | DR44: =Find_Month(DR$33,DR$34,$F44) -> FALSE | DS44: =Find_Month(DS$33,DS$34,$F44) -> TRUE | DT44: =Find_Month(DT$33,DT$34,$F44) -> FALSE | DU44: =Find_Month(DU$33,DU$34,$F44) -> TRUE | DV44: =Find_Month(DV$33,DV$34,$F44) -> FALSE | DW44: =Find_Month(DW$33,DW$34,$F44) -> TRUE | DX44: =Find_Month(DX$33,DX$34,$F44) -> FALSE | DY44: =Find_Month(DY$33,DY$34,$F44) -> TRUE | DZ44: =Find_Month(DZ$33,DZ$34,$F44) -> FALSE | EA44: =Find_Month(EA$33,EA$34,$F44) -> TRUE | EB44: =Find_Month(EB$33,EB$34,$F44) -> FALSE | EC44: =Find_Month(EC$33,EC$34,$F44) -> TRUE | ED44: =Find_Month(ED$33,ED$34,$F44) -> FALSE | EE44: =Find_Month(EE$33,EE$34,$F44) -> TRUE | EF44: =Find_Month(EF$33,EF$34,$F44) -> FALSE | EG44: =Find_Month(EG$33,EG$34,$F44) -> TRUE | EH44: =Find_Month(EH$33,EH$34,$F44) -> FALSE | EI44: =Find_Month(EI$33,EI$34,$F44) -> TRUE | EJ44: =Find_Month(EJ$33,EJ$34,$F44) -> FALSE | EK44: =Find_Month(EK$33,EK$34,$F44) -> TRUE | EL44: =Find_Month(EL$33,EL$34,$F44) -> FALSE | EM44: =Find_Month(EM$33,EM$34,$F44) -> TRUE | EN44: =Find_Month(EN$33,EN$34,$F44) -> FALSE | EO44: =Find_Month(EO$33,EO$34,$F44) -> TRUE | EP44: =Find_Month(EP$33,EP$34,$F44) -> FALSE | EQ44: =Find_Month(EQ$33,EQ$34,$F44) -> TRUE | ER44: =Find_Month(ER$33,ER$34,$F44) -> FALSE | ES44: =Find_Month(ES$33,ES$34,$F44) -> TRUE | ET44: =Find_Month(ET$33,ET$34,$F44) -> FALSE | EU44: =Find_Month(EU$33,EU$34,$F44) -> TRUE | EV44: =Find_Month(EV$33,EV$34,$F44) -> FALSE | EW44: =Find_Month(EW$33,EW$34,$F44) -> TRUE | EX44: =Find_Month(EX$33,EX$34,$F44) -> FALSE | EY44: =Find_Month(EY$33,EY$34,$F44) -> TRUE | EZ44: =Find_Month(EZ$33,EZ$34,$F44) -> FALSE | FA44: =Find_Month(FA$33,FA$34,$F44) -> TRUE | FB44: =Find_Month(FB$33,FB$34,$F44) -> FALSE | FC44: =Find_Month(FC$33,FC$34,$F44) -> TRUE | FD44: =Find_Month(FD$33,FD$34,$F44) -> FALSE | FE44: =Find_Month(FE$33,FE$34,$F44) -> TRUE | FF44: =Find_Month(FF$33,FF$34,$F44) -> FALSE | FG44: =Find_Month(FG$33,FG$34,$F44) -> TRUE | FH44: =Find_Month(FH$33,FH$34,$F44) -> FALSE | FI44: =Find_Month(FI$33,FI$34,$F44) -> TRUE | FJ44: =Find_Month(FJ$33,FJ$34,$F44) -> FALSE | FK44: =Find_Month(FK$33,FK$34,$F44) -> TRUE | FL44: =Find_Month(FL$33,FL$34,$F44) -> FALSE | FM44: =Find_Month(FM$33,FM$34,$F44) -> TRUE | FN44: =Find_Month(FN$33,FN$34,$F44) -> FALSE | FO44: =Find_Month(FO$33,FO$34,$F44) -> TRUE | FP44: =Find_Month(FP$33,FP$34,$F44) -> FALSE | FQ44: =Find_Month(FQ$33,FQ$34,$F44) -> TRUE | FR44: =Find_Month(FR$33,FR$34,$F44) -> FALSE | FS44: =Find_Month(FS$33,FS$34,$F44) -> TRUE | FT44: =Find_Month(FT$33,FT$34,$F44) -> FALSE | FU44: =Find_Month(FU$33,FU$34,$F44) -> TRUE | FV44: =Find_Month(FV$33,FV$34,$F44) -> FALSE | FW44: =Find_Month(FW$33,FW$34,$F44) -> TRUE | FX44: =Find_Month(FX$33,FX$34,$F44) -> FALSE | FY44: =Find_Month(FY$33,FY$34,$F44) -> TRUE | FZ44: =Find_Month(FZ$33,FZ$34,$F44) -> FALSE | GA44: =Find_Month(GA$33,GA$34,$F44) -> TRUE | GB44: =Find_Month(GB$33,GB$34,$F44) -> FALSE | GC44: =Find_Month(GC$33,GC$34,$F44) -> TRUE | GD44: =Find_Month(GD$33,GD$34,$F44) -> FALSE | GE44: =Find_Month(GE$33,GE$34,$F44) -> TRUE | GF44: =Find_Month(GF$33,GF$34,$F44) -> FALSE | GG44: =Find_Month(GG$33,GG$34,$F44) -> TRUE | GH44: =Find_Month(GH$33,GH$34,$F44) -> FALSE | GI44: =Find_Month(GI$33,GI$34,$F44) -> TRUE | GJ44: =Find_Month(GJ$33,GJ$34,$F44) -> FALSE | GK44: =Find_Month(GK$33,GK$34,$F44) -> TRUE | GL44: =Find_Month(GL$33,GL$34,$F44) -> FALSE | GM44: =Find_Month(GM$33,GM$34,$F44) -> TRUE | GN44: =Find_Month(GN$33,GN$34,$F44) -> FALSE | GO44: =Find_Month(GO$33,GO$34,$F44) -> TRUE | GP44: =Find_Month(GP$33,GP$34,$F44) -> FALSE | GQ44: =Find_Month(GQ$33,GQ$34,$F44) -> TRUE | GR44: =Find_Month(GR$33,GR$34,$F44) -> FALSE | GS44: =Find_Month(GS$33,GS$34,$F44) -> TRUE | GT44: =Find_Month(GT$33,GT$34,$F44) -> FALSE | GU44: =Find_Month(GU$33,GU$34,$F44) -> TRUE | GV44: =Find_Month(GV$33,GV$34,$F44) -> FALSE | GW44: =Find_Month(GW$33,GW$34,$F44) -> TRUE | GX44: =Find_Month(GX$33,GX$34,$F44) -> FALSE | GY44: =Find_Month(GY$33,GY$34,$F44) -> TRUE | GZ44: =Find_Month(GZ$33,GZ$34,$F44) -> FALSE | HA44: =Find_Month(HA$33,HA$34,$F44) -> TRUE | HB44: =Find_Month(HB$33,HB$34,$F44) -> FALSE | HC44: =Find_Month(HC$33,HC$34,$F44) -> TRUE | HD44: =Find_Month(HD$33,HD$34,$F44) -> FALSE | HE44: =Find_Month(HE$33,HE$34,$F44) -> TRUE | HF44: =Find_Month(HF$33,HF$34,$F44) -> FALSE | HG44: =Find_Month(HG$33,HG$34,$F44) -> TRUE | HH44: =Find_Month(HH$33,HH$34,$F44) -> FALSE | HI44: =Find_Month(HI$33,HI$34,$F44) -> TRUE | HJ44: =Find_Month(HJ$33,HJ$34,$F44) -> FALSE | HK44: =Find_Month(HK$33,HK$34,$F44) -> TRUE | HL44: =Find_Month(HL$33,HL$34,$F44) -> FALSE | HM44: =Find_Month(HM$33,HM$34,$F44) -> TRUE | HN44: =Find_Month(HN$33,HN$34,$F44) -> FALSE | HO44: =Find_Month(HO$33,HO$34,$F44) -> TRUE | HP44: =Find_Month(HP$33,HP$34,$F44) -> FALSE | HQ44: =Find_Month(HQ$33,HQ$34,$F44) -> TRUE | HR44: =Find_Month(HR$33,HR$34,$F44) -> FALSE | HS44: =Find_Month(HS$33,HS$34,$F44) -> TRUE | HT44: =Find_Month(HT$33,HT$34,$F44) -> FALSE | HU44: =Find_Month(HU$33,HU$34,$F44) -> TRUE | HV44: =Find_Month(HV$33,HV$34,$F44) -> FALSE | HW44: =Find_Month(HW$33,HW$34,$F44) -> TRUE | HX44: =Find_Month(HX$33,HX$34,$F44) -> FALSE | HY44: =Find_Month(HY$33,HY$34,$F44) -> TRUE | HZ44: =Find_Month(HZ$33,HZ$34,$F44) -> FALSE | IA44: =Find_Month(IA$33,IA$34,$F44) -> TRUE | IB44: =Find_Month(IB$33,IB$34,$F44) -> FALSE | IC44: =Find_Month(IC$33,IC$34,$F44) -> TRUE | ID44: =Find_Month(ID$33,ID$34,$F44) -> FALSE | IE44: =Find_Month(IE$33,IE$34,$F44) -> TRUE | IF44: =Find_Month(IF$33,IF$34,$F44) -> FALSE | IG44: =Find_Month(IG$33,IG$34,$F44) -> TRUE | IH44: =Find_Month(IH$33,IH$34,$F44) -> FALSE | II44: =Find_Month(II$33,II$34,$F44) -> TRUE | IJ44: =Find_Month(IJ$33,IJ$34,$F44) -> FALSE | IK44: =Find_Month(IK$33,IK$34,$F44) -> TRUE | IL44: =Find_Month(IL$33,IL$34,$F44) -> FALSE | IM44: =Find_Month(IM$33,IM$34,$F44) -> TRUE | IN44: =Find_Month(IN$33,IN$34,$F44) -> FALSE | IO44: =Find_Month(IO$33,IO$34,$F44) -> TRUE | IP44: =Find_Month(IP$33,IP$34,$F44) -> FALSE | IQ44: =Find_Month(IQ$33,IQ$34,$F44) -> TRUE | IR44: =Find_Month(IR$33,IR$34,$F44) -> FALSE | IS44: =Find_Month(IS$33,IS$34,$F44) -> TRUE | IT44: =Find_Month(IT$33,IT$34,$F44) -> FALSE | IU44: =Find_Month(IU$33,IU$34,$F44) -> TRUE | IV44: =Find_Month(IV$33,IV$34,$F44) -> FALSE | IW44: =Find_Month(IW$33,IW$34,$F44) -> TRUE | IX44: =Find_Month(IX$33,IX$34,$F44) -> FALSE | IY44: =Find_Month(IY$33,IY$34,$F44) -> TRUE | IZ44: =Find_Month(IZ$33,IZ$34,$F44) -> FALSE | JA44: =Find_Month(JA$33,JA$34,$F44) -> TRUE | JB44: =Find_Month(JB$33,JB$34,$F44) -> FALSE | JC44: =Find_Month(JC$33,JC$34,$F44) -> TRUE | JD44: =Find_Month(JD$33,JD$34,$F44) -> FALSE | JE44: =Find_Month(JE$33,JE$34,$F44) -> TRUE | JF44: =Find_Month(JF$33,JF$34,$F44) -> FALSE | JG44: =Find_Month(JG$33,JG$34,$F44) -> TRUE | JH44: =Find_Month(JH$33,JH$34,$F44) -> FALSE | JI44: =Find_Month(JI$33,JI$34,$F44) -> TRUE | JJ44: =Find_Month(JJ$33,JJ$34,$F44) -> FALSE | JK44: =Find_Month(JK$33,JK$34,$F44) -> TRUE | JL44: =Find_Month(JL$33,JL$34,$F44) -> FALSE | JM44: =Find_Month(JM$33,JM$34,$F44) -> TRUE | JN44: =Find_Month(JN$33,JN$34,$F44) -> FALSE | JO44: =Find_Month(JO$33,JO$34,$F44) -> TRUE | JP44: =Find_Month(JP$33,JP$34,$F44) -> FALSE | JQ44: =Find_Month(JQ$33,JQ$34,$F44) -> TRUE | JR44: =Find_Month(JR$33,JR$34,$F44) -> FALSE | JS44: =Find_Month(JS$33,JS$34,$F44) -> TRUE | JT44: =Find_Month(JT$33,JT$34,$F44) -> FALSE | JU44: =Find_Month(JU$33,JU$34,$F44) -> TRUE | JV44: =Find_Month(JV$33,JV$34,$F44) -> FALSE | JW44: =Find_Month(JW$33,JW$34,$F44) -> TRUE | JX44: =Find_Month(JX$33,JX$34,$F44) -> FALSE | JY44: =Find_Month(JY$33,JY$34,$F44) -> TRUE | JZ44: =Find_Month(JZ$33,JZ$34,$F44) -> FALSE | KA44: =Find_Month(KA$33,KA$34,$F44) -> TRUE | KB44: =Find_Month(KB$33,KB$34,$F44) -> FALSE | KC44: =Find_Month(KC$33,KC$34,$F44) -> TRUE | KD44: =Find_Month(KD$33,KD$34,$F44) -> FALSE | KE44: =Find_Month(KE$33,KE$34,$F44) -> TRUE | KF44: =Find_Month(KF$33,KF$34,$F44) -> FALSE | KG44: =Find_Month(KG$33,KG$34,$F44) -> TRUE | KH44: =Find_Month(KH$33,KH$34,$F44) -> FALSE | KI44: =Find_Month(KI$33,KI$34,$F44) -> TRUE | KJ44: =Find_Month(KJ$33,KJ$34,$F44) -> FALSE | KK44: =Find_Month(KK$33,KK$34,$F44) -> TRUE | KL44: =Find_Month(KL$33,KL$34,$F44) -> FALSE | KM44: =Find_Month(KM$33,KM$34,$F44) -> TRUE | KN44: =Find_Month(KN$33,KN$34,$F44) -> FALSE | KO44: =Find_Month(KO$33,KO$34,$F44) -> TRUE | KP44: =Find_Month(KP$33,KP$34,$F44) -> FALSE | KQ44: =Find_Month(KQ$33,KQ$34,$F44) -> TRUE | KR44: =Find_Month(KR$33,KR$34,$F44) -> FALSE | KS44: =Find_Month(KS$33,KS$34,$F44) -> TRUE | KT44: =Find_Month(KT$33,KT$34,$F44) -> FALSE | KU44: =Find_Month(KU$33,KU$34,$F44) -> TRUE | KV44: =Find_Month(KV$33,KV$34,$F44) -> FALSE | KW44: =Find_Month(KW$33,KW$34,$F44) -> TRUE | KX44: =Find_Month(KX$33,KX$34,$F44) -> FALSE | KY44: =Find_Month(KY$33,KY$34,$F44) -> TRUE | KZ44: =Find_Month(KZ$33,KZ$34,$F44) -> FALSE | LA44: =Find_Month(LA$33,LA$34,$F44) -> TRUE | LB44: =Find_Month(LB$33,LB$34,$F44) -> FALSE | LC44: =Find_Month(LC$33,LC$34,$F44) -> TRUE | LD44: =Find_Month(LD$33,LD$34,$F44) -> FALSE | LE44: =Find_Month(LE$33,LE$34,$F44) -> TRUE | LF44: =Find_Month(LF$33,LF$34,$F44) -> FALSE | LG44: =Find_Month(LG$33,LG$34,$F44) -> TRUE | LH44: =Find_Month(LH$33,LH$34,$F44) -> FALSE | LI44: =Find_Month(LI$33,LI$34,$F44) -> TRUE | LJ44: =Find_Month(LJ$33,LJ$34,$F44) -> FALSE | LK44: =Find_Month(LK$33,LK$34,$F44) -> TRUE | LL44: =Find_Month(LL$33,LL$34,$F44) -> FALSE | LM44: =Find_Month(LM$33,LM$34,$F44) -> TRUE | LN44: =Find_Month(LN$33,LN$34,$F44) -> FALSE | LO44: =Find_Month(LO$33,LO$34,$F44) -> TRUE | LP44: =Find_Month(LP$33,LP$34,$F44) -> FALSE | LQ44: =Find_Month(LQ$33,LQ$34,$F44) -> TRUE | LR44: =Find_Month(LR$33,LR$34,$F44) -> FALSE | LS44: =Find_Month(LS$33,LS$34,$F44) -> TRUE | LT44: =Find_Month(LT$33,LT$34,$F44) -> FALSE | LU44: =Find_Month(LU$33,LU$34,$F44) -> TRUE | LV44: =Find_Month(LV$33,LV$34,$F44) -> FALSE | LW44: =Find_Month(LW$33,LW$34,$F44) -> TRUE | LX44: =Find_Month(LX$33,LX$34,$F44) -> FALSE | LY44: =Find_Month(LY$33,LY$34,$F44) -> TRUE | LZ44: =Find_Month(LZ$33,LZ$34,$F44) -> FALSE | MA44: =Find_Month(MA$33,MA$34,$F44) -> TRUE | MB44: =Find_Month(MB$33,MB$34,$F44) -> FALSE | MC44: =Find_Month(MC$33,MC$34,$F44) -> TRUE | MD44: =Find_Month(MD$33,MD$34,$F44) -> FALSE | ME44: =Find_Month(ME$33,ME$34,$F44) -> TRUE | MF44: =Find_Month(MF$33,MF$34,$F44) -> FALSE | MG44: =Find_Month(MG$33,MG$34,$F44) -> TRUE | MH44: =Find_Month(MH$33,MH$34,$F44) -> FALSE | MI44: =Find_Month(MI$33,MI$34,$F44) -> TRUE | MJ44: =Find_Month(MJ$33,MJ$34,$F44) -> FALSE | MK44: =Find_Month(MK$33,MK$34,$F44) -> TRUE | ML44: =Find_Month(ML$33,ML$34,$F44) -> FALSE | MM44: =Find_Month(MM$33,MM$34,$F44) -> TRUE | MN44: =Find_Month(MN$33,MN$34,$F44) -> FALSE | MO44: =Find_Month(MO$33,MO$34,$F44) -> TRUE | MP44: =Find_Month(MP$33,MP$34,$F44) -> FALSE | MQ44: =Find_Month(MQ$33,MQ$34,$F44) -> TRUE | MR44: =Find_Month(MR$33,MR$34,$F44) -> FALSE | MS44: =Find_Month(MS$33,MS$34,$F44) -> TRUE | MT44: =Find_Month(MT$33,MT$34,$F44) -> FALSE | MU44: =Find_Month(MU$33,MU$34,$F44) -> TRUE | MV44: =Find_Month(MV$33,MV$34,$F44) -> FALSE | MW44: =Find_Month(MW$33,MW$34,$F44) -> TRUE | MX44: =Find_Month(MX$33,MX$34,$F44) -> FALSE | MY44: =Find_Month(MY$33,MY$34,$F44) -> TRUE | MZ44: =Find_Month(MZ$33,MZ$34,$F44) -> FALSE | NA44: =Find_Month(NA$33,NA$34,$F44) -> TRUE | NB44: =Find_Month(NB$33,NB$34,$F44) -> FALSE | NC44: =Find_Month(NC$33,NC$34,$F44) -> TRUE | ND44: =Find_Month(ND$33,ND$34,$F44) -> FALSE | NE44: =Find_Month(NE$33,NE$34,$F44) -> TRUE | NF44: =Find_Month(NF$33,NF$34,$F44) -> FALSE | NG44: =Find_Month(NG$33,NG$34,$F44) -> TRUE | NH44: =Find_Month(NH$33,NH$34,$F44) -> FALSE | NI44: =Find_Month(NI$33,NI$34,$F44) -> TRUE | NJ44: =Find_Month(NJ$33,NJ$34,$F44) -> FALSE | NK44: =Find_Month(NK$33,NK$34,$F44) -> TRUE | NL44: =Find_Month(NL$33,NL$34,$F44) -> FALSE | NM44: =Find_Month(NM$33,NM$34,$F44) -> TRUE | NN44: =Find_Month(NN$33,NN$34,$F44) -> FALSE | NO44: =Find_Month(NO$33,NO$34,$F44) -> TRUE | NP44: =Find_Month(NP$33,NP$34,$F44) -> FALSE | NQ44: =Find_Month(NQ$33,NQ$34,$F44) -> TRUE | NR44: =Find_Month(NR$33,NR$34,$F44) -> FALSE | NS44: =Find_Month(NS$33,NS$34,$F44) -> TRUE | NT44: =Find_Month(NT$33,NT$34,$F44) -> FALSE | NU44: =Find_Month(NU$33,NU$34,$F44) -> TRUE | NV44: =Find_Month(NV$33,NV$34,$F44) -> FALSE | NW44: =Find_Month(NW$33,NW$34,$F44) -> TRUE | NX44: =Find_Month(NX$33,NX$34,$F44) -> FALSE | NY44: =Find_Month(NY$33,NY$34,$F44) -> TRUE | NZ44: =Find_Month(NZ$33,NZ$34,$F44) -> FALSE | OA44: =Find_Month(OA$33,OA$34,$F44) -> TRUE | OB44: =Find_Month(OB$33,OB$34,$F44) -> FALSE | OC44: =Find_Month(OC$33,OC$34,$F44) -> TRUE | OD44: =Find_Month(OD$33,OD$34,$F44) -> FALSE | OE44: =Find_Month(OE$33,OE$34,$F44) -> TRUE | OF44: =Find_Month(OF$33,OF$34,$F44) -> FALSE | OG44: =Find_Month(OG$33,OG$34,$F44) -> TRUE | OH44: =Find_Month(OH$33,OH$34,$F44) -> FALSE | OI44: =Find_Month(OI$33,OI$34,$F44) -> TRUE | OJ44: =Find_Month(OJ$33,OJ$34,$F44) -> FALSE | OK44: =Find_Month(OK$33,OK$34,$F44) -> TRUE | OL44: =Find_Month(OL$33,OL$34,$F44) -> FALSE | OM44: =Find_Month(OM$33,OM$34,$F44) -> TRUE | ON44: =Find_Month(ON$33,ON$34,$F44) -> FALSE | OO44: =Find_Month(OO$33,OO$34,$F44) -> TRUE | OP44: =Find_Month(OP$33,OP$34,$F44) -> FALSE | OQ44: =Find_Month(OQ$33,OQ$34,$F44) -> TRUE | OR44: =Find_Month(OR$33,OR$34,$F44) -> FALSE | OS44: =Find_Month(OS$33,OS$34,$F44) -> TRUE | OT44: =Find_Month(OT$33,OT$34,$F44) -> FALSE | OU44: =Find_Month(OU$33,OU$34,$F44) -> TRUE | OV44: =Find_Month(OV$33,OV$34,$F44) -> FALSE | OW44: =Find_Month(OW$33,OW$34,$F44) -> TRUE | OX44: =Find_Month(OX$33,OX$34,$F44) -> FALSE | OY44: =Find_Month(OY$33,OY$34,$F44) -> TRUE | OZ44: =Find_Month(OZ$33,OZ$34,$F44) -> FALSE | PA44: =Find_Month(PA$33,PA$34,$F44) -> TRUE | PB44: =Find_Month(PB$33,PB$34,$F44) -> FALSE | PC44: =Find_Month(PC$33,PC$34,$F44) -> TRUE | PD44: =Find_Month(PD$33,PD$34,$F44) -> FALSE | PE44: =Find_Month(PE$33,PE$34,$F44) -> TRUE | PF44: =Find_Month(PF$33,PF$34,$F44) -> FALSE | PG44: =Find_Month(PG$33,PG$34,$F44) -> TRUE | PH44: =Find_Month(PH$33,PH$34,$F44) -> FALSE | PI44: =Find_Month(PI$33,PI$34,$F44) -> TRUE | PJ44: =Find_Month(PJ$33,PJ$34,$F44) -> FALSE | PK44: =Find_Month(PK$33,PK$34,$F44) -> TRUE | PL44: =Find_Month(PL$33,PL$34,$F44) -> FALSE | PM44: =Find_Month(PM$33,PM$34,$F44) -> TRUE | PN44: =Find_Month(PN$33,PN$34,$F44) -> FALSE | PO44: =Find_Month(PO$33,PO$34,$F44) -> TRUE | PP44: =Find_Month(PP$33,PP$34,$F44) -> FALSE | PQ44: =Find_Month(PQ$33,PQ$34,$F44) -> TRUE | PR44: =Find_Month(PR$33,PR$34,$F44) -> FALSE | PS44: =Find_Month(PS$33,PS$34,$F44) -> TRUE | PT44: =Find_Month(PT$33,PT$34,$F44) -> FALSE | PU44: =Find_Month(PU$33,PU$34,$F44) -> TRUE | PV44: =Find_Month(PV$33,PV$34,$F44) -> FALSE | PW44: =Find_Month(PW$33,PW$34,$F44) -> TRUE | PX44: =Find_Month(PX$33,PX$34,$F44) -> FALSE | PY44: =Find_Month(PY$33,PY$34,$F44) -> TRUE | PZ44: =Find_Month(PZ$33,PZ$34,$F44) -> FALSE | QA44: =Find_Month(QA$33,QA$34,$F44) -> TRUE | QB44: =Find_Month(QB$33,QB$34,$F44) -> FALSE | QC44: =Find_Month(QC$33,QC$34,$F44) -> TRUE | QD44: =Find_Month(QD$33,QD$34,$F44) -> FALSE | QE44: =Find_Month(QE$33,QE$34,$F44) -> TRUE | QF44: =Find_Month(QF$33,QF$34,$F44) -> FALSE | QG44: =Find_Month(QG$33,QG$34,$F44) -> TRUE | QH44: =Find_Month(QH$33,QH$34,$F44) -> FALSE | QI44: =Find_Month(QI$33,QI$34,$F44) -> TRUE | QJ44: =Find_Month(QJ$33,QJ$34,$F44) -> FALSE | QK44: =Find_Month(QK$33,QK$34,$F44) -> TRUE | QL44: =Find_Month(QL$33,QL$34,$F44) -> FALSE | QM44: =Find_Month(QM$33,QM$34,$F44) -> TRUE | QN44: =Find_Month(QN$33,QN$34,$F44) -> FALSE | QO44: =Find_Month(QO$33,QO$34,$F44) -> TRUE | QP44: =Find_Month(QP$33,QP$34,$F44) -> FALSE | QQ44: =Find_Month(QQ$33,QQ$34,$F44) -> TRUE | QR44: =Find_Month(QR$33,QR$34,$F44) -> FALSE | QS44: =Find_Month(QS$33,QS$34,$F44) -> TRUE | QT44: =Find_Month(QT$33,QT$34,$F44) -> FALSE | QU44: =Find_Month(QU$33,QU$34,$F44) -> TRUE | QV44: =Find_Month(QV$33,QV$34,$F44) -> FALSE | QW44: =Find_Month(QW$33,QW$34,$F44) -> TRUE | QX44: =Find_Month(QX$33,QX$34,$F44) -> FALSE | QY44: =Find_Month(QY$33,QY$34,$F44) -> TRUE | QZ44: =Find_Month(QZ$33,QZ$34,$F44) -> FALSE | RA44: =Find_Month(RA$33,RA$34,$F44) -> TRUE | RB44: =Find_Month(RB$33,RB$34,$F44) -> FALSE | RC44: =Find_Month(RC$33,RC$34,$F44) -> TRUE | RD44: =Find_Month(RD$33,RD$34,$F44) -> FALSE | RE44: =Find_Month(RE$33,RE$34,$F44) -> TRUE | RF44: =Find_Month(RF$33,RF$34,$F44) -> FALSE | RG44: =Find_Month(RG$33,RG$34,$F44) -> TRUE | RH44: =Find_Month(RH$33,RH$34,$F44) -> FALSE | RI44: =Find_Month(RI$33,RI$34,$F44) -> TRUE | RJ44: =Find_Month(RJ$33,RJ$34,$F44) -> FALSE | RK44: =Find_Month(RK$33,RK$34,$F44) -> TRUE | RL44: =Find_Month(RL$33,RL$34,$F44) -> FALSE | RM44: =Find_Month(RM$33,RM$34,$F44) -> TRUE | RN44: =Find_Month(RN$33,RN$34,$F44) -> FALSE | RO44: =Find_Month(RO$33,RO$34,$F44) -> TRUE | RP44: =Find_Month(RP$33,RP$34,$F44) -> FALSE | RQ44: =Find_Month(RQ$33,RQ$34,$F44) -> TRUE | RR44: =Find_Month(RR$33,RR$34,$F44) -> FALSE | RS44: =Find_Month(RS$33,RS$34,$F44) -> TRUE | RT44: =Find_Month(RT$33,RT$34,$F44) -> FALSE | RU44: =Find_Month(RU$33,RU$34,$F44) -> TRUE | RV44: =Find_Month(RV$33,RV$34,$F44) -> FALSE | RW44: =Find_Month(RW$33,RW$34,$F44) -> TRUE | RX44: =Find_Month(RX$33,RX$34,$F44) -> FALSE | RY44: =Find_Month(RY$33,RY$34,$F44) -> TRUE | RZ44: =Find_Month(RZ$33,RZ$34,$F44) -> FALSE | SA44: =Find_Month(SA$33,SA$34,$F44) -> TRUE | SB44: =Find_Month(SB$33,SB$34,$F44) -> FALSE | SC44: =Find_Month(SC$33,SC$34,$F44) -> FALSE | SD44: =Find_Month(SD$33,SD$34,$F44) -> FALSE | SE44: =Find_Month(SE$33,SE$34,$F44) -> FALSE | SF44: =Find_Month(SF$33,SF$34,$F44) -> FALSE | SG44: =Find_Month(SG$33,SG$34,$F44) -> FALSE | SH44: =Find_Month(SH$33,SH$34,$F44) -> FALSE | SI44: =Find_Month(SI$33,SI$34,$F44) -> FALSE | SJ44: =Find_Month(SJ$33,SJ$34,$F44) -> FALSE | SK44: =Find_Month(SK$33,SK$34,$F44) -> FALSE | SL44: =Find_Month(SL$33,SL$34,$F44) -> FALSE | SM44: =Find_Month(SM$33,SM$34,$F44) -> FALSE | SN44: =Find_Month(SN$33,SN$34,$F44) -> FALSE | SO44: =Find_Month(SO$33,SO$34,$F44) -> FALSE | SP44: =Find_Month(SP$33,SP$34,$F44) -> FALSE | SQ44: =Find_Month(SQ$33,SQ$34,$F44) -> FALSE | SR44: =Find_Month(SR$33,SR$34,$F44) -> FALSE | SS44: =Find_Month(SS$33,SS$34,$F44) -> FALSE | ST44: =Find_Month(ST$33,ST$34,$F44) -> FALSE | SU44: =Find_Month(SU$33,SU$34,$F44) -> FALSE | SV44: =Find_Month(SV$33,SV$34,$F44) -> FALSE | SW44: =Find_Month(SW$33,SW$34,$F44) -> FALSE | SX44: =Find_Month(SX$33,SX$34,$F44) -> FALSE | SY44: =Find_Month(SY$33,SY$34,$F44) -> FALSE | SZ44: =Find_Month(SZ$33,SZ$34,$F44) -> FALSE | TA44: =Find_Month(TA$33,TA$34,$F44) -> FALSE | TB44: =Find_Month(TB$33,TB$34,$F44) -> FALSE | TC44: =Find_Month(TC$33,TC$34,$F44) -> FALSE | TD44: =Find_Month(TD$33,TD$34,$F44) -> FALSE | TE44: =Find_Month(TE$33,TE$34,$F44) -> FALSE | TF44: =Find_Month(TF$33,TF$34,$F44) -> FALSE | TG44: =Find_Month(TG$33,TG$34,$F44) -> FALSE | TH44: =Find_Month(TH$33,TH$34,$F44) -> FALSE | TI44: =Find_Month(TI$33,TI$34,$F44) -> FALSE | TJ44: =Find_Month(TJ$33,TJ$34,$F44) -> FALSE | TK44: =Find_Month(TK$33,TK$34,$F44) -> FALSE | TL44: =Find_Month(TL$33,TL$34,$F44) -> FALSE | TM44: =Find_Month(TM$33,TM$34,$F44) -> FALSE | TN44: =Find_Month(TN$33,TN$34,$F44) -> FALSE | TO44: =Find_Month(TO$33,TO$34,$F44) -> FALSE | TP44: =Find_Month(TP$33,TP$34,$F44) -> FALSE | TQ44: =Find_Month(TQ$33,TQ$34,$F44) -> FALSE | TR44: =Find_Month(TR$33,TR$34,$F44) -> FALSE | TS44: =Find_Month(TS$33,TS$34,$F44) -> FALSE | TT44: =Find_Month(TT$33,TT$34,$F44) -> FALSE | TU44: =Find_Month(TU$33,TU$34,$F44) -> FALSE | TV44: =Find_Month(TV$33,TV$34,$F44) -> FALSE | TW44: =Find_Month(TW$33,TW$34,$F44) -> FALSE | TX44: =Find_Month(TX$33,TX$34,$F44) -> FALSE | TY44: =Find_Month(TY$33,TY$34,$F44) -> FALSE
F45: 9 | G45: 249.1287982 | H45: 0.07772493168 | J45: =Find_Month(J$33,J$34,$F45) -> FALSE | K45: =Find_Month(K$33,K$34,$F45) -> FALSE | L45: =Find_Month(L$33,L$34,$F45) -> FALSE | M45: =Find_Month(M$33,M$34,$F45) -> FALSE | N45: =Find_Month(N$33,N$34,$F45) -> FALSE | O45: =Find_Month(O$33,O$34,$F45) -> FALSE | P45: =Find_Month(P$33,P$34,$F45) -> FALSE | Q45: =Find_Month(Q$33,Q$34,$F45) -> FALSE | R45: =Find_Month(R$33,R$34,$F45) -> TRUE | S45: =Find_Month(S$33,S$34,$F45) -> FALSE | T45: =Find_Month(T$33,T$34,$F45) -> FALSE | U45: =Find_Month(U$33,U$34,$F45) -> FALSE | V45: =Find_Month(V$33,V$34,$F45) -> FALSE | W45: =Find_Month(W$33,W$34,$F45) -> FALSE | X45: =Find_Month(X$33,X$34,$F45) -> FALSE | Y45: =Find_Month(Y$33,Y$34,$F45) -> FALSE | Z45: =Find_Month(Z$33,Z$34,$F45) -> FALSE | AA45: =Find_Month(AA$33,AA$34,$F45) -> FALSE | AB45: =Find_Month(AB$33,AB$34,$F45) -> FALSE | AC45: =Find_Month(AC$33,AC$34,$F45) -> FALSE | AD45: =Find_Month(AD$33,AD$34,$F45) -> TRUE | AE45: =Find_Month(AE$33,AE$34,$F45) -> FALSE | AF45: =Find_Month(AF$33,AF$34,$F45) -> TRUE | AG45: =Find_Month(AG$33,AG$34,$F45) -> FALSE | AH45: =Find_Month(AH$33,AH$34,$F45) -> TRUE | AI45: =Find_Month(AI$33,AI$34,$F45) -> FALSE | AJ45: =Find_Month(AJ$33,AJ$34,$F45) -> TRUE | AK45: =Find_Month(AK$33,AK$34,$F45) -> FALSE | AL45: =Find_Month(AL$33,AL$34,$F45) -> TRUE | AM45: =Find_Month(AM$33,AM$34,$F45) -> FALSE | AN45: =Find_Month(AN$33,AN$34,$F45) -> TRUE | AO45: =Find_Month(AO$33,AO$34,$F45) -> FALSE | AP45: =Find_Month(AP$33,AP$34,$F45) -> TRUE | AQ45: =Find_Month(AQ$33,AQ$34,$F45) -> FALSE | AR45: =Find_Month(AR$33,AR$34,$F45) -> TRUE | AS45: =Find_Month(AS$33,AS$34,$F45) -> FALSE | AT45: =Find_Month(AT$33,AT$34,$F45) -> TRUE | AU45: =Find_Month(AU$33,AU$34,$F45) -> FALSE | AV45: =Find_Month(AV$33,AV$34,$F45) -> TRUE | AW45: =Find_Month(AW$33,AW$34,$F45) -> FALSE | AX45: =Find_Month(AX$33,AX$34,$F45) -> TRUE | AY45: =Find_Month(AY$33,AY$34,$F45) -> FALSE | AZ45: =Find_Month(AZ$33,AZ$34,$F45) -> TRUE | BA45: =Find_Month(BA$33,BA$34,$F45) -> FALSE | BB45: =Find_Month(BB$33,BB$34,$F45) -> TRUE | BC45: =Find_Month(BC$33,BC$34,$F45) -> FALSE | BD45: =Find_Month(BD$33,BD$34,$F45) -> TRUE | BE45: =Find_Month(BE$33,BE$34,$F45) -> FALSE | BF45: =Find_Month(BF$33,BF$34,$F45) -> TRUE | BG45: =Find_Month(BG$33,BG$34,$F45) -> FALSE | BH45: =Find_Month(BH$33,BH$34,$F45) -> TRUE | BI45: =Find_Month(BI$33,BI$34,$F45) -> FALSE | BJ45: =Find_Month(BJ$33,BJ$34,$F45) -> TRUE | BK45: =Find_Month(BK$33,BK$34,$F45) -> FALSE | BL45: =Find_Month(BL$33,BL$34,$F45) -> TRUE | BM45: =Find_Month(BM$33,BM$34,$F45) -> FALSE | BN45: =Find_Month(BN$33,BN$34,$F45) -> TRUE | BO45: =Find_Month(BO$33,BO$34,$F45) -> FALSE | BP45: =Find_Month(BP$33,BP$34,$F45) -> TRUE | BQ45: =Find_Month(BQ$33,BQ$34,$F45) -> FALSE | BR45: =Find_Month(BR$33,BR$34,$F45) -> TRUE | BS45: =Find_Month(BS$33,BS$34,$F45) -> FALSE | BT45: =Find_Month(BT$33,BT$34,$F45) -> TRUE | BU45: =Find_Month(BU$33,BU$34,$F45) -> FALSE | BV45: =Find_Month(BV$33,BV$34,$F45) -> TRUE | BW45: =Find_Month(BW$33,BW$34,$F45) -> FALSE | BX45: =Find_Month(BX$33,BX$34,$F45) -> TRUE | BY45: =Find_Month(BY$33,BY$34,$F45) -> FALSE | BZ45: =Find_Month(BZ$33,BZ$34,$F45) -> TRUE | CA45: =Find_Month(CA$33,CA$34,$F45) -> FALSE | CB45: =Find_Month(CB$33,CB$34,$F45) -> TRUE | CC45: =Find_Month(CC$33,CC$34,$F45) -> FALSE | CD45: =Find_Month(CD$33,CD$34,$F45) -> TRUE | CE45: =Find_Month(CE$33,CE$34,$F45) -> FALSE | CF45: =Find_Month(CF$33,CF$34,$F45) -> TRUE | CG45: =Find_Month(CG$33,CG$34,$F45) -> FALSE | CH45: =Find_Month(CH$33,CH$34,$F45) -> TRUE | CI45: =Find_Month(CI$33,CI$34,$F45) -> FALSE | CJ45: =Find_Month(CJ$33,CJ$34,$F45) -> TRUE | CK45: =Find_Month(CK$33,CK$34,$F45) -> FALSE | CL45: =Find_Month(CL$33,CL$34,$F45) -> TRUE | CM45: =Find_Month(CM$33,CM$34,$F45) -> FALSE | CN45: =Find_Month(CN$33,CN$34,$F45) -> TRUE | CO45: =Find_Month(CO$33,CO$34,$F45) -> FALSE | CP45: =Find_Month(CP$33,CP$34,$F45) -> TRUE | CQ45: =Find_Month(CQ$33,CQ$34,$F45) -> FALSE | CR45: =Find_Month(CR$33,CR$34,$F45) -> TRUE | CS45: =Find_Month(CS$33,CS$34,$F45) -> FALSE | CT45: =Find_Month(CT$33,CT$34,$F45) -> TRUE | CU45: =Find_Month(CU$33,CU$34,$F45) -> FALSE | CV45: =Find_Month(CV$33,CV$34,$F45) -> TRUE | CW45: =Find_Month(CW$33,CW$34,$F45) -> FALSE | CX45: =Find_Month(CX$33,CX$34,$F45) -> TRUE | CY45: =Find_Month(CY$33,CY$34,$F45) -> FALSE | CZ45: =Find_Month(CZ$33,CZ$34,$F45) -> TRUE | DA45: =Find_Month(DA$33,DA$34,$F45) -> FALSE | DB45: =Find_Month(DB$33,DB$34,$F45) -> TRUE | DC45: =Find_Month(DC$33,DC$34,$F45) -> FALSE | DD45: =Find_Month(DD$33,DD$34,$F45) -> TRUE | DE45: =Find_Month(DE$33,DE$34,$F45) -> FALSE | DF45: =Find_Month(DF$33,DF$34,$F45) -> TRUE | DG45: =Find_Month(DG$33,DG$34,$F45) -> FALSE | DH45: =Find_Month(DH$33,DH$34,$F45) -> TRUE | DI45: =Find_Month(DI$33,DI$34,$F45) -> FALSE | DJ45: =Find_Month(DJ$33,DJ$34,$F45) -> TRUE | DK45: =Find_Month(DK$33,DK$34,$F45) -> FALSE | DL45: =Find_Month(DL$33,DL$34,$F45) -> TRUE | DM45: =Find_Month(DM$33,DM$34,$F45) -> FALSE | DN45: =Find_Month(DN$33,DN$34,$F45) -> TRUE | DO45: =Find_Month(DO$33,DO$34,$F45) -> FALSE | DP45: =Find_Month(DP$33,DP$34,$F45) -> TRUE | DQ45: =Find_Month(DQ$33,DQ$34,$F45) -> FALSE | DR45: =Find_Month(DR$33,DR$34,$F45) -> TRUE | DS45: =Find_Month(DS$33,DS$34,$F45) -> FALSE | DT45: =Find_Month(DT$33,DT$34,$F45) -> TRUE | DU45: =Find_Month(DU$33,DU$34,$F45) -> FALSE | DV45: =Find_Month(DV$33,DV$34,$F45) -> TRUE | DW45: =Find_Month(DW$33,DW$34,$F45) -> FALSE | DX45: =Find_Month(DX$33,DX$34,$F45) -> TRUE | DY45: =Find_Month(DY$33,DY$34,$F45) -> FALSE | DZ45: =Find_Month(DZ$33,DZ$34,$F45) -> TRUE | EA45: =Find_Month(EA$33,EA$34,$F45) -> FALSE | EB45: =Find_Month(EB$33,EB$34,$F45) -> TRUE | EC45: =Find_Month(EC$33,EC$34,$F45) -> FALSE | ED45: =Find_Month(ED$33,ED$34,$F45) -> TRUE | EE45: =Find_Month(EE$33,EE$34,$F45) -> FALSE | EF45: =Find_Month(EF$33,EF$34,$F45) -> TRUE | EG45: =Find_Month(EG$33,EG$34,$F45) -> FALSE | EH45: =Find_Month(EH$33,EH$34,$F45) -> TRUE | EI45: =Find_Month(EI$33,EI$34,$F45) -> FALSE | EJ45: =Find_Month(EJ$33,EJ$34,$F45) -> TRUE | EK45: =Find_Month(EK$33,EK$34,$F45) -> FALSE | EL45: =Find_Month(EL$33,EL$34,$F45) -> TRUE | EM45: =Find_Month(EM$33,EM$34,$F45) -> FALSE | EN45: =Find_Month(EN$33,EN$34,$F45) -> TRUE | EO45: =Find_Month(EO$33,EO$34,$F45) -> FALSE | EP45: =Find_Month(EP$33,EP$34,$F45) -> TRUE | EQ45: =Find_Month(EQ$33,EQ$34,$F45) -> FALSE | ER45: =Find_Month(ER$33,ER$34,$F45) -> TRUE | ES45: =Find_Month(ES$33,ES$34,$F45) -> FALSE | ET45: =Find_Month(ET$33,ET$34,$F45) -> TRUE | EU45: =Find_Month(EU$33,EU$34,$F45) -> FALSE | EV45: =Find_Month(EV$33,EV$34,$F45) -> TRUE | EW45: =Find_Month(EW$33,EW$34,$F45) -> FALSE | EX45: =Find_Month(EX$33,EX$34,$F45) -> TRUE | EY45: =Find_Month(EY$33,EY$34,$F45) -> FALSE | EZ45: =Find_Month(EZ$33,EZ$34,$F45) -> TRUE | FA45: =Find_Month(FA$33,FA$34,$F45) -> FALSE | FB45: =Find_Month(FB$33,FB$34,$F45) -> TRUE | FC45: =Find_Month(FC$33,FC$34,$F45) -> FALSE | FD45: =Find_Month(FD$33,FD$34,$F45) -> TRUE | FE45: =Find_Month(FE$33,FE$34,$F45) -> FALSE | FF45: =Find_Month(FF$33,FF$34,$F45) -> TRUE | FG45: =Find_Month(FG$33,FG$34,$F45) -> FALSE | FH45: =Find_Month(FH$33,FH$34,$F45) -> TRUE | FI45: =Find_Month(FI$33,FI$34,$F45) -> FALSE | FJ45: =Find_Month(FJ$33,FJ$34,$F45) -> TRUE | FK45: =Find_Month(FK$33,FK$34,$F45) -> FALSE | FL45: =Find_Month(FL$33,FL$34,$F45) -> TRUE | FM45: =Find_Month(FM$33,FM$34,$F45) -> FALSE | FN45: =Find_Month(FN$33,FN$34,$F45) -> TRUE | FO45: =Find_Month(FO$33,FO$34,$F45) -> FALSE | FP45: =Find_Month(FP$33,FP$34,$F45) -> TRUE | FQ45: =Find_Month(FQ$33,FQ$34,$F45) -> FALSE | FR45: =Find_Month(FR$33,FR$34,$F45) -> TRUE | FS45: =Find_Month(FS$33,FS$34,$F45) -> FALSE | FT45: =Find_Month(FT$33,FT$34,$F45) -> TRUE | FU45: =Find_Month(FU$33,FU$34,$F45) -> FALSE | FV45: =Find_Month(FV$33,FV$34,$F45) -> TRUE | FW45: =Find_Month(FW$33,FW$34,$F45) -> FALSE | FX45: =Find_Month(FX$33,FX$34,$F45) -> TRUE | FY45: =Find_Month(FY$33,FY$34,$F45) -> FALSE | FZ45: =Find_Month(FZ$33,FZ$34,$F45) -> TRUE | GA45: =Find_Month(GA$33,GA$34,$F45) -> FALSE | GB45: =Find_Month(GB$33,GB$34,$F45) -> TRUE | GC45: =Find_Month(GC$33,GC$34,$F45) -> FALSE | GD45: =Find_Month(GD$33,GD$34,$F45) -> TRUE | GE45: =Find_Month(GE$33,GE$34,$F45) -> FALSE | GF45: =Find_Month(GF$33,GF$34,$F45) -> TRUE | GG45: =Find_Month(GG$33,GG$34,$F45) -> FALSE | GH45: =Find_Month(GH$33,GH$34,$F45) -> TRUE | GI45: =Find_Month(GI$33,GI$34,$F45) -> FALSE | GJ45: =Find_Month(GJ$33,GJ$34,$F45) -> TRUE | GK45: =Find_Month(GK$33,GK$34,$F45) -> FALSE | GL45: =Find_Month(GL$33,GL$34,$F45) -> TRUE | GM45: =Find_Month(GM$33,GM$34,$F45) -> FALSE | GN45: =Find_Month(GN$33,GN$34,$F45) -> TRUE | GO45: =Find_Month(GO$33,GO$34,$F45) -> FALSE | GP45: =Find_Month(GP$33,GP$34,$F45) -> TRUE | GQ45: =Find_Month(GQ$33,GQ$34,$F45) -> FALSE | GR45: =Find_Month(GR$33,GR$34,$F45) -> TRUE | GS45: =Find_Month(GS$33,GS$34,$F45) -> FALSE | GT45: =Find_Month(GT$33,GT$34,$F45) -> TRUE | GU45: =Find_Month(GU$33,GU$34,$F45) -> FALSE | GV45: =Find_Month(GV$33,GV$34,$F45) -> TRUE | GW45: =Find_Month(GW$33,GW$34,$F45) -> FALSE | GX45: =Find_Month(GX$33,GX$34,$F45) -> TRUE | GY45: =Find_Month(GY$33,GY$34,$F45) -> FALSE | GZ45: =Find_Month(GZ$33,GZ$34,$F45) -> TRUE | HA45: =Find_Month(HA$33,HA$34,$F45) -> FALSE | HB45: =Find_Month(HB$33,HB$34,$F45) -> TRUE | HC45: =Find_Month(HC$33,HC$34,$F45) -> FALSE | HD45: =Find_Month(HD$33,HD$34,$F45) -> TRUE | HE45: =Find_Month(HE$33,HE$34,$F45) -> FALSE | HF45: =Find_Month(HF$33,HF$34,$F45) -> TRUE | HG45: =Find_Month(HG$33,HG$34,$F45) -> FALSE | HH45: =Find_Month(HH$33,HH$34,$F45) -> TRUE | HI45: =Find_Month(HI$33,HI$34,$F45) -> FALSE | HJ45: =Find_Month(HJ$33,HJ$34,$F45) -> TRUE | HK45: =Find_Month(HK$33,HK$34,$F45) -> FALSE | HL45: =Find_Month(HL$33,HL$34,$F45) -> TRUE | HM45: =Find_Month(HM$33,HM$34,$F45) -> FALSE | HN45: =Find_Month(HN$33,HN$34,$F45) -> TRUE | HO45: =Find_Month(HO$33,HO$34,$F45) -> FALSE | HP45: =Find_Month(HP$33,HP$34,$F45) -> TRUE | HQ45: =Find_Month(HQ$33,HQ$34,$F45) -> FALSE | HR45: =Find_Month(HR$33,HR$34,$F45) -> TRUE | HS45: =Find_Month(HS$33,HS$34,$F45) -> FALSE | HT45: =Find_Month(HT$33,HT$34,$F45) -> TRUE | HU45: =Find_Month(HU$33,HU$34,$F45) -> FALSE | HV45: =Find_Month(HV$33,HV$34,$F45) -> TRUE | HW45: =Find_Month(HW$33,HW$34,$F45) -> FALSE | HX45: =Find_Month(HX$33,HX$34,$F45) -> TRUE | HY45: =Find_Month(HY$33,HY$34,$F45) -> FALSE | HZ45: =Find_Month(HZ$33,HZ$34,$F45) -> TRUE | IA45: =Find_Month(IA$33,IA$34,$F45) -> FALSE | IB45: =Find_Month(IB$33,IB$34,$F45) -> TRUE | IC45: =Find_Month(IC$33,IC$34,$F45) -> FALSE | ID45: =Find_Month(ID$33,ID$34,$F45) -> TRUE | IE45: =Find_Month(IE$33,IE$34,$F45) -> FALSE | IF45: =Find_Month(IF$33,IF$34,$F45) -> TRUE | IG45: =Find_Month(IG$33,IG$34,$F45) -> FALSE | IH45: =Find_Month(IH$33,IH$34,$F45) -> TRUE | II45: =Find_Month(II$33,II$34,$F45) -> FALSE | IJ45: =Find_Month(IJ$33,IJ$34,$F45) -> TRUE | IK45: =Find_Month(IK$33,IK$34,$F45) -> FALSE | IL45: =Find_Month(IL$33,IL$34,$F45) -> TRUE | IM45: =Find_Month(IM$33,IM$34,$F45) -> FALSE | IN45: =Find_Month(IN$33,IN$34,$F45) -> TRUE | IO45: =Find_Month(IO$33,IO$34,$F45) -> FALSE | IP45: =Find_Month(IP$33,IP$34,$F45) -> TRUE | IQ45: =Find_Month(IQ$33,IQ$34,$F45) -> FALSE | IR45: =Find_Month(IR$33,IR$34,$F45) -> TRUE | IS45: =Find_Month(IS$33,IS$34,$F45) -> FALSE | IT45: =Find_Month(IT$33,IT$34,$F45) -> TRUE | IU45: =Find_Month(IU$33,IU$34,$F45) -> FALSE | IV45: =Find_Month(IV$33,IV$34,$F45) -> TRUE | IW45: =Find_Month(IW$33,IW$34,$F45) -> FALSE | IX45: =Find_Month(IX$33,IX$34,$F45) -> TRUE | IY45: =Find_Month(IY$33,IY$34,$F45) -> FALSE | IZ45: =Find_Month(IZ$33,IZ$34,$F45) -> TRUE | JA45: =Find_Month(JA$33,JA$34,$F45) -> FALSE | JB45: =Find_Month(JB$33,JB$34,$F45) -> TRUE | JC45: =Find_Month(JC$33,JC$34,$F45) -> FALSE | JD45: =Find_Month(JD$33,JD$34,$F45) -> TRUE | JE45: =Find_Month(JE$33,JE$34,$F45) -> FALSE | JF45: =Find_Month(JF$33,JF$34,$F45) -> TRUE | JG45: =Find_Month(JG$33,JG$34,$F45) -> FALSE | JH45: =Find_Month(JH$33,JH$34,$F45) -> TRUE | JI45: =Find_Month(JI$33,JI$34,$F45) -> FALSE | JJ45: =Find_Month(JJ$33,JJ$34,$F45) -> TRUE | JK45: =Find_Month(JK$33,JK$34,$F45) -> FALSE | JL45: =Find_Month(JL$33,JL$34,$F45) -> TRUE | JM45: =Find_Month(JM$33,JM$34,$F45) -> FALSE | JN45: =Find_Month(JN$33,JN$34,$F45) -> TRUE | JO45: =Find_Month(JO$33,JO$34,$F45) -> FALSE | JP45: =Find_Month(JP$33,JP$34,$F45) -> TRUE | JQ45: =Find_Month(JQ$33,JQ$34,$F45) -> FALSE | JR45: =Find_Month(JR$33,JR$34,$F45) -> TRUE | JS45: =Find_Month(JS$33,JS$34,$F45) -> FALSE | JT45: =Find_Month(JT$33,JT$34,$F45) -> TRUE | JU45: =Find_Month(JU$33,JU$34,$F45) -> FALSE | JV45: =Find_Month(JV$33,JV$34,$F45) -> TRUE | JW45: =Find_Month(JW$33,JW$34,$F45) -> FALSE | JX45: =Find_Month(JX$33,JX$34,$F45) -> TRUE | JY45: =Find_Month(JY$33,JY$34,$F45) -> FALSE | JZ45: =Find_Month(JZ$33,JZ$34,$F45) -> TRUE | KA45: =Find_Month(KA$33,KA$34,$F45) -> FALSE | KB45: =Find_Month(KB$33,KB$34,$F45) -> TRUE | KC45: =Find_Month(KC$33,KC$34,$F45) -> FALSE | KD45: =Find_Month(KD$33,KD$34,$F45) -> TRUE | KE45: =Find_Month(KE$33,KE$34,$F45) -> FALSE | KF45: =Find_Month(KF$33,KF$34,$F45) -> TRUE | KG45: =Find_Month(KG$33,KG$34,$F45) -> FALSE | KH45: =Find_Month(KH$33,KH$34,$F45) -> TRUE | KI45: =Find_Month(KI$33,KI$34,$F45) -> FALSE | KJ45: =Find_Month(KJ$33,KJ$34,$F45) -> TRUE | KK45: =Find_Month(KK$33,KK$34,$F45) -> FALSE | KL45: =Find_Month(KL$33,KL$34,$F45) -> TRUE | KM45: =Find_Month(KM$33,KM$34,$F45) -> FALSE | KN45: =Find_Month(KN$33,KN$34,$F45) -> TRUE | KO45: =Find_Month(KO$33,KO$34,$F45) -> FALSE | KP45: =Find_Month(KP$33,KP$34,$F45) -> TRUE | KQ45: =Find_Month(KQ$33,KQ$34,$F45) -> FALSE | KR45: =Find_Month(KR$33,KR$34,$F45) -> TRUE | KS45: =Find_Month(KS$33,KS$34,$F45) -> FALSE | KT45: =Find_Month(KT$33,KT$34,$F45) -> TRUE | KU45: =Find_Month(KU$33,KU$34,$F45) -> FALSE | KV45: =Find_Month(KV$33,KV$34,$F45) -> TRUE | KW45: =Find_Month(KW$33,KW$34,$F45) -> FALSE | KX45: =Find_Month(KX$33,KX$34,$F45) -> TRUE | KY45: =Find_Month(KY$33,KY$34,$F45) -> FALSE | KZ45: =Find_Month(KZ$33,KZ$34,$F45) -> TRUE | LA45: =Find_Month(LA$33,LA$34,$F45) -> FALSE | LB45: =Find_Month(LB$33,LB$34,$F45) -> TRUE | LC45: =Find_Month(LC$33,LC$34,$F45) -> FALSE | LD45: =Find_Month(LD$33,LD$34,$F45) -> TRUE | LE45: =Find_Month(LE$33,LE$34,$F45) -> FALSE | LF45: =Find_Month(LF$33,LF$34,$F45) -> TRUE | LG45: =Find_Month(LG$33,LG$34,$F45) -> FALSE | LH45: =Find_Month(LH$33,LH$34,$F45) -> TRUE | LI45: =Find_Month(LI$33,LI$34,$F45) -> FALSE | LJ45: =Find_Month(LJ$33,LJ$34,$F45) -> TRUE | LK45: =Find_Month(LK$33,LK$34,$F45) -> FALSE | LL45: =Find_Month(LL$33,LL$34,$F45) -> TRUE | LM45: =Find_Month(LM$33,LM$34,$F45) -> FALSE | LN45: =Find_Month(LN$33,LN$34,$F45) -> TRUE | LO45: =Find_Month(LO$33,LO$34,$F45) -> FALSE | LP45: =Find_Month(LP$33,LP$34,$F45) -> TRUE | LQ45: =Find_Month(LQ$33,LQ$34,$F45) -> FALSE | LR45: =Find_Month(LR$33,LR$34,$F45) -> TRUE | LS45: =Find_Month(LS$33,LS$34,$F45) -> FALSE | LT45: =Find_Month(LT$33,LT$34,$F45) -> TRUE | LU45: =Find_Month(LU$33,LU$34,$F45) -> FALSE | LV45: =Find_Month(LV$33,LV$34,$F45) -> TRUE | LW45: =Find_Month(LW$33,LW$34,$F45) -> FALSE | LX45: =Find_Month(LX$33,LX$34,$F45) -> TRUE | LY45: =Find_Month(LY$33,LY$34,$F45) -> FALSE | LZ45: =Find_Month(LZ$33,LZ$34,$F45) -> TRUE | MA45: =Find_Month(MA$33,MA$34,$F45) -> FALSE | MB45: =Find_Month(MB$33,MB$34,$F45) -> TRUE | MC45: =Find_Month(MC$33,MC$34,$F45) -> FALSE | MD45: =Find_Month(MD$33,MD$34,$F45) -> TRUE | ME45: =Find_Month(ME$33,ME$34,$F45) -> FALSE | MF45: =Find_Month(MF$33,MF$34,$F45) -> TRUE | MG45: =Find_Month(MG$33,MG$34,$F45) -> FALSE | MH45: =Find_Month(MH$33,MH$34,$F45) -> TRUE | MI45: =Find_Month(MI$33,MI$34,$F45) -> FALSE | MJ45: =Find_Month(MJ$33,MJ$34,$F45) -> TRUE | MK45: =Find_Month(MK$33,MK$34,$F45) -> FALSE | ML45: =Find_Month(ML$33,ML$34,$F45) -> TRUE | MM45: =Find_Month(MM$33,MM$34,$F45) -> FALSE | MN45: =Find_Month(MN$33,MN$34,$F45) -> TRUE | MO45: =Find_Month(MO$33,MO$34,$F45) -> FALSE | MP45: =Find_Month(MP$33,MP$34,$F45) -> TRUE | MQ45: =Find_Month(MQ$33,MQ$34,$F45) -> FALSE | MR45: =Find_Month(MR$33,MR$34,$F45) -> TRUE | MS45: =Find_Month(MS$33,MS$34,$F45) -> FALSE | MT45: =Find_Month(MT$33,MT$34,$F45) -> TRUE | MU45: =Find_Month(MU$33,MU$34,$F45) -> FALSE | MV45: =Find_Month(MV$33,MV$34,$F45) -> TRUE | MW45: =Find_Month(MW$33,MW$34,$F45) -> FALSE | MX45: =Find_Month(MX$33,MX$34,$F45) -> TRUE | MY45: =Find_Month(MY$33,MY$34,$F45) -> FALSE | MZ45: =Find_Month(MZ$33,MZ$34,$F45) -> TRUE | NA45: =Find_Month(NA$33,NA$34,$F45) -> FALSE | NB45: =Find_Month(NB$33,NB$34,$F45) -> TRUE | NC45: =Find_Month(NC$33,NC$34,$F45) -> FALSE | ND45: =Find_Month(ND$33,ND$34,$F45) -> TRUE | NE45: =Find_Month(NE$33,NE$34,$F45) -> FALSE | NF45: =Find_Month(NF$33,NF$34,$F45) -> TRUE | NG45: =Find_Month(NG$33,NG$34,$F45) -> FALSE | NH45: =Find_Month(NH$33,NH$34,$F45) -> TRUE | NI45: =Find_Month(NI$33,NI$34,$F45) -> FALSE | NJ45: =Find_Month(NJ$33,NJ$34,$F45) -> TRUE | NK45: =Find_Month(NK$33,NK$34,$F45) -> FALSE | NL45: =Find_Month(NL$33,NL$34,$F45) -> TRUE | NM45: =Find_Month(NM$33,NM$34,$F45) -> FALSE | NN45: =Find_Month(NN$33,NN$34,$F45) -> TRUE | NO45: =Find_Month(NO$33,NO$34,$F45) -> FALSE | NP45: =Find_Month(NP$33,NP$34,$F45) -> TRUE | NQ45: =Find_Month(NQ$33,NQ$34,$F45) -> FALSE | NR45: =Find_Month(NR$33,NR$34,$F45) -> TRUE | NS45: =Find_Month(NS$33,NS$34,$F45) -> FALSE | NT45: =Find_Month(NT$33,NT$34,$F45) -> TRUE | NU45: =Find_Month(NU$33,NU$34,$F45) -> FALSE | NV45: =Find_Month(NV$33,NV$34,$F45) -> TRUE | NW45: =Find_Month(NW$33,NW$34,$F45) -> FALSE | NX45: =Find_Month(NX$33,NX$34,$F45) -> TRUE | NY45: =Find_Month(NY$33,NY$34,$F45) -> FALSE | NZ45: =Find_Month(NZ$33,NZ$34,$F45) -> TRUE | OA45: =Find_Month(OA$33,OA$34,$F45) -> FALSE | OB45: =Find_Month(OB$33,OB$34,$F45) -> TRUE | OC45: =Find_Month(OC$33,OC$34,$F45) -> FALSE | OD45: =Find_Month(OD$33,OD$34,$F45) -> TRUE | OE45: =Find_Month(OE$33,OE$34,$F45) -> FALSE | OF45: =Find_Month(OF$33,OF$34,$F45) -> TRUE | OG45: =Find_Month(OG$33,OG$34,$F45) -> FALSE | OH45: =Find_Month(OH$33,OH$34,$F45) -> TRUE | OI45: =Find_Month(OI$33,OI$34,$F45) -> FALSE | OJ45: =Find_Month(OJ$33,OJ$34,$F45) -> TRUE | OK45: =Find_Month(OK$33,OK$34,$F45) -> FALSE | OL45: =Find_Month(OL$33,OL$34,$F45) -> TRUE | OM45: =Find_Month(OM$33,OM$34,$F45) -> FALSE | ON45: =Find_Month(ON$33,ON$34,$F45) -> TRUE | OO45: =Find_Month(OO$33,OO$34,$F45) -> FALSE | OP45: =Find_Month(OP$33,OP$34,$F45) -> TRUE | OQ45: =Find_Month(OQ$33,OQ$34,$F45) -> FALSE | OR45: =Find_Month(OR$33,OR$34,$F45) -> TRUE | OS45: =Find_Month(OS$33,OS$34,$F45) -> FALSE | OT45: =Find_Month(OT$33,OT$34,$F45) -> TRUE | OU45: =Find_Month(OU$33,OU$34,$F45) -> FALSE | OV45: =Find_Month(OV$33,OV$34,$F45) -> TRUE | OW45: =Find_Month(OW$33,OW$34,$F45) -> FALSE | OX45: =Find_Month(OX$33,OX$34,$F45) -> TRUE | OY45: =Find_Month(OY$33,OY$34,$F45) -> FALSE | OZ45: =Find_Month(OZ$33,OZ$34,$F45) -> TRUE | PA45: =Find_Month(PA$33,PA$34,$F45) -> FALSE | PB45: =Find_Month(PB$33,PB$34,$F45) -> TRUE | PC45: =Find_Month(PC$33,PC$34,$F45) -> FALSE | PD45: =Find_Month(PD$33,PD$34,$F45) -> TRUE | PE45: =Find_Month(PE$33,PE$34,$F45) -> FALSE | PF45: =Find_Month(PF$33,PF$34,$F45) -> TRUE | PG45: =Find_Month(PG$33,PG$34,$F45) -> FALSE | PH45: =Find_Month(PH$33,PH$34,$F45) -> TRUE | PI45: =Find_Month(PI$33,PI$34,$F45) -> FALSE | PJ45: =Find_Month(PJ$33,PJ$34,$F45) -> TRUE | PK45: =Find_Month(PK$33,PK$34,$F45) -> FALSE | PL45: =Find_Month(PL$33,PL$34,$F45) -> TRUE | PM45: =Find_Month(PM$33,PM$34,$F45) -> FALSE | PN45: =Find_Month(PN$33,PN$34,$F45) -> TRUE | PO45: =Find_Month(PO$33,PO$34,$F45) -> FALSE | PP45: =Find_Month(PP$33,PP$34,$F45) -> TRUE | PQ45: =Find_Month(PQ$33,PQ$34,$F45) -> FALSE | PR45: =Find_Month(PR$33,PR$34,$F45) -> TRUE | PS45: =Find_Month(PS$33,PS$34,$F45) -> FALSE | PT45: =Find_Month(PT$33,PT$34,$F45) -> TRUE | PU45: =Find_Month(PU$33,PU$34,$F45) -> FALSE | PV45: =Find_Month(PV$33,PV$34,$F45) -> TRUE | PW45: =Find_Month(PW$33,PW$34,$F45) -> FALSE | PX45: =Find_Month(PX$33,PX$34,$F45) -> TRUE | PY45: =Find_Month(PY$33,PY$34,$F45) -> FALSE | PZ45: =Find_Month(PZ$33,PZ$34,$F45) -> TRUE | QA45: =Find_Month(QA$33,QA$34,$F45) -> FALSE | QB45: =Find_Month(QB$33,QB$34,$F45) -> TRUE | QC45: =Find_Month(QC$33,QC$34,$F45) -> FALSE | QD45: =Find_Month(QD$33,QD$34,$F45) -> TRUE | QE45: =Find_Month(QE$33,QE$34,$F45) -> FALSE | QF45: =Find_Month(QF$33,QF$34,$F45) -> TRUE | QG45: =Find_Month(QG$33,QG$34,$F45) -> FALSE | QH45: =Find_Month(QH$33,QH$34,$F45) -> TRUE | QI45: =Find_Month(QI$33,QI$34,$F45) -> FALSE | QJ45: =Find_Month(QJ$33,QJ$34,$F45) -> TRUE | QK45: =Find_Month(QK$33,QK$34,$F45) -> FALSE | QL45: =Find_Month(QL$33,QL$34,$F45) -> TRUE | QM45: =Find_Month(QM$33,QM$34,$F45) -> FALSE | QN45: =Find_Month(QN$33,QN$34,$F45) -> TRUE | QO45: =Find_Month(QO$33,QO$34,$F45) -> FALSE | QP45: =Find_Month(QP$33,QP$34,$F45) -> TRUE | QQ45: =Find_Month(QQ$33,QQ$34,$F45) -> FALSE | QR45: =Find_Month(QR$33,QR$34,$F45) -> TRUE | QS45: =Find_Month(QS$33,QS$34,$F45) -> FALSE | QT45: =Find_Month(QT$33,QT$34,$F45) -> TRUE | QU45: =Find_Month(QU$33,QU$34,$F45) -> FALSE | QV45: =Find_Month(QV$33,QV$34,$F45) -> TRUE | QW45: =Find_Month(QW$33,QW$34,$F45) -> FALSE | QX45: =Find_Month(QX$33,QX$34,$F45) -> TRUE | QY45: =Find_Month(QY$33,QY$34,$F45) -> FALSE | QZ45: =Find_Month(QZ$33,QZ$34,$F45) -> TRUE | RA45: =Find_Month(RA$33,RA$34,$F45) -> FALSE | RB45: =Find_Month(RB$33,RB$34,$F45) -> TRUE | RC45: =Find_Month(RC$33,RC$34,$F45) -> FALSE | RD45: =Find_Month(RD$33,RD$34,$F45) -> TRUE | RE45: =Find_Month(RE$33,RE$34,$F45) -> FALSE | RF45: =Find_Month(RF$33,RF$34,$F45) -> TRUE | RG45: =Find_Month(RG$33,RG$34,$F45) -> FALSE | RH45: =Find_Month(RH$33,RH$34,$F45) -> TRUE | RI45: =Find_Month(RI$33,RI$34,$F45) -> FALSE | RJ45: =Find_Month(RJ$33,RJ$34,$F45) -> TRUE | RK45: =Find_Month(RK$33,RK$34,$F45) -> FALSE | RL45: =Find_Month(RL$33,RL$34,$F45) -> TRUE | RM45: =Find_Month(RM$33,RM$34,$F45) -> FALSE | RN45: =Find_Month(RN$33,RN$34,$F45) -> TRUE | RO45: =Find_Month(RO$33,RO$34,$F45) -> FALSE | RP45: =Find_Month(RP$33,RP$34,$F45) -> TRUE | RQ45: =Find_Month(RQ$33,RQ$34,$F45) -> FALSE | RR45: =Find_Month(RR$33,RR$34,$F45) -> TRUE | RS45: =Find_Month(RS$33,RS$34,$F45) -> FALSE | RT45: =Find_Month(RT$33,RT$34,$F45) -> TRUE | RU45: =Find_Month(RU$33,RU$34,$F45) -> FALSE | RV45: =Find_Month(RV$33,RV$34,$F45) -> TRUE | RW45: =Find_Month(RW$33,RW$34,$F45) -> FALSE | RX45: =Find_Month(RX$33,RX$34,$F45) -> TRUE | RY45: =Find_Month(RY$33,RY$34,$F45) -> FALSE | RZ45: =Find_Month(RZ$33,RZ$34,$F45) -> TRUE | SA45: =Find_Month(SA$33,SA$34,$F45) -> FALSE | SB45: =Find_Month(SB$33,SB$34,$F45) -> TRUE | SC45: =Find_Month(SC$33,SC$34,$F45) -> FALSE | SD45: =Find_Month(SD$33,SD$34,$F45) -> FALSE | SE45: =Find_Month(SE$33,SE$34,$F45) -> FALSE | SF45: =Find_Month(SF$33,SF$34,$F45) -> FALSE | SG45: =Find_Month(SG$33,SG$34,$F45) -> FALSE | SH45: =Find_Month(SH$33,SH$34,$F45) -> FALSE | SI45: =Find_Month(SI$33,SI$34,$F45) -> FALSE | SJ45: =Find_Month(SJ$33,SJ$34,$F45) -> FALSE | SK45: =Find_Month(SK$33,SK$34,$F45) -> FALSE | SL45: =Find_Month(SL$33,SL$34,$F45) -> FALSE | SM45: =Find_Month(SM$33,SM$34,$F45) -> FALSE | SN45: =Find_Month(SN$33,SN$34,$F45) -> FALSE | SO45: =Find_Month(SO$33,SO$34,$F45) -> FALSE | SP45: =Find_Month(SP$33,SP$34,$F45) -> FALSE | SQ45: =Find_Month(SQ$33,SQ$34,$F45) -> FALSE | SR45: =Find_Month(SR$33,SR$34,$F45) -> FALSE | SS45: =Find_Month(SS$33,SS$34,$F45) -> FALSE | ST45: =Find_Month(ST$33,ST$34,$F45) -> FALSE | SU45: =Find_Month(SU$33,SU$34,$F45) -> FALSE | SV45: =Find_Month(SV$33,SV$34,$F45) -> FALSE | SW45: =Find_Month(SW$33,SW$34,$F45) -> FALSE | SX45: =Find_Month(SX$33,SX$34,$F45) -> FALSE | SY45: =Find_Month(SY$33,SY$34,$F45) -> FALSE | SZ45: =Find_Month(SZ$33,SZ$34,$F45) -> FALSE | TA45: =Find_Month(TA$33,TA$34,$F45) -> FALSE | TB45: =Find_Month(TB$33,TB$34,$F45) -> FALSE | TC45: =Find_Month(TC$33,TC$34,$F45) -> FALSE | TD45: =Find_Month(TD$33,TD$34,$F45) -> FALSE | TE45: =Find_Month(TE$33,TE$34,$F45) -> FALSE | TF45: =Find_Month(TF$33,TF$34,$F45) -> FALSE | TG45: =Find_Month(TG$33,TG$34,$F45) -> FALSE | TH45: =Find_Month(TH$33,TH$34,$F45) -> FALSE | TI45: =Find_Month(TI$33,TI$34,$F45) -> FALSE | TJ45: =Find_Month(TJ$33,TJ$34,$F45) -> FALSE | TK45: =Find_Month(TK$33,TK$34,$F45) -> FALSE | TL45: =Find_Month(TL$33,TL$34,$F45) -> FALSE | TM45: =Find_Month(TM$33,TM$34,$F45) -> FALSE | TN45: =Find_Month(TN$33,TN$34,$F45) -> FALSE | TO45: =Find_Month(TO$33,TO$34,$F45) -> FALSE | TP45: =Find_Month(TP$33,TP$34,$F45) -> FALSE | TQ45: =Find_Month(TQ$33,TQ$34,$F45) -> FALSE | TR45: =Find_Month(TR$33,TR$34,$F45) -> FALSE | TS45: =Find_Month(TS$33,TS$34,$F45) -> FALSE | TT45: =Find_Month(TT$33,TT$34,$F45) -> FALSE | TU45: =Find_Month(TU$33,TU$34,$F45) -> FALSE | TV45: =Find_Month(TV$33,TV$34,$F45) -> FALSE | TW45: =Find_Month(TW$33,TW$34,$F45) -> FALSE | TX45: =Find_Month(TX$33,TX$34,$F45) -> FALSE | TY45: =Find_Month(TY$33,TY$34,$F45) -> FALSE
